{"text_format":"1","workbook":"xlsx","n_sheets":8,"sheets":["Patient-level outcomes","baseline.ind","output.ind","effect.ind","GP practice-level outcomes","output.gp","baseline.gp","effect.avgpat"],"not_rendered":{"charts":10,"images":0,"macros":1,"external_links":0,"defined_names":252,"comments":0,"pivot_tables":0},"unopened":[],"bounds":{"document_bytes":16777216,"sheet_cells":100000,"rows_first":2000,"rows_last":500,"rows_between":2000,"halvings":0,"cell_chars":16384,"cell_head_chars":4096},"cells_cut":0,"cells_raw":0,"read":"whole","date_system":"1900"}

{"sheet":"Patient-level outcomes","index":0,"n_rows":44,"n_cols":11,"rows_kept":44,"cut":false,"hidden":false,"merged":[]}
[]
[]
[]
[]
[]
[]
[]
[]
[null,"Baseline scenario",null,null,null,"Scenario 1",null,null,"Scenario 2"]
[null,"Baseline - Meet no targets",null,null,null,"Meet BP target only",null,null,"Meet all three targets"]
[]
[false]
[false]
[false]
[]
[]
[]
[null,"Patient profile","Input","Unit",null,false,false,true,true,true,true]
[null,"Gender","M"]
[null,"Ethnicity","White Caucasian"]
[null,"Age (current)",65,"years"]
[null,"Duration of diabetes",7,"years"]
[null,"Current smoker","N"]
[]
[null,"Biomarkers"]
[null,"White blood cell count",7,"x 109/L"]
[null,"Haemoglobin ",14,"g/dL"]
[null,"Heart rate",78,"bpm"]
[null,"BMI",31,"kg/m2"]
[null,"eGFR (186-MDRD equation)",82,"mL/min/1.73m2"]
[null,"Serum creatinine (optional; used to calculate eGFR if not available)",null,"µmol/L"]
[]
[null,"History of complication"]
[null,"Albuminuria ","N"]
[null,"Atrial fibrillation","N"]
[null,"Peripheral aterial disease","N"]
[null,"Myocardial infarction","N"]
[null,"Stroke","N"]
[null,"Ischemic heart disease","N"]
[null,"Heart failure","N"]
[null,"Amputation","N"]
[null,"Blind","N"]
[null,"Renal failure","N"]
[null,"Ulcer","N"]

{"sheet":"baseline.ind","index":1,"n_rows":1048574,"n_cols":16380,"rows_kept":4500,"cut":true,"hidden":true,"merged":[],"bounds":{"rows_first":2000,"rows_last":500,"rows_between":2000,"halvings":0}}
["VAR","Dropdown list",null,null,null,"VAL_baseline","VAL_scenario","VAL_ideal"]
["(Intercept)",null,null,null,null,1,1,1]
["genderM","M","F",null,null,{"$f":"IF(pat_gender = \"M\", 1,0)","v":1},{"$f":"IF(pat_gender = \"M\", 1,0)","v":1},{"$f":"IF(pat_gender = \"M\", 1,0)","v":1}]
["as.factor(ethnicity)2","White Caucasian ","Afro-Caribbean","South Asian",null,{"$f":"IF(pat_eth = \"Afro-Caribbean\", 1, 0)","v":0},{"$f":"IF(pat_eth = \"Afro-Caribbean\", 1, 0)","v":0},{"$f":"IF(pat_eth = \"Afro-Caribbean\", 1, 0)","v":0}]
["as.factor(ethnicity)3",null,null,null,null,{"$f":"IF(pat_eth = \"South Asian\", 1, 0)","v":0},{"$f":"IF(pat_eth = \"South Asian\", 1, 0)","v":0},{"$f":"IF(pat_eth = \"South Asian\", 1, 0)","v":0}]
["age.diag",null,null,null,null,{"$f":"pat_age-pat_duration","v":58},{"$f":"pat_age-pat_duration","v":58},{"$f":"pat_age-pat_duration","v":58}]
["I(age.diag^2)",null,null,null,null,{"$f":"(pat_age-pat_duration)^2","v":3364},{"$f":"(pat_age-pat_duration)^2","v":3364},{"$f":"(pat_age-pat_duration)^2","v":3364}]
["I(age.diag^3)",null,null,null,null,{"$f":"(pat_age-pat_duration)^3","v":195112},{"$f":"(pat_age-pat_duration)^3","v":195112},{"$f":"(pat_age-pat_duration)^3","v":195112}]
["duration",null,null,null,null,{"$f":"pat_duration","v":7},{"$f":"pat_duration","v":7},{"$f":"pat_duration","v":7}]
["smokerY","Y","N",null,null,{"$f":"IF(pat_smok = \"Y\", 1,0)","v":0},{"$f":"IF(pat_smok = \"Y\", 1,0)","v":0},{"$f":"IF(pat_smok = \"Y\", 1,0)","v":0}]
["albY","Y","N",null,null,{"$f":"IF(pat_alb = \"Y\", 1,0)","v":0},{"$f":"IF(pat_alb = \"Y\", 1,0)","v":0},{"$f":"IF(pat_alb = \"Y\", 1,0)","v":0}]
["wbc",null,null,null,null,{"$f":"pat_wbc","v":7},{"$f":"pat_wbc","v":7},{"$f":"pat_wbc","v":7}]
["haem",null,null,null,null,{"$f":"pat_haem","v":14},{"$f":"pat_haem","v":14},{"$f":"pat_haem","v":14}]
["hrate",null,null,null,null,{"$f":"pat_hr","v":78},{"$f":"pat_hr","v":78},{"$f":"pat_hr","v":78}]
["bmi",null,null,null,null,{"$f":"pat_bmi","v":31},{"$f":"pat_bmi","v":31},{"$f":"pat_bmi","v":31}]
["atfib1ltY","Y","N",null,null,{"$f":"IF(pat_af = \"Y\", 1,0)","v":0},{"$f":"IF(pat_af = \"Y\", 1,0)","v":0},{"$f":"IF(pat_af = \"Y\", 1,0)","v":0}]
["pvd1ltY","Y","N",null,null,{"$f":"IF(pat_pad = \"Y\", 1,0)","v":0},{"$f":"IF(pat_pad = \"Y\", 1,0)","v":0},{"$f":"IF(pat_pad = \"Y\", 1,0)","v":0}]
["ihd1ltY","Y","N",null,null,{"$f":"IF(pat_ihd = \"Y\", 1,0)","v":0},{"$f":"IF(pat_ihd = \"Y\", 1,0)","v":0},{"$f":"IF(pat_ihd = \"Y\", 1,0)","v":0}]
["hf1ltY","Y","N",null,null,{"$f":"IF(pat_hf = \"Y\", 1,0)","v":0},{"$f":"IF(pat_hf = \"Y\", 1,0)","v":0},{"$f":"IF(pat_hf = \"Y\", 1,0)","v":0}]
["amp1ltY","Y","N",null,null,{"$f":"IF(pat_amp = \"Y\", 1,0)","v":0},{"$f":"IF(pat_amp = \"Y\", 1,0)","v":0},{"$f":"IF(pat_amp = \"Y\", 1,0)","v":0}]
["blind1ltY","Y","N",null,null,{"$f":"IF(pat_blind = \"Y\", 1,0)","v":0},{"$f":"IF(pat_blind = \"Y\", 1,0)","v":0},{"$f":"IF(pat_blind = \"Y\", 1,0)","v":0}]
["renal1ltY","Y","N",null,null,{"$f":"IF(pat_renal = \"Y\", 1,0)","v":0},{"$f":"IF(pat_renal = \"Y\", 1,0)","v":0},{"$f":"IF(pat_renal = \"Y\", 1,0)","v":0},null,null,null,null,null,null,null,null,null,null,null,null,null,null,null,null,null,null,null,null,null,null,null,null,null,null,null,null,null,null,null,null,null,null,null,null,null,null,null,null,null,null,null,null,null,null,null,null,null,null,null,null,null,null,null,null,null,null,null,null,null,null,null,null,null,null,null,null,null,null,null,null,null,null,null,null,null,null,null,null,null,null,null,null,null,null,null,null,null,null,null,null,null,null,null,null,null,null,null,null,null,null,null,null,null,null,null,null,null,null,null,null,null,null,null,null,null,null,null,null,null,null,null,null,null,null,null,null,null,null,null,null,null,null,null,null,null,null,null,null,null,null,null,null,null,null,null,null,null,null,null,null,null,null,null,null,null,null,null,null,null,null,null,null,null,null,null,null,null,null,null,null,null,null,null,null,null,null,null,null,null,null,null,null,null,null,null,null,null,null,null,null,null,null,null,null,null,null,null,null,null,null,null,null,null,null,null,null,null,null,null,null,null,null,null,null,null,null,null,null,null,null,null,null,null,null,null,null,null,null,null,null,null,null,null,null,null,null,null,null,null,null,null,null,null,null,null,null,null,null,null,null,null,null,null,null,null,null,null,null,null,null,null,null,null,null,null,null,null,null,null,null,null,null,null,null,null,null,null,null,null,null,null,null,null,null,null,null,null,null,null,null,null,null,null,null,null,null,null,null,null,null,null,null,null,null,null,null,null,null,null,null,null,null,null,null,null,null,null,null,null,null,null,null,null,null,null,null,null,null,null,null,null,null,null,null,null,null,null,null,null,null,null,null,null,null,null,null,null,null,null,null,null,null,null,null,null,null,null,null,null,null,null,null,null,null,null,null,null,null,null,null,null,null,null,null,null,null,null,null,null,null,null,null,null,null,null,null,null,null,null,null,null,null,null,null,null,null,null,null,null,null,null,null,null,null,null,null,null,null,null,null,null,null,null,null,null,null,null,null,null,null,null,null,null,null,null,null,null,null,null,null,null,null,null,null,null,null,null,null,null,null,null,null,null,null,null,null,null,null,null,null,null,null,null,null,null,null,null,null,null,null,null,null,null,null,null,null,null,null,null,null,null,null,null,null,null,null,null,null,null,null,null,null,null,null,null,null,null,null,null,null,null,null,null,null,null,null,null,null,null,null,null,null,null,null,null,null,null,null,null,null,null,null,null,null,null,null,null,null,null,null,null,null,null,null,null,null,null,null,null,null,null,null,null,null,null,null,null,null,null,null,null,null,null,null,null,null,null,null,null,null,null,null,null,null,null,null,null,null,null,null,null,null,null,null,null,null,null,null,null,null,null,null,null,null,null,null,null,null,null,null,null,null,null,null,null,null,null,null,null,null,null,null,null,null,null,null,null,null,null,null,null,null,null,null,null,null,null,null,null,null,null,null,null,null,null,null,null,null,null,null,null,null,null,null,null,null,null,null,null,null,null,null,null,null,null,null,null,null,null,null,null,null,null,null,null,null,null,null,null,null,null,null,null,null,null,null,null,null,null,null,null,null,null,null,null,null,null,null,null,null,null,null,null,null,null,null,null,null,null,null,null,null,null,null,null,null,null,null,null,null,null,null,null,null,null,null,null,null,null,null,null,null,null,null,null,null,null,null,null,null,null,null,null,null,null,null,null,null,null,null,null,null,null,null,null,null,null,null,null,null,null,null,null,null,null,null,null,null,null,null,null,null,null,null,null,null,null,null,null,null,null,null,null,null,null,null,null,null,null,null,null,null,null,null,null,null,null,null,null,null,null,null,null,null,null,null,null,null,null,null,null,null,null,null,null,null,null,null,null,null,null,null,null,null,null,null,null,null,null,null,null,null,null,null,null,null,null,null,null,null,null,null,null,null,null,null,null,null,null,null,null,null,null,null,null,null,null,null,null,null,null,null,null,null,null,null,null,null,null,null,null,null,null,null,null,null,null,null,null,null,null,null,null,null,null,null,null,null,null,null,null,null,null,null,null,null,null,null,null,null,null,null,null,null,null,null,null,null,null,null,null,null,null,null,null,null,null,null,null,null,null,null,null,null,null,null,null,null,null,null,null,null,null,null,null,null,null,null,null,null,null,null,null,null,null,null,null,null,null,null,null,null,null,null,null,null,null,null,null,null,null,null,null,null,null,null,null,null,null,null,null,null,null,null,null,null,null,null,null,null,null,null,null,null,null,null,null,null,null,null,null,null,null,null,null,null,null,null,null,null,null,null,null,null,null,null,null,null,null,null,null,null,null,null,null,null,null,null,null,null,null,null,null,null,null,null,null,null,null,null,null,null,null,null,null,null,null,null,null,null,null,null,null,null,null,null,null,null,null,null,null,null,null,null,null,null,null,null,null,null,null,null,null,null,null,null,null,null,null,null,null,null,null,null,null,null,null,null,null,null,null,null,null,null,null,null,null,null,null,null,null,null,null,null,null,null,null,null,null,null,null,null,null,null,null,null,null,null,null,null,null,null,null,null,null,null,null,null,null,null,null,null,null,null,null,null,null,null,null,null,null,null,null,null,null,null,null,null,null,null,null,null,null,null,null,null,null,null,null,null,null,null,null,null,null,null,null,null,null,null,null,null,null,null,null,null,null,null,null,null,null,null,null,null,null,null,null,null,null,null,null,null,null,null,null,null,null,null,null,null,null,null,null,null,null,null,null,null,null,null,null,null,null,null,null,null,null,null,null,null,null,null,null,null,null,null,null,null,null,null,null,null,null,null,null,null,null,null,null,null,null,null,null,null,null,null,null,null,null,null,null,null,null,null,null,null,null,null,null,null,null,null,null,null,null,null,null,null,null,null,null,null,null,null,null,null,null,null,null,null,null,null,null,null,null,null,null,null,null,null,null,null,null,null,null,null,null,null,null,null,null,null,null,null,null,null,null,null,null,null,null,null,null,null,null,null,null,null,null,null,null,null,null,null,null,null,null,null,null,null,null,null,null,null,null,null,null,null,null,null,null,null,null,null,null,null,null,null,null,null,null,null,null,null,null,null,null,null,null,null,null,null,null,null,null,null,null,null,null,null,null,null,null,null,null,null,null,null,null,null,null,null,null,null,null,null,null,null,null,null,null,null,null,null,null,null,null,null,null,null,null,null,null,null,null,null,null,null,null,null,null,null,null,null,null,null,null,null,null,null,null,null,null,null,null,null,null,null,null,null,null,null,null,null,null,null,null,null,null,null,null,null,null,null,null,null,null,null,null,null,null,null,null,null,null,null,null,null,null,null,null,null,null,null,null,null,null,null,null,null,null,null,null,null,null,null,null,null,null,null,null,null,null,null,null,null,null,null,null,null,null,null,null,null,null,null,null,null,null,null,null,null,null,null,null,null,null,null,null,null,null,null,null,null,null,null,null,null,null,null,null,null,null,null,null,null,null,null,null,null,null,null,null,null,null,null,null,null,null,null,null,null,null,null,null,null,null,null,null,null,null,null,null,null,null,null,null,null,null,null,null,null,null,null,null,null,null,null,null,null,null,null,null,null,null,null,null,null,null,null,null,null,null,null,null,null,null,null,null,null,null,null,null,null,null,null,null,null,null,null,null,null,null,null,null,null,null,null,null,null,null,null,null,null,null,null,null,null,null,null,null,null,null,null,null,null,null,null,null,null,null,null,null,null,null,null,null,null,null,null,null,null,null,null,null,null,null,null,null,null,null,null,null,null,null,null,null,null,null,null,null,null,null,null,null,null,null,null,null,null,null,null,null,null,null,null,null,null,null,null,null,null,null,null,null,null,null,null,null,null,null,null,null,null,null,null,null,null,null,null,null,null,null,null,null,null,null,null,null,null,null,null,null,null,null,null,null,null,null,null,null,null,null,null,null,null,null,null,null,null,null,null,null,null,null,null,null,null,null,null,null,null,null,null,null,null,null,null,null,null,null,null,null,null,null,null,null,null,null,null,null,null,null,null,null,null,null,null,null,null,null,null,null,null,null,null,null,null,null,null,null,null,null,null,null,null,null,null,null,null,null,null,null,null,null,null,null,null,null,null,null,null,null,null,null,null,null,null,null,null,null,null,null,null,null,null,null,null,null,null,null,null,null,null,null,null,null,null,null,null,null,null,null,null,null,null,null,null,null,null,null,null,null,null,null,null,null,null,null,null,null,null,null,null,null,null,null,null,null,null,null,null,null,null,null,null,null,null,null,null,null,null,null,null,null,null,null,null,null,null,null,null,null,null,null,null,null,null,null,null,null,null,null,null,null,null,null,null,null,null,null,null,null,null,null,null,null,null,null,null,null,null,null,null,null,null,null,null,null,null,null,null,null,null,null,null,null,null,null,null,null,null,null,null,null,null,null,null,null,null,null,null,null,null,null,null,null,null,null,null,null,null,null,null,null,null,null,null,null,null,null,null,null,null,null,null,null,null,null,null,null,null,null,null,null,null,null,null,null,null,null,null,null,null,null,null,null,null,null,null,null,null,null,null,null,null,null,null,null,null,null,null,null,null,null,null,null,null,null,null,null,null,null,null,null,null,null,null,null,null,null,null,null,null,null,null,null,null,null,null,null,null,null,null,null,null,null,null,null,null,null,null,null,null,null,null,null,null,null,null,null,null,null,null,null,null,null,null,null,null,null,null,null,null,null,null,null,null,null,null,null,null,null,null,null,null,null,null,null,null,null,null,null,null,null,null,null,null,null,null,null,null,null,null,null,null,null,null,null,null,null,null,null,null,null,null,null,null,null,null,null,null,null,null,null,null,null,null,null,null,null,null,null,null,null,null,null,null,null,null,null,null,null,null,null,null,null,null,null,null,null,null,null,null,null,null,null,null,null,null,null,null,null,null,null,null,null,null,null,null,null,null,null,null,null,null,null,null,null,null,null,null,null,null,null,null,null,null,null,null,null,null,null,null,null,null,null,null,null,null,null,null,null,null,null,null,null,null,null,null,null,null,null,null,null,null,null,null,null,null,null,null,null,null,null,null,null,null,null,null,null,null,null,null,null,null,null,null,null,null,null,null,null,null,null,null,null,null,null,null,null,null,null,null,null,null,null,null,null,null,null,null,null,null,null,null,null,null,null,null,null,null,null,null,null,null,null,null,null,null,null,null,null,null,null,null,null,null,null,null,null,null,null,null,null,null,null,null,null,null,null,null,null,null,null,null,null,null,null,null,null,null,null,null,null,null,null,null,null,null,null,null,null,null,null,null,null,null,null,null,null,null,null,null,null,null,null,null,null,null,null,null,null,null,null,null,null,null,null,null,null,null,null,null,null,null,null,null,null,null,null,null,null,null,null,null,null,null,null,null,null,null,null,null,null,null,null,null,null,null,null,null,null,null,null,null,null,null,null,null,null,null,null,null,null,null,null,null,null,null,null,null,null,null,null,null,null,null,null,null,null,null,null,null,null,null,null,null,null,null,null,null,null,null,null,null,null,null,null,null,null,null,null,null,null,null,null,null,null,null,null,null,null,null,null,null,null,null,null,null,null,null,null,null,null,null,null,null,null,null,null,null,null,null,null,null,null,null,null,null,null,null,null,null,null,null,null,null,null,null,null,null,null,null,null,null,null,null,null,null,null,null,null,null,null,null,null,null,null,null,null,null,null,null,null,null,null,null,null,null,null,null,null,null,null,null,null,null,null,null,null,null,null,null,null,null,null,null,null,null,null,null,null,null,null,null,null,null,null,null,null,null,null,null,null,null,null,null,null,null,null,null,null,null,null,null,null,null,null,null,null,null,null,null,null,null,null,null,null,null,null,null,null,null,null,null,null,null,null,null,null,null,null,null,null,null,null,null,null,null,null,null,null,null,null,null,null,null,null,null,null,null,null,null,null,null,null,null,null,null,null,null,null,null,null,null,null,null,null,null,null,null,null,null,null,null,null,null,null,null,null,null,null,null,null,null,null,null,null,null,null,null,null,null,null,null,null,null,null,null,null,null,null,null,null,null,null,null,null,null,null,null,null,null,null,null,null,null,null,null,null,null,null,null,null,null,null,null,null,null,null,null,null,null,null,null,null,null,null,null,null,null,null,null,null,null,null,null,null,null,null,null,null,null,null,null,null,null,null,null,null,null,null,null,null,null,null,null,null,null,null,null,null,null,null,null,null,null,null,null,null,null,null,null,null,null,null,null,null,null,null,null,null,null,null,null,null,null,null,null,null,null,null,null,null,null,null,null,null,null,null,null,null,null,null,null,null,null,null,null,null,null,null,null,null,null,null,null,null,null,null,null,null,null,null,null,null,null,null,null,null,null,null,null,null,null,null,null,null,null,null,null,null,null,null,null,null,null,null,null,null,null,null,null,null,null,null,null,null,null,null,null,null,null,null,null,null,null,null,null,null,null,null,null,null,null,null,null,null,null,null,null,null,null,null,null,null,null,null,null,null,null,null,null,null,null,null,null,null,null,null,null,null,null,null,null,null,null,null,null,null,null,null,null,null,null,null,null,null,null,null,null,null,null,null,null,null,null,null,null,null,null,null,null,null,null,null,null,null,null,null,null,null,null,null,null,null,null,null,null,null,null,null,null,null,null,null,null,null,null,null,null,null,null,null,null,null,null,null,null,null,null,null,null,null,null,null,null,null,null,null,null,null,null,null,null,null,null,null,null,null,null,null,null,null,null,null,null,null,null,null,null,null,null,null,null,null,null,null,null,null,null,null,null,null,null,null,null,null,null,null,null,null,null,null,null,null,null,null,null,null,null,null,null,null,null,null,null,null,null,null,null,null,null,null,null,null,null,null,null,null,null,null,null,null,null,null,null,null,null,null,null,null,null,null,null,null,null,null,null,null,null,null,null,null,null,null,null,null,null,null,null,null,null,null,null,null,null,null,null,null,null,null,null,null,null,null,null,null,null,null,null,null,null,null,null,null,null,null,null,null,null,null,null,null,null,null,null,null,null,null,null,null,null,null,null,null,null,null,null,null,null,null,null,null,null,null,null,null,null,null,null,null,null,null,null,null,null,null,null,null,null,null,null,null,null,null,null,null,null,null,null,null,null,null,null,null,null,null,null,null,null,null,null,null,null,null,null,null,null,null,null,null,null,null,null,null,null,null,null,null,null,null,null,null,null,null,null,null,null,null,null,null,null,null,null,null,null,null,null,null,null,null,null,null,null,null,null,null,null,null,null,null,null,null,null,null,null,null,null,null,null,null,null,null,null,null,null,null,null,null,null,null,null,null,null,null,null,null,null,null,null,null,null,null,null,null,null,null,null,null,null,null,null,null,null,null,null,null,null,null,null,null,null,null,null,null,null,null,null,null,null,null,null,null,null,null,null,null,null,null,null,null,null,null,null,null,null,null,null,null,null,null,null,null,null,null,null,null,null,null,null,null,null,null,null,null,null,null,null,null,null,null,null,null,null,null,null,null,null,null,null,null,null,null,null,null,null,null,null,null,null,null,null,null,null,null,null,null,null,null,null,null,null,null,null,null,null,null,null,null,null,null,null,null,null,null,null,null,null,null,null,null,null,null,null,null,null,null,null,null,null,null,null,null,null,null,null,null,null,null,null,null,null,null,null,null,null,null,null,null,null,null,null,null,null,null,null,null,null,null,null,null,null,null,null,null,null,null,null,null,null,null,null,null,null,null,null,null,null,null,null,null,null,null,null,null,null,null,null,null,null,null,null,null,null,null,null,null,null,null,null,null,null,null,null,null,null,null,null,null,null,null,null,null,null,null,null,null,null,null,null,null,null,null,null,null,null,null,null,null,null,null,null,null,null,null,null,null,null,null,null,null,null,null,null,null,null,null,null,null,null,null,null,null,null,null,null,null,null,null,null,null,null,null,null,null,null,null,null,null,null,null,null,null,null,null,null,null,null,null,null,null,null,null,null,null,null,null,null,null,null,null,null,null,null,null,null,null,null,null,null,null,null,null,null,null,null,null,null,null,null,null,null,null,null,null,null,null,null,null,null,null,null,null,null,null,null,null,null,null,null,null,null,null,null,null,null,null,null,null,null,null,null,null,null,null,null,null,null,null,null,null,null,null,null,null,null,null,null,null,null,null,null,null,null,null,null,null,null,null,null,null,null,null,null,null,null,null,null,null,null,null,null,null,null,null,null,null,null,null,null,null,null,null,null,null,null,null,null,null,null,null,null,null,null,null,null,null,null,null,null,null,null,null,null,null,null,null,null,null,null,null,null,null,null,null,null,null,null,null,null,null,null,null,null,null,null,null,null,null,null,null,null,null,null,null,null,null,null,null,null,null,null,null,null,null,null,null,null,null,null,null,null,null,null,null,null,null,null,null,null,null,null,null,null,null,null,null,null,null,null,null,null,null,null,null,null,null,null,null,null,null,null,null,null,null,null,null,null,null,null,null,null,null,null,null,null,null,null,null,null,null,null,null,null,null,null,null,null,null,null,null,null,null,null,null,null,null,null,null,null,null,null,null,null,null,null,null,null,null,null,null,null,null,null,null,null,null,null,null,null,null,null,null,null,null,null,null,null,null,null,null,null,null,null,null,null,null,null,null,null,null,null,null,null,null,null,null,null,null,null,null,null,null,null,null,null,null,null,null,null,null,null,null,null,null,null,null,null,null,null,null,null,null,null,null,null,null,null,null,null,null,null,null,null,null,null,null,null,null,null,null,null,null,null,null,null,null,null,null,null,null,null,null,null,null,null,null,null,null,null,null,null,null,null,null,null,null,null,null,null,null,null,null,null,null,null,null,null,null,null,null,null,null,null,null,null,null,null,null,null,null,null,null,null,null,null,null,null,null,null,null,null,null,null,null,null,null,null,null,null,null,null,null,null,null,null,null,null,null,null,null,null,null,null,null,null,null,null,null,null,null,null,null,null,null,null,null,null,null,null,null,null,null,null,null,null,null,null,null,null,null,null,null,null,null,null,null,null,null,null,null,null,null,null,null,null,null,null,null,null,null,null,null,null,null,null,null,null,null,null,null,null,null,null,null,null,null,null,null,null,null,null,null,null,null,null,null,null,null,null,null,null,null,null,null,null,null,null,null,null,null,null,null,null,null,null,null,null,null,null,null,null,null,null,null,null,null,null,null,null,null,null,null,null,null,null,null,null,null,null,null,null,null,null,null,null,null,null,null,null,null,null,null,null,null,null,null,null,null,null,null,null,null,null,null,null,null,null,null,null,null,null,null,null,null,null,null,null,null,null,null,null,null,null,null,null,null,null,null,null,null,null,null,null,null,null,null,null,null,null,null,null,null,null,null,null,null,null,null,null,null,null,null,null,null,null,null,null,null,null,null,null,null,null,null,null,null,null,null,null,null,null,null,null,null,null,null,null,null,null,null,null,null,null,null,null,null,null,null,null,null,null,null,null,null,null,null,null,null,null,null,null,null,null,null,null,null,null,null,null,null,null,null,null,null,null,null,null,null,null,null,null,null,null,null,null,null,null,null,null,null,null,null,null,null,null,null,null,null,null,null,null,null,null,null,null,null,null,null,null,null,null,null,null,null,null,null,null,null,null,null,null,null,null,null,null,null,null,null,null,null,null,null,null,null,null,null,null,null,null,null,null,null,null,null,null,null,null,null,null,null,null,null,null,null,null,null,null,null,null,null,null,null,null,null,null,null,null,null,null,null,null,null,null,null,null,null,null,null,null,null,null,null,null,null,null,null,null,null,null,null,null,null,null,null,null,null,null,null,null,null,null,null,null,null,null,null,null,null,null,null,null,null,null,null,null,null,null,null,null,null,null,null,null,null,null,null,null,null,null,null,null,null,null,null,null,null,null,null,null,null,null,null,null,null,null,null,null,null,null,null,null,null,null,null,null,null,null,null,null,null,null,null,null,null,null,null,null,null,null,null,null,null,null,null,null,null,null,null,null,null,null,null,null,null,null,null,null,null,null,null,null,null,null,null,null,null,null,null,null,null,null,null,null,null,null,null,null,null,null,null,null,null,null,null,null,null,null,null,null,null,null,null,null,null,null,null,null,null,null,null,null,null,null,null,null,null,null,null,null,null,null,null,null,null,null,null,null,null,null,null,null,null,null,null,null,null,null,null,null,null,null,null,null,null,null,null,null,null,null,null,null,null,null,null,null,null,null,null,null,null,null,null,null,null,null,null,null,null,null,null,null,null,null,null,null,null,null,null,null,null,null,null,null,null,null,null,null,null,null,null,null,null,null,null,null,null,null,null,null,null,null,null,null,null,null,null,null,null,null,null,null,null,null,null,null,null,null,null,null,null,null,null,null,null,null,null,null,null,null,null,null,null,null,null,null,null,null,null,null,null,null,null,null,null,null,null,null,null,null,null,null,null,null,null,null,null,null,null,null,null,null,null,null,null,null,null,null,null,null,null,null,null,null,null,null,null,null,null,null,null,null,null,null,null,null,null,null,null,null,null,null,null,null,null,null,null,null,null,null,null,null,null,null,null,null,null,null,null,null,null,null,null,null,null,null,null,null,null,null,null,null,null,null,null,null,null,null,null,null,null,null,null,null,null,null,null,null,null,null,null,null,null,null,null,null,null,null,null,null,null,null,null,null,null,null,null,null,null,null,null,null,null,null,null,null,null,null,null,null,null,null,null,null,null,null,null,null,null,null,null,null,null,null,null,null,null,null,null,null,null,null,null,null,null,null,null,null,null,null,null,null,null,null,null,null,null,null,null,null,null,null,null,null,null,null,null,null,null,null,null,null,null,null,null,null,null,null,null,null,null,null,null,null,null,null,null,null,null,null,null,null,null,null,null,null,null,null,null,null,null,null,null,null,null,null,null,null,null,null,null,null,null,null,null,null,null,null,null,null,null,null,null,null,null,null,null,null,null,null,null,null,null,null,null,null,null,null,null,null,null,null,null,null,null,null,null,null,null,null,null,null,null,null,null,null,null,null,null,null,null,null,null,null,null,null,null,null,null,null,null,null,null,null,null,null,null,null,null,null,null,null,null,null,null,null,null,null,null,null,null,null,null,null,null,null,null,null,null,null,null,null,null,null,null,null,null,null,null,null,null,null,null,null,null,null,null,null,null,null,null,null,null,null,null,null,null,null,null,null,null,null,null,null,null,null,null,null,null,null,null,null,null,null,null,null,null,null,null,null,null,null,null,null,null,null,null,null,null,null,null,null,null,null,null,null,null,null,null,null,null,null,null,null,null,null,null,null,null,null,null,null,null,null,null,null,null,null,null,null,null,null,null,null,null,null,null,null,null,null,null,null,null,null,null,null,null,null,null,null,null,null,null,null,null,null,null,null,null,null,null,null,null,null,null,null,null,null,null,null,null,null,null,null,null,null,null,null,null,null,null,null,null,null,null,null,null,null,null,null,null,null,null,null,null,null,null,null,null,null,null,null,null,null,null,null,null,null,null,null,null,null,null,null,null,null,null,null,null,null,null,null,null,null,null,null,null,null,null,null,null,null,null,null,null,null,null,null,null,null,null,null,null,null,null,null,null,null,null,null,null,null,null,null,null,null,null,null,null,null,null,null,null,null,null,null,null,null,null,null,null,null,null,null,null,null,null,null,null,null,null,null,null,null,null,null,null,null,null,null,null,null,null,null,null,null,null,null,null,null,null,null,null,null,null,null,null,null,null,null,null,null,null,null,null,null,null,null,null,null,null,null,null,null,null,null,null,null,null,null,null,null,null,null,null,null,null,null,null,null,null,null,null,null,null,null,null,null,null,null,null,null,null,null,null,null,null,null,null,null,null,null,null,null,null,null,null,null,null,null,null,null,null,null,null,null,null,null,null,null,null,null,null,null,null,null,null,null,null,null,null,null,null,null,null,null,null,null,null,null,null,null,null,null,null,null,null,null,null,null,null,null,null,null,null,null,null,null,null,null,null,null,null,null,null,null,null,null,null,null,null,null,null,null,null,null,null,null,null,null,null,null,null,null,null,null,null,null,null,null,null,null,null,null,null,null,null,null,null,null,null,null,null,null,null,null,null,null,null,null,null,null,null,null,null,null,null,null,null,null,null,null,null,null,null,null,null,null,null,null,null,null,null,null,null,null,null,null,null,null,null,null,null,null,null,null,null,null,null,null,null,null,null,null,null,null,null,null,null,null,null,null,null,null,null,null,null,null,null,null,null,null,null,null,null,null,null,null,null,null,null,null,null,null,null,null,null,null,null,null,null,null,null,null,null,null,null,null,null,null,null,null,null,null,null,null,null,null,null,null,null,null,null,null,null,null,null,null,null,null,null,null,null,null,null,null,null,null,null,null,null,null,null,null,null,null,null,null,null,null,null,null,null,null,null,null,null,null,null,null,null,null,null,null,null,null,null,null,null,null,null,null,null,null,null,null,null,null,null,null,null,null,null,null,null,null,null,null,null,null,null,null,null,null,null,null,null,null,null,null,null,null,null,null,null,null,null,null,null,null,null,null,null,null,null,null,null,null,null,null,null,null,null,null,null,null,null,null,null,null,null,null,null,null,null,null,null,null,null,null,null,null,null,null,null,null,null,null,null,null,null,null,null,null,null,null,null,null,null,null,null,null,null,null,null,null,null,null,null,null,null,null,null,null,null,null,null,null,null,null,null,null,null,null,null,null,null,null,null,null,null,null,null,null,null,null,null,null,null,null,null,null,null,null,null,null,null,null,null,null,null,null,null,null,null,null,null,null,null,null,null,null,null,null,null,null,null,null,null,null,null,null,null,null,null,null,null,null,null,null,null,null,null,null,null,null,null,null,null,null,null,null,null,null,null,null,null,null,null,null,null,null,null,null,null,null,null,null,null,null,null,null,null,null,null,null,null,null,null,null,null,null,null,null,null,null,null,null,null,null,null,null,null,null,null,null,null,null,null,null,null,null,null,null,null,null,null,null,null,null,null,null,null,null,null,null,null,null,null,null,null,null,null,null,null,null,null,null,null,null,null,null,null,null,null,null,null,null,null,null,null,null,null,null,null,null,null,null,null,null,null,null,null,null,null,null,null,null,null,null,null,null,null,null,null,null,null,null,null,null,null,null,null,null,null,null,null,null,null,null,null,null,null,null,null,null,null,null,null,null,null,null,null,null,null,null,null,null,null,null,null,null,null,null,null,null,null,null,null,null,null,null,null,null,null,null,null,null,null,null,null,null,null,null,null,null,null,null,null,null,null,null,null,null,null,null,null,null,null,null,null,null,null,null,null,null,null,null,null,null,null,null,null,null,null,null,null,null,null,null,null,null,null,null,null,null,null,null,null,null,null,null,null,null,null,null,null,null,null,null,null,null,null,null,null,null,null,null,null,null,null,null,null,null,null,null,null,null,null,null,null,null,null,null,null,null,null,null,null,null,null,null,null,null,null,null,null,null,null,null,null,null,null,null,null,null,null,null,null,null,null,null,null,null,null,null,null,null,null,null,null,null,null,null,null,null,null,null,null,null,null,null,null,null,null,null,null,null,null,null,null,null,null,null,null,null,null,null,null,null,null,null,null,null,null,null,null,null,null,null,null,null,null,null,null,null,null,null,null,null,null,null,null,null,null,null,null,null,null,null,null,null,null,null,null,null,null,null,null,null,null,null,null,null,null,null,null,null,null,null,null,null,null,null,null,null,null,null,null,null,null,null,null,null,null,null,null,null,null,null,null,null,null,null,null,null,null,null,null,null,null,null,null,null,null,null,null,null,null,null,null,null,null,null,null,null,null,null,null,null,null,null,null,null,null,null,null,null,null,null,null,null,null,null,null,null,null,null,null,null,null,null,null,null,null,null,null,null,null,null,null,null,null,null,null,null,null,null,null,null,null,null,null,null,null,null,null,null,null,null,null,null,null,null,null,null,null,null,null,null,null,null,null,null,null,null,null,null,null,null,null,null,null,null,null,null,null,null,null,null,null,null,null,null,null,null,null,null,null,null,null,null,null,null,null,null,null,null,null,null,null,null,null,null,null,null,null,null,null,null,null,null,null,null,null,null,null,null,null,null,null,null,null,null,null,null,null,null,null,null,null,null,null,null,null,null,null,null,null,null,null,null,null,null,null,null,null,null,null,null,null,null,null,null,null,null,null,null,null,null,null,null,null,null,null,null,null,null,null,null,null,null,null,null,null,null,null,null,null,null,null,null,null,null,null,null,null,null,null,null,null,null,null,null,null,null,null,null,null,null,null,null,null,null,null,null,null,null,null,null,null,null,null,null,null,null,null,null,null,null,null,null,null,null,null,null,null,null,null,null,null,null,null,null,null,null,null,null,null,null,null,null,null,null,null,null,null,null,null,null,null,null,null,null,null,null,null,null,null,null,null,null,null,null,null,null,null,null,null,null,null,null,null,null,null,null,null,null,null,null,null,null,null,null,null,null,null,null,null,null,null,null,null,null,null,null,null,null,null,null,null,null,null,null,null,null,null,null,null,null,null,null,null,null,null,null,null,null,null,null,null,null,null,null,null,null,null,null,null,null,null,null,null,null,null,null,null,null,null,null,null,null,null,null,null,null,null,null,null,null,null,null,null,null,null,null,null,null,null,null,null,null,null,null,null,null,null,null,null,null,null,null,null,null,null,null,null,null,null,null,null,null,null,null,null,null,null,null,null,null,null,null,null,null,null,null,null,null,null,null,null,null,null,null,null,null,null,null,null,null,null,null,null,null,null,null,null,null,null,null,null,null,null,null,null,null,null,null,null,null,null,null,null,null,null,null,null,null,null,null,null,null,null,null,null,null,null,null,null,null,null,null,null,null,null,null,null,null,null,null,null,null,null,null,null,null,null,null,null,null,null,null,null,null,null,null,null,null,null,null,null,null,null,null,null,null,null,null,null,null,null,null,null,null,null,null,null,null,null,null,null,null,null,null,null,null,null,null,null,null,null,null,null,null,null,null,null,null,null,null,null,null,null,null,null,null,null,null,null,null,null,null,null,null,null,null,null,null,null,null,null,null,null,null,null,null,null,null,null,null,null,null,null,null,null,null,null,null,null,null,null,null,null,null,null,null,null,null,null,null,null,null,null,null,null,null,null,null,null,null,null,null,null,null,null,null,null,null,null,null,null,null,null,null,null,null,null,null,null,null,null,null,null,null,null,null,null,null,null,null,null,null,null,null,null,null,null,null,null,null,null,null,null,null,null,null,null,null,null,null,null,null,null,null,null,null,null,null,null,null,null,null,null,null,null,null,null,null,null,null,null,null,null,null,null,null,null,null,null,null,null,null,null,null,null,null,null,null,null,null,null,null,null,null,null,null,null,null,null,null,null,null,null,null,null,null,null,null,null,null,null,null,null,null,null,null,null,null,null,null,null,null,null,null,null,null,null,null,null,null,null,null,null,null,null,null,null,null,null,null,null,null,null,null,null,null,null,null,null,null,null,null,null,null,null,null,null,null,null,null,null,null,null,null,null,null,null,null,null,null,null,null,null,null,null,null,null,null,null,null,null,null,null,null,null,null,null,null,null,null,null,null,null,null,null,null,null,null,null,null,null,null,null,null,null,null,null,null,null,null,null,null,null,null,null,null,null,null,null,null,null,null,null,null,null,null,null,null,null,null,null,null,null,null,null,null,null,null,null,null,null,null,null,null,null,null,null,null,null,null,null,null,null,null,null,null,null,null,null,null,null,null,null,null,null,null,null,null,null,null,null,null,null,null,null,null,null,null,null,null,null,null,null,null,null,null,null,null,null,null,null,null,null,null,null,null,null,null,null,null,null,null,null,null,null,null,null,null,null,null,null,null,null,null,null,null,null,null,null,null,null,null,null,null,null,null,null,null,null,null,null,null,null,null,null,null,null,null,null,null,null,null,null,null,null,null,null,null,null,null,null,null,null,null,null,null,null,null,null,null,null,null,null,null,null,null,null,null,null,null,null,null,null,null,null,null,null,null,null,null,null,null,null,null,null,null,null,null,null,null,null,null,null,null,null,null,null,null,null,null,null,null,null,null,null,null,null,null,null,null,null,null,null,null,null,null,null,null,null,null,null,null,null,null,null,null,null,null,null,null,null,null,null,null,null,null,null,null,null,null,null,null,null,null,null,null,null,null,null,null,null,null,null,null,null,null,null,null,null,null,null,null,null,null,null,null,null,null,null,null,null,null,null,null,null,null,null,null,null,null,null,null,null,null,null,null,null,null,null,null,null,null,null,null,null,null,null,null,null,null,null,null,null,null,null,null,null,null,null,null,null,null,null,null,null,null,null,null,null,null,null,null,null,null,null,null,null,null,null,null,null,null,null,null,null,null,null,null,null,null,null,null,null,null,null,null,null,null,null,null,null,null,null,null,null,null,null,null,null,null,null,null,null,null,null,null,null,null,null,null,null,null,null,null,null,null,null,null,null,null,null,null,null,null,null,null,null,null,null,null,null,null,null,null,null,null,null,null,null,null,null,null,null,null,null,null,null,null,null,null,null,null,null,null,null,null,null,null,null,null,null,null,null,null,null,null,null,null,null,null,null,null,null,null,null,null,null,null,null,null,null,null,null,null,null,null,null,null,null,null,null,null,null,null,null,null,null,null,null,null,null,null,null,null,null,null,null,null,null,null,null,null,null,null,null,null,null,null,null,null,null,null,null,null,null,null,null,null,null,null,null,null,null,null,null,null,null,null,null,null,null,null,null,null,null,null,null,null,null,null,null,null,null,null,null,null,null,null,null,null,null,null,null,null,null,null,null,null,null,null,null,null,null,null,null,null,null,null,null,null,null,null,null,null,null,null,null,null,null,null,null,null,null,null,null,null,null,null,null,null,null,null,null,null,null,null,null,null,null,null,null,null,null,null,null,null,null,null,null,null,null,null,null,null,null,null,null,null,null,null,null,null,null,null,null,null,null,null,null,null,null,null,null,null,null,null,null,null,null,null,null,null,null,null,null,null,null,null,null,null,null,null,null,null,null,null,null,null,null,null,null,null,null,null,null,null,null,null,null,null,null,null,null,null,null,null,null,null,null,null,null,null,null,null,null,null,null,null,null,null,null,null,null,null,null,null,null,null,null,null,null,null,null,null,null,null,null,null,null,null,null,null,null,null,null,null,null,null,null,null,null,null,null,null,null,null,null,null,null,null,null,null,null,null,null,null,null,null,null,null,null,null,null,null,null,null,null,null,null,null,null,null,null,null,null,null,null,null,null,null,null,null,null,null,null,null,null,null,null,null,null,null,null,null,null,null,null,null,null,null,null,null,null,null,null,null,null,null,null,null,null,null,null,null,null,null,null,null,null,null,null,null,null,null,null,null,null,null,null,null,null,null,null,null,null,null,null,null,null,null,null,null,null,null,null,null,null,null,null,null,null,null,null,null,null,null,null,null,null,null,null,null,null,null,null,null,null,null,null,null,null,null,null,null,null,null,null,null,null,null,null,null,null,null,null,null,null,null,null,null,null,null,null,null,null,null,null,null,null,null,null,null,null,null,null,null,null,null,null,null,null,null,null,null,null,null,null,null,null,null,null,null,null,null,null,null,null,null,null,null,null,null,null,null,null,null,null,null,null,null,null,null,null,null,null,null,null,null,null,null,null,null,null,null,null,null,null,null,null,null,null,null,null,null,null,null,null,null,null,null,null,null,null,null,null,null,null,null,null,null,null,null,null,null,null,null,null,null,null,null,null,null,null,null,null,null,null,null,null,null,null,null,null,null,null,null,null,null,null,null,null,null,null,null,null,null,null,null,null,null,null,null,null,null,null,null,null,null,null,null,null,null,null,null,null,null,null,null,null,null,null,null,null,null,null,null,null,null,null,null,null,null,null,null,null,null,null,null,null,null,null,null,null,null,null,null,null,null,null,null,null,null,null,null,null,null,null,null,null,null,null,null,null,null,null,null,null,null,null,null,null,null,null,null,null,null,null,null,null,null,null,null,null,null,null,null,null,null,null,null,null,null,null,null,null,null,null,null,null,null,null,null,null,null,null,null,null,null,null,null,null,null,null,null,null,null,null,null,null,null,null,null,null,null,null,null,null,null,null,null,null,null,null,null,null,null,null,null,null,null,null,null,null,null,null,null,null,null,null,null,null,null,null,null,null,null,null,null,null,null,null,null,null,null,null,null,null,null,null,null,null,null,null,null,null,null,null,null,null,null,null,null,null,null,null,null,null,null,null,null,null,null,null,null,null,null,null,null,null,null,null,null,null,null,null,null,null,null,null,null,null,null,null,null,null,null,null,null,null,null,null,null,null,null,null,null,null,null,null,null,null,null,null,null,null,null,null,null,null,null,null,null,null,null,null,null,null,null,null,null,null,null,null,null,null,null,null,null,null,null,null,null,null,null,null,null,null,null,null,null,null,null,null,null,null,null,null,null,null,null,null,null,null,null,null,null,null,null,null,null,null,null,null,null,null,null,null,null,null,null,null,null,null,null,null,null,null,null,null,null,null,null,null,null,null,null,null,null,null,null,null,null,null,null,null,null,null,null,null,null,null,null,null,null,null,null,null,null,null,null,null,null,null,null,null,null,null,null,null,null,null,null,null,null,null,null,null,null,null,null,null,null,null,null,null,null,null,null,null,null,null,null,null,null,null,null,null,null,null,null,null,null,null,null,null,null,null,null,null,null,null,null,null,null,null,null,null,null,null,null,null,null,null,null,null,null,null,null,null,null,null,null,null,null,null,null,null,null,null,null,null,null,null,null,null,null,null,null,null,null,null,null,null,null,null,null,null,null,null,null,null,null,null,null,null,null,null,null,null,null,null,null,null,null,null,null,null,null,null,null,null,null,null,null,null,null,null,null,null,null,null,null,null,null,null,null,null,null,null,null,null,null,null,null,null,null,null,null,null,null,null,null,null,null,null,null,null,null,null,null,null,null,null,null,null,null,null,null,null,null,null,null,null,null,null,null,null,null,null,null,null,null,null,null,null,null,null,null,null,null,null,null,null,null,null,null,null,null,null,null,null,null,null,null,null,null,null,null,null,null,null,null,null,null,null,null,null,null,null,null,null,null,null,null,null,null,null,null,null,null,null,null,null,null,null,null,null,null,null,null,null,null,null,null,null,null,null,null,null,null,null,null,null,null,null,null,null,null,null,null,null,null,null,null,null,null,null,null,null,null,null,null,null,null,null,null,null,null,null,null,null,null,null,null,null,null,null,null,null,null,null,null,null,null,null,null,null,null,null,null,null,null,null,null,null,null,null,null,null,null,null,null,null,null,null,null,null,null,null,null,null,null,null,null,null,null,null,null,null,null,null,null,null,null,null,null,null,null,null,null,null,null,null,null,null,null,null,null,null,null,null,null,null,null,null,null,null,null,null,null,null,null,null,null,null,null,null,null,null,null,null,null,null,null,null,null,null,null,null,null,null,null,null,null,null,null,null,null,null,null,null,null,null,null,null,null,null,null,null,null,null,null,null,null,null,null,null,null,null,null,null,null,null,null,null,null,null,null,null,null,null,null,null,null,null,null,null,null,null,null,null,null,null,null,null,null,null,null,null,null,null,null,null,null,null,null,null,null,null,null,null,null,null,null,null,null,null,null,null,null,null,null,null,null,null,null,null,null,null,null,null,null,null,null,null,null,null,null,null,null,null,null,null,null,null,null,null,null,null,null,null,null,null,null,null,null,null,null,null,null,null,null,null,null,null,null,null,null,null,null,null,null,null,null,null,null,null,null,null,null,null,null,null,null,null,null,null,null,null,null,null,null,null,null,null,null,null,null,null,null,null,null,null,null,null,null,null,null,null,null,null,null,null,null,null,null,null,null,null,null,null,null,null,null,null,null,null,null,null,null,null,null,null,null,null,null,null,null,null,null,null,null,null,null,null,null,null,null,null,null,null,null,null,null,null,null,null,null,null,null,null,null,null,null,null,null,null,null,null,null,null,null,null,null,null,null,null,null,null,null,null,null,null,null,null,null,null,null,null,null,null,null,null,null,null,null,null,null,null,null,null,null,null,null,null,null,null,null,null,null,null,null,null,null,null,null,null,null,null,null,null,null,null,null,null,null,null,null,null,null,null,null,null,null,null,null,null,null,null,null,null,null,null,null,null,null,null,null,null,null,null,null,null,null,null,null,null,null,null,null,null,null,null,null,null,null,null,null,null,null,null,null,null,null,null,null,null,null,null,null,null,null,null,null,null,null,null,null,null,null,null,null,null,null,null,null,null,null,null,null,null,null,null,null,null,null,null,null,null,null,null,null,null,null,null,null,null,null,null,null,null,null,null,null,null,null,null,null,null,null,null,null,null,null,null,null,null,null,null,null,null,null,null,null,null,null,null,null,null,null,null,null,null,null,null,null,null,null,null,null,null,null,null,null,null,null,null,null,null,null,null,null,null,null,null,null,null,null,null,null,null,null,null,null,null,null,null,null,null,null,null,null,null,null,null,null,null,null,null,null,null,null,null,null,null,null,null,null,null,null,null,null,null,null,null,null,null,null,null,null,null,null,null,null,null,null,null,null,null,null,null,null,null,null,null,null,null,null,null,null,null,null,null,null,null,null,null,null,null,null,null,null,null,null,null,null,null,null,null,null,null,null,null,null,null,null,null,null,null,null,null,null,null,null,null,null,null,null,null,null,null,null,null,null,null,null,null,null,null,null,null,null,null,null,null,null,null,null,null,null,null,null,null,null,null,null,null,null,null,null,null,null,null,null,null,null,null,null,null,null,null,null,null,null,null,null,null,null,null,null,null,null,null,null,null,null,null,null,null,null,null,null,null,null,null,null,null,null,null,null,null,null,null,null,null,null,null,null,null,null,null,null,null,null,null,null,null,null,null,null,null,null,null,null,null,null,null,null,null,null,null,null,null,null,null,null,null,null,null,null,null,null,null,null,null,null,null,null,null,null,null,null,null,null,null,null,null,null,null,null,null,null,null,null,null,null,null,null,null,null,null,null,null,null,null,null,null,null,null,null,null,null,null,null,null,null,null,null,null,null,null,null,null,null,null,null,null,null,null,null,null,null,null,null,null,null,null,null,null,null,null,null,null,null,null,null,null,null,null,null,null,null,null,null,null,null,null,null,null,null,null,null,null,null,null,null,null,null,null,null,null,null,null,null,null,null,null,null,null,null,null,null,null,null,null,null,null,null,null,null,null,null,null,null,null,null,null,null,null,null,null,null,null,null,null,null,null,null,null,null,null,null,null,null,null,null,null,null,null,null,null,null,null,null,null,null,null,null,null,null,null,null,null,null,null,null,null,null,null,null,null,null,null,null,null,null,null,null,null,null,null,null,null,null,null,null,null,null,null,null,null,null,null,null,null,null,null,null,null,null,null,null,null,null,null,null,null,null,null,null,null,null,null,null,null,null,null,null,null,null,null,null,null,null,null,null,null,null,null,null,null,null,null,null,null,null,null,null,null,null,null,null,null,null,null,null,null,null,null,null,null,null,null,null,null,null,null,null,null,null,null,null,null,null,null,null,null,null,null,null,null,null,null,null,null,null,null,null,null,null,null,null,null,null,null,null,null,null,null,null,null,null,null,null,null,null,null,null,null,null,null,null,null,null,null,null,null,null,null,null,null,null,null,null,null,null,null,null,null,null,null,null,null,null,null,null,null,null,null,null,null,null,null,null,null,null,null,null,null,null,null,null,null,null,null,null,null,null,null,null,null,null,null,null,null,null,null,null,null,null,null,null,null,null,null,null,null,null,null,null,null,null,null,null,null,null,null,null,null,null,null,null,null,null,null,null,null,null,null,null,null,null,null,null,null,null,null,null,null,null,null,null,null,null,null,null,null,null,null,null,null,null,null,null,null,null,null,null,null,null,null,null,null,null,null,null,null,null,null,null,null,null,null,null,null,null,null,null,null,null,null,null,null,null,null,null,null,null,null,null,null,null,null,null,null,null,null,null,null,null,null,null,null,null,null,null,null,null,null,null,null,null,null,null,null,null,null,null,null,null,null,null,null,null,null,null,null,null,null,null,null,null,null,null,null,null,null,null,null,null,null,null,null,null,null,null,null,null,null,null,null,null,null,null,null,null,null,null,null,null,null,null,null,null,null,null,null,null,null,null,null,null,null,null,null,null,null,null,null,null,null,null,null,null,null,null,null,null,null,null,null,null,null,null,null,null,null,null,null,null,null,null,null,null,null,null,null,null,null,null,null,null,null,null,null,null,null,null,null,null,null,null,null,null,null,null,null,null,null,null,null,null,null,null,null,null,null,null,null,null,null,null,null,null,null,null,null,null,null,null,null,null,null,null,null,null,null,null,null,null,null,null,null,null,null,null,null,null,null,null,null,null,null,null,null,null,null,null,null,null,null,null,null,null,null,null,null,null,null,null,null,null,null,null,null,null,null,null,null,null,null,null,null,null,null,null,null,null,null,null,null,null,null,null,null,null,null,null,null,null,null,null,null,null,null,null,null,null,null,null,null,null,null,null,null,null,null,null,null,null,null,null,null,null,null,null,null,null,null,null,null,null,null,null,null,null,null,null,null,null,null,null,null,null,null,null,null,null,null,null,null,null,null,null,null,null,null,null,null,null,null,null,null,null,null,null,null,null,null,null,null,null,null,null,null,null,null,null,null,null,null,null,null,null,null,null,null,null,null,null,null,null,null,null,null,null,null,null,null,null,null,null,null,null,null,null,null,null,null,null,null,null,null,null,null,null,null,null,null,null,null,null,null,null,null,null,null,null,null,null,null,null,null,null,null,null,null,null,null,null,null,null,null,null,null,null,null,null,null,null,null,null,null,null,null,null,null,null,null,null,null,null,null,null,null,null,null,null,null,null,null,null,null,null,null,null,null,null,null,null,null,null,null,null,null,null,null,null,null,null,null,null,null,null,null,null,null,null,null,null,null,null,null,null,null,null,null,null,null,null,null,null,null,null,null,null,null,null,null,null,null,null,null,null,null,null,null,null,null,null,null,null,null,null,null,null,null,null,null,null,null,null,null,null,null,null,null,null,null,null,null,null,null,null,null,null,null,null,null,null,null,null,null,null,null,null,null,null,null,null,null,null,null,null,null,null,null,null,null,null,null,null,null,null,null,null,null,null,null,null,null,null,null,null,null,null,null,null,null,null,null,null,null,null,null,null,null,null,null,null,null,null,null,null,null,null,null,null,null,null,null,null,null,null,null,null,null,null,null,null,null,null,null,null,null,null,null,null,null,null,null,null,null,null,null,null,null,null,null,null,null,null,null,null,null,null,null,null,null,null,null,null,null,null,null,null,null,null,null,null,null,null,null,null,null,null,null,null,null,null,null,null,null,null,null,null,null,null,null,null,null,null,null,null,null,null,null,null,null,null,null,null,null,null,null,null,null,null,null,null,null,null,null,null,null,null,null,null,null,null,null,null,null,null,null,null,null,null,null,null,null,null,null,null,null,null,null,null,null,null,null,null,null,null,null,null,null,null,null,null,null,null,null,null,null,null,null,null,null,null,null,null,null,null,null,null,null,null,null,null,null,null,null,null,null,null,null,null,null,null,null,null,null,null,null,null,null,null,null,null,null,null,null,null,null,null,null,null,null,null,null,null,null,null,null,null,null,null,null,null,null,null,null,null,null,null,null,null,null,null,null,null,null,null,null,null,null,null,null,null,null,null,null,null,null,null,null,null,null,null,null,null,null,null,null,null,null,null,null,null,null,null,null,null,null,null,null,null,null,null,null,null,null,null,null,null,null,null,null,null,null,null,null,null,null,null,null,null,null,null,null,null,null,null,null,null,null,null,null,null,null,null,null,null,null,null,null,null,null,null,null,null,null,null,null,null,null,null,null,null,null,null,null,null,null,null,null,null,null,null,null,null,null,null,null,null,null,null,null,null,null,null,null,null,null,null,null,null,null,null,null,null,null,null,null,null,null,null,null,null,null,null,null,null,null,null,null,null,null,null,null,null,null,null,null,null,null,null,null,null,null,null,null,null,null,null,null,null,null,null,null,null,null,null,null,null,null,null,null,null,null,null,null,null,null,null,null,null,null,null,null,null,null,null,null,null,null,null,null,null,null,null,null,null,null,null,null,null,null,null,null,null,null,null,null,null,null,null,null,null,null,null,null,null,null,null,null,null,null,null,null,null,null,null,null,null,null,null,null,null,null,null,null,null,null,null,null,null,null,null,null,null,null,null,null,null,null,null,null,null,null,null,null,null,null,null,null,null,null,null,null,null,null,null,null,null,null,null,null,null,null,null,null,null,null,null,null,null,null,null,null,null,null,null,null,null,null,null,null,null,null,null,null,null,null,null,null,null,null,null,null,null,null,null,null,null,null,null,null,null,null,null,null,null,null,null,null,null,null,null,null,null,null,null,null,null,null,null,null,null,null,null,null,null,null,null,null,null,null,null,null,null,null,null,null,null,null,null,null,null,null,null,null,null,null,null,null,null,null,null,null,null,null,null,null,null,null,null,null,null,null,null,null,null,null,null,null,null,null,null,null,null,null,null,null,null,null,null,null,null,null,null,null,null,null,null,null,null,null,null,null,null,null,null,null,null,null,null,null,null,null,null,null,null,null,null,null,null,null,null,null,null,null,null,null,null,null,null,null,null,null,null,null,null,null,null,null,null,null,null,null,null,null,null,null,null,null,null,null,null,null,null,null,null,null,null,null,null,null,null,null,null,null,null,null,null,null,null,null,null,null,null,null,null,null,null,null,null,null,null,null,null,null,null,null,null,null,null,null,null,null,null,null,null,null,null,null,null,null,null,null,null,null,null,null,null,null,null,null,null,null,null,null,null,null,null,null,null,null,null,null,null,null,null,null,null,null,null,null,null,null,null,null,null,null,null,null,null,null,null,null,null,null,null,null,null,null,null,null,null,null,null,null,null,null,null,null,null,null,null,null,null,null,null,null,null,null,null,null,null,null,null,null,null,null,null,null,null,null,null,null,null,null,null,null,null,null,null,null,null,null,null,null,null,null,null,null,null,null,null,null,null,null,null,null,null,null,null,null,null,null,null,null,null,null,null,null,null,null,null,null,null,null,null,null,null,null,null,null,null,null,null,null,null,null,null,null,null,null,null,null,null,null,null,null,null,null,null,null,null,null,null,null,null,null,null,null,null,null,null,null,null,null,null,null,null,null,null,null,null,null,null,null,null,null,null,null,null,null,null,null,null,null,null,null,null,null,null,null,null,null,null,null,null,null,null,null,null,null,null,null,null,null,null,null,null,null,null,null,null,null,null,null,null,null,null,null,null,null,null,null,null,null,null,null,null,null,null,null,null,null,null,null,null,null,null,null,null,null,null,null,null,null,null,null,null,null,null,null,null,null,null,null,null,null,null,null,null,null,null,null,null,null,null,null,null,null,null,null,null,null,null,null,null,null,null,null,null,null,null,null,null,null,null,null,null,null,null,null,null,null,null,null,null,null,null,null,null,null,null,null,null,null,null,null,null,null,null,null,null,null,null,null,null,null,null,null,null,null,null,null,null,null,null,null,null,null,null,null,null,null,null,null,null,null,null,null,null,null,null,null,null,null,null,null,null,null,null,null,null,null,null,null,null,null,null,null,null,null,null,null,null,null,null,null,null,null,null,null,null,null,null,null,null,null,null,null,null,null,null,null,null,null,null,null,null,null,null,null,null,null,null,null,null,null,null,null,null,null,null,null,null,null,null,null,null,null,null,null,null,null,null,null,null,null,null,null,null,null,null,null,null,null,null,null,null,null,null,null,null,null,null,null,null,null,null,null,null,null,null,null,null,null,null,null,null,null,null,null,null,null,null,null,null,null,null,null,null,null,null,null,null,null,null,null,null,null,null,null,null,null,null,null,null,null,null,null,null,null,null,null,null,null,null,null,null,null,null,null,null,null,null,null,null,null,null,null,null,null,null,null,null,null,null,null,null,null,null,null,null,null,null,null,null,null,null,null,null,null,null,null,null,null,null,null,null,null,null,null,null,null,null,null,null,null,null,null,null,null,null,null,null,null,null,null,null,null,null,null,null,null,null,null,null,null,null,null,null,null,null,null,null,null,null,null,null,null,null,null,null,null,null,null,null,null,null,null,null,null,null,null,null,null,null,null,null,null,null,null,null,null,null,null,null,null,null,null,null,null,null,null,null,null,null,null,null,null,null,null,null,null,null,null,null,null,null,null,null,null,null,null,null,null,null,null,null,null,null,null,null,null,null,null,null,null,null,null,null,null,null,null,null,null,null,null,null,null,null,null,null,null,null,null,null,null,null,null,null,null,null,null,null,null,null,null,null,null,null,null,null,null,null,null,null,null,null,null,null,null,null,null,null,null,null,null,null,null,null,null,null,null,null,null,null,null,null,null,null,null,null,null,null,null,null,null,null,null,null,null,null,null,null,null,null,null,null,null,null,null,null,null,null,null,null,null,null,null,null,null,null,null,null,null,null,null,null,null,null,null,null,null,null,null,null,null,null,null,null,null,null,null,null,null,null,null,null,null,null,null,null,null,null,null,null,null,null,null,null,null,null,null,null,null,null,null,null,null,null,null,null,null,null,null,null,null,null,null,null,null,null,null,null,null,null,null,null,null,null,null,null,null,null,null,null,null,null,null,null,null,null,null,null,null,null,null,null,null,null,null,null,null,null,null,null,null,null,null,null,null,null,null,null,null,null,null,null,null,null,null,null,null,null,null,null,null,null,null,null,null,null,null,null,null,null,null,null,null,null,null,null,null,null,null,null,null,null,null,null,null,null,null,null,null,null,null,null,null,null,null,null,null,null,null,null,null,null,null,null,null,null,null,null,null,null,null,null,null,null,null,null,null,null,null,null,null,null,null,null,null,null,null,null,null,null,null,null,null,null,null,null,null,null,null,null,null,null,null,null,null,null,null,null,null,null,null,null,null,null,null,null,null,null,null,null,null,null,null,null,null,null,null,null,null,null,null,null,null,null,null,null,null,null,null,null,null,null,null,null,null,null,null,null,null,null,null,null,null,null,null,null,null,null,null,null,null,null,null,null,null,null,null,null,null,null,null,null,null,null,null,null,null,null,null,null,null,null,null,null,null,null,null,null,null,null,null,null,null,null,null,null,null,null,null,null,null,null,null,null,null,null,null,null,null,null,null,null,null,null,null,null,null,null,null,null,null,null,null,null,null,null,null,null,null,null,null,null,null,null,null,null,null,null,null,null,null,null,null,null,null,null,null,null,null,null,null,null,null,null,null,null,null,null,null,null,null,null,null,null,null,null,null,null,null,null,null,null,null,null,null,null,null,null,null,null,null,null,null,null,null,null,null,null,null,null,null,null,null,null,null,null,null,null,null,null,null,null,null,null,null,null,null,null,null,null,null,null,null,null,null,null,null,null,null,null,null,null,null,null,null,null,null,null,null,null,null,null,null,null,null,null,null,null,null,null,null,null,null,null,null,null,null,null,null,null,null,null,null,null,null,null,null,null,null,null,null,null,null,null,null,null,null,null,null,null,null,null,null,null,null,null,null,null,null,null,null,null,null,null,null,null,null,null,null,null,null,null,null,null,null,null,null,null,null,null,null,null,null,null,null,null,null,null,null,null,null,null,null,null,null,null,null,null,null,null,null,null,null,null,null,null,null,null,null,null,null,null,null,null,null,null,null,null,null,null,null,null,null,null,null,null,null,null,null,null,null,null,null,null,null,null,null,null,null,null,null,null,null,null,null,null,null,null,null,null,null,null,null,null,null,null,null,null,null,null,null,null,null,null,null,null,null,null,null,null,null,null,null,null,null,null,null,null,null,null,null,null,null,null,null,null,null,null,null,null,null,null,null,null,null,null,null,null,null,null,null,null,null,null,null,null,null,null,null,null,null,null,null,null,null,null,null,null,null,null,null,null,null,null,null,null,null,null,null,null,null,null,null,null,null,null,null,null,null,null,null,null,null,null,null,null,null,null,null,null,null,null,null,null,null,null,null,null,null,null,null,null,null,null,null,null,null,null,null,null,null,null,null,null,null,null,null,null,null,null,null,null,null,null,null,null,null,null,null,null,null,null,null,null,null,null,null,null,null,null,null,null,null,null,null,null,null,null,null,null,null,null,null,null,null,null,null,null,null,null,null,null,null,null,null,null,null,null,null,null,null,null,null,null,null,null,null,null,null,null,null,null,null,null,null,null,null,null,null,null,null,null,null,null,null,null,null,null,null,null,null,null,null,null,null,null,null,null,null,null,null,null,null,null,null,null,null,null,null,null,null,null,null,null,null,null,null,null,null,null,null,null,null,null,null,null,null,null,null,null,null,null,null,null,null,null,null,null,null,null,null,null,null,null,null,null,null,null,null,null,null,null,null,null,null,null,null,null,null,null,null,null,null,null,null,null,null,null,null,null,null,null,null,null,null,null,null,null,null,null,null,null,null,null,null,null,null,null,null,null,null,null,null,null,null,null,null,null,null,null,null,null,null,null,null,null,null,null,null,null,null,null,null,null,null,null,null,null,null,null,null,null,null,null,null,null,null,null,null,null,null,null,null,null,null,null,null,null,null,null,null,null,null,null,null,null,null,null,null,null,null,null,null,null,null,null,null,null,null,null,null,null,null,null,null,null,null,null,null,null,null,null,null,null,null,null,null,null,null,null,null,null,null,null,null,null,null,null,null,null,null,null,null,null,null,null,null,null,null,null,null,null,null,null,null,null,null,null,null,null,null,null,null,null,null,null,null,null,null,null,null,null,null,null,null,null,null,null,null,null,null,null,null,null,null,null,null,null,null,null,null,null,null,null,null,null,null,null,null,null,null,null,null,null,null,null,null,null,null,null,null,null,null,null,null,null,null,null,null,null,null,null,null,null,null,null,null,null,null,null,null,null,null,null,null,null,null,null,null,null,null,null,null,null,null,null,null,null,null,null,null,null,null,null,null,null,null,null,null,null,null,null,null,null,null,null,null,null,null,null,null,null,null,null,null,null,null,null,null,null,null,null,null,null,null,null,null,null,null,null,null,null,null,null,null,null,null,null,null,null,null,null,null,null,null,null,null,null,null,null,null,null,null,null,null,null,null,null,null,null,null,null,null,null,null,null,null,null,null,null,null,null,null,null,null,null,null,null,null,null,null,null,null,null,null,null,null,null,null,null,null,null,null,null,null,null,null,null,null,null,null,null,null,null,null,null,null,null,null,null,null,null,null,null,null,null,null,null,null,null,null,null,null,null,null,null,null,null,null,null,null,null,null,null,null,null,null,null,null,null,null,null,null,null,null,null,null,null,null,null,null,null,null,null,null,null,null,null,null,null,null,null,null,null,null,null,null,null,null,null,null,null,null,null,null,null,null,null,null,null,null,null,null,null,null,null,null,null,null,null,null,null,null,null,null,null,null,null,null,null,null,null,null,null,null,null,null,null,null,null,null,null,null,null,null,null,null,null,null,null,null,null,null,null,null,null,null,null,null,null,null,null,null,null,null,null,null,null,null,null,null,null,null,null,null,null,null,null,null,null,null,null,null,null,null,null,null,null,null,null,null,null,null,null,null,null,null,null,null,null,null,null,null,null,null,null,null,null,null,null,null,null,null,null,null,null,null,null,null,null,null,null,null,null,null,null,null,null,null,null,null,null,null,null,null,null,null,null,null,null,null,null,null,null,null,null,null,null,null,null,null,null,null,null,null,null,null,null,null,null,null,null,null,null,null,null,null,null,null,null,null,null,null,null,null,null,null,null,null,null,null,null,null,null,null,null,null,null,null,null,null,null,null,null,null,null,null,null,null,null,null,null,null,null,null,null,null,null,null,null,null,null,null,null,null,null,null,null,null,null,null,null,null,null,null,null,null,null,null,null,null,null,null,null,null,null,null,null,null,null,null,null,null,null,null,null,null,null,null,null,null,null,null,null,null,null,null,null,null,null,null,null,null,null,null,null,null,null,null,null,null,null,null,null,null,null,null,null,null,null,null,null,null,null,null,null,null,null,null,null,null,null,null,null,null,null,null,null,null,null,null,null,null,null,null,null,null,null,null,null,null,null,null,null,null,null,null,null,null,null,null,null,null,null,null,null,null,null,null,null,null,null,null,null,null,null,null,null,null,null,null,null,null,null,null,null,null,null,null,null,null,null,null,null,null,null,null,null,null,null,null,null,null,null,null,null,null,null,null,null,null,null,null,null,null,null,null,null,null,null,null,null,null,null,null,null,null,null,null,null,null,null,null,null,null,null,null,null,null,null,null,null,null,null,null,null,null,null,null,null,null,null,null,null,null,null,null,null,null,null,null,null,null,null,null,null,null,null,null,null,null,null,null,null,null,null,null,null,null,null,null,null,null,null,null,null,null,null,null,null,null,null,null,null,null,null,null,null,null,null,null,null,null,null,null,null,null,null,null,null,null,null,null,null,null,null,null,null,null,null,null,null,null,null,null,null,null,null,null,null,null,null,null,null,null,null,null,null,null,null,null,null,null,null,null,null,null,null,null,null,null,null,null,null,null,null,null,null,null,null,null,null,null,null,null,null,null,null,null,null,null,null,null,null,null,null,null,null,null,null,null,null,null,null,null,null,null,null,null,null,null,null,null,null,null,null,null,null,null,null,null,null,null,null,null,null,null,null,null,null,null,null,null,null,null,null,null,null,null,null,null,null,null,null,null,null,null,null,null,null,null,null,null,null,null,null,null,null,null,null,null,null,null,null,null,null,null,null,null,null,null,null,null,null,null,null,null,null,null,null,null,null,null,null,null,null,null,null,null,null,null,null,null,null,null,null,null,null,null,null,null,null,null,null,null,null,null,null,null,null,null,null,null,null,null,null,null,null,null,null,null,null,null,null,null,null,null,null,null,null,null,null,null,null,null,null,null,null,null,null,null,null,null,null,null,null,null,null,null,null,null,null,null,null,null,null,null,null,null,null,null,null,null,null,null,null,null,null,null,null,null,null,null,null,null,null,null,null,null,null,null,null,null,null,null,null,null,null,null,null,null,null,null,null,null,null,null,null,null,null,null,null,null,null,null,null,null,null,null,null,null,null,null,null,null,null,null,null,null,null,null,null,null,null,null,null,null,null,null,null,null,null,null,null,null,null,null,null,null,null,null,null,null,null,null,null,null,null,null,null,null,null,null,null,null,null,null,null,null,null,null,null,null,null,null,null,null,null,null,null,null,null,null,null,null,null,null,null,null,null,null,null,null,null,null,null,null,null,null,null,null,null,null,null,null,null,null,null,null,null,null,null,null,null,null,null,null,null,null,null,null,null,null,null,null,null,null,null,null,null,null,null,null,null,null,null,null,null,null,null,null,null,null,null,null,null,null,null,null,null,null,null,null,null,null,null,null,null,null,null,null,null,null,null,null,null,null,null,null,null,null,null,null,null,null,null,null,null,null,null,null,null,null,null,null,null,null,null,null,null,null,null,null,null,null,null,null,null,null,null,null,null,null,null,null,null,null,null,null,null,null,null,null,null,null,null,null,null,null,null,null,null,null,null,null,null,null,null,null,null,null,null,null,null,null,null,null,null,null,null,null,null,null,null,null,null,null,null,null,null,null,null,null,null,null,null,null,null,null,null,null,null,null,null,null,null,null,null,null,null,null,null,null,null,null,null,null,null,null,null,null,null,null,null,null,null,null,null,null,null,null,null,null,null,null,null,null,null,null,null,null,null,null,null,null,null,null,null,null,null,null,null,null,null,null,null,null,null,null,null,null,null,null,null,null,null,null,null,null,null,null,null,null,null,null,null,null,null,null,null,null,null,null,null,null,null,null,null,null,null,null,null,null,null,null,null,null,null,null,null,null,null,null,null,null,null,null,null,null,null,null,null,null,null,null,null,null,null,null,null,null,null,null,null,null,null,null,null,null,null,null,null,null,null,null,null,null,null,null,null,null,null,null,null,null,null,null,null,null,null,null,null,null,null,null,null,null,null,null,null,null,null,null,null,null,null,null,null,null,null,null,null,null,null,null,null,null,null,null,null,null,null,null,null,null,null,null,null,null,null,null,null,null,null,null,null,null,null,null,null,null,null,null,null,null,null,null,null,null,null,null,null,null,null,null,null,null,null,null,null,null,null,null,null,null,null,null,null,null,null,null,null,null,null,null,null,null,null,null,null,null,null,null,null,null,null,null,null,null,null,null,null,null,null,null,null,null,null,null,null,null,null,null,null,null,null,null,null,null,null,null,null,null,null,null,null,null,null,null,null,null,null,null,null,null,null,null,null,null,null,null,null,null,null,null,null,null,null,null,null,null,null,null,null,null,null,null,null,null,null,null,null,null,null,null,null,null,null,null,null,null,null,null,null,null,null,null,null,null,null,null,null,null,null,null,null,null,null,null,null,null,null,null,null,null,null,null,null,null,null,null,null,null,null,null,null,null,null,null,null,null,null,null,null,null,null,null,null,null,null,null,null,null,null,null,null,null,null,null,null,null,null,null,null,null,null,null,null,null,null,null,null,null,null,null,null,null,null,null,null,null,null,null,null,null,null,null,null,null,null,null,null,null,null,null,null,null,null,null,null,null,null,null,null,null,null,null,null,null,null,null,null,null,null,null,null,null,null,null,null,null,null,null,null,null,null,null,null,null,null,null,null,null,null,null,null,null,null,null,null,null,null,null,null,null,null,null,null,null,null,null,null,null,null,null,null,null,null,null,null,null,null,null,null,null,null,null,null,null,null,null,null,null,null,null,null,null,null,null,null,null,null,null,null,null,null,null,null,null,null,null,null,null,null,null,null,null,null,null,null,null,null,null,null,null,null,null,null,null,null,null,null,null,null,null,null,null,null,null,null,null,null,null,null,null,null,null,null,null,null,null,null,null,null,null,null,null,null,null,null,null,null,null,null,null,null,null,null,null,null,null,null,null,null,null,null,null,null,null,null,null,null,null,null,null,null,null,null,null,null,null,null,null,null,null,null,null,null,null,null,null,null,null,null,null,null,null,null,null,null,null,null,null,null,null,null,null,null,null,null,null,null,null,null,null,null,null,null,null,null,null,null,null,null,null,null,null,null,null,null,null,null,null,null,null,null,null,null,null,null,null,null,null,null,null,null,null,null,null,null,null,null,null,null,null,null,null,null,null,null,null,null,null,null,null,null,null,null,null,null,null,null,null,null,null,null,null,null,null,null,null,null,null,null,null,null,null,null,null,null,null,null,null,null,null,null,null,null,null,null,null,null,null,null,null,null,null,null,null,null,null,null,null,null,null,null,null,null,null,null,null,null,null,null,null,null,null,null,null,null,null,null,null,null,null,null,null,null,null,null,null,null,null,null,null,null,null,null,null,null,null,null,null,null,null,null,null,null,null,null,null,null,null,null,null,null,null,null,null,null,null,null,null,null,null,null,null,null,null,null,null,null,null,null,null,null,null,null,null,null,null,null,null,null,null,null,null,null,null,null,null,null,null,null,null,null,null,null,null,null,null,null,null,null,null,null,null,null,null,null,null,null,null,null,null,null,null,null,null,null,null,null,null,null,null,null,null,null,null,null,null,null,null,null,null,null,null,null,null,null,null,null,null,null,null,null,null,null,null,null,null,null,null,null,null,null,null,null,null,null,null,null,null,null,null,null,null,null,null,null,null,null,null,null,null,null,null,null,null,null,null,null,null,null,null,null,null,null,null,null,null,null,null,null,null,null,null,null,null,null,null,null,null,null,null,null,null,null,null,null,null,null,null,null,null,null,null,null,null,null,null,null,null,null,null,null,null,null,null,null,null,null,null,null,null,null,null,null,null,null,null,null,null,null,null,null,null,null,null,null,null,null,null,null,null,null,null,null,null,null,null,null,null,null,null,null,null,null,null,null,null,null,null,null,null,null,null,null,null,null,null,null,null,null,null,null,null,null,null,null,null,null,null,null,null,null,null,null,null,null,null,null,null,null,null,null,null,null,null,null,null,null,null,null,null,null,null,null,null,null,null,null,null,null,null,null,null,null,null,null,null,null,null,null,null,null,null,null,null,null,null,null,null,null,null,null,null,null,null,null,null,null,null,null,null,null,null,null,null,null,null,null,null,null,null,null,null,null,null,null,null,null,null,null,null,null,null,null,null,null,null,null,null,null,null,null,null,null,null,null,null,null,null,null,null,null,null,null,null,null,null,null,null,null,null,null,null,null,null,null,null,null,null,null,null,null,null,null,null,null,null,null,null,null,null,null,null,null,null,null,null,null,null,null,null,null,null,null,null,null,null,null,null,null,null,null,null,null,null,null,null,null,null,null,null,null,null,null,null,null,null,null,null,null,null,null,null,null,null,null,null,null,null,null,null,null,null,null,null,null,null,null,null,null,null,null,null,null,null,null,null,null,null,null,null,null,null,null,null,null,null,null,null,null,null,null,null,null,null,null,null,null,null,null,null,null,null,null,null,null,null,null,null,null,null,null,null,null,null,null,null,null,null,null,null,null,null,null,null,null,null,null,null,null,null,null,null,null,null,null,null,null,null,null,null,null,null,null,null,null,null,null,null,null,null,null,null,null,null,null,null,null,null,null,null,null,null,null,null,null,null,null,null,null,null,null,null,null,null,null,null,null,null,null,null,null,null,null,null,null,null,null,null,null,null,null,null,null,null,null,null,null,null,null,null,null,null,null,null,null,null,null,null,null,null,null,null,null,null,null,null,null,null,null,null,null,null,null,null,null,null,null,null,null,null,null,null,null,null,null,null,null,null,null,null,null,null,null,null,null,null,null,null,null,null,null,null,null,null,null,null,null,null,null,null,null,null,null,null,null,null,null,null,null,null,null,null,null,null,null,null,null,null,null,null,null,null,null,null,null,null,null,null,null,null,null,null,null,null,null,null,null,null,null,null,null,null,null,null,null,null,null,null,null,null,null,null,null,null,null,null,null,null,null,null,null,null,null,null,null,null,null,null,null,null,null,null,null,null,null,null,null,null,null,null,null,null,null,null,null,null,null,null,null,null,null,null,null,null,null,null,null,null,null,null,null,null,null,null,null,null,null,null,null,null,null,null,null,null,null,null,null,null,null,null,null,null,null,null,null,null,null,null,null,null,null,null,null,null,null,null,null,null,null,null,null,null,null,null,null,null,null,null,null,null,null,null,null,null,null,null,null,null,null,null,null,null,null,null,null,null,null,null,null,null,null,null,null,null,null,null,null,null,null,null,null,null,null,null,null,null,null,null,null,null,null,null,null,null,null,null,null,null,null,null,null,null,null,null,null,null,null,null,null,null,null,null,null,null,null,null,null,null,null,null,null,null,null,null,null,null,null,null,null,null,null,null,null,null,null,null,null,null,null,null,null,null,null,null,null,null,null,null,null,null,null,null,null,null,null,null,null,null,null,null,null,null,null,null,null,null,null,null,null,null,null,null,null,null,null,null,null,null,null,null,null,null,null,null,null,null,null,null,null,null,null,null,null,null,null,null,null,null,null,null,null,null,null,null,null,null,null,null,null,null,null,null,null,null,null,null,null,null,null,null,null,null,null,null,null,null,null,null,null,null,null,null,null,null,null,null,null,null,null,null,null,null,null,null,null,null,null,null,null,null,null,null,null,null,null,null,null,null,null,null,null,null,null,null,null,null,null,null,null,null,null,null,null,null,null,null,null,null,null,null,null,null,null,null,null,null,null,null,null,null,null,null,null,null,null,null,null,null,null,null,null,null,null,null,null,null,null,null,null,null,null,null,null,null,null,null,null,null,null,null,null,null,null,null,null,null,null,null,null,null,null,null,null,null,null,null,null,null,null,null,null,null,null,null,null,null,null,null,null,null,null,null,null,null,null,null,null,null,null,null,null,null,null,null,null,null,null,null,null,null,null,null,null,null,null,null,null,null,null,null,null,null,null,null,null,null,null,null,null,null,null,null,null,null,null,null,null,null,null,null,null,null,null,null,null,null,null,null,null,null,null,null,null,null,null,null,null,null,null,null,null,null,null,null,null,null,null,null,null,null,null,null,null,null,null,null,null,null,null,null,null,null,null,null,null,null,null,null,null,null,null,null,null,null,null,null,null,null,null,null,null,null,null,null,null,null,null,null,null,null,null,null,null,null,null,null,null,null,null,null,null,null,null,null,null,null,null,null,null,null,null,null,null,null,null,null,null,null,null,null,null,null,null,null,null,null,null,null,null,null,null,null,null,null,null,null,null,null,null,null,null,null,null,null,null,null,null,null,null,null,null,null,null,null,null,null,null,null,null,null,null,null,null,null,null,null,null,null,null,null,null,null,null,null,null,null,null,null,null,null,null,null,null,null,null,null,null,null,null,null,null,null,null,null,null,null,null,null,null,null,null,null,null,null,null,null,null,null,null,null,null,null,null,null,null,null,null,null,null,null,null,null,null,null,null,null,null,null,null,null,null,null,null,null,null,null,null,null,null,null,null,null,null,null,null,null,null,null,null,null,null,null,null,null,null,null,null,null,null,null,null,null,null,null,null,null,null,null,null,null,null,null,null,null,null,null,null,null,null,null,null,null,null,null,null,null,null,null,null,null,null,null,null,null,null,null,null,null,null,null,null,null,null,null,null,null,null,null,null,null,null,null,null,null,null,null,null,null,null,null,null,null,null,null,null,null,null,null,null,null,null,null,null,null,null,null,null,null,null,null,null,null,null,null,null,null,null,null,null,null,null,null,null,null,null,null,null,null,null,null,null,null,null,null,null,null,null,null,null,null,null,null,null,null,null,null,null,null,null,null,null,null,null,null,null,null,null,null,null,null,null,null,null,null,null,null,null,null,null,null,null,null,null,null,null,null,null,null,null,null,null,null,null,null,null,null,null,null,null,null,null,null,null,null,null,null,null,null,null,null,null,null,null,null,null,null,null,null,null,null,null,null,null,null,null,null,null,null,null,null,null,null,null,null,null,null,null,null,null,null,null,null,null,null,null,null,null,null,null,null,null,null,null,null,null,null,null,null,null,null,null,null,null,null,null,null,null,null,null,null,null,null,null,null,null,null,null,null,null,null,null,null,null,null,null,null,null,null,null,null,null,null,null,null,null,null,null,null,null,null,null,null,null,null,null,null,null,null,null,null,null,null,null,null,null,null,null,null,null,null,null,null,null,null,null,null,null,null,null,null,null,null,null,null,null,null,null,null,null,null,null,null,null,null,null,null,null,null,null,null,null,null,null,null,null,null,null,null,null,null,null,null,null,null,null,null,null,null,null,null,null,null,null,null,null,null,null,null,null,null,null,null,null,null,null,null,null,null,null,null,null,null,null,null,null,null,null,null,null,null,null,null,null,null,null,null,null,null,null,null,null,null,null,null,null,null,null,null,null,null,null,null,null,null,null,null,null,null,null,null,null,null,null,null,null,null,null,null,null,null,null,null,null,null,null,null,null,null,null,null,null,null,null,null,null,null,null,null,null,null,null,null,null,null,null,null,null,null,null,null,null,null,null,null,null,null,null,false]
["stroke1ltY","Y","N",null,null,{"$f":"IF(pat_stroke = \"Y\", 1,0)","v":0},{"$f":"IF(pat_stroke = \"Y\", 1,0)","v":0},{"$f":"IF(pat_stroke = \"Y\", 1,0)","v":0}]
["mi1ltY","Y","N",null,null,{"$f":"IF(pat_mi = \"Y\", 1,0)","v":0},{"$f":"IF(pat_mi = \"Y\", 1,0)","v":0},{"$f":"IF(pat_mi = \"Y\", 1,0)","v":0}]
["ulcer1ltY","Y","N",null,null,{"$f":"IF(pat_ulcer = \"Y\", 1,0)","v":0},{"$f":"IF(pat_ulcer = \"Y\", 1,0)","v":0},{"$f":"IF(pat_ulcer = \"Y\", 1,0)","v":0}]
["target2 HbA1c only","<=58",null,null,null,{"$f":"IF(AND(pat_totaltarget =1, check_hba1c), 1, 0)","v":0},{"$f":"IF(AND(check_hba1c_s1, pat_s1_totaltarget=1),1,0)","v":0},{"$f":"IF(AND(check_hba1c_s2, pat_s2_totaltarget=1),1,0)","v":0}]
["target3 CHOL only","<5",null,null,null,{"$f":"IF(AND(pat_totaltarget =1, check_chol), 1, 0)","v":0},{"$f":"IF(AND(check_chol_s1, pat_s1_totaltarget=1),1,0)","v":0},{"$f":"IF(AND(check_chol_s2, pat_s2_totaltarget=1),1,0)","v":0}]
["target4 SBP only","<=140",null,null,null,{"$f":"IF(AND(pat_totaltarget =1, check_sbp), 1, 0)","v":0},{"$f":"IF(AND(check_sbp_s1, pat_s1_totaltarget=1),1,0)","v":1},{"$f":"IF(AND(check_sbp_s2, pat_s2_totaltarget=1),1,0)","v":0},null,null,null,null,null,null,null,null,null,null,null,null,null,null,null,null,null,null,null,null,null,null,null,null,null,null,null,null,null,null,null,null,null,null,null,null,null,null,null,null,null,null,null,null,null,null,null,null,null,null,null,null,null,null,null,null,null,null,null,null,null,null,null,null,null,null,null,null,null,null,null,null,null,null,null,null,null,null,null,null,null,null,null,null,null,null,null,null,null,null,null,null,null,null,null,null,null,null,null,null,null,null,null,null,null,null,null,null,null,null,null,null,null,null,null,null,null,null,null,null,null,null,null,null,null,null,null,null,null,null,null,null,null,null,null,null,null,null,null,null,null,null,null,null,null,null,null,null,null,null,null,null,null,null,null,null,null,null,null,null,null,null,null,null,null,null,null,null,null,null,null,null,null,null,null,null,null,null,null,null,null,null,null,null,null,null,null,null,null,null,null,null,null,null,null,null,null,null,null,null,null,null,null,null,null,null,null,null,null,null,null,null,null,null,null,null,null,null,null,null,null,null,null,null,null,null,null,null,null,null,null,null,null,null,null,null,null,null,null,null,null,null,null,null,null,null,null,null,null,null,null,null,null,null,null,null,null,null,null,null,null,null,null,null,null,null,null,null,null,null,null,null,null,null,null,null,null,null,null,null,null,null,null,null,null,null,null,null,null,null,null,null,null,null,null,null,null,null,null,null,null,null,null,null,null,null,null,null,null,null,null,null,null,null,null,null,null,null,null,null,null,null,null,null,null,null,null,null,null,null,null,null,null,null,null,null,null,null,null,null,null,null,null,null,null,null,null,null,null,null,null,null,null,null,null,null,null,null,null,null,null,null,null,null,null,null,null,null,null,null,null,null,null,null,null,null,null,null,null,null,null,null,null,null,null,null,null,null,null,null,null,null,null,null,null,null,null,null,null,null,null,null,null,null,null,null,null,null,null,null,null,null,null,null,null,null,null,null,null,null,null,null,null,null,null,null,null,null,null,null,null,null,null,null,null,null,null,null,null,null,null,null,null,null,null,null,null,null,null,null,null,null,null,null,null,null,null,null,null,null,null,null,null,null,null,null,null,null,null,null,null,null,null,null,null,null,null,null,null,null,null,null,null,null,null,null,null,null,null,null,null,null,null,null,null,null,null,null,null,null,null,null,null,null,null,null,null,null,null,null,null,null,null,null,null,null,null,null,null,null,null,null,null,null,null,null,null,null,null,null,null,null,null,null,null,null,null,null,null,null,null,null,null,null,null,null,null,null,null,null,null,null,null,null,null,null,null,null,null,null,null,null,null,null,null,null,null,null,null,null,null,null,null,null,null,null,null,null,null,null,null,null,null,null,null,null,null,null,null,null,null,null,null,null,null,null,null,null,null,null,null,null,null,null,null,null,null,null,null,null,null,null,null,null,null,null,null,null,null,null,null,null,null,null,null,null,null,null,null,null,null,null,null,null,null,null,null,null,null,null,null,null,null,null,null,null,null,null,null,null,null,null,null,null,null,null,null,null,null,null,null,null,null,null,null,null,null,null,null,null,null,null,null,null,null,null,null,null,null,null,null,null,null,null,null,null,null,null,null,null,null,null,null,null,null,null,null,null,null,null,null,null,null,null,null,null,null,null,null,null,null,null,null,null,null,null,null,null,null,null,null,null,null,null,null,null,null,null,null,null,null,null,null,null,null,null,null,null,null,null,null,null,null,null,null,null,null,null,null,null,null,null,null,null,null,null,null,null,null,null,null,null,null,null,null,null,null,null,null,null,null,null,null,null,null,null,null,null,null,null,null,null,null,null,null,null,null,null,null,null,null,null,null,null,null,null,null,null,null,null,null,null,null,null,null,null,null,null,null,null,null,null,null,null,null,null,null,null,null,null,null,null,null,null,null,null,null,null,null,null,null,null,null,null,null,null,null,null,null,null,null,null,null,null,null,null,null,null,null,null,null,null,null,null,null,null,null,null,null,null,null,null,null,null,null,null,null,null,null,null,null,null,null,null,null,null,null,null,null,null,null,null,null,null,null,null,null,null,null,null,null,null,null,null,null,null,null,null,null,null,null,null,null,null,null,null,null,null,null,null,null,null,null,null,null,null,null,null,null,null,null,null,null,null,null,null,null,null,null,null,null,null,null,null,null,null,null,null,null,null,null,null,null,null,null,null,null,null,null,null,null,null,null,null,null,null,null,null,null,null,null,null,null,null,null,null,null,null,null,null,null,null,null,null,null,null,null,null,null,null,null,null,null,null,null,null,null,null,null,null,null,null,null,null,null,null,null,null,null,null,null,null,null,null,null,null,null,null,null,null,null,null,null,null,null,null,null,null,null,null,null,null,null,null,null,null,null,null,null,null,null,null,null,null,null,null,null,null,null,null,null,null,null,null,null,null,null,null,null,null,null,null,null,null,null,null,null,null,null,null,null,null,null,null,null,null,null,null,null,null,null,null,null,null,null,null,null,null,null,null,null,null,null,null,null,null,null,null,null,null,null,null,null,null,null,null,null,null,null,null,null,null,null,null,null,null,null,null,null,null,null,null,null,null,null,null,null,null,null,null,null,null,null,null,null,null,null,null,null,null,null,null,null,null,null,null,null,null,null,null,null,null,null,null,null,null,null,null,null,null,null,null,null,null,null,null,null,null,null,null,null,null,null,null,null,null,null,null,null,null,null,null,null,null,null,null,null,null,null,null,null,null,null,null,null,null,null,null,null,null,null,null,null,null,null,null,null,null,null,null,null,null,null,null,null,null,null,null,null,null,null,null,null,null,null,null,null,null,null,null,null,null,null,null,null,null,null,null,null,null,null,null,null,null,null,null,null,null,null,null,null,null,null,null,null,null,null,null,null,null,null,null,null,null,null,null,null,null,null,null,null,null,null,null,null,null,null,null,null,null,null,null,null,null,null,null,null,null,null,null,null,null,null,null,null,null,null,null,null,null,null,null,null,null,null,null,null,null,null,null,null,null,null,null,null,null,null,null,null,null,null,null,null,null,null,null,null,null,null,null,null,null,null,null,null,null,null,null,null,null,null,null,null,null,null,null,null,null,null,null,null,null,null,null,null,null,null,null,null,null,null,null,null,null,null,null,null,null,null,null,null,null,null,null,null,null,null,null,null,null,null,null,null,null,null,null,null,null,null,null,null,null,null,null,null,null,null,null,null,null,null,null,null,null,null,null,null,null,null,null,null,null,null,null,null,null,null,null,null,null,null,null,null,null,null,null,null,null,null,null,null,null,null,null,null,null,null,null,null,null,null,null,null,null,null,null,null,null,null,null,null,null,null,null,null,null,null,null,null,null,null,null,null,null,null,null,null,null,null,null,null,null,null,null,null,null,null,null,null,null,null,null,null,null,null,null,null,null,null,null,null,null,null,null,null,null,null,null,null,null,null,null,null,null,null,null,null,null,null,null,null,null,null,null,null,null,null,null,null,null,null,null,null,null,null,null,null,null,null,null,null,null,null,null,null,null,null,null,null,null,null,null,null,null,null,null,null,null,null,null,null,null,null,null,null,null,null,null,null,null,null,null,null,null,null,null,null,null,null,null,null,null,null,null,null,null,null,null,null,null,null,null,null,null,null,null,null,null,null,null,null,null,null,null,null,null,null,null,null,null,null,null,null,null,null,null,null,null,null,null,null,null,null,null,null,null,null,null,null,null,null,null,null,null,null,null,null,null,null,null,null,null,null,null,null,null,null,null,null,null,null,null,null,null,null,null,null,null,null,null,null,null,null,null,null,null,null,null,null,null,null,null,null,null,null,null,null,null,null,null,null,null,null,null,null,null,null,null,null,null,null,null,null,null,null,null,null,null,null,null,null,null,null,null,null,null,null,null,null,null,null,null,null,null,null,null,null,null,null,null,null,null,null,null,null,null,null,null,null,null,null,null,null,null,null,null,null,null,null,null,null,null,null,null,null,null,null,null,null,null,null,null,null,null,null,null,null,null,null,null,null,null,null,null,null,null,null,null,null,null,null,null,null,null,null,null,null,null,null,null,null,null,null,null,null,null,null,null,null,null,null,null,null,null,null,null,null,null,null,null,null,null,null,null,null,null,null,null,null,null,null,null,null,null,null,null,null,null,null,null,null,null,null,null,null,null,null,null,null,null,null,null,null,null,null,null,null,null,null,null,null,null,null,null,null,null,null,null,null,null,null,null,null,null,null,null,null,null,null,null,null,null,null,null,null,null,null,null,null,null,null,null,null,null,null,null,null,null,null,null,null,null,null,null,null,null,null,null,null,null,null,null,null,null,null,null,null,null,null,null,null,null,null,null,null,null,null,null,null,null,null,null,null,null,null,null,null,null,null,null,null,null,null,null,null,null,null,null,null,null,null,null,null,null,null,null,null,null,null,null,null,null,null,null,null,null,null,null,null,null,null,null,null,null,null,null,null,null,null,null,null,null,null,null,null,null,null,null,null,null,null,null,null,null,null,null,null,null,null,null,null,null,null,null,null,null,null,null,null,null,null,null,null,null,null,null,null,null,null,null,null,null,null,null,null,null,null,null,null,null,null,null,null,null,null,null,null,null,null,null,null,null,null,null,null,null,null,null,null,null,null,null,null,null,null,null,null,null,null,null,null,null,null,null,null,null,null,null,null,null,null,null,null,null,null,null,null,null,null,null,null,null,null,null,null,null,null,null,null,null,null,null,null,null,null,null,null,null,null,null,null,null,null,null,null,null,null,null,null,null,null,null,null,null,null,null,null,null,null,null,null,null,null,null,null,null,null,null,null,null,null,null,null,null,null,null,null,null,null,null,null,null,null,null,null,null,null,null,null,null,null,null,null,null,null,null,null,null,null,null,null,null,null,null,null,null,null,null,null,null,null,null,null,null,null,null,null,null,null,null,null,null,null,null,null,null,null,null,null,null,null,null,null,null,null,null,null,null,null,null,null,null,null,null,null,null,null,null,null,null,null,null,null,null,null,null,null,null,null,null,null,null,null,null,null,null,null,null,null,null,null,null,null,null,null,null,null,null,null,null,null,null,null,null,null,null,null,null,null,null,null,null,null,null,null,null,null,null,null,null,null,null,null,null,null,null,null,null,null,null,null,null,null,null,null,null,null,null,null,null,null,null,null,null,null,null,null,null,null,null,null,null,null,null,null,null,null,null,null,null,null,null,null,null,null,null,null,null,null,null,null,null,null,null,null,null,null,null,null,null,null,null,null,null,null,null,null,null,null,null,null,null,null,null,null,null,null,null,null,null,null,null,null,null,null,null,null,null,null,null,null,null,null,null,null,null,null,null,null,null,null,null,null,null,null,null,null,null,null,null,null,null,null,null,null,null,null,null,null,null,null,null,null,null,null,null,null,null,null,null,null,null,null,null,null,null,null,null,null,null,null,null,null,null,null,null,null,null,null,null,null,null,null,null,null,null,null,null,null,null,null,null,null,null,null,null,null,null,null,null,null,null,null,null,null,null,null,null,null,null,null,null,null,null,null,null,null,null,null,null,null,null,null,null,null,null,null,null,null,null,null,null,null,null,null,null,null,null,null,null,null,null,null,null,null,null,null,null,null,null,null,null,null,null,null,null,null,null,null,null,null,null,null,null,null,null,null,null,null,null,null,null,null,null,null,null,null,null,null,null,null,null,null,null,null,null,null,null,null,null,null,null,null,null,null,null,null,null,null,null,null,null,null,null,null,null,null,null,null,null,null,null,null,null,null,null,null,null,null,null,null,null,null,null,null,null,null,null,null,null,null,null,null,null,null,null,null,null,null,null,null,null,null,null,null,null,null,null,null,null,null,null,null,null,null,null,null,null,null,null,null,null,null,null,null,null,null,null,null,null,null,null,null,null,null,null,null,null,null,null,null,null,null,null,null,null,null,null,null,null,null,null,null,null,null,null,null,null,null,null,null,null,null,null,null,null,null,null,null,null,null,null,null,null,null,null,null,null,null,null,null,null,null,null,null,null,null,null,null,null,null,null,null,null,null,null,null,null,null,null,null,null,null,null,null,null,null,null,null,null,null,null,null,null,null,null,null,null,null,null,null,null,null,null,null,null,null,null,null,null,null,null,null,null,null,null,null,null,null,null,null,null,null,null,null,null,null,null,null,null,null,null,null,null,null,null,null,null,null,null,null,null,null,null,null,null,null,null,null,null,null,null,null,null,null,null,null,null,null,null,null,null,null,null,null,null,null,null,null,null,null,null,null,null,null,null,null,null,null,null,null,null,null,null,null,null,null,null,null,null,null,null,null,null,null,null,null,null,null,null,null,null,null,null,null,null,null,null,null,null,null,null,null,null,null,null,null,null,null,null,null,null,null,null,null,null,null,null,null,null,null,null,null,null,null,null,null,null,null,null,null,null,null,null,null,null,null,null,null,null,null,null,null,null,null,null,null,null,null,null,null,null,null,null,null,null,null,null,null,null,null,null,null,null,null,null,null,null,null,null,null,null,null,null,null,null,null,null,null,null,null,null,null,null,null,null,null,null,null,null,null,null,null,null,null,null,null,null,null,null,null,null,null,null,null,null,null,null,null,null,null,null,null,null,null,null,null,null,null,null,null,null,null,null,null,null,null,null,null,null,null,null,null,null,null,null,null,null,null,null,null,null,null,null,null,null,null,null,null,null,null,null,null,null,null,null,null,null,null,null,null,null,null,null,null,null,null,null,null,null,null,null,null,null,null,null,null,null,null,null,null,null,null,null,null,null,null,null,null,null,null,null,null,null,null,null,null,null,null,null,null,null,null,null,null,null,null,null,null,null,null,null,null,null,null,null,null,null,null,null,null,null,null,null,null,null,null,null,null,null,null,null,null,null,null,null,null,null,null,null,null,null,null,null,null,null,null,null,null,null,null,null,null,null,null,null,null,null,null,null,null,null,null,null,null,null,null,null,null,null,null,null,null,null,null,null,null,null,null,null,null,null,null,null,null,null,null,null,null,null,null,null,null,null,null,null,null,null,null,null,null,null,null,null,null,null,null,null,null,null,null,null,null,null,null,null,null,null,null,null,null,null,null,null,null,null,null,null,null,null,null,null,null,null,null,null,null,null,null,null,null,null,null,null,null,null,null,null,null,null,null,null,null,null,null,null,null,null,null,null,null,null,null,null,null,null,null,null,null,null,null,null,null,null,null,null,null,null,null,null,null,null,null,null,null,null,null,null,null,null,null,null,null,null,null,null,null,null,null,null,null,null,null,null,null,null,null,null,null,null,null,null,null,null,null,null,null,null,null,null,null,null,null,null,null,null,null,null,null,null,null,null,null,null,null,null,null,null,null,null,null,null,null,null,null,null,null,null,null,null,null,null,null,null,null,null,null,null,null,null,null,null,null,null,null,null,null,null,null,null,null,null,null,null,null,null,null,null,null,null,null,null,null,null,null,null,null,null,null,null,null,null,null,null,null,null,null,null,null,null,null,null,null,null,null,null,null,null,null,null,null,null,null,null,null,null,null,null,null,null,null,null,null,null,null,null,null,null,null,null,null,null,null,null,null,null,null,null,null,null,null,null,null,null,null,null,null,null,null,null,null,null,null,null,null,null,null,null,null,null,null,null,null,null,null,null,null,null,null,null,null,null,null,null,null,null,null,null,null,null,null,null,null,null,null,null,null,null,null,null,null,null,null,null,null,null,null,null,null,null,null,null,null,null,null,null,null,null,null,null,null,null,null,null,null,null,null,null,null,null,null,null,null,null,null,null,null,null,null,null,null,null,null,null,null,null,null,null,null,null,null,null,null,null,null,null,null,null,null,null,null,null,null,null,null,null,null,null,null,null,null,null,null,null,null,null,null,null,null,null,null,null,null,null,null,null,null,null,null,null,null,null,null,null,null,null,null,null,null,null,null,null,null,null,null,null,null,null,null,null,null,null,null,null,null,null,null,null,null,null,null,null,null,null,null,null,null,null,null,null,null,null,null,null,null,null,null,null,null,null,null,null,null,null,null,null,null,null,null,null,null,null,null,null,null,null,null,null,null,null,null,null,null,null,null,null,null,null,null,null,null,null,null,null,null,null,null,null,null,null,null,null,null,null,null,null,null,null,null,null,null,null,null,null,null,null,null,null,null,null,null,null,null,null,null,null,null,null,null,null,null,null,null,null,null,null,null,null,null,null,null,null,null,null,null,null,null,null,null,null,null,null,null,null,null,null,null,null,null,null,null,null,null,null,null,null,null,null,null,null,null,null,null,null,null,null,null,null,null,null,null,null,null,null,null,null,null,null,null,null,null,null,null,null,null,null,null,null,null,null,null,null,null,null,null,null,null,null,null,null,null,null,null,null,null,null,null,null,null,null,null,null,null,null,null,null,null,null,null,null,null,null,null,null,null,null,null,null,null,null,null,null,null,null,null,null,null,null,null,null,null,null,null,null,null,null,null,null,null,null,null,null,null,null,null,null,null,null,null,null,null,null,null,null,null,null,null,null,null,null,null,null,null,null,null,null,null,null,null,null,null,null,null,null,null,null,null,null,null,null,null,null,null,null,null,null,null,null,null,null,null,null,null,null,null,null,null,null,null,null,null,null,null,null,null,null,null,null,null,null,null,null,null,null,null,null,null,null,null,null,null,null,null,null,null,null,null,null,null,null,null,null,null,null,null,null,null,null,null,null,null,null,null,null,null,null,null,null,null,null,null,null,null,null,null,null,null,null,null,null,null,null,null,null,null,null,null,null,null,null,null,null,null,null,null,null,null,null,null,null,null,null,null,null,null,null,null,null,null,null,null,null,null,null,null,null,null,null,null,null,null,null,null,null,null,null,null,null,null,null,null,null,null,null,null,null,null,null,null,null,null,null,null,null,null,null,null,null,null,null,null,null,null,null,null,null,null,null,null,null,null,null,null,null,null,null,null,null,null,null,null,null,null,null,null,null,null,null,null,null,null,null,null,null,null,null,null,null,null,null,null,null,null,null,null,null,null,null,null,null,null,null,null,null,null,null,null,null,null,null,null,null,null,null,null,null,null,null,null,null,null,null,null,null,null,null,null,null,null,null,null,null,null,null,null,null,null,null,null,null,null,null,null,null,null,null,null,null,null,null,null,null,null,null,null,null,null,null,null,null,null,null,null,null,null,null,null,null,null,null,null,null,null,null,null,null,null,null,null,null,null,null,null,null,null,null,null,null,null,null,null,null,null,null,null,null,null,null,null,null,null,null,null,null,null,null,null,null,null,null,null,null,null,null,null,null,null,null,null,null,null,null,null,null,null,null,null,null,null,null,null,null,null,null,null,null,null,null,null,null,null,null,null,null,null,null,null,null,null,null,null,null,null,null,null,null,null,null,null,null,null,null,null,null,null,null,null,null,null,null,null,null,null,null,null,null,null,null,null,null,null,null,null,null,null,null,null,null,null,null,null,null,null,null,null,null,null,null,null,null,null,null,null,null,null,null,null,null,null,null,null,null,null,null,null,null,null,null,null,null,null,null,null,null,null,null,null,null,null,null,null,null,null,null,null,null,null,null,null,null,null,null,null,null,null,null,null,null,null,null,null,null,null,null,null,null,null,null,null,null,null,null,null,null,null,null,null,null,null,null,null,null,null,null,null,null,null,null,null,null,null,null,null,null,null,null,null,null,null,null,null,null,null,null,null,null,null,null,null,null,null,null,null,null,null,null,null,null,null,null,null,null,null,null,null,null,null,null,null,null,null,null,null,null,null,null,null,null,null,null,null,null,null,null,null,null,null,null,null,null,null,null,null,null,null,null,null,null,null,null,null,null,null,null,null,null,null,null,null,null,null,null,null,null,null,null,null,null,null,null,null,null,null,null,null,null,null,null,null,null,null,null,null,null,null,null,null,null,null,null,null,null,null,null,null,null,null,null,null,null,null,null,null,null,null,null,null,null,null,null,null,null,null,null,null,null,null,null,null,null,null,null,null,null,null,null,null,null,null,null,null,null,null,null,null,null,null,null,null,null,null,null,null,null,null,null,null,null,null,null,null,null,null,null,null,null,null,null,null,null,null,null,null,null,null,null,null,null,null,null,null,null,null,null,null,null,null,null,null,null,null,null,null,null,null,null,null,null,null,null,null,null,null,null,null,null,null,null,null,null,null,null,null,null,null,null,null,null,null,null,null,null,null,null,null,null,null,null,null,null,null,null,null,null,null,null,null,null,null,null,null,null,null,null,null,null,null,null,null,null,null,null,null,null,null,null,null,null,null,null,null,null,null,null,null,null,null,null,null,null,null,null,null,null,null,null,null,null,null,null,null,null,null,null,null,null,null,null,null,null,null,null,null,null,null,null,null,null,null,null,null,null,null,null,null,null,null,null,null,null,null,null,null,null,null,null,null,null,null,null,null,null,null,null,null,null,null,null,null,null,null,null,null,null,null,null,null,null,null,null,null,null,null,null,null,null,null,null,null,null,null,null,null,null,null,null,null,null,null,null,null,null,null,null,null,null,null,null,null,null,null,null,null,null,null,null,null,null,null,null,null,null,null,null,null,null,null,null,null,null,null,null,null,null,null,null,null,null,null,null,null,null,null,null,null,null,null,null,null,null,null,null,null,null,null,null,null,null,null,null,null,null,null,null,null,null,null,null,null,null,null,null,null,null,null,null,null,null,null,null,null,null,null,null,null,null,null,null,null,null,null,null,null,null,null,null,null,null,null,null,null,null,null,null,null,null,null,null,null,null,null,null,null,null,null,null,null,null,null,null,null,null,null,null,null,null,null,null,null,null,null,null,null,null,null,null,null,null,null,null,null,null,null,null,null,null,null,null,null,null,null,null,null,null,null,null,null,null,null,null,null,null,null,null,null,null,null,null,null,null,null,null,null,null,null,null,null,null,null,null,null,null,null,null,null,null,null,null,null,null,null,null,null,null,null,null,null,null,null,null,null,null,null,null,null,null,null,null,null,null,null,null,null,null,null,null,null,null,null,null,null,null,null,null,null,null,null,null,null,null,null,null,null,null,null,null,null,null,null,null,null,null,null,null,null,null,null,null,null,null,null,null,null,null,null,null,null,null,null,null,null,null,null,null,null,null,null,null,null,null,null,null,null,null,null,null,null,null,null,null,null,null,null,null,null,null,null,null,null,null,null,null,null,null,null,null,null,null,null,null,null,null,null,null,null,null,null,null,null,null,null,null,null,null,null,null,null,null,null,null,null,null,null,null,null,null,null,null,null,null,null,null,null,null,null,null,null,null,null,null,null,null,null,null,null,null,null,null,null,null,null,null,null,null,null,null,null,null,null,null,null,null,null,null,null,null,null,null,null,null,null,null,null,null,null,null,null,null,null,null,null,null,null,null,null,null,null,null,null,null,null,null,null,null,null,null,null,null,null,null,null,null,null,null,null,null,null,null,null,null,null,null,null,null,null,null,null,null,null,null,null,null,null,null,null,null,null,null,null,null,null,null,null,null,null,null,null,null,null,null,null,null,null,null,null,null,null,null,null,null,null,null,null,null,null,null,null,null,null,null,null,null,null,null,null,null,null,null,null,null,null,null,null,null,null,null,null,null,null,null,null,null,null,null,null,null,null,null,null,null,null,null,null,null,null,null,null,null,null,null,null,null,null,null,null,null,null,null,null,null,null,null,null,null,null,null,null,null,null,null,null,null,null,null,null,null,null,null,null,null,null,null,null,null,null,null,null,null,null,null,null,null,null,null,null,null,null,null,null,null,null,null,null,null,null,null,null,null,null,null,null,null,null,null,null,null,null,null,null,null,null,null,null,null,null,null,null,null,null,null,null,null,null,null,null,null,null,null,null,null,null,null,null,null,null,null,null,null,null,null,null,null,null,null,null,null,null,null,null,null,null,null,null,null,null,null,null,null,null,null,null,null,null,null,null,null,null,null,null,null,null,null,null,null,null,null,null,null,null,null,null,null,null,null,null,null,null,null,null,null,null,null,null,null,null,null,null,null,null,null,null,null,null,null,null,null,null,null,null,null,null,null,null,null,null,null,null,null,null,null,null,null,null,null,null,null,null,null,null,null,null,null,null,null,null,null,null,null,null,null,null,null,null,null,null,null,null,null,null,null,null,null,null,null,null,null,null,null,null,null,null,null,null,null,null,null,null,null,null,null,null,null,null,null,null,null,null,null,null,null,null,null,null,null,null,null,null,null,null,null,null,null,null,null,null,null,null,null,null,null,null,null,null,null,null,null,null,null,null,null,null,null,null,null,null,null,null,null,null,null,null,null,null,null,null,null,null,null,null,null,null,null,null,null,null,null,null,null,null,null,null,null,null,null,null,null,null,null,null,null,null,null,null,null,null,null,null,null,null,null,null,null,null,null,null,null,null,null,null,null,null,null,null,null,null,null,null,null,null,null,null,null,null,null,null,null,null,null,null,null,null,null,null,null,null,null,null,null,null,null,null,null,null,null,null,null,null,null,null,null,null,null,null,null,null,null,null,null,null,null,null,null,null,null,null,null,null,null,null,null,null,null,null,null,null,null,null,null,null,null,null,null,null,null,null,null,null,null,null,null,null,null,null,null,null,null,null,null,null,null,null,null,null,null,null,null,null,null,null,null,null,null,null,null,null,null,null,null,null,null,null,null,null,null,null,null,null,null,null,null,null,null,null,null,null,null,null,null,null,null,null,null,null,null,null,null,null,null,null,null,null,null,null,null,null,null,null,null,null,null,null,null,null,null,null,null,null,null,null,null,null,null,null,null,null,null,null,null,null,null,null,null,null,null,null,null,null,null,null,null,null,null,null,null,null,null,null,null,null,null,null,null,null,null,null,null,null,null,null,null,null,null,null,null,null,null,null,null,null,null,null,null,null,null,null,null,null,null,null,null,null,null,null,null,null,null,null,null,null,null,null,null,null,null,null,null,null,null,null,null,null,null,null,null,null,null,null,null,null,null,null,null,null,null,null,null,null,null,null,null,null,null,null,null,null,null,null,null,null,null,null,null,null,null,null,null,null,null,null,null,null,null,null,null,null,null,null,null,null,null,null,null,null,null,null,null,null,null,null,null,null,null,null,null,null,null,null,null,null,null,null,null,null,null,null,null,null,null,null,null,null,null,null,null,null,null,null,null,null,null,null,null,null,null,null,null,null,null,null,null,null,null,null,null,null,null,null,null,null,null,null,null,null,null,null,null,null,null,null,null,null,null,null,null,null,null,null,null,null,null,null,null,null,null,null,null,null,null,null,null,null,null,null,null,null,null,null,null,null,null,null,null,null,null,null,null,null,null,null,null,null,null,null,null,null,null,null,null,null,null,null,null,null,null,null,null,null,null,null,null,null,null,null,null,null,null,null,null,null,null,null,null,null,null,null,null,null,null,null,null,null,null,null,null,null,null,null,null,null,null,null,null,null,null,null,null,null,null,null,null,null,null,null,null,null,null,null,null,null,null,null,null,null,null,null,null,null,null,null,null,null,null,null,null,null,null,null,null,null,null,null,null,null,null,null,null,null,null,null,null,null,null,null,null,null,null,null,null,null,null,null,null,null,null,null,null,null,null,null,null,null,null,null,null,null,null,null,null,null,null,null,null,null,null,null,null,null,null,null,null,null,null,null,null,null,null,null,null,null,null,null,null,null,null,null,null,null,null,null,null,null,null,null,null,null,null,null,null,null,null,null,null,null,null,null,null,null,null,null,null,null,null,null,null,null,null,null,null,null,null,null,null,null,null,null,null,null,null,null,null,null,null,null,null,null,null,null,null,null,null,null,null,null,null,null,null,null,null,null,null,null,null,null,null,null,null,null,null,null,null,null,null,null,null,null,null,null,null,null,null,null,null,null,null,null,null,null,null,null,null,null,null,null,null,null,null,null,null,null,null,null,null,null,null,null,null,null,null,null,null,null,null,null,null,null,null,null,null,null,null,null,null,null,null,null,null,null,null,null,null,null,null,null,null,null,null,null,null,null,null,null,null,null,null,null,null,null,null,null,null,null,null,null,null,null,null,null,null,null,null,null,null,null,null,null,null,null,null,null,null,null,null,null,null,null,null,null,null,null,null,null,null,null,null,null,null,null,null,null,null,null,null,null,null,null,null,null,null,null,null,null,null,null,null,null,null,null,null,null,null,null,null,null,null,null,null,null,null,null,null,null,null,null,null,null,null,null,null,null,null,null,null,null,null,null,null,null,null,null,null,null,null,null,null,null,null,null,null,null,null,null,null,null,null,null,null,null,null,null,null,null,null,null,null,null,null,null,null,null,null,null,null,null,null,null,null,null,null,null,null,null,null,null,null,null,null,null,null,null,null,null,null,null,null,null,null,null,null,null,null,null,null,null,null,null,null,null,null,null,null,null,null,null,null,null,null,null,null,null,null,null,null,null,null,null,null,null,null,null,null,null,null,null,null,null,null,null,null,null,null,null,null,null,null,null,null,null,null,null,null,null,null,null,null,null,null,null,null,null,null,null,null,null,null,null,null,null,null,null,null,null,null,null,null,null,null,null,null,null,null,null,null,null,null,null,null,null,null,null,null,null,null,null,null,null,null,null,null,null,null,null,null,null,null,null,null,null,null,null,null,null,null,null,null,null,null,null,null,null,null,null,null,null,null,null,null,null,null,null,null,null,null,null,null,null,null,null,null,null,null,null,null,null,null,null,null,null,null,null,null,null,null,null,null,null,null,null,null,null,null,null,null,null,null,null,null,null,null,null,null,null,null,null,null,null,null,null,null,null,null,null,null,null,null,null,null,null,null,null,null,null,null,null,null,null,null,null,null,null,null,null,null,null,null,null,null,null,null,null,null,null,null,null,null,null,null,null,null,null,null,null,null,null,null,null,null,null,null,null,null,null,null,null,null,null,null,null,null,null,null,null,null,null,null,null,null,null,null,null,null,null,null,null,null,null,null,null,null,null,null,null,null,null,null,null,null,null,null,null,null,null,null,null,null,null,null,null,null,null,null,null,null,null,null,null,null,null,null,null,null,null,null,null,null,null,null,null,null,null,null,null,null,null,null,null,null,null,null,null,null,null,null,null,null,null,null,null,null,null,null,null,null,null,null,null,null,null,null,null,null,null,null,null,null,null,null,null,null,null,null,null,null,null,null,null,null,null,null,null,null,null,null,null,null,null,null,null,null,null,null,null,null,null,null,null,null,null,null,null,null,null,null,null,null,null,null,null,null,null,null,null,null,null,null,null,null,null,null,null,null,null,null,null,null,null,null,null,null,null,null,null,null,null,null,null,null,null,null,null,null,null,null,null,null,null,null,null,null,null,null,null,null,null,null,null,null,null,null,null,null,null,null,null,null,null,null,null,null,null,null,null,null,null,null,null,null,null,null,null,null,null,null,null,null,null,null,null,null,null,null,null,null,null,null,null,null,null,null,null,null,null,null,null,null,null,null,null,null,null,null,null,null,null,null,null,null,null,null,null,null,null,null,null,null,null,null,null,null,null,null,null,null,null,null,null,null,null,null,null,null,null,null,null,null,null,null,null,null,null,null,null,null,null,null,null,null,null,null,null,null,null,null,null,null,null,null,null,null,null,null,null,null,null,null,null,null,null,null,null,null,null,null,null,null,null,null,null,null,null,null,null,null,null,null,null,null,null,null,null,null,null,null,null,null,null,null,null,null,null,null,null,null,null,null,null,null,null,null,null,null,null,null,null,null,null,null,null,null,null,null,null,null,null,null,null,null,null,null,null,null,null,null,null,null,null,null,null,null,null,null,null,null,null,null,null,null,null,null,null,null,null,null,null,null,null,null,null,null,null,null,null,null,null,null,null,null,null,null,null,null,null,null,null,null,null,null,null,null,null,null,null,null,null,null,null,null,null,null,null,null,null,null,null,null,null,null,null,null,null,null,null,null,null,null,null,null,null,null,null,null,null,null,null,null,null,null,null,null,null,null,null,null,null,null,null,null,null,null,null,null,null,null,null,null,null,null,null,null,null,null,null,null,null,null,null,null,null,null,null,null,null,null,null,null,null,null,null,null,null,null,null,null,null,null,null,null,null,null,null,null,null,null,null,null,null,null,null,null,null,null,null,null,null,null,null,null,null,null,null,null,null,null,null,null,null,null,null,null,null,null,null,null,null,null,null,null,null,null,null,null,null,null,null,null,null,null,null,null,null,null,null,null,null,null,null,null,null,null,null,null,null,null,null,null,null,null,null,null,null,null,null,null,null,null,null,null,null,null,null,null,null,null,null,null,null,null,null,null,null,null,null,null,null,null,null,null,null,null,null,null,null,null,null,null,null,null,null,null,null,null,null,null,null,null,null,null,null,null,null,null,null,null,null,null,null,null,null,null,null,null,null,null,null,null,null,null,null,null,null,null,null,null,null,null,null,null,null,null,null,null,null,null,null,null,null,null,null,null,null,null,null,null,null,null,null,null,null,null,null,null,null,null,null,null,null,null,null,null,null,null,null,null,null,null,null,null,null,null,null,null,null,null,null,null,null,null,null,null,null,null,null,null,null,null,null,null,null,null,null,null,null,null,null,null,null,null,null,null,null,null,null,null,null,null,null,null,null,null,null,null,null,null,null,null,null,null,null,null,null,null,null,null,null,null,null,null,null,null,null,null,null,null,null,null,null,null,null,null,null,null,null,null,null,null,null,null,null,null,null,null,null,null,null,null,null,null,null,null,null,null,null,null,null,null,null,null,null,null,null,null,null,null,null,null,null,null,null,null,null,null,null,null,null,null,null,null,null,null,null,null,null,null,null,null,null,null,null,null,null,null,null,null,null,null,null,null,null,null,null,null,null,null,null,null,null,null,null,null,null,null,null,null,null,null,null,null,null,null,null,null,null,null,null,null,null,null,null,null,null,null,null,null,null,null,null,null,null,null,null,null,null,null,null,null,null,null,null,null,null,null,null,null,null,null,null,null,null,null,null,null,null,null,null,null,null,null,null,null,null,null,null,null,null,null,null,null,null,null,null,null,null,null,null,null,null,null,null,null,null,null,null,null,null,null,null,null,null,null,null,null,null,null,null,null,null,null,null,null,null,null,null,null,null,null,null,null,null,null,null,null,null,null,null,null,null,null,null,null,null,null,null,null,null,null,null,null,null,null,null,null,null,null,null,null,null,null,null,null,null,null,null,null,null,null,null,null,null,null,null,null,null,null,null,null,null,null,null,null,null,null,null,null,null,null,null,null,null,null,null,null,null,null,null,null,null,null,null,null,null,null,null,null,null,null,null,null,null,null,null,null,null,null,null,null,null,null,null,null,null,null,null,null,null,null,null,null,null,null,null,null,null,null,null,null,null,null,null,null,null,null,null,null,null,null,null,null,null,null,null,null,null,null,null,null,null,null,null,null,null,null,null,null,null,null,null,null,null,null,null,null,null,null,null,null,null,null,null,null,null,null,null,null,null,null,null,null,null,null,null,null,null,null,null,null,null,null,null,null,null,null,null,null,null,null,null,null,null,null,null,null,null,null,null,null,null,null,null,null,null,null,null,null,null,null,null,null,null,null,null,null,null,null,null,null,null,null,null,null,null,null,null,null,null,null,null,null,null,null,null,null,null,null,null,null,null,null,null,null,null,null,null,null,null,null,null,null,null,null,null,null,null,null,null,null,null,null,null,null,null,null,null,null,null,null,null,null,null,null,null,null,null,null,null,null,null,null,null,null,null,null,null,null,null,null,null,null,null,null,null,null,null,null,null,null,null,null,null,null,null,null,null,null,null,null,null,null,null,null,null,null,null,null,null,null,null,null,null,null,null,null,null,null,null,null,null,null,null,null,null,null,null,null,null,null,null,null,null,null,null,null,null,null,null,null,null,null,null,null,null,null,null,null,null,null,null,null,null,null,null,null,null,null,null,null,null,null,null,null,null,null,null,null,null,null,null,null,null,null,null,null,null,null,null,null,null,null,null,null,null,null,null,null,null,null,null,null,null,null,null,null,null,null,null,null,null,null,null,null,null,null,null,null,null,null,null,null,null,null,null,null,null,null,null,null,null,null,null,null,null,null,null,null,null,null,null,null,null,null,null,null,null,null,null,null,null,null,null,null,null,null,null,null,null,null,null,null,null,null,null,null,null,null,null,null,null,null,null,null,null,null,null,null,null,null,null,null,null,null,null,null,null,null,null,null,null,null,null,null,null,null,null,null,null,null,null,null,null,null,null,null,null,null,null,null,null,null,null,null,null,null,null,null,null,null,null,null,null,null,null,null,null,null,null,null,null,null,null,null,null,null,null,null,null,null,null,null,null,null,null,null,null,null,null,null,null,null,null,null,null,null,null,null,null,null,null,null,null,null,null,null,null,null,null,null,null,null,null,null,null,null,null,null,null,null,null,null,null,null,null,null,null,null,null,null,null,null,null,null,null,null,null,null,null,null,null,null,null,null,null,null,null,null,null,null,null,null,null,null,null,null,null,null,null,null,null,null,null,null,null,null,null,null,null,null,null,null,null,null,null,null,null,null,null,null,null,null,null,null,null,null,null,null,null,null,null,null,null,null,null,null,null,null,null,null,null,null,null,null,null,null,null,null,null,null,null,null,null,null,null,null,null,null,null,null,null,null,null,null,null,null,null,null,null,null,null,null,null,null,null,null,null,null,null,null,null,null,null,null,null,null,null,null,null,null,null,null,null,null,null,null,null,null,null,null,null,null,null,null,null,null,null,null,null,null,null,null,null,null,null,null,null,null,null,null,null,null,null,null,null,null,null,null,null,null,null,null,null,null,null,null,null,null,null,null,null,null,null,null,null,null,null,null,null,null,null,null,null,null,null,null,null,null,null,null,null,null,null,null,null,null,null,null,null,null,null,null,null,null,null,null,null,null,null,null,null,null,null,null,null,null,null,null,null,null,null,null,null,null,null,null,null,null,null,null,null,null,null,null,null,null,null,null,null,null,null,null,null,null,null,null,null,null,null,null,null,null,null,null,null,null,null,null,null,null,null,null,null,null,null,null,null,null,null,null,null,null,null,null,null,null,null,null,null,null,null,null,null,null,null,null,null,null,null,null,null,null,null,null,null,null,null,null,null,null,null,null,null,null,null,null,null,null,null,null,null,null,null,null,null,null,null,null,null,null,null,null,null,null,null,null,null,null,null,null,null,null,null,null,null,null,null,null,null,null,null,null,null,null,null,null,null,null,null,null,null,null,null,null,null,null,null,null,null,null,null,null,null,null,null,null,null,null,null,null,null,null,null,null,null,null,null,null,null,null,null,null,null,null,null,null,null,null,null,null,null,null,null,null,null,null,null,null,null,null,null,null,null,null,null,null,null,null,null,null,null,null,null,null,null,null,null,null,null,null,null,null,null,null,null,null,null,null,null,null,null,null,null,null,null,null,null,null,null,null,null,null,null,null,null,null,null,null,null,null,null,null,null,null,null,null,null,null,null,null,null,null,null,null,null,null,null,null,null,null,null,null,null,null,null,null,null,null,null,null,null,null,null,null,null,null,null,null,null,null,null,null,null,null,null,null,null,null,null,null,null,null,null,null,null,null,null,null,null,null,null,null,null,null,null,null,null,null,null,null,null,null,null,null,null,null,null,null,null,null,null,null,null,null,null,null,null,null,null,null,null,null,null,null,null,null,null,null,null,null,null,null,null,null,null,null,null,null,null,null,null,null,null,null,null,null,null,null,null,null,null,null,null,null,null,null,null,null,null,null,null,null,null,null,null,null,null,null,null,null,null,null,null,null,null,null,null,null,null,null,null,null,null,null,null,null,null,null,null,null,null,null,null,null,null,null,null,null,null,null,null,null,null,null,null,null,null,null,null,null,null,null,null,null,null,null,null,null,null,null,null,null,null,null,null,null,null,null,null,null,null,null,null,null,null,null,null,null,null,null,null,null,null,null,null,null,null,null,null,null,null,null,null,null,null,null,null,null,null,null,null,null,null,null,null,null,null,null,null,null,null,null,null,null,null,null,null,null,null,null,null,null,null,null,null,null,null,null,null,null,null,null,null,null,null,null,null,null,null,null,null,null,null,null,null,null,null,null,null,null,null,null,null,null,null,null,null,null,null,null,null,null,null,null,null,null,null,null,null,null,null,null,null,null,null,null,null,null,null,null,null,null,null,null,null,null,null,null,null,null,null,null,null,null,null,null,null,null,null,null,null,null,null,null,null,null,null,null,null,null,null,null,null,null,null,null,null,null,null,null,null,null,null,null,null,null,null,null,null,null,null,null,null,null,null,null,null,null,null,null,null,null,null,null,null,null,null,null,null,null,null,null,null,null,null,null,null,null,null,null,null,null,null,null,null,null,null,null,null,null,null,null,null,null,null,null,null,null,null,null,null,null,null,null,null,null,null,null,null,null,null,null,null,null,null,null,null,null,null,null,null,null,null,null,null,null,null,null,null,null,null,null,null,null,null,null,null,null,null,null,null,null,null,null,null,null,null,null,null,null,null,null,null,null,null,null,null,null,null,null,null,null,null,null,null,null,null,null,null,null,null,null,null,null,null,null,null,null,null,null,null,null,null,null,null,null,null,null,null,null,null,null,null,null,null,null,null,null,null,null,null,null,null,null,null,null,null,null,null,null,null,null,null,null,null,null,null,null,null,null,null,null,null,null,null,null,null,null,null,null,null,null,null,null,null,null,null,null,null,null,null,null,null,null,null,null,null,null,null,null,null,null,null,null,null,null,null,null,null,null,null,null,null,null,null,null,null,null,null,null,null,null,null,null,null,null,null,null,null,null,null,null,null,null,null,null,null,null,null,null,null,null,null,null,null,null,null,null,null,null,null,null,null,null,null,null,null,null,null,null,null,null,null,null,null,null,null,null,null,null,null,null,null,null,null,null,null,null,null,null,null,null,null,null,null,null,null,null,null,null,null,null,null,null,null,null,null,null,null,null,null,null,null,null,null,null,null,null,null,null,null,null,null,null,null,null,null,null,null,null,null,null,null,null,null,null,null,null,null,null,null,null,null,null,null,null,null,null,null,null,null,null,null,null,null,null,null,null,null,null,null,null,null,null,null,null,null,null,null,null,null,null,null,null,null,null,null,null,null,null,null,null,null,null,null,null,null,null,null,null,null,null,null,null,null,null,null,null,null,null,null,null,null,null,null,null,null,null,null,null,null,null,null,null,null,null,null,null,null,null,null,null,null,null,null,null,null,null,null,null,null,null,null,null,null,null,null,null,null,null,null,null,null,null,null,null,null,null,null,null,null,null,null,null,null,null,null,null,null,null,null,null,null,null,null,null,null,null,null,null,null,null,null,null,null,null,null,null,null,null,null,null,null,null,null,null,null,null,null,null,null,null,null,null,null,null,null,null,null,null,null,null,null,null,null,null,null,null,null,null,null,null,null,null,null,null,null,null,null,null,null,null,null,null,null,null,null,null,null,null,null,null,null,null,null,null,null,null,null,null,null,null,null,null,null,null,null,null,null,null,null,null,null,null,null,null,null,null,null,null,null,null,null,null,null,null,null,null,null,null,null,null,null,null,null,null,null,null,null,null,null,null,null,null,null,null,null,null,null,null,null,null,null,null,null,null,null,null,null,null,null,null,null,null,null,null,null,null,null,null,null,null,null,null,null,null,null,null,null,null,null,null,null,null,null,null,null,null,null,null,null,null,null,null,null,null,null,null,null,null,null,null,null,null,null,null,null,null,null,null,null,null,null,null,null,null,null,null,null,null,null,null,null,null,null,null,null,null,null,null,null,null,null,null,null,null,null,null,null,null,null,null,null,null,null,null,null,null,null,null,null,null,null,null,null,null,null,null,null,null,null,null,null,null,null,null,null,null,null,null,null,null,null,null,null,null,null,null,null,null,null,null,null,null,null,null,null,null,null,null,null,null,null,null,null,null,null,null,null,null,null,null,null,null,null,null,null,null,null,null,null,null,null,null,null,null,null,null,null,null,null,null,null,null,null,null,null,null,null,null,null,null,null,null,null,null,null,null,null,null,null,null,null,null,null,null,null,null,null,null,null,null,null,null,null,null,null,null,null,null,null,null,null,null,null,null,null,null,null,null,null,null,null,null,null,null,null,null,null,null,null,null,null,null,null,null,null,null,null,null,null,null,null,null,null,null,null,null,null,null,null,null,null,null,null,null,null,null,null,null,null,null,null,null,null,null,null,null,null,null,null,null,null,null,null,null,null,null,null,null,null,null,null,null,null,null,null,null,null,null,null,null,null,null,null,null,null,null,null,null,null,null,null,null,null,null,null,null,null,null,null,null,null,null,null,null,null,null,null,null,null,null,null,null,null,null,null,null,null,null,null,null,null,null,null,null,null,null,null,null,null,null,null,null,null,null,null,null,null,null,null,null,null,null,null,null,null,null,null,null,null,null,null,null,null,null,null,null,null,null,null,null,null,null,null,null,null,null,null,null,null,null,null,null,null,null,null,null,null,null,null,null,null,null,null,null,null,null,null,null,null,null,null,null,null,null,null,null,null,null,null,null,null,null,null,null,null,null,null,null,null,null,null,null,null,null,null,null,null,null,null,null,null,null,null,null,null,null,null,null,null,null,null,null,null,null,null,null,null,null,null,null,null,null,null,null,null,null,null,null,null,null,null,null,null,null,null,null,null,null,null,null,null,null,null,null,null,null,null,null,null,null,null,null,null,null,null,null,null,null,null,null,null,null,null,null,null,null,null,null,null,null,null,null,null,null,null,null,null,null,null,null,null,null,null,null,null,null,null,null,null,null,null,null,null,null,null,null,null,null,null,null,null,null,null,null,null,null,null,null,null,null,null,null,null,null,null,null,null,null,null,null,null,null,null,null,null,null,null,null,null,null,null,null,null,null,null,null,null,null,null,null,null,null,null,null,null,null,null,null,null,null,null,null,null,null,null,null,null,null,null,null,null,null,null,null,null,null,null,null,null,null,null,null,null,null,null,null,null,null,null,null,null,null,null,null,null,null,null,null,null,null,null,null,null,null,null,null,null,null,null,null,null,null,null,null,null,null,null,null,null,null,null,null,null,null,null,null,null,null,null,null,null,null,null,null,null,null,null,null,null,null,null,null,null,null,null,null,null,null,null,null,null,null,null,null,null,null,null,null,null,null,null,null,null,null,null,null,null,null,null,null,null,null,null,null,null,null,null,null,null,null,null,null,null,null,null,null,null,null,null,null,null,null,null,null,null,null,null,null,null,null,null,null,null,null,null,null,null,null,null,null,null,null,null,null,null,null,null,null,null,null,null,null,null,null,null,null,null,null,null,null,null,null,null,null,null,null,null,null,null,null,null,null,null,null,null,null,null,null,null,null,null,null,null,null,null,null,null,null,null,null,null,null,null,null,null,null,null,null,null,null,null,null,null,null,null,null,null,null,null,null,null,null,null,null,null,null,null,null,null,null,null,null,null,null,null,null,null,null,null,null,null,null,null,null,null,null,null,null,null,null,null,null,null,null,null,null,null,null,null,null,null,null,null,null,null,null,null,null,null,null,null,null,null,null,null,null,null,null,null,null,null,null,null,null,null,null,null,null,null,null,null,null,null,null,null,null,null,null,null,null,null,null,null,null,null,null,null,null,null,null,null,null,null,null,null,null,null,null,null,null,null,null,null,null,null,null,null,null,null,null,null,null,null,null,null,null,null,null,null,null,null,null,null,null,null,null,null,null,null,null,null,null,null,null,null,null,null,null,null,null,null,null,null,null,null,null,null,null,null,null,null,null,null,null,null,null,null,null,null,null,null,null,null,null,null,null,null,null,null,null,null,null,null,null,null,null,null,null,null,null,null,null,null,null,null,null,null,null,null,null,null,null,null,null,null,null,null,null,null,null,null,null,null,null,null,null,null,null,null,null,null,null,null,null,null,null,null,null,null,null,null,null,null,null,null,null,null,null,null,null,null,null,null,null,null,null,null,null,null,null,null,null,null,null,null,null,null,null,null,null,null,null,null,null,null,null,null,null,null,null,null,null,null,null,null,null,null,null,null,null,null,null,null,null,null,null,null,null,null,null,null,null,null,null,null,null,null,null,null,null,null,null,null,null,null,null,null,null,null,null,null,null,null,null,null,null,null,null,null,null,null,null,null,null,null,null,null,null,null,null,null,null,null,null,null,null,null,null,null,null,null,null,null,null,null,null,null,null,null,null,null,null,null,null,null,null,null,null,null,null,null,null,null,null,null,null,null,null,null,null,null,null,null,null,null,null,null,null,null,null,null,null,null,null,null,null,null,null,null,null,null,null,null,null,null,null,null,null,null,null,null,null,null,null,null,null,null,null,null,null,null,null,null,null,null,null,null,null,null,null,null,null,null,null,null,null,null,null,null,null,null,null,null,null,null,null,null,null,null,null,null,null,null,null,null,null,null,null,null,null,null,null,null,null,null,null,null,null,null,null,null,null,null,null,null,null,null,null,null,null,null,null,null,null,null,null,null,null,null,null,null,null,null,null,null,null,null,null,null,null,null,null,null,null,null,null,null,null,null,null,null,null,null,null,null,null,null,null,null,null,null,null,null,null,null,null,null,null,null,null,null,null,null,null,null,null,null,null,null,null,null,null,null,null,null,null,null,null,null,null,null,null,null,null,null,null,null,null,null,null,null,null,null,null,null,null,null,null,null,null,null,null,null,null,null,null,null,null,null,null,null,null,null,null,null,null,null,null,null,null,null,null,null,null,null,null,null,null,null,null,null,null,null,null,null,null,null,null,null,null,null,null,null,null,null,null,null,null,null,null,null,null,null,null,null,null,null,null,null,null,null,null,null,null,null,null,null,null,null,null,null,null,null,null,null,null,null,null,null,null,null,null,null,null,null,null,null,null,null,null,null,null,null,null,null,null,null,null,null,null,null,null,null,null,null,null,null,null,null,null,null,null,null,null,null,null,null,null,null,null,null,null,null,null,null,null,null,null,null,null,null,null,null,null,null,null,null,null,null,null,null,null,null,null,null,null,null,null,null,null,null,null,null,null,null,null,null,null,null,null,null,null,null,null,null,null,null,null,null,null,null,null,null,null,null,null,null,null,null,null,null,null,null,null,null,null,null,null,null,null,null,null,null,null,null,null,null,null,null,null,null,null,null,null,null,null,null,null,null,null,null,null,null,null,null,null,null,null,null,null,null,null,null,null,null,null,null,null,null,null,null,null,null,null,null,null,null,null,null,null,null,null,null,null,null,null,null,null,null,null,null,null,null,null,null,null,null,null,null,null,null,null,null,null,null,null,null,null,null,null,null,null,null,null,null,null,null,null,null,null,null,null,null,null,null,null,null,null,null,null,null,null,null,null,null,null,null,null,null,null,null,null,null,null,null,null,null,null,null,null,null,null,null,null,null,null,null,null,null,null,null,null,null,null,null,null,null,null,null,null,null,null,null,null,null,null,null,null,null,null,null,null,null,null,null,null,null,null,null,null,null,null,null,null,null,null,null,null,null,null,null,null,null,null,null,null,null,null,null,null,null,null,null,null,null,null,null,null,null,null,null,null,null,null,null,null,null,null,null,null,null,null,null,null,null,null,null,null,null,null,null,null,null,null,null,null,null,null,null,null,null,null,null,null,null,null,null,null,null,null,null,null,null,null,null,null,null,null,null,null,null,null,null,null,null,null,null,null,null,null,null,null,null,null,null,null,null,null,null,null,null,null,null,null,null,null,null,null,null,null,null,null,null,null,null,null,null,null,null,null,null,null,null,null,null,null,null,null,null,null,null,null,null,null,null,null,null,null,null,null,null,null,null,null,null,null,null,null,null,null,null,null,null,null,null,null,null,null,null,null,null,null,null,null,null,null,null,null,null,null,null,null,null,null,null,null,null,null,null,null,null,null,null,null,null,null,null,null,null,null,null,null,null,null,null,null,null,null,null,null,null,null,null,null,null,null,null,null,null,null,null,null,null,null,null,null,null,null,null,null,null,null,null,null,null,null,null,null,null,null,null,null,null,null,null,null,null,null,null,null,null,null,null,null,null,null,null,null,null,null,null,null,null,null,null,null,null,null,null,null,null,null,null,null,null,null,null,null,null,null,null,null,null,null,null,null,null,null,null,null,null,null,null,null,null,null,null,null,null,null,null,null,null,null,null,null,null,null,null,null,null,null,null,null,null,null,null,null,null,null,null,null,null,null,null,null,null,null,null,null,null,null,null,null,null,null,null,null,null,null,null,null,null,null,null,null,null,null,null,null,null,null,null,null,null,null,null,null,null,null,null,null,null,null,null,null,null,null,null,null,null,null,null,null,null,null,null,null,null,null,null,null,null,null,null,null,null,null,null,null,null,null,null,null,null,null,null,null,null,null,null,null,null,null,null,null,null,null,null,null,null,null,null,null,null,null,null,null,null,null,null,null,null,null,null,null,null,null,null,null,null,null,null,null,null,null,null,null,null,null,null,null,null,null,null,null,null,null,null,null,null,null,null,null,null,null,null,null,null,null,null,null,null,null,null,null,null,null,null,null,null,null,null,null,null,null,null,null,null,null,null,null,null,null,null,null,null,null,null,null,null,null,null,null,null,null,null,null,null,null,null,null,null,null,null,null,null,null,null,null,null,null,null,null,null,null,null,null,null,null,null,null,null,null,null,null,null,null,null,null,null,null,null,null,null,null,null,null,null,null,null,null,null,null,null,null,null,null,null,null,null,null,null,null,null,null,null,null,null,null,null,null,null,null,null,null,null,null,null,null,null,null,null,null,null,null,null,null,null,null,null,null,null,null,null,null,null,null,null,null,null,null,null,null,null,null,null,null,null,null,null,null,null,null,null,null,null,null,null,null,null,null,null,null,null,null,null,null,null,null,null,null,null,null,null,null,null,null,null,null,null,null,null,null,null,null,null,null,null,null,null,null,null,null,null,null,null,null,null,null,null,null,null,null,null,null,null,null,null,null,null,null,null,null,null,null,null,null,null,null,null,null,null,null,null,null,null,null,null,null,null,null,null,null,null,null,null,null,null,null,null,null,null,null,null,null,null,null,null,null,null,null,null,null,null,null,null,null,null,null,null,null,null,null,null,null,null,null,null,null,null,null,null,null,null,null,null,null,null,null,null,null,null,null,null,null,null,null,null,null,null,null,null,null,null,null,null,null,null,null,null,null,null,null,null,null,null,null,null,null,null,null,null,null,null,null,null,null,null,null,null,null,null,null,null,null,null,null,null,null,null,null,null,null,null,null,null,null,null,null,null,null,null,null,null,null,null,null,null,null,null,null,null,null,null,null,null,null,null,null,null,null,null,null,null,null,null,null,null,null,null,null,null,null,null,null,null,null,null,null,null,null,null,null,null,null,null,null,null,null,null,null,null,null,null,null,null,null,null,null,null,null,null,null,null,null,null,null,null,null,null,null,null,null,null,null,null,null,null,null,null,null,null,null,null,null,null,null,null,null,null,null,null,null,null,null,null,null,null,null,null,null,null,null,null,null,null,null,null,null,null,null,null,null,null,null,null,null,null,null,null,null,null,null,null,null,null,null,null,null,null,null,null,null,null,null,null,null,null,null,null,null,null,null,null,null,null,null,null,null,null,null,null,null,null,null,null,null,null,null,null,null,null,null,null,null,null,null,null,null,null,null,null,null,null,null,null,null,null,null,null,null,null,null,null,null,null,null,null,null,null,null,null,null,null,null,null,null,null,null,null,null,null,null,null,null,null,null,null,null,null,null,null,null,null,null,null,null,null,null,null,null,null,null,null,null,null,null,null,null,null,null,null,null,null,null,null,null,null,null,null,null,null,null,null,null,null,null,null,null,null,null,null,null,null,null,null,null,null,null,null,null,null,null,null,null,null,null,null,null,null,null,null,null,null,null,null,null,null,null,null,null,null,null,null,null,null,null,null,null,null,null,null,null,null,null,null,null,null,null,null,null,null,null,null,null,null,null,null,null,null,null,null,null,null,null,null,null,null,null,null,null,null,null,null,null,null,null,null,null,null,null,null,null,null,null,null,null,null,null,null,null,null,null,null,null,null,null,null,null,null,null,null,null,null,null,null,null,null,null,null,null,null,null,null,null,null,null,null,null,null,null,null,null,null,null,null,null,null,null,null,null,null,null,null,null,null,null,null,null,null,null,null,null,null,null,null,null,null,null,null,null,null,null,null,null,null,null,null,null,null,null,null,null,null,null,null,null,null,null,null,null,null,null,null,null,null,null,null,null,null,null,null,null,null,null,null,null,null,null,null,null,null,null,null,null,null,null,null,null,null,null,null,null,null,null,null,null,null,null,null,null,null,null,null,null,null,null,null,null,null,null,null,null,null,null,null,null,null,null,null,null,null,null,null,null,null,null,null,null,null,null,null,null,null,null,null,null,null,null,null,null,null,null,null,null,null,null,null,null,null,null,null,null,null,null,null,null,null,null,null,null,null,null,null,null,null,null,null,null,null,null,null,null,null,null,null,null,null,null,null,null,null,null,null,null,null,null,null,null,null,null,null,null,null,null,null,null,null,null,null,null,null,null,null,null,null,null,null,null,null,null,null,null,null,null,null,null,null,null,null,null,null,null,null,null,null,null,null,null,null,null,null,null,null,null,null,null,null,null,null,null,null,null,null,null,null,null,null,null,null,null,null,null,null,null,null,null,null,null,null,null,null,null,null,null,null,null,null,null,null,null,null,null,null,null,null,null,null,null,null,null,null,null,null,null,null,null,null,null,null,null,null,null,null,null,null,null,null,null,null,null,null,null,null,null,null,null,null,null,null,null,null,null,null,null,null,null,null,null,null,null,null,null,null,null,null,null,null,null,null,null,null,null,null,null,null,null,null,null,null,null,null,null,null,null,null,null,null,null,null,null,null,null,null,null,null,null,null,null,null,null,null,null,null,null,null,null,null,null,null,null,null,null,null,null,null,null,null,null,null,null,null,null,null,null,null,null,null,null,null,null,null,null,null,null,null,null,null,null,null,null,null,null,null,null,null,null,null,null,null,null,null,null,null,null,null,null,null,null,null,null,null,null,null,null,null,null,null,null,null,null,null,null,null,null,null,null,null,null,null,null,null,null,null,null,null,null,null,null,null,null,null,null,null,null,null,null,null,null,null,null,null,null,null,null,null,null,null,null,null,null,null,null,null,null,null,null,null,null,null,null,null,null,null,null,null,null,null,null,null,null,null,null,null,null,null,null,null,null,null,null,null,null,null,null,null,null,null,null,null,null,null,null,null,null,null,null,null,null,null,null,null,null,null,null,null,null,null,null,null,null,null,null,null,null,null,null,null,null,null,null,null,null,null,null,null,null,null,null,null,null,null,null,null,null,null,null,null,null,null,null,null,null,null,null,null,null,null,null,null,null,null,null,null,null,null,null,null,null,null,null,null,null,null,null,null,null,null,null,null,null,null,null,null,null,null,null,null,null,null,null,null,null,null,null,null,null,null,null,null,null,null,null,null,null,null,null,null,null,null,null,null,null,null,null,null,null,null,null,null,null,null,null,null,null,null,null,null,null,null,null,null,null,null,null,null,null,null,null,null,null,null,null,null,null,null,null,null,null,null,null,null,null,null,null,null,null,null,null,null,null,null,null,null,null,null,null,null,null,null,null,null,null,null,null,null,null,null,null,null,null,null,null,null,null,null,null,null,null,null,null,null,null,null,null,null,null,null,null,null,null,null,null,null,null,null,null,null,null,null,null,null,null,null,null,null,null,null,null,null,null,null,null,null,null,null,null,null,null,null,null,null,null,null,null,null,null,null,null,null,null,null,null,null,null,null,null,null,null,null,null,null,null,null,null,null,null,null,null,null,null,null,null,null,null,null,null,null,null,null,null,null,null,null,null,null,null,null,null,null,null,null,null,null,null,null,null,null,null,null,null,null,null,null,null,null,null,null,null,null,null,null,null,null,null,null,null,null,null,null,null,null,null,null,null,null,null,null,null,null,null,null,null,null,null,null,null,null,null,null,null,null,null,null,null,null,null,null,null,null,null,null,null,null,null,null,null,null,null,null,null,null,null,null,null,null,null,null,null,null,null,null,null,null,null,null,null,null,null,null,null,null,null,null,null,null,null,null,null,null,null,null,null,null,null,null,null,null,null,null,null,null,null,null,null,null,null,null,null,null,null,null,null,null,null,null,null,null,null,null,null,null,null,null,null,null,null,null,null,null,null,null,null,null,null,null,null,null,null,null,null,null,null,null,null,null,null,null,null,null,null,null,null,null,null,null,null,null,null,null,null,null,null,null,null,null,null,null,null,null,null,null,null,null,null,null,null,null,null,null,null,null,null,null,null,null,null,null,null,null,null,null,null,null,null,null,null,null,null,null,null,null,null,null,null,null,null,null,null,null,null,null,null,null,null,null,null,null,null,null,null,null,null,null,null,null,null,null,null,null,null,null,null,null,null,null,null,null,null,null,null,null,null,null,null,null,null,null,null,null,null,null,null,null,null,null,null,null,null,null,null,null,null,null,null,null,null,null,null,null,null,null,null,null,null,null,null,null,null,null,null,null,null,null,null,null,null,null,null,null,null,null,null,null,null,null,null,null,null,null,null,null,null,null,null,null,null,null,null,null,null,null,null,null,null,null,null,null,null,null,null,null,null,null,null,null,null,null,null,null,null,null,null,null,null,null,null,null,null,null,null,null,null,null,null,null,null,null,null,null,null,null,null,null,null,null,null,null,null,null,null,null,null,null,null,null,null,null,null,null,null,null,null,null,null,null,null,null,null,null,null,null,null,null,null,null,null,null,null,null,null,null,null,null,null,null,null,null,null,null,null,null,null,null,null,null,null,null,null,null,null,null,null,null,null,null,null,null,null,null,null,null,null,null,null,null,null,null,null,null,null,null,null,null,null,null,null,null,null,null,null,null,null,null,null,null,null,null,null,null,null,null,null,null,null,null,null,null,null,null,null,null,null,null,null,null,null,null,null,null,null,null,null,null,null,null,null,null,null,null,null,null,null,null,null,null,null,null,null,null,null,null,null,null,null,null,null,null,null,null,null,null,null,null,null,null,null,null,null,null,null,null,null,null,null,null,null,null,null,null,null,null,null,null,null,null,null,null,null,null,null,null,null,null,null,null,null,null,null,null,null,null,null,null,null,null,null,null,null,null,null,null,null,null,null,null,null,null,null,null,null,null,null,null,null,null,null,null,null,null,null,null,null,null,null,null,null,null,null,null,null,null,null,null,null,null,null,null,null,null,null,null,null,null,null,null,null,null,null,null,null,null,null,null,null,null,null,null,null,null,null,null,null,null,null,null,null,null,null,null,null,null,null,null,null,null,null,null,null,null,null,null,null,null,null,null,null,null,null,null,null,null,null,null,null,null,null,null,null,null,null,null,null,null,null,null,null,null,null,null,null,null,null,null,null,null,null,null,null,null,null,null,null,null,null,null,null,null,null,null,null,null,null,null,null,null,null,null,null,null,null,null,null,null,null,null,null,null,null,null,null,null,null,null,null,null,null,null,null,null,null,null,null,null,null,null,null,null,null,null,null,null,null,null,null,null,null,null,null,null,null,null,null,null,null,null,null,null,null,null,null,null,null,null,null,null,null,null,null,null,null,null,null,null,null,null,null,null,null,null,null,null,null,null,null,null,null,null,null,null,null,null,null,null,null,null,null,null,null,null,null,null,null,null,null,null,null,null,null,null,null,null,null,null,null,null,null,null,null,null,null,null,null,null,null,null,null,null,null,null,null,null,null,null,null,null,null,null,null,null,null,null,null,null,null,null,null,null,null,null,null,null,null,null,null,null,null,null,null,null,null,null,null,null,null,null,null,null,null,null,null,null,null,null,null,null,null,null,null,null,null,null,null,null,null,null,null,null,null,null,null,null,null,null,null,null,null,null,null,null,null,null,null,null,null,null,null,null,null,null,null,null,null,null,null,null,null,null,null,null,null,null,null,null,null,null,null,null,null,null,null,null,null,null,null,null,null,null,null,null,null,null,null,null,null,null,null,null,null,null,null,null,null,null,null,null,null,null,null,null,null,null,null,null,null,null,null,null,null,null,null,null,null,null,null,null,null,null,null,null,null,null,null,null,null,null,null,null,null,null,null,null,null,null,null,null,null,null,null,null,null,null,null,null,null,null,null,null,null,null,null,null,null,null,null,null,null,null,null,null,null,null,null,null,null,null,null,null,null,null,null,null,null,null,null,null,null,null,null,null,null,null,null,null,null,null,null,null,null,null,null,null,null,null,null,null,null,null,null,null,null,null,null,null,null,null,null,null,null,null,null,null,null,null,null,null,null,null,null,null,null,null,null,null,null,null,null,null,null,null,null,null,null,null,null,null,null,null,null,null,null,null,null,null,null,null,null,null,null,null,null,null,null,null,null,null,null,null,null,null,null,null,null,null,null,null,null,null,null,null,null,null,null,null,null,null,null,null,null,null,null,null,null,null,null,null,null,null,null,null,null,null,null,null,null,null,null,null,null,null,null,null,null,null,null,null,null,null,null,null,null,null,null,null,null,null,null,null,null,null,null,null,null,null,null,null,null,null,null,null,null,null,null,null,null,null,null,null,null,null,null,null,null,null,null,null,null,null,null,null,null,null,null,null,null,null,null,null,null,null,null,null,null,null,null,null,null,null,null,null,null,null,null,null,null,null,null,null,null,null,null,null,null,null,null,null,null,null,null,null,null,null,null,null,null,null,null,null,null,null,null,null,null,null,null,null,null,null,null,null,null,null,null,null,null,null,null,null,null,null,null,null,null,null,null,null,null,null,null,null,null,null,null,null,null,null,null,null,null,null,null,null,null,null,null,null,null,null,null,null,null,null,null,null,null,null,null,null,null,null,null,null,null,null,null,null,null,null,null,null,null,null,null,null,null,null,null,null,null,null,null,null,null,null,null,null,null,null,null,null,null,null,null,null,null,null,null,null,null,null,null,null,null,null,null,null,null,null,null,null,null,null,null,null,null,null,null,null,null,null,null,null,null,null,null,null,null,null,null,null,null,null,null,null,null,null,null,null,null,null,null,null,null,null,null,null,null,null,null,null,null,null,null,null,null,null,null,null,null,null,null,null,null,null,null,null,null,null,null,null,null,null,null,null,null,null,null,null,null,null,null,null,null,null,null,null,null,null,null,null,null,null,null,null,null,null,null,null,null,null,null,null,null,null,null,null,null,null,null,null,null,null,null,null,null,null,null,null,null,null,null,null,null,null,null,null,null,null,null,null,null,null,null,null,null,null,null,null,null,null,null,null,null,null,null,null,null,null,null,null,null,null,null,null,null,null,null,null,null,null,null,null,null,null,null,null,null,null,null,null,null,null,null,null,null,null,null,null,null,null,null,null,null,null,null,null,null,null,null,null,null,null,null,null,null,null,null,null,null,null,null,null,null,null,null,null,null,null,null,null,null,null,null,null,null,null,null,null,null,null,null,null,null,null,null,null,null,null,null,null,null,null,null,null,null,null,null,null,null,null,null,null,null,null,null,null,null,null,null,null,null,null,null,null,null,null,null,null,null,null,null,null,null,null,null,null,null,null,null,null,null,null,null,null,null,null,null,null,null,null,null,null,null,null,null,null,null,null,null,null,null,null,null,null,null,null,null,null,null,null,null,null,null,null,null,null,null,null,null,null,null,null,null,null,null,null,null,null,null,null,null,null,null,null,null,null,null,null,null,null,null,null,null,null,null,null,null,null,null,null,null,null,null,null,null,null,null,null,null,null,null,null,null,null,null,null,null,null,null,null,null,null,null,null,null,null,null,null,null,null,null,null,null,null,null,null,null,null,null,null,null,null,null,null,null,null,null,null,null,null,null,null,null,null,null,null,null,null,null,null,null,null,null,null,null,null,null,null,null,null,null,null,null,null,null,null,null,null,null,null,null,null,null,null,null,null,null,null,null,null,null,null,null,null,null,null,null,null,null,null,null,null,null,null,null,null,null,null,null,null,null,null,null,null,null,null,null,null,null,null,null,null,null,null,null,null,null,null,null,null,null,null,null,null,null,null,null,null,null,null,null,null,null,null,null,null,null,null,null,null,null,null,null,null,null,null,null,null,null,null,null,null,null,null,null,null,null,null,null,null,null,null,null,null,null,null,null,null,null,null,null,null,null,null,null,null,null,null,null,null,null,null,null,null,null,null,null,null,null,null,null,null,null,null,null,null,null,null,null,null,null,null,null,null,null,null,null,null,null,null,null,null,null,null,null,null,null,null,null,null,null,null,null,null,null,null,null,null,null,null,null,null,null,null,null,null,null,null,null,null,null,null,null,null,null,null,null,null,null,null,null,null,null,null,null,null,null,null,null,null,null,null,null,null,null,null,null,null,null,null,null,null,null,null,null,null,null,null,null,null,null,null,null,null,null,null,null,null,null,null,null,null,null,null,null,null,null,null,null,null,null,null,null,null,null,null,null,null,null,null,null,null,null,null,null,null,null,null,null,null,null,null,null,null,null,null,null,null,null,null,null,null,null,null,null,null,null,null,null,null,null,null,null,null,null,null,null,null,null,null,null,null,null,null,null,null,null,null,null,null,null,null,null,null,null,null,null,null,null,null,null,null,null,null,null,null,null,null,null,null,null,null,null,null,null,null,null,null,null,null,null,null,null,null,null,null,null,null,null,null,null,null,null,null,null,null,null,null,null,null,null,null,null,null,null,null,null,null,null,null,null,null,null,null,null,null,null,null,null,null,null,null,null,null,null,null,null,null,null,null,null,null,null,null,null,null,null,null,null,null,null,null,null,null,null,null,null,null,null,null,null,null,null,null,null,null,null,null,null,null,null,null,null,null,null,null,null,null,null,null,null,null,null,null,null,null,null,null,null,null,null,null,null,null,null,null,null,null,null,null,null,null,null,null,null,null,null,null,null,null,null,null,null,null,null,null,null,null,null,null,null,null,null,null,null,null,null,null,null,null,null,null,null,null,null,null,null,null,null,null,null,null,null,null,null,null,null,null,null,null,null,null,null,null,null,null,null,null,null,null,null,null,null,null,null,null,null,null,null,null,null,null,null,null,null,null,null,null,null,null,null,null,null,null,null,null,null,null,null,null,null,null,null,null,null,null,null,null,null,null,null,null,null,null,null,null,null,null,null,null,null,null,null,null,null,null,null,null,null,null,null,null,null,null,null,null,null,null,null,null,null,null,null,null,null,null,null,null,null,null,null,null,null,null,null,null,null,null,null,null,null,null,null,null,null,null,null,null,null,null,null,null,null,null,null,null,null,null,null,null,null,null,null,null,null,null,null,null,null,null,null,null,null,null,null,null,null,null,null,null,null,null,null,null,null,null,null,null,null,null,null,null,null,null,null,null,null,null,null,null,null,null,null,null,null,null,null,null,null,null,null,null,null,null,null,null,null,null,null,null,null,null,null,null,null,null,null,null,null,null,null,null,null,null,null,null,null,null,null,null,null,null,null,null,null,null,null,null,null,null,null,null,null,null,null,null,null,null,null,null,null,null,null,null,null,null,null,null,null,null,null,null,null,null,null,null,null,null,null,null,null,null,null,null,null,null,null,null,null,null,null,null,null,null,null,null,null,null,null,null,null,null,null,null,null,null,null,null,null,null,null,null,null,null,null,null,null,null,null,null,null,null,null,null,null,null,null,null,null,null,null,null,null,null,null,null,null,null,null,null,null,null,null,null,null,null,null,null,null,null,null,null,null,null,null,null,null,null,null,null,null,null,null,null,null,null,null,null,null,null,null,null,null,null,null,null,null,null,null,null,null,null,null,null,null,null,null,null,null,null,null,null,null,null,null,null,null,null,null,null,null,null,null,null,null,null,null,null,null,null,null,null,null,null,null,null,null,null,null,null,null,null,null,null,null,null,null,null,null,null,null,null,null,null,null,null,null,null,null,null,null,null,null,null,null,null,null,null,null,null,null,null,null,null,null,null,null,null,null,null,null,null,null,null,null,null,null,null,null,null,null,null,null,null,null,null,null,null,null,null,null,null,null,null,null,null,null,null,null,null,null,null,null,null,null,null,null,null,null,null,null,null,null,null,null,null,null,null,null,null,null,null,null,null,null,null,null,null,null,null,null,null,null,null,null,null,null,null,null,null,null,null,null,null,null,null,null,null,null,null,null,null,null,null,null,null,null,null,null,null,null,null,null,null,null,null,null,null,null,null,null,null,null,null,null,null,null,null,null,null,null,null,null,null,null,null,null,null,null,null,null,null,null,null,null,null,null,null,null,null,null,null,null,null,null,null,null,null,null,null,null,null,null,null,null,null,null,null,null,null,null,null,null,null,null,null,null,null,null,null,null,null,null,null,null,null,null,null,null,null,null,null,null,null,null,null,null,null,null,null,null,null,null,null,null,null,null,null,null,null,null,null,null,null,null,null,null,null,null,null,null,null,null,null,null,null,null,null,null,null,null,null,null,null,null,null,null,null,null,null,null,null,null,null,null,null,null,null,null,null,null,null,null,null,null,null,null,null,null,null,null,null,null,null,null,null,null,null,null,null,null,null,null,null,null,null,null,null,null,null,null,null,null,null,null,null,null,null,null,null,null,null,null,null,null,null,null,null,null,null,null,null,null,null,null,null,null,null,null,null,null,null,null,null,null,null,null,null,null,null,null,null,null,null,null,null,null,null,null,null,null,null,null,null,null,null,null,null,null,null,null,null,null,null,null,null,null,null,null,null,null,null,null,null,null,null,null,null,null,null,null,null,null,null,null,null,null,null,null,null,null,null,null,null,null,null,null,null,null,null,null,null,null,null,null,null,null,null,null,null,null,null,null,null,null,null,null,null,null,null,null,null,null,null,null,null,null,null,null,null,null,null,null,null,null,null,null,null,null,null,null,null,null,null,null,null,null,null,null,null,null,null,null,null,null,null,null,null,null,null,null,null,null,null,null,null,null,null,null,null,null,null,null,null,null,null,null,null,null,null,null,null,null,null,null,null,null,null,null,null,null,null,null,null,null,null,null,null,null,null,null,null,null,null,null,null,null,null,null,null,null,null,null,null,null,null,null,null,null,null,null,null,null,null,null,null,null,null,null,null,null,null,null,null,null,null,null,null,null,null,null,null,null,null,null,null,null,null,null,null,null,null,null,null,null,null,null,null,null,null,null,null,null,null,null,null,null,null,null,null,null,null,null,null,null,null,null,null,null,null,null,null,null,null,null,null,null,null,null,null,null,null,null,null,null,null,null,null,null,null,null,null,null,null,null,null,null,null,null,null,null,null,null,null,null,null,null,null,null,null,null,null,null,null,null,null,null,null,null,null,null,null,null,null,null,null,null,null,null,null,null,null,null,null,null,null,null,null,null,null,null,null,null,null,null,null,null,null,null,null,null,null,null,null,null,null,null,null,null,null,null,null,null,null,true]
["target5 HbA1c + CHOL only",null,null,null,null,{"$f":"IF(AND(pat_totaltarget =2, check_hba1c, check_chol), 1, 0)","v":0},{"$f":"IF(AND(check_hba1c_s1, check_chol_s1, pat_s1_totaltarget=2),1,0)","v":0},{"$f":"IF(AND(check_hba1c_s2, check_chol_s2, pat_s2_totaltarget=2),1,0)","v":0}]
["target6 HbA1c + SBP only",null,null,null,null,{"$f":"IF(AND(pat_totaltarget =2, check_hba1c, check_sbp), 1, 0)","v":0},{"$f":"IF(AND(check_hba1c_s1, check_sbp_s1, pat_s1_totaltarget=2),1,0)","v":0},{"$f":"IF(AND(check_hba1c_s2, check_sbp_s2, pat_s2_totaltarget=2),1,0)","v":0}]
["target7 CHOL + SBP only",null,null,null,null,{"$f":"IF(AND(pat_totaltarget =2, check_chol, check_sbp), 1, 0)","v":0},{"$f":"IF(AND(check_chol_s1, check_sbp_s1, pat_s1_totaltarget=2),1,0)","v":0},{"$f":"IF(AND(check_chol_s2, check_sbp_s2, pat_s2_totaltarget=2),1,0)","v":0}]
["target8 All three",null,null,null,null,{"$f":"IF(pat_totaltarget =3, 1, 0)","v":0},{"$f":"IF(pat_s1_totaltarget=3,1,0)","v":0},{"$f":"IF(pat_s2_totaltarget=3,1,0)","v":1}]
["egfr:egfr.gt60FALSE",null,null,null,null,{"$f":"IF(pat_egfr > 60, 0, 1)*pat_egfr","v":0},{"$f":"IF(pat_egfr > 60, 0, 1)*pat_egfr","v":0},{"$f":"IF(pat_egfr > 60, 0, 1)*pat_egfr","v":0}]
["egfr:egfr.gt60TRUE",null,null,null,null,{"$f":"IF(pat_egfr > 60, 1, 0)*pat_egfr","v":82},{"$f":"IF(pat_egfr > 60, 1, 0)*pat_egfr","v":82},{"$f":"IF(pat_egfr > 60, 1, 0)*pat_egfr","v":82},null,null,null,null,null,null,null,null,null,null,null,null,null,null,null,null,null,null,null,null,null,null,null,null,null,null,null,null,null,null,null,null,null,null,null,null,null,null,null,null,null,null,null,null,null,null,null,null,null,null,null,null,null,null,null,null,null,null,null,null,null,null,null,null,null,null,null,null,null,null,null,null,null,null,null,null,null,null,null,null,null,null,null,null,null,null,null,null,null,null,null,null,null,null,null,null,null,null,null,null,null,null,null,null,null,null,null,null,null,null,null,null,null,null,null,null,null,null,null,null,null,null,null,null,null,null,null,null,null,null,null,null,null,null,null,null,null,null,null,null,null,null,null,null,null,null,null,null,null,null,null,null,null,null,null,null,null,null,null,null,null,null,null,null,null,null,null,null,null,null,null,null,null,null,null,null,null,null,null,null,null,null,null,null,null,null,null,null,null,null,null,null,null,null,null,null,null,null,null,null,null,null,null,null,null,null,null,null,null,null,null,null,null,null,null,null,null,null,null,null,null,null,null,null,null,null,null,null,null,null,null,null,null,null,null,null,null,null,null,null,null,null,null,null,null,null,null,null,null,null,null,null,null,null,null,null,null,null,null,null,null,null,null,null,null,null,null,null,null,null,null,null,null,null,null,null,null,null,null,null,null,null,null,null,null,null,null,null,null,null,null,null,null,null,null,null,null,null,null,null,null,null,null,null,null,null,null,null,null,null,null,null,null,null,null,null,null,null,null,null,null,null,null,null,null,null,null,null,null,null,null,null,null,null,null,null,null,null,null,null,null,null,null,null,null,null,null,null,null,null,null,null,null,null,null,null,null,null,null,null,null,null,null,null,null,null,null,null,null,null,null,null,null,null,null,null,null,null,null,null,null,null,null,null,null,null,null,null,null,null,null,null,null,null,null,null,null,null,null,null,null,null,null,null,null,null,null,null,null,null,null,null,null,null,null,null,null,null,null,null,null,null,null,null,null,null,null,null,null,null,null,null,null,null,null,null,null,null,null,null,null,null,null,null,null,null,null,null,null,null,null,null,null,null,null,null,null,null,null,null,null,null,null,null,null,null,null,null,null,null,null,null,null,null,null,null,null,null,null,null,null,null,null,null,null,null,null,null,null,null,null,null,null,null,null,null,null,null,null,null,null,null,null,null,null,null,null,null,null,null,null,null,null,null,null,null,null,null,null,null,null,null,null,null,null,null,null,null,null,null,null,null,null,null,null,null,null,null,null,null,null,null,null,null,null,null,null,null,null,null,null,null,null,null,null,null,null,null,null,null,null,null,null,null,null,null,null,null,null,null,null,null,null,null,null,null,null,null,null,null,null,null,null,null,null,null,null,null,null,null,null,null,null,null,null,null,null,null,null,null,null,null,null,null,null,null,null,null,null,null,null,null,null,null,null,null,null,null,null,null,null,null,null,null,null,null,null,null,null,null,null,null,null,null,null,null,null,null,null,null,null,null,null,null,null,null,null,null,null,null,null,null,null,null,null,null,null,null,null,null,null,null,null,null,null,null,null,null,null,null,null,null,null,null,null,null,null,null,null,null,null,null,null,null,null,null,null,null,null,null,null,null,null,null,null,null,null,null,null,null,null,null,null,null,null,null,null,null,null,null,null,null,null,null,null,null,null,null,null,null,null,null,null,null,null,null,null,null,null,null,null,null,null,null,null,null,null,null,null,null,null,null,null,null,null,null,null,null,null,null,null,null,null,null,null,null,null,null,null,null,null,null,null,null,null,null,null,null,null,null,null,null,null,null,null,null,null,null,null,null,null,null,null,null,null,null,null,null,null,null,null,null,null,null,null,null,null,null,null,null,null,null,null,null,null,null,null,null,null,null,null,null,null,null,null,null,null,null,null,null,null,null,null,null,null,null,null,null,null,null,null,null,null,null,null,null,null,null,null,null,null,null,null,null,null,null,null,null,null,null,null,null,null,null,null,null,null,null,null,null,null,null,null,null,null,null,null,null,null,null,null,null,null,null,null,null,null,null,null,null,null,null,null,null,null,null,null,null,null,null,null,null,null,null,null,null,null,null,null,null,null,null,null,null,null,null,null,null,null,null,null,null,null,null,null,null,null,null,null,null,null,null,null,null,null,null,null,null,null,null,null,null,null,null,null,null,null,null,null,null,null,null,null,null,null,null,null,null,null,null,null,null,null,null,null,null,null,null,null,null,null,null,null,null,null,null,null,null,null,null,null,null,null,null,null,null,null,null,null,null,null,null,null,null,null,null,null,null,null,null,null,null,null,null,null,null,null,null,null,null,null,null,null,null,null,null,null,null,null,null,null,null,null,null,null,null,null,null,null,null,null,null,null,null,null,null,null,null,null,null,null,null,null,null,null,null,null,null,null,null,null,null,null,null,null,null,null,null,null,null,null,null,null,null,null,null,null,null,null,null,null,null,null,null,null,null,null,null,null,null,null,null,null,null,null,null,null,null,null,null,null,null,null,null,null,null,null,null,null,null,null,null,null,null,null,null,null,null,null,null,null,null,null,null,null,null,null,null,null,null,null,null,null,null,null,null,null,null,null,null,null,null,null,null,null,null,null,null,null,null,null,null,null,null,null,null,null,null,null,null,null,null,null,null,null,null,null,null,null,null,null,null,null,null,null,null,null,null,null,null,null,null,null,null,null,null,null,null,null,null,null,null,null,null,null,null,null,null,null,null,null,null,null,null,null,null,null,null,null,null,null,null,null,null,null,null,null,null,null,null,null,null,null,null,null,null,null,null,null,null,null,null,null,null,null,null,null,null,null,null,null,null,null,null,null,null,null,null,null,null,null,null,null,null,null,null,null,null,null,null,null,null,null,null,null,null,null,null,null,null,null,null,null,null,null,null,null,null,null,null,null,null,null,null,null,null,null,null,null,null,null,null,null,null,null,null,null,null,null,null,null,null,null,null,null,null,null,null,null,null,null,null,null,null,null,null,null,null,null,null,null,null,null,null,null,null,null,null,null,null,null,null,null,null,null,null,null,null,null,null,null,null,null,null,null,null,null,null,null,null,null,null,null,null,null,null,null,null,null,null,null,null,null,null,null,null,null,null,null,null,null,null,null,null,null,null,null,null,null,null,null,null,null,null,null,null,null,null,null,null,null,null,null,null,null,null,null,null,null,null,null,null,null,null,null,null,null,null,null,null,null,null,null,null,null,null,null,null,null,null,null,null,null,null,null,null,null,null,null,null,null,null,null,null,null,null,null,null,null,null,null,null,null,null,null,null,null,null,null,null,null,null,null,null,null,null,null,null,null,null,null,null,null,null,null,null,null,null,null,null,null,null,null,null,null,null,null,null,null,null,null,null,null,null,null,null,null,null,null,null,null,null,null,null,null,null,null,null,null,null,null,null,null,null,null,null,null,null,null,null,null,null,null,null,null,null,null,null,null,null,null,null,null,null,null,null,null,null,null,null,null,null,null,null,null,null,null,null,null,null,null,null,null,null,null,null,null,null,null,null,null,null,null,null,null,null,null,null,null,null,null,null,null,null,null,null,null,null,null,null,null,null,null,null,null,null,null,null,null,null,null,null,null,null,null,null,null,null,null,null,null,null,null,null,null,null,null,null,null,null,null,null,null,null,null,null,null,null,null,null,null,null,null,null,null,null,null,null,null,null,null,null,null,null,null,null,null,null,null,null,null,null,null,null,null,null,null,null,null,null,null,null,null,null,null,null,null,null,null,null,null,null,null,null,null,null,null,null,null,null,null,null,null,null,null,null,null,null,null,null,null,null,null,null,null,null,null,null,null,null,null,null,null,null,null,null,null,null,null,null,null,null,null,null,null,null,null,null,null,null,null,null,null,null,null,null,null,null,null,null,null,null,null,null,null,null,null,null,null,null,null,null,null,null,null,null,null,null,null,null,null,null,null,null,null,null,null,null,null,null,null,null,null,null,null,null,null,null,null,null,null,null,null,null,null,null,null,null,null,null,null,null,null,null,null,null,null,null,null,null,null,null,null,null,null,null,null,null,null,null,null,null,null,null,null,null,null,null,null,null,null,null,null,null,null,null,null,null,null,null,null,null,null,null,null,null,null,null,null,null,null,null,null,null,null,null,null,null,null,null,null,null,null,null,null,null,null,null,null,null,null,null,null,null,null,null,null,null,null,null,null,null,null,null,null,null,null,null,null,null,null,null,null,null,null,null,null,null,null,null,null,null,null,null,null,null,null,null,null,null,null,null,null,null,null,null,null,null,null,null,null,null,null,null,null,null,null,null,null,null,null,null,null,null,null,null,null,null,null,null,null,null,null,null,null,null,null,null,null,null,null,null,null,null,null,null,null,null,null,null,null,null,null,null,null,null,null,null,null,null,null,null,null,null,null,null,null,null,null,null,null,null,null,null,null,null,null,null,null,null,null,null,null,null,null,null,null,null,null,null,null,null,null,null,null,null,null,null,null,null,null,null,null,null,null,null,null,null,null,null,null,null,null,null,null,null,null,null,null,null,null,null,null,null,null,null,null,null,null,null,null,null,null,null,null,null,null,null,null,null,null,null,null,null,null,null,null,null,null,null,null,null,null,null,null,null,null,null,null,null,null,null,null,null,null,null,null,null,null,null,null,null,null,null,null,null,null,null,null,null,null,null,null,null,null,null,null,null,null,null,null,null,null,null,null,null,null,null,null,null,null,null,null,null,null,null,null,null,null,null,null,null,null,null,null,null,null,null,null,null,null,null,null,null,null,null,null,null,null,null,null,null,null,null,null,null,null,null,null,null,null,null,null,null,null,null,null,null,null,null,null,null,null,null,null,null,null,null,null,null,null,null,null,null,null,null,null,null,null,null,null,null,null,null,null,null,null,null,null,null,null,null,null,null,null,null,null,null,null,null,null,null,null,null,null,null,null,null,null,null,null,null,null,null,null,null,null,null,null,null,null,null,null,null,null,null,null,null,null,null,null,null,null,null,null,null,null,null,null,null,null,null,null,null,null,null,null,null,null,null,null,null,null,null,null,null,null,null,null,null,null,null,null,null,null,null,null,null,null,null,null,null,null,null,null,null,null,null,null,null,null,null,null,null,null,null,null,null,null,null,null,null,null,null,null,null,null,null,null,null,null,null,null,null,null,null,null,null,null,null,null,null,null,null,null,null,null,null,null,null,null,null,null,null,null,null,null,null,null,null,null,null,null,null,null,null,null,null,null,null,null,null,null,null,null,null,null,null,null,null,null,null,null,null,null,null,null,null,null,null,null,null,null,null,null,null,null,null,null,null,null,null,null,null,null,null,null,null,null,null,null,null,null,null,null,null,null,null,null,null,null,null,null,null,null,null,null,null,null,null,null,null,null,null,null,null,null,null,null,null,null,null,null,null,null,null,null,null,null,null,null,null,null,null,null,null,null,null,null,null,null,null,null,null,null,null,null,null,null,null,null,null,null,null,null,null,null,null,null,null,null,null,null,null,null,null,null,null,null,null,null,null,null,null,null,null,null,null,null,null,null,null,null,null,null,null,null,null,null,null,null,null,null,null,null,null,null,null,null,null,null,null,null,null,null,null,null,null,null,null,null,null,null,null,null,null,null,null,null,null,null,null,null,null,null,null,null,null,null,null,null,null,null,null,null,null,null,null,null,null,null,null,null,null,null,null,null,null,null,null,null,null,null,null,null,null,null,null,null,null,null,null,null,null,null,null,null,null,null,null,null,null,null,null,null,null,null,null,null,null,null,null,null,null,null,null,null,null,null,null,null,null,null,null,null,null,null,null,null,null,null,null,null,null,null,null,null,null,null,null,null,null,null,null,null,null,null,null,null,null,null,null,null,null,null,null,null,null,null,null,null,null,null,null,null,null,null,null,null,null,null,null,null,null,null,null,null,null,null,null,null,null,null,null,null,null,null,null,null,null,null,null,null,null,null,null,null,null,null,null,null,null,null,null,null,null,null,null,null,null,null,null,null,null,null,null,null,null,null,null,null,null,null,null,null,null,null,null,null,null,null,null,null,null,null,null,null,null,null,null,null,null,null,null,null,null,null,null,null,null,null,null,null,null,null,null,null,null,null,null,null,null,null,null,null,null,null,null,null,null,null,null,null,null,null,null,null,null,null,null,null,null,null,null,null,null,null,null,null,null,null,null,null,null,null,null,null,null,null,null,null,null,null,null,null,null,null,null,null,null,null,null,null,null,null,null,null,null,null,null,null,null,null,null,null,null,null,null,null,null,null,null,null,null,null,null,null,null,null,null,null,null,null,null,null,null,null,null,null,null,null,null,null,null,null,null,null,null,null,null,null,null,null,null,null,null,null,null,null,null,null,null,null,null,null,null,null,null,null,null,null,null,null,null,null,null,null,null,null,null,null,null,null,null,null,null,null,null,null,null,null,null,null,null,null,null,null,null,null,null,null,null,null,null,null,null,null,null,null,null,null,null,null,null,null,null,null,null,null,null,null,null,null,null,null,null,null,null,null,null,null,null,null,null,null,null,null,null,null,null,null,null,null,null,null,null,null,null,null,null,null,null,null,null,null,null,null,null,null,null,null,null,null,null,null,null,null,null,null,null,null,null,null,null,null,null,null,null,null,null,null,null,null,null,null,null,null,null,null,null,null,null,null,null,null,null,null,null,null,null,null,null,null,null,null,null,null,null,null,null,null,null,null,null,null,null,null,null,null,null,null,null,null,null,null,null,null,null,null,null,null,null,null,null,null,null,null,null,null,null,null,null,null,null,null,null,null,null,null,null,null,null,null,null,null,null,null,null,null,null,null,null,null,null,null,null,null,null,null,null,null,null,null,null,null,null,null,null,null,null,null,null,null,null,null,null,null,null,null,null,null,null,null,null,null,null,null,null,null,null,null,null,null,null,null,null,null,null,null,null,null,null,null,null,null,null,null,null,null,null,null,null,null,null,null,null,null,null,null,null,null,null,null,null,null,null,null,null,null,null,null,null,null,null,null,null,null,null,null,null,null,null,null,null,null,null,null,null,null,null,null,null,null,null,null,null,null,null,null,null,null,null,null,null,null,null,null,null,null,null,null,null,null,null,null,null,null,null,null,null,null,null,null,null,null,null,null,null,null,null,null,null,null,null,null,null,null,null,null,null,null,null,null,null,null,null,null,null,null,null,null,null,null,null,null,null,null,null,null,null,null,null,null,null,null,null,null,null,null,null,null,null,null,null,null,null,null,null,null,null,null,null,null,null,null,null,null,null,null,null,null,null,null,null,null,null,null,null,null,null,null,null,null,null,null,null,null,null,null,null,null,null,null,null,null,null,null,null,null,null,null,null,null,null,null,null,null,null,null,null,null,null,null,null,null,null,null,null,null,null,null,null,null,null,null,null,null,null,null,null,null,null,null,null,null,null,null,null,null,null,null,null,null,null,null,null,null,null,null,null,null,null,null,null,null,null,null,null,null,null,null,null,null,null,null,null,null,null,null,null,null,null,null,null,null,null,null,null,null,null,null,null,null,null,null,null,null,null,null,null,null,null,null,null,null,null,null,null,null,null,null,null,null,null,null,null,null,null,null,null,null,null,null,null,null,null,null,null,null,null,null,null,null,null,null,null,null,null,null,null,null,null,null,null,null,null,null,null,null,null,null,null,null,null,null,null,null,null,null,null,null,null,null,null,null,null,null,null,null,null,null,null,null,null,null,null,null,null,null,null,null,null,null,null,null,null,null,null,null,null,null,null,null,null,null,null,null,null,null,null,null,null,null,null,null,null,null,null,null,null,null,null,null,null,null,null,null,null,null,null,null,null,null,null,null,null,null,null,null,null,null,null,null,null,null,null,null,null,null,null,null,null,null,null,null,null,null,null,null,null,null,null,null,null,null,null,null,null,null,null,null,null,null,null,null,null,null,null,null,null,null,null,null,null,null,null,null,null,null,null,null,null,null,null,null,null,null,null,null,null,null,null,null,null,null,null,null,null,null,null,null,null,null,null,null,null,null,null,null,null,null,null,null,null,null,null,null,null,null,null,null,null,null,null,null,null,null,null,null,null,null,null,null,null,null,null,null,null,null,null,null,null,null,null,null,null,null,null,null,null,null,null,null,null,null,null,null,null,null,null,null,null,null,null,null,null,null,null,null,null,null,null,null,null,null,null,null,null,null,null,null,null,null,null,null,null,null,null,null,null,null,null,null,null,null,null,null,null,null,null,null,null,null,null,null,null,null,null,null,null,null,null,null,null,null,null,null,null,null,null,null,null,null,null,null,null,null,null,null,null,null,null,null,null,null,null,null,null,null,null,null,null,null,null,null,null,null,null,null,null,null,null,null,null,null,null,null,null,null,null,null,null,null,null,null,null,null,null,null,null,null,null,null,null,null,null,null,null,null,null,null,null,null,null,null,null,null,null,null,null,null,null,null,null,null,null,null,null,null,null,null,null,null,null,null,null,null,null,null,null,null,null,null,null,null,null,null,null,null,null,null,null,null,null,null,null,null,null,null,null,null,null,null,null,null,null,null,null,null,null,null,null,null,null,null,null,null,null,null,null,null,null,null,null,null,null,null,null,null,null,null,null,null,null,null,null,null,null,null,null,null,null,null,null,null,null,null,null,null,null,null,null,null,null,null,null,null,null,null,null,null,null,null,null,null,null,null,null,null,null,null,null,null,null,null,null,null,null,null,null,null,null,null,null,null,null,null,null,null,null,null,null,null,null,null,null,null,null,null,null,null,null,null,null,null,null,null,null,null,null,null,null,null,null,null,null,null,null,null,null,null,null,null,null,null,null,null,null,null,null,null,null,null,null,null,null,null,null,null,null,null,null,null,null,null,null,null,null,null,null,null,null,null,null,null,null,null,null,null,null,null,null,null,null,null,null,null,null,null,null,null,null,null,null,null,null,null,null,null,null,null,null,null,null,null,null,null,null,null,null,null,null,null,null,null,null,null,null,null,null,null,null,null,null,null,null,null,null,null,null,null,null,null,null,null,null,null,null,null,null,null,null,null,null,null,null,null,null,null,null,null,null,null,null,null,null,null,null,null,null,null,null,null,null,null,null,null,null,null,null,null,null,null,null,null,null,null,null,null,null,null,null,null,null,null,null,null,null,null,null,null,null,null,null,null,null,null,null,null,null,null,null,null,null,null,null,null,null,null,null,null,null,null,null,null,null,null,null,null,null,null,null,null,null,null,null,null,null,null,null,null,null,null,null,null,null,null,null,null,null,null,null,null,null,null,null,null,null,null,null,null,null,null,null,null,null,null,null,null,null,null,null,null,null,null,null,null,null,null,null,null,null,null,null,null,null,null,null,null,null,null,null,null,null,null,null,null,null,null,null,null,null,null,null,null,null,null,null,null,null,null,null,null,null,null,null,null,null,null,null,null,null,null,null,null,null,null,null,null,null,null,null,null,null,null,null,null,null,null,null,null,null,null,null,null,null,null,null,null,null,null,null,null,null,null,null,null,null,null,null,null,null,null,null,null,null,null,null,null,null,null,null,null,null,null,null,null,null,null,null,null,null,null,null,null,null,null,null,null,null,null,null,null,null,null,null,null,null,null,null,null,null,null,null,null,null,null,null,null,null,null,null,null,null,null,null,null,null,null,null,null,null,null,null,null,null,null,null,null,null,null,null,null,null,null,null,null,null,null,null,null,null,null,null,null,null,null,null,null,null,null,null,null,null,null,null,null,null,null,null,null,null,null,null,null,null,null,null,null,null,null,null,null,null,null,null,null,null,null,null,null,null,null,null,null,null,null,null,null,null,null,null,null,null,null,null,null,null,null,null,null,null,null,null,null,null,null,null,null,null,null,null,null,null,null,null,null,null,null,null,null,null,null,null,null,null,null,null,null,null,null,null,null,null,null,null,null,null,null,null,null,null,null,null,null,null,null,null,null,null,null,null,null,null,null,null,null,null,null,null,null,null,null,null,null,null,null,null,null,null,null,null,null,null,null,null,null,null,null,null,null,null,null,null,null,null,null,null,null,null,null,null,null,null,null,null,null,null,null,null,null,null,null,null,null,null,null,null,null,null,null,null,null,null,null,null,null,null,null,null,null,null,null,null,null,null,null,null,null,null,null,null,null,null,null,null,null,null,null,null,null,null,null,null,null,null,null,null,null,null,null,null,null,null,null,null,null,null,null,null,null,null,null,null,null,null,null,null,null,null,null,null,null,null,null,null,null,null,null,null,null,null,null,null,null,null,null,null,null,null,null,null,null,null,null,null,null,null,null,null,null,null,null,null,null,null,null,null,null,null,null,null,null,null,null,null,null,null,null,null,null,null,null,null,null,null,null,null,null,null,null,null,null,null,null,null,null,null,null,null,null,null,null,null,null,null,null,null,null,null,null,null,null,null,null,null,null,null,null,null,null,null,null,null,null,null,null,null,null,null,null,null,null,null,null,null,null,null,null,null,null,null,null,null,null,null,null,null,null,null,null,null,null,null,null,null,null,null,null,null,null,null,null,null,null,null,null,null,null,null,null,null,null,null,null,null,null,null,null,null,null,null,null,null,null,null,null,null,null,null,null,null,null,null,null,null,null,null,null,null,null,null,null,null,null,null,null,null,null,null,null,null,null,null,null,null,null,null,null,null,null,null,null,null,null,null,null,null,null,null,null,null,null,null,null,null,null,null,null,null,null,null,null,null,null,null,null,null,null,null,null,null,null,null,null,null,null,null,null,null,null,null,null,null,null,null,null,null,null,null,null,null,null,null,null,null,null,null,null,null,null,null,null,null,null,null,null,null,null,null,null,null,null,null,null,null,null,null,null,null,null,null,null,null,null,null,null,null,null,null,null,null,null,null,null,null,null,null,null,null,null,null,null,null,null,null,null,null,null,null,null,null,null,null,null,null,null,null,null,null,null,null,null,null,null,null,null,null,null,null,null,null,null,null,null,null,null,null,null,null,null,null,null,null,null,null,null,null,null,null,null,null,null,null,null,null,null,null,null,null,null,null,null,null,null,null,null,null,null,null,null,null,null,null,null,null,null,null,null,null,null,null,null,null,null,null,null,null,null,null,null,null,null,null,null,null,null,null,null,null,null,null,null,null,null,null,null,null,null,null,null,null,null,null,null,null,null,null,null,null,null,null,null,null,null,null,null,null,null,null,null,null,null,null,null,null,null,null,null,null,null,null,null,null,null,null,null,null,null,null,null,null,null,null,null,null,null,null,null,null,null,null,null,null,null,null,null,null,null,null,null,null,null,null,null,null,null,null,null,null,null,null,null,null,null,null,null,null,null,null,null,null,null,null,null,null,null,null,null,null,null,null,null,null,null,null,null,null,null,null,null,null,null,null,null,null,null,null,null,null,null,null,null,null,null,null,null,null,null,null,null,null,null,null,null,null,null,null,null,null,null,null,null,null,null,null,null,null,null,null,null,null,null,null,null,null,null,null,null,null,null,null,null,null,null,null,null,null,null,null,null,null,null,null,null,null,null,null,null,null,null,null,null,null,null,null,null,null,null,null,null,null,null,null,null,null,null,null,null,null,null,null,null,null,null,null,null,null,null,null,null,null,null,null,null,null,null,null,null,null,null,null,null,null,null,null,null,null,null,null,null,null,null,null,null,null,null,null,null,null,null,null,null,null,null,null,null,null,null,null,null,null,null,null,null,null,null,null,null,null,null,null,null,null,null,null,null,null,null,null,null,null,null,null,null,null,null,null,null,null,null,null,null,null,null,null,null,null,null,null,null,null,null,null,null,null,null,null,null,null,null,null,null,null,null,null,null,null,null,null,null,null,null,null,null,null,null,null,null,null,null,null,null,null,null,null,null,null,null,null,null,null,null,null,null,null,null,null,null,null,null,null,null,null,null,null,null,null,null,null,null,null,null,null,null,null,null,null,null,null,null,null,null,null,null,null,null,null,null,null,null,null,null,null,null,null,null,null,null,null,null,null,null,null,null,null,null,null,null,null,null,null,null,null,null,null,null,null,null,null,null,null,null,null,null,null,null,null,null,null,null,null,null,null,null,null,null,null,null,null,null,null,null,null,null,null,null,null,null,null,null,null,null,null,null,null,null,null,null,null,null,null,null,null,null,null,null,null,null,null,null,null,null,null,null,null,null,null,null,null,null,null,null,null,null,null,null,null,null,null,null,null,null,null,null,null,null,null,null,null,null,null,null,null,null,null,null,null,null,null,null,null,null,null,null,null,null,null,null,null,null,null,null,null,null,null,null,null,null,null,null,null,null,null,null,null,null,null,null,null,null,null,null,null,null,null,null,null,null,null,null,null,null,null,null,null,null,null,null,null,null,null,null,null,null,null,null,null,null,null,null,null,null,null,null,null,null,null,null,null,null,null,null,null,null,null,null,null,null,null,null,null,null,null,null,null,null,null,null,null,null,null,null,null,null,null,null,null,null,null,null,null,null,null,null,null,null,null,null,null,null,null,null,null,null,null,null,null,null,null,null,null,null,null,null,null,null,null,null,null,null,null,null,null,null,null,null,null,null,null,null,null,null,null,null,null,null,null,null,null,null,null,null,null,null,null,null,null,null,null,null,null,null,null,null,null,null,null,null,null,null,null,null,null,null,null,null,null,null,null,null,null,null,null,null,null,null,null,null,null,null,null,null,null,null,null,null,null,null,null,null,null,null,null,null,null,null,null,null,null,null,null,null,null,null,null,null,null,null,null,null,null,null,null,null,null,null,null,null,null,null,null,null,null,null,null,null,null,null,null,null,null,null,null,null,null,null,null,null,null,null,null,null,null,null,null,null,null,null,null,null,null,null,null,null,null,null,null,null,null,null,null,null,null,null,null,null,null,null,null,null,null,null,null,null,null,null,null,null,null,null,null,null,null,null,null,null,null,null,null,null,null,null,null,null,null,null,null,null,null,null,null,null,null,null,null,null,null,null,null,null,null,null,null,null,null,null,null,null,null,null,null,null,null,null,null,null,null,null,null,null,null,null,null,null,null,null,null,null,null,null,null,null,null,null,null,null,null,null,null,null,null,null,null,null,null,null,null,null,null,null,null,null,null,null,null,null,null,null,null,null,null,null,null,null,null,null,null,null,null,null,null,null,null,null,null,null,null,null,null,null,null,null,null,null,null,null,null,null,null,null,null,null,null,null,null,null,null,null,null,null,null,null,null,null,null,null,null,null,null,null,null,null,null,null,null,null,null,null,null,null,null,null,null,null,null,null,null,null,null,null,null,null,null,null,null,null,null,null,null,null,null,null,null,null,null,null,null,null,null,null,null,null,null,null,null,null,null,null,null,null,null,null,null,null,null,null,null,null,null,null,null,null,null,null,null,null,null,null,null,null,null,null,null,null,null,null,null,null,null,null,null,null,null,null,null,null,null,null,null,null,null,null,null,null,null,null,null,null,null,null,null,null,null,null,null,null,null,null,null,null,null,null,null,null,null,null,null,null,null,null,null,null,null,null,null,null,null,null,null,null,null,null,null,null,null,null,null,null,null,null,null,null,null,null,null,null,null,null,null,null,null,null,null,null,null,null,null,null,null,null,null,null,null,null,null,null,null,null,null,null,null,null,null,null,null,null,null,null,null,null,null,null,null,null,null,null,null,null,null,null,null,null,null,null,null,null,null,null,null,null,null,null,null,null,null,null,null,null,null,null,null,null,null,null,null,null,null,null,null,null,null,null,null,null,null,null,null,null,null,null,null,null,null,null,null,null,null,null,null,null,null,null,null,null,null,null,null,null,null,null,null,null,null,null,null,null,null,null,null,null,null,null,null,null,null,null,null,null,null,null,null,null,null,null,null,null,null,null,null,null,null,null,null,null,null,null,null,null,null,null,null,null,null,null,null,null,null,null,null,null,null,null,null,null,null,null,null,null,null,null,null,null,null,null,null,null,null,null,null,null,null,null,null,null,null,null,null,null,null,null,null,null,null,null,null,null,null,null,null,null,null,null,null,null,null,null,null,null,null,null,null,null,null,null,null,null,null,null,null,null,null,null,null,null,null,null,null,null,null,null,null,null,null,null,null,null,null,null,null,null,null,null,null,null,null,null,null,null,null,null,null,null,null,null,null,null,null,null,null,null,null,null,null,null,null,null,null,null,null,null,null,null,null,null,null,null,null,null,null,null,null,null,null,null,null,null,null,null,null,null,null,null,null,null,null,null,null,null,null,null,null,null,null,null,null,null,null,null,null,null,null,null,null,null,null,null,null,null,null,null,null,null,null,null,null,null,null,null,null,null,null,null,null,null,null,null,null,null,null,null,null,null,null,null,null,null,null,null,null,null,null,null,null,null,null,null,null,null,null,null,null,null,null,null,null,null,null,null,null,null,null,null,null,null,null,null,null,null,null,null,null,null,null,null,null,null,null,null,null,null,null,null,null,null,null,null,null,null,null,null,null,null,null,null,null,null,null,null,null,null,null,null,null,null,null,null,null,null,null,null,null,null,null,null,null,null,null,null,null,null,null,null,null,null,null,null,null,null,null,null,null,null,null,null,null,null,null,null,null,null,null,null,null,null,null,null,null,null,null,null,null,null,null,null,null,null,null,null,null,null,null,null,null,null,null,null,null,null,null,null,null,null,null,null,null,null,null,null,null,null,null,null,null,null,null,null,null,null,null,null,null,null,null,null,null,null,null,null,null,null,null,null,null,null,null,null,null,null,null,null,null,null,null,null,null,null,null,null,null,null,null,null,null,null,null,null,null,null,null,null,null,null,null,null,null,null,null,null,null,null,null,null,null,null,null,null,null,null,null,null,null,null,null,null,null,null,null,null,null,null,null,null,null,null,null,null,null,null,null,null,null,null,null,null,null,null,null,null,null,null,null,null,null,null,null,null,null,null,null,null,null,null,null,null,null,null,null,null,null,null,null,null,null,null,null,null,null,null,null,null,null,null,null,null,null,null,null,null,null,null,null,null,null,null,null,null,null,null,null,null,null,null,null,null,null,null,null,null,null,null,null,null,null,null,null,null,null,null,null,null,null,null,null,null,null,null,null,null,null,null,null,null,null,null,null,null,null,null,null,null,null,null,null,null,null,null,null,null,null,null,null,null,null,null,null,null,null,null,null,null,null,null,null,null,null,null,null,null,null,null,null,null,null,null,null,null,null,null,null,null,null,null,null,null,null,null,null,null,null,null,null,null,null,null,null,null,null,null,null,null,null,null,null,null,null,null,null,null,null,null,null,null,null,null,null,null,null,null,null,null,null,null,null,null,null,null,null,null,null,null,null,null,null,null,null,null,null,null,null,null,null,null,null,null,null,null,null,null,null,null,null,null,null,null,null,null,null,null,null,null,null,null,null,null,null,null,null,null,null,null,null,null,null,null,null,null,null,null,null,null,null,null,null,null,null,null,null,null,null,null,null,null,null,null,null,null,null,null,null,null,null,null,null,null,null,null,null,null,null,null,null,null,null,null,null,null,null,null,null,null,null,null,null,null,null,null,null,null,null,null,null,null,null,null,null,null,null,null,null,null,null,null,null,null,null,null,null,null,null,null,null,null,null,null,null,null,null,null,null,null,null,null,null,null,null,null,null,null,null,null,null,null,null,null,null,null,null,null,null,null,null,null,null,null,null,null,null,null,null,null,null,null,null,null,null,null,null,null,null,null,null,null,null,null,null,null,null,null,null,null,null,null,null,null,null,null,null,null,null,null,null,null,null,null,null,null,null,null,null,null,null,null,null,null,null,null,null,null,null,null,null,null,null,null,null,null,null,null,null,null,null,null,null,null,null,null,null,null,null,null,null,null,null,null,null,null,null,null,null,null,null,null,null,null,null,null,null,null,null,null,null,null,null,null,null,null,null,null,null,null,null,null,null,null,null,null,null,null,null,null,null,null,null,null,null,null,null,null,null,null,null,null,null,null,null,null,null,null,null,null,null,null,null,null,null,null,null,null,null,null,null,null,null,null,null,null,null,null,null,null,null,null,null,null,null,null,null,null,null,null,null,null,null,null,null,null,null,null,null,null,null,null,null,null,null,null,null,null,null,null,null,null,null,null,null,null,null,null,null,null,null,null,null,null,null,null,null,null,null,null,null,null,null,null,null,null,null,null,null,null,null,null,null,null,null,null,null,null,null,null,null,null,null,null,null,null,null,null,null,null,null,null,null,null,null,null,null,null,null,null,null,null,null,null,null,null,null,null,null,null,null,null,null,null,null,null,null,null,null,null,null,null,null,null,null,null,null,null,null,null,null,null,null,null,null,null,null,null,null,null,null,null,null,null,null,null,null,null,null,null,null,null,null,null,null,null,null,null,null,null,null,null,null,null,null,null,null,null,null,null,null,null,null,null,null,null,null,null,null,null,null,null,null,null,null,null,null,null,null,null,null,null,null,null,null,null,null,null,null,null,null,null,null,null,null,null,null,null,null,null,null,null,null,null,null,null,null,null,null,null,null,null,null,null,null,null,null,null,null,null,null,null,null,null,null,null,null,null,null,null,null,null,null,null,null,null,null,null,null,null,null,null,null,null,null,null,null,null,null,null,null,null,null,null,null,null,null,null,null,null,null,null,null,null,null,null,null,null,null,null,null,null,null,null,null,null,null,null,null,null,null,null,null,null,null,null,null,null,null,null,null,null,null,null,null,null,null,null,null,null,null,null,null,null,null,null,null,null,null,null,null,null,null,null,null,null,null,null,null,null,null,null,null,null,null,null,null,null,null,null,null,null,null,null,null,null,null,null,null,null,null,null,null,null,null,null,null,null,null,null,null,null,null,null,null,null,null,null,null,null,null,null,null,null,null,null,null,null,null,null,null,null,null,null,null,null,null,null,null,null,null,null,null,null,null,null,null,null,null,null,null,null,null,null,null,null,null,null,null,null,null,null,null,null,null,null,null,null,null,null,null,null,null,null,null,null,null,null,null,null,null,null,null,null,null,null,null,null,null,null,null,null,null,null,null,null,null,null,null,null,null,null,null,null,null,null,null,null,null,null,null,null,null,null,null,null,null,null,null,null,null,null,null,null,null,null,null,null,null,null,null,null,null,null,null,null,null,null,null,null,null,null,null,null,null,null,null,null,null,null,null,null,null,null,null,null,null,null,null,null,null,null,null,null,null,null,null,null,null,null,null,null,null,null,null,null,null,null,null,null,null,null,null,null,null,null,null,null,null,null,null,null,null,null,null,null,null,null,null,null,null,null,null,null,null,null,null,null,null,null,null,null,null,null,null,null,null,null,null,null,null,null,null,null,null,null,null,null,null,null,null,null,null,null,null,null,null,null,null,null,null,null,null,null,null,null,null,null,null,null,null,null,null,null,null,null,null,null,null,null,null,null,null,null,null,null,null,null,null,null,null,null,null,null,null,null,null,null,null,null,null,null,null,null,null,null,null,null,null,null,null,null,null,null,null,null,null,null,null,null,null,null,null,null,null,null,null,null,null,null,null,null,null,null,null,null,null,null,null,null,null,null,null,null,null,null,null,null,null,null,null,null,null,null,null,null,null,null,null,null,null,null,null,null,null,null,null,null,null,null,null,null,null,null,null,null,null,null,null,null,null,null,null,null,null,null,null,null,null,null,null,null,null,null,null,null,null,null,null,null,null,null,null,null,null,null,null,null,null,null,null,null,null,null,null,null,null,null,null,null,null,null,null,null,null,null,null,null,null,null,null,null,null,null,null,null,null,null,null,null,null,null,null,null,null,null,null,null,null,null,null,null,null,null,null,null,null,null,null,null,null,null,null,null,null,null,null,null,null,null,null,null,null,null,null,null,null,null,null,null,null,null,null,null,null,null,null,null,null,null,null,null,null,null,null,null,null,null,null,null,null,null,null,null,null,null,null,null,null,null,null,null,null,null,null,null,null,null,null,null,null,null,null,null,null,null,null,null,null,null,null,null,null,null,null,null,null,null,null,null,null,null,null,null,null,null,null,null,null,null,null,null,null,null,null,null,null,null,null,null,null,null,null,null,null,null,null,null,null,null,null,null,null,null,null,null,null,null,null,null,null,null,null,null,null,null,null,null,null,null,null,null,null,null,null,null,null,null,null,null,null,null,null,null,null,null,null,null,null,null,null,null,null,null,null,null,null,null,null,null,null,null,null,null,null,null,null,null,null,null,null,null,null,null,null,null,null,null,null,null,null,null,null,null,null,null,null,null,null,null,null,null,null,null,null,null,null,null,null,null,null,null,null,null,null,null,null,null,null,null,null,null,null,null,null,null,null,null,null,null,null,null,null,null,null,null,null,null,null,null,null,null,null,null,null,null,null,null,null,null,null,null,null,null,null,null,null,null,null,null,null,null,null,null,null,null,null,null,null,null,null,null,null,null,null,null,null,null,null,null,null,null,null,null,null,null,null,null,null,null,null,null,null,null,null,null,null,null,null,null,null,null,null,null,null,null,null,null,null,null,null,null,null,null,null,null,null,null,null,null,null,null,null,null,null,null,null,null,null,null,null,null,null,null,null,null,null,null,null,null,null,null,null,null,null,null,null,null,null,null,null,null,null,null,null,null,null,null,null,null,null,null,null,null,null,null,null,null,null,null,null,null,null,null,null,null,null,null,null,null,null,null,null,null,null,null,null,null,null,null,null,null,null,null,null,null,null,null,null,null,null,null,null,null,null,null,null,null,null,null,null,null,null,null,null,null,null,null,null,null,null,null,null,null,null,null,null,null,null,null,null,null,null,null,null,null,null,null,null,null,null,null,null,null,null,null,null,null,null,null,null,null,null,null,null,null,null,null,null,null,null,null,null,null,null,null,null,null,null,null,null,null,null,null,null,null,null,null,null,null,null,null,null,null,null,null,null,null,null,null,null,null,null,null,null,null,null,null,null,null,null,null,null,null,null,null,null,null,null,null,null,null,null,null,null,null,null,null,null,null,null,null,null,null,null,null,null,null,null,null,null,null,null,null,null,null,null,null,null,null,null,null,null,null,null,null,null,null,null,null,null,null,null,null,null,null,null,null,null,null,null,null,null,null,null,null,null,null,null,null,null,null,null,null,null,null,null,null,null,null,null,null,null,null,null,null,null,null,null,null,null,null,null,null,null,null,null,null,null,null,null,null,null,null,null,null,null,null,null,null,null,null,null,null,null,null,null,null,null,null,null,null,null,null,null,null,null,null,null,null,null,null,null,null,null,null,null,null,null,null,null,null,null,null,null,null,null,null,null,null,null,null,null,null,null,null,null,null,null,null,null,null,null,null,null,null,null,null,null,null,null,null,null,null,null,null,null,null,null,null,null,null,null,null,null,null,null,null,null,null,null,null,null,null,null,null,null,null,null,null,null,null,null,null,null,null,null,null,null,null,null,null,null,null,null,null,null,null,null,null,null,null,null,null,null,null,null,null,null,null,null,null,null,null,null,null,null,null,null,null,null,null,null,null,null,null,null,null,null,null,null,null,null,null,null,null,null,null,null,null,null,null,null,null,null,null,null,null,null,null,null,null,null,null,null,null,null,null,null,null,null,null,null,null,null,null,null,null,null,null,null,null,null,null,null,null,null,null,null,null,null,null,null,null,null,null,null,null,null,null,null,null,null,null,null,null,null,null,null,null,null,null,null,null,null,null,null,null,null,null,null,null,null,null,null,null,null,null,null,null,null,null,null,null,null,null,null,null,null,null,null,null,null,null,null,null,null,null,null,null,null,null,null,null,null,null,null,null,null,null,null,null,null,null,null,null,null,null,null,null,null,null,null,null,null,null,null,null,null,null,null,null,null,null,null,null,null,null,null,null,null,null,null,null,null,null,null,null,null,null,null,null,null,null,null,null,null,null,null,null,null,null,null,null,null,null,null,null,null,null,null,null,null,null,null,null,null,null,null,null,null,null,null,null,null,null,null,null,null,null,null,null,null,null,null,null,null,null,null,null,null,null,null,null,null,null,null,null,null,null,null,null,null,null,null,null,null,null,null,null,null,null,null,null,null,null,null,null,null,null,null,null,null,null,null,null,null,null,null,null,null,null,null,null,null,null,null,null,null,null,null,null,null,null,null,null,null,null,null,null,null,null,null,null,null,null,null,null,null,null,null,null,null,null,null,null,null,null,null,null,null,null,null,null,null,null,null,null,null,null,null,null,null,null,null,null,null,null,null,null,null,null,null,null,null,null,null,null,null,null,null,null,null,null,null,null,null,null,null,null,null,null,null,null,null,null,null,null,null,null,null,null,null,null,null,null,null,null,null,null,null,null,null,null,null,null,null,null,null,null,null,null,null,null,null,null,null,null,null,null,null,null,null,null,null,null,null,null,null,null,null,null,null,null,null,null,null,null,null,null,null,null,null,null,null,null,null,null,null,null,null,null,null,null,null,null,null,null,null,null,null,null,null,null,null,null,null,null,null,null,null,null,null,null,null,null,null,null,null,null,null,null,null,null,null,null,null,null,null,null,null,null,null,null,null,null,null,null,null,null,null,null,null,null,null,null,null,null,null,null,null,null,null,null,null,null,null,null,null,null,null,null,null,null,null,null,null,null,null,null,null,null,null,null,null,null,null,null,null,null,null,null,null,null,null,null,null,null,null,null,null,null,null,null,null,null,null,null,null,null,null,null,null,null,null,null,null,null,null,null,null,null,null,null,null,null,null,null,null,null,null,null,null,null,null,null,null,null,null,null,null,null,null,null,null,null,null,null,null,null,null,null,null,null,null,null,null,null,null,null,null,null,null,null,null,null,null,null,null,null,null,null,null,null,null,null,null,null,null,null,null,null,null,null,null,null,null,null,null,null,null,null,null,null,null,null,null,null,null,null,null,null,null,null,null,null,null,null,null,null,null,null,null,null,null,null,null,null,null,null,null,null,null,null,null,null,null,null,null,null,null,null,null,null,null,null,null,null,null,null,null,null,null,null,null,null,null,null,null,null,null,null,null,null,null,null,null,null,null,null,null,null,null,null,null,null,null,null,null,null,null,null,null,null,null,null,null,null,null,null,null,null,null,null,null,null,null,null,null,null,null,null,null,null,null,null,null,null,null,null,null,null,null,null,null,null,null,null,null,null,null,null,null,null,null,null,null,null,null,null,null,null,null,null,null,null,null,null,null,null,null,null,null,null,null,null,null,null,null,null,null,null,null,null,null,null,null,null,null,null,null,null,null,null,null,null,null,null,null,null,null,null,null,null,null,null,null,null,null,null,null,null,null,null,null,null,null,null,null,null,null,null,null,null,null,null,null,null,null,null,null,null,null,null,null,null,null,null,null,null,null,null,null,null,null,null,null,null,null,null,null,null,null,null,null,null,null,null,null,null,null,null,null,null,null,null,null,null,null,null,null,null,null,null,null,null,null,null,null,null,null,null,null,null,null,null,null,null,null,null,null,null,null,null,null,null,null,null,null,null,null,null,null,null,null,null,null,null,null,null,null,null,null,null,null,null,null,null,null,null,null,null,null,null,null,null,null,null,null,null,null,null,null,null,null,null,null,null,null,null,null,null,null,null,null,null,null,null,null,null,null,null,null,null,null,null,null,null,null,null,null,null,null,null,null,null,null,null,null,null,null,null,null,null,null,null,null,null,null,null,null,null,null,null,null,null,null,null,null,null,null,null,null,null,null,null,null,null,null,null,null,null,null,null,null,null,null,null,null,null,null,null,null,null,null,null,null,null,null,null,null,null,null,null,null,null,null,null,null,null,null,null,null,null,null,null,null,null,null,null,null,null,null,null,null,null,null,null,null,null,null,null,null,null,null,null,null,null,null,null,null,null,null,null,null,null,null,null,null,null,null,null,null,null,null,null,null,null,null,null,null,null,null,null,null,null,null,null,null,null,null,null,null,null,null,null,null,null,null,null,null,null,null,null,null,null,null,null,null,null,null,null,null,null,null,null,null,null,null,null,null,null,null,null,null,null,null,null,null,null,null,null,null,null,null,null,null,null,null,null,null,null,null,null,null,null,null,null,null,null,null,null,null,null,null,null,null,null,null,null,null,null,null,null,null,null,null,null,null,null,null,null,null,null,null,null,null,null,null,null,null,null,null,null,null,null,null,null,null,null,null,null,null,null,null,null,null,null,null,null,null,null,null,null,null,null,null,null,null,null,null,null,null,null,null,null,null,null,null,null,null,null,null,null,null,null,null,null,null,null,null,null,null,null,null,null,null,null,null,null,null,null,null,null,null,null,null,null,null,null,null,null,null,null,null,null,null,null,null,null,null,null,null,null,null,null,null,null,null,null,null,null,null,null,null,null,null,null,null,null,null,null,null,null,null,null,null,null,null,null,null,null,null,null,null,null,null,null,null,null,null,null,null,null,null,null,null,null,null,null,null,null,null,null,null,null,null,null,null,null,null,null,null,null,null,null,null,null,null,null,null,null,null,null,null,null,null,null,null,null,null,null,null,null,null,null,null,null,null,null,null,null,null,null,null,null,null,null,null,null,null,null,null,null,null,null,null,null,null,null,null,null,null,null,null,null,null,null,null,null,null,null,null,null,null,null,null,null,null,null,null,null,null,null,null,null,null,null,null,null,null,null,null,null,null,null,null,null,null,null,null,null,null,null,null,null,null,null,null,null,null,null,null,null,null,null,null,null,null,null,null,null,null,null,null,null,null,null,null,null,null,null,null,null,null,null,null,null,null,null,null,null,null,null,null,null,null,null,null,null,null,null,null,null,null,null,null,null,null,null,null,null,null,null,null,null,null,null,null,null,null,null,null,null,null,null,null,null,null,null,null,null,null,null,null,null,null,null,null,null,null,null,null,null,null,null,null,null,null,null,null,null,null,null,null,null,null,null,null,null,null,null,null,null,null,null,null,null,null,null,null,null,null,null,null,null,null,null,null,null,null,null,null,null,null,null,null,null,null,null,null,null,null,null,null,null,null,null,null,null,null,null,null,null,null,null,null,null,null,null,null,null,null,null,null,null,null,null,null,null,null,null,null,null,null,null,null,null,null,null,null,null,null,null,null,null,null,null,null,null,null,null,null,null,null,null,null,null,null,null,null,null,null,null,null,null,null,null,null,null,null,null,null,null,null,null,null,null,null,null,null,null,null,null,null,null,null,null,null,null,null,null,null,null,null,null,null,null,null,null,null,null,null,null,null,null,null,null,null,null,null,null,null,null,null,null,null,null,null,null,null,null,null,null,null,null,null,null,null,null,null,null,null,null,null,null,null,null,null,null,null,null,null,null,null,null,null,null,null,null,null,null,null,null,null,null,null,null,null,null,null,null,null,null,null,null,null,null,null,null,null,null,null,null,null,null,null,null,null,null,null,null,null,null,null,null,null,null,null,null,null,null,null,null,null,null,null,null,null,null,null,null,null,null,null,null,null,null,null,null,null,null,null,null,null,null,null,null,null,null,null,null,null,null,null,null,null,null,null,null,null,null,null,null,null,null,null,null,null,null,null,null,null,null,null,null,null,null,null,null,null,null,null,null,null,null,null,null,null,null,null,null,null,null,null,null,null,null,null,null,null,null,null,null,null,null,null,null,null,null,null,null,null,null,null,null,null,null,null,null,null,null,null,null,null,null,null,null,null,null,null,null,null,null,null,null,null,null,null,null,null,null,null,null,null,null,null,null,null,null,null,null,null,null,null,null,null,null,null,null,null,null,null,null,null,null,null,null,null,null,null,null,null,null,null,null,null,null,null,null,null,null,null,null,null,null,null,null,null,null,null,null,null,null,null,null,null,null,null,null,null,null,null,null,null,null,null,null,null,null,null,null,null,null,null,null,null,null,null,null,null,null,null,null,null,null,null,null,null,null,null,null,null,null,null,null,null,null,null,null,null,null,null,null,null,null,null,null,null,null,null,null,null,null,null,null,null,null,null,null,null,null,null,null,null,null,null,null,null,null,null,null,null,null,null,null,null,null,null,null,null,null,null,null,null,null,null,null,null,null,null,null,null,null,null,null,null,null,null,null,null,null,null,null,null,null,null,null,null,null,null,null,null,null,null,null,null,null,null,null,null,null,null,null,null,null,null,null,null,null,null,null,null,null,null,null,null,null,null,null,null,null,null,null,null,null,null,null,null,null,null,null,null,null,null,null,null,null,null,null,null,null,null,null,null,null,null,null,null,null,null,null,null,null,null,null,null,null,null,null,null,null,null,null,null,null,null,null,null,null,null,null,null,null,null,null,null,null,null,null,null,null,null,null,null,null,null,null,null,null,null,null,null,null,null,null,null,null,null,null,null,null,null,null,null,null,null,null,null,null,null,null,null,null,null,null,null,null,null,null,null,null,null,null,null,null,null,null,null,null,null,null,null,null,null,null,null,null,null,null,null,null,null,null,null,null,null,null,null,null,null,null,null,null,null,null,null,null,null,null,null,null,null,null,null,null,null,null,null,null,null,null,null,null,null,null,null,null,null,null,null,null,null,null,null,null,null,null,null,null,null,null,null,null,null,null,null,null,null,null,null,null,null,null,null,null,null,null,null,null,null,null,null,null,null,null,null,null,null,null,null,null,null,null,null,null,null,null,null,null,null,null,null,null,null,null,null,null,null,null,null,null,null,null,null,null,null,null,null,null,null,null,null,null,null,null,null,null,null,null,null,null,null,null,null,null,null,null,null,null,null,null,null,null,null,null,null,null,null,null,null,null,null,null,null,null,null,null,null,null,null,null,null,null,null,null,null,null,null,null,null,null,null,null,null,null,null,null,null,null,null,null,null,null,null,null,null,null,null,null,null,null,null,null,null,null,null,null,null,null,null,null,null,null,null,null,null,null,null,null,null,null,null,null,null,null,null,null,null,null,null,null,null,null,null,null,null,null,null,null,null,null,null,null,null,null,null,null,null,null,null,null,null,null,null,null,null,null,null,null,null,null,null,null,null,null,null,null,null,null,null,null,null,null,null,null,null,null,null,null,null,null,null,null,null,null,null,null,null,null,null,null,null,null,null,null,null,null,null,null,null,null,null,null,null,null,null,null,null,null,null,null,null,null,null,null,null,null,null,null,null,null,null,null,null,null,null,null,null,null,null,null,null,null,null,null,null,null,null,null,null,null,null,null,null,null,null,null,null,null,null,null,null,null,null,null,null,null,null,null,null,null,null,null,null,null,null,null,null,null,null,null,null,null,null,null,null,null,null,null,null,null,null,null,null,null,null,null,null,null,null,null,null,null,null,null,null,null,null,null,null,null,null,null,null,null,null,null,null,null,null,null,null,null,null,null,null,null,null,null,null,null,null,null,null,null,null,null,null,null,null,null,null,null,null,null,null,null,null,null,null,null,null,null,null,null,null,null,null,null,null,null,null,null,null,null,null,null,null,null,null,null,null,null,null,null,null,null,null,null,null,null,null,null,null,null,null,null,null,null,null,null,null,null,null,null,null,null,null,null,null,null,null,null,null,null,null,null,null,null,null,null,null,null,null,null,null,null,null,null,null,null,null,null,null,null,null,null,null,null,null,null,null,null,null,null,null,null,null,null,null,null,null,null,null,null,null,null,null,null,null,null,null,null,null,null,null,null,null,null,null,null,null,null,null,null,null,null,null,null,null,null,null,null,null,null,null,null,null,null,null,null,null,null,null,null,null,null,null,null,null,null,null,null,null,null,null,null,null,null,null,null,null,null,null,null,null,null,null,null,null,null,null,null,null,null,null,null,null,null,null,null,null,null,null,null,null,null,null,null,null,null,null,null,null,null,null,null,null,null,null,null,null,null,null,null,null,null,null,null,null,null,null,null,null,null,null,null,null,null,null,null,null,null,null,null,null,null,null,null,null,null,null,null,null,null,null,null,null,null,null,null,null,null,null,null,null,null,null,null,null,null,null,null,null,null,null,null,null,null,null,null,null,null,null,null,null,null,null,null,null,null,null,null,null,null,null,null,null,null,null,null,null,null,null,null,null,null,null,null,null,null,null,null,null,null,null,null,null,null,null,null,null,null,null,null,null,null,null,null,null,null,null,null,null,null,null,null,null,null,null,null,null,null,null,null,null,null,null,null,null,null,null,null,null,null,null,null,null,null,null,null,null,null,null,null,null,null,null,null,null,null,null,null,null,null,null,null,null,null,null,null,null,null,null,null,null,null,null,null,null,null,null,null,null,null,null,null,null,null,null,null,null,null,null,null,null,null,null,null,null,null,null,null,null,null,null,null,null,null,null,null,null,null,null,null,null,null,null,null,null,null,null,null,null,null,null,null,null,null,null,null,null,null,null,null,null,null,null,null,null,null,null,null,null,null,null,null,null,null,null,null,null,null,null,null,null,null,null,null,null,null,null,null,null,null,null,null,null,null,null,null,null,null,null,null,null,null,null,null,null,null,null,null,null,null,null,null,null,null,null,null,null,null,null,null,null,null,null,null,null,null,null,null,null,null,null,null,null,null,null,null,null,null,null,null,null,null,null,null,null,null,null,null,null,null,null,null,null,null,null,null,null,null,null,null,null,null,null,null,null,null,null,null,null,null,null,null,null,null,null,null,null,null,null,null,null,null,null,null,null,null,null,null,null,null,null,null,null,null,null,null,null,null,null,null,null,null,null,null,null,null,null,null,null,null,null,null,null,null,null,null,null,null,null,null,null,null,null,null,null,null,null,null,null,null,null,null,null,null,null,null,null,null,null,null,null,null,null,null,null,null,null,null,null,null,null,null,null,null,null,null,null,null,null,null,null,null,null,null,null,null,null,null,null,null,null,null,null,null,null,null,null,null,null,null,null,null,null,null,null,null,null,null,null,null,null,null,null,null,null,null,null,null,null,null,null,null,null,null,null,null,null,null,null,null,null,null,null,null,null,null,null,null,null,null,null,null,null,null,null,null,null,null,null,null,null,null,null,null,null,null,null,null,null,null,null,null,null,null,null,null,null,null,null,null,null,null,null,null,null,null,null,null,null,null,null,null,null,null,null,null,null,null,null,null,null,null,null,null,null,null,null,null,null,null,null,null,null,null,null,null,null,null,null,null,null,null,null,null,null,null,null,null,null,null,null,null,null,null,null,null,null,null,null,null,null,null,null,null,null,null,null,null,null,null,null,null,null,null,null,null,null,null,null,null,null,null,null,null,null,null,null,null,null,null,null,null,null,null,null,null,null,null,null,null,null,null,null,null,null,null,null,null,null,null,null,null,null,null,null,null,null,null,null,null,null,null,null,null,null,null,null,null,null,null,null,null,null,null,null,null,null,null,null,null,null,null,null,null,null,null,null,null,null,null,null,null,null,null,null,null,null,null,null,null,null,null,null,null,null,null,null,null,null,null,null,null,null,null,null,null,null,null,null,null,null,null,null,null,null,null,null,null,null,null,null,null,null,null,null,null,null,null,null,null,null,null,null,null,null,null,null,null,null,null,null,null,null,null,null,null,null,null,null,null,null,null,null,null,null,null,null,null,null,null,null,null,null,null,null,null,null,null,null,null,null,null,null,null,null,null,null,null,null,null,null,null,null,null,null,null,null,null,null,null,null,null,null,null,null,null,null,null,null,null,null,null,null,null,null,null,null,null,null,null,null,null,null,null,null,null,null,null,null,null,null,null,null,null,null,null,null,null,null,null,null,null,null,null,null,null,null,null,null,null,null,null,null,null,null,null,null,null,null,null,null,null,null,null,null,null,null,null,null,null,null,null,null,null,null,null,null,null,null,null,null,null,null,null,null,null,null,null,null,null,null,null,null,null,null,null,null,null,null,null,null,null,null,null,null,null,null,null,null,null,null,null,null,null,null,null,null,null,null,null,null,null,null,null,null,null,null,null,null,null,null,null,null,null,null,null,null,null,null,null,null,null,null,null,null,null,null,null,null,null,null,null,null,null,null,null,null,null,null,null,null,null,null,null,null,null,null,null,null,null,null,null,null,null,null,null,null,null,null,null,null,null,null,null,null,null,null,null,null,null,null,null,null,null,null,null,null,null,null,null,null,null,null,null,null,null,null,null,null,null,null,null,null,null,null,null,null,null,null,null,null,null,null,null,null,null,null,null,null,null,null,null,null,null,null,null,null,null,null,null,null,null,null,null,null,null,null,null,null,null,null,null,null,null,null,null,null,null,null,null,null,null,null,null,null,null,null,null,null,null,null,null,null,null,null,null,null,null,null,null,null,null,null,null,null,null,null,null,null,null,null,null,null,null,null,null,null,null,null,null,null,null,null,null,null,null,null,null,null,null,null,null,null,null,null,null,null,null,null,null,null,null,null,null,null,null,null,null,null,null,null,null,null,null,null,null,null,null,null,null,null,null,null,null,null,null,null,null,null,null,null,null,null,null,null,null,null,null,null,null,null,null,null,null,null,null,null,null,null,null,null,null,null,null,null,null,null,null,null,null,null,null,null,null,null,null,null,null,null,null,null,null,null,null,null,null,null,null,null,null,null,null,null,null,null,null,null,null,null,null,null,null,null,null,null,null,null,null,null,null,null,null,null,null,null,null,null,null,null,null,null,null,null,null,null,null,null,null,null,null,null,null,null,null,null,null,null,null,null,null,null,null,null,null,null,null,null,null,null,null,null,null,null,null,null,null,null,null,null,null,null,null,null,null,null,null,null,null,null,null,null,null,null,null,null,null,null,null,null,null,null,null,null,null,null,null,null,null,null,null,null,null,null,null,null,null,null,null,null,null,null,null,null,null,null,null,null,null,null,null,null,null,null,null,null,null,null,null,null,null,null,null,null,null,null,null,null,null,null,null,null,null,null,null,null,null,null,null,null,null,null,null,null,null,null,null,null,null,null,null,null,null,null,null,null,null,null,null,null,null,null,null,null,null,null,null,null,null,null,null,null,null,null,null,null,null,null,null,null,null,null,null,null,null,null,null,null,null,null,null,null,null,null,null,null,null,null,null,null,null,null,null,null,null,null,null,null,null,null,null,null,null,null,null,null,null,null,null,null,null,null,null,null,null,null,null,null,null,null,null,null,null,null,null,null,null,null,null,null,null,null,null,null,null,null,null,null,null,null,null,null,null,null,null,null,null,null,null,null,null,null,null,null,null,null,null,null,null,null,null,null,null,null,null,null,null,null,null,null,null,null,null,null,null,null,null,null,null,null,null,null,null,null,null,null,null,null,null,null,null,null,null,null,null,null,null,null,null,null,null,null,null,null,null,null,null,null,null,null,null,null,null,null,null,null,null,null,null,null,null,null,null,null,null,null,null,null,null,null,null,null,null,null,null,null,null,null,null,null,null,null,null,null,null,null,null,null,null,null,null,null,null,null,null,null,null,null,null,null,null,null,null,null,null,null,null,null,null,null,null,null,null,null,null,null,null,null,null,null,null,null,null,null,null,null,null,null,null,null,null,null,null,null,null,null,null,null,null,null,null,null,null,null,null,null,null,null,null,null,null,null,null,null,null,null,null,null,null,null,null,null,null,null,null,null,null,null,null,null,null,null,null,null,null,null,null,null,null,null,null,null,null,null,null,null,null,null,null,null,null,null,null,null,null,null,null,null,null,null,null,null,null,null,null,null,null,null,null,null,null,null,null,null,null,null,null,null,null,null,null,null,null,null,null,null,null,null,null,null,null,null,null,null,null,null,null,null,null,null,null,null,null,null,null,null,null,null,null,null,null,null,null,null,null,null,null,null,null,null,null,null,null,null,null,null,null,null,null,null,null,null,null,null,null,null,null,null,null,null,null,null,null,null,null,null,null,null,null,null,null,null,null,null,null,null,null,null,null,null,null,null,null,null,null,null,null,null,null,null,null,null,null,null,null,null,null,null,null,null,null,null,null,null,null,null,null,null,null,null,null,null,null,null,null,null,null,null,null,null,null,null,null,null,null,null,null,null,null,null,null,null,null,null,null,null,null,null,null,null,null,null,null,null,null,null,null,null,null,null,null,null,null,null,null,null,null,null,null,null,null,null,null,null,null,null,null,null,null,null,null,null,null,null,null,null,null,null,null,null,null,null,null,null,null,null,null,null,null,null,null,null,null,null,null,null,null,null,null,null,null,null,null,null,null,null,null,null,null,null,null,null,null,null,null,null,null,null,null,null,null,null,null,null,null,null,null,null,null,null,null,null,null,null,null,null,null,null,null,null,null,null,null,null,null,null,null,null,null,null,null,null,null,null,null,null,null,null,null,null,null,null,null,null,null,null,null,null,null,null,null,null,null,null,null,null,null,null,null,null,null,null,null,null,null,null,null,null,null,null,null,null,null,null,null,null,null,null,null,null,null,null,null,null,null,null,null,null,null,null,null,null,null,null,null,null,null,null,null,null,null,null,null,null,null,null,null,null,null,null,null,null,null,null,null,null,null,null,null,null,null,null,null,null,null,null,null,null,null,null,null,null,null,null,null,null,null,null,null,null,null,null,null,null,null,null,null,null,null,null,null,null,null,null,null,null,null,null,null,null,null,null,null,null,null,null,null,null,null,null,null,null,null,null,null,null,null,null,null,null,null,null,null,null,null,null,null,null,null,null,null,null,null,null,null,null,null,null,null,null,null,null,null,null,null,null,null,null,null,null,null,null,null,null,null,null,null,null,null,null,null,null,null,null,null,null,null,null,null,null,null,null,null,null,null,null,null,null,null,null,null,null,null,null,null,null,null,null,null,null,null,null,null,null,null,null,null,null,null,null,null,null,null,null,null,null,null,null,null,null,null,null,null,null,null,null,null,null,null,null,null,null,null,null,null,null,null,null,null,null,null,null,null,null,null,null,null,null,null,null,null,null,null,null,null,null,null,null,null,null,null,null,null,null,null,null,null,null,null,null,null,null,null,null,null,null,null,null,null,null,null,null,null,null,null,null,null,null,null,null,null,null,null,null,null,null,null,null,null,null,null,null,null,null,null,null,null,null,null,null,null,null,null,null,null,null,null,null,null,null,null,null,null,null,null,null,null,null,null,null,null,null,null,null,null,null,null,null,null,null,null,null,null,null,null,null,null,null,null,null,null,null,null,null,null,null,null,null,null,null,null,null,null,null,null,null,null,null,null,null,null,null,null,null,null,null,null,null,null,null,null,null,null,null,null,null,null,null,null,null,null,null,null,null,null,null,null,null,null,null,null,null,null,null,null,null,null,null,null,null,null,null,null,null,null,null,null,null,null,null,null,null,null,null,null,null,null,null,null,null,null,null,null,null,null,null,null,null,null,null,null,null,null,null,null,null,null,null,null,null,null,null,null,null,null,null,null,null,null,null,null,null,null,null,null,null,null,null,null,null,null,null,null,null,null,null,null,null,null,null,null,null,null,null,null,null,null,null,null,null,null,null,null,null,null,null,null,null,null,null,null,null,null,null,null,null,null,null,null,null,null,null,null,null,null,null,null,null,null,null,null,null,null,null,null,null,null,null,null,null,null,null,null,null,null,null,null,null,null,null,null,null,null,null,null,null,null,null,null,null,null,null,null,null,null,null,null,null,null,null,null,null,null,null,null,null,null,null,null,null,null,null,null,null,null,null,null,null,null,null,null,null,null,null,null,null,null,null,null,null,null,null,null,null,null,null,null,null,null,null,null,null,null,null,null,null,null,null,null,null,null,null,null,null,null,null,null,null,null,null,null,null,null,null,null,null,null,null,null,null,null,null,null,null,null,null,null,null,null,null,null,null,null,null,null,null,null,null,null,null,null,null,null,null,null,null,null,null,null,null,null,null,null,null,null,null,null,null,null,null,null,null,null,null,null,null,null,null,null,null,null,null,null,null,null,null,null,null,null,null,null,null,null,null,null,null,null,null,null,null,null,null,null,null,null,null,null,null,null,null,null,null,null,null,null,null,null,null,null,null,null,null,null,null,null,null,null,null,null,null,null,null,null,null,null,null,null,null,null,null,null,null,null,null,null,null,null,null,null,null,null,null,null,null,null,null,null,null,null,null,null,null,null,null,null,null,null,null,null,null,null,null,null,null,null,null,null,null,null,null,null,null,null,null,null,null,null,null,null,null,null,null,null,null,null,null,null,null,null,null,null,null,null,null,null,null,null,null,null,null,null,null,null,null,null,null,null,null,null,null,null,null,null,null,null,null,null,null,null,null,null,null,null,null,null,null,null,null,null,null,null,null,null,null,null,null,null,null,null,null,null,null,null,null,null,null,null,null,null,null,null,null,null,null,null,null,null,null,null,null,null,null,null,null,null,null,null,null,null,null,null,null,null,null,null,null,null,null,null,null,null,null,null,null,null,null,null,null,null,null,null,null,null,null,null,null,null,null,null,null,null,null,null,null,null,null,null,null,null,null,null,null,null,null,null,null,null,null,null,null,null,null,null,null,null,null,null,null,null,null,null,null,null,null,null,null,null,null,null,null,null,null,null,null,null,null,null,null,null,null,null,null,null,null,null,null,null,null,null,null,null,null,null,null,null,null,null,null,null,null,null,null,null,null,null,null,null,null,null,null,null,null,null,null,null,null,null,null,null,null,null,null,null,null,null,null,null,null,null,null,null,null,null,null,null,null,null,null,null,null,null,null,null,null,null,null,null,null,null,null,null,null,null,null,null,null,null,null,null,null,null,null,null,null,null,null,null,null,null,null,null,null,null,null,null,null,null,null,null,null,null,null,null,null,null,null,null,null,null,null,null,null,null,null,null,null,null,null,null,null,null,null,null,null,null,null,null,null,null,null,null,null,null,null,null,null,null,null,null,null,null,null,null,null,null,null,null,null,null,null,null,null,null,null,null,null,null,null,null,null,null,null,null,null,null,null,null,null,null,null,null,null,null,null,null,null,null,null,null,null,null,null,null,null,null,null,null,null,null,null,null,null,null,null,null,null,null,null,null,null,null,null,null,null,null,null,null,null,null,null,null,null,null,null,null,null,null,null,null,null,null,null,null,null,null,null,null,null,null,null,null,null,null,null,null,null,null,null,null,null,null,null,null,null,null,null,null,null,null,null,null,null,null,null,null,null,null,null,null,null,null,null,null,null,null,null,null,null,null,null,null,null,null,null,null,null,null,null,null,null,null,null,null,null,null,null,null,null,null,null,null,null,null,null,null,null,null,null,null,null,null,null,null,null,null,null,null,null,null,null,null,null,null,null,null,null,null,null,null,null,null,null,null,null,null,null,null,null,null,null,null,null,null,null,null,null,null,null,null,null,null,null,null,null,null,null,null,null,null,null,null,null,null,null,null,null,null,null,null,null,null,null,null,null,null,null,null,null,null,null,null,null,null,null,null,null,null,null,null,null,null,null,null,null,null,null,null,null,null,null,null,null,null,null,null,null,null,null,null,null,null,null,null,null,null,null,null,null,null,null,null,null,null,null,null,null,null,null,null,null,null,null,null,null,null,null,null,null,null,null,null,null,null,null,null,null,null,null,null,null,null,null,null,null,null,null,null,null,null,null,null,null,null,null,null,null,null,null,null,null,null,null,null,null,null,null,null,null,null,null,null,null,null,null,null,null,null,null,null,null,null,null,null,null,null,null,null,null,null,null,null,null,null,null,null,null,null,null,null,null,null,null,null,null,null,null,null,null,null,null,null,null,null,null,null,null,null,null,null,null,null,null,null,null,null,null,null,null,null,null,null,null,null,null,null,null,null,null,null,null,null,null,null,null,null,null,null,null,null,null,null,null,null,null,null,null,null,null,null,null,null,null,null,null,null,null,null,null,null,null,null,null,null,null,null,null,null,null,null,null,null,null,null,null,null,null,null,null,null,null,null,null,null,null,null,null,null,null,null,null,null,null,null,null,null,null,null,null,null,null,null,null,null,null,null,null,null,null,null,null,null,null,null,null,null,null,null,null,null,null,null,null,null,null,null,null,null,null,null,null,null,null,null,null,null,null,null,null,null,null,null,null,null,null,null,null,null,null,null,null,null,null,null,null,null,null,null,null,null,null,null,null,null,null,null,null,null,null,null,null,null,null,null,null,null,null,null,null,null,null,null,null,null,null,null,null,null,null,null,null,null,null,null,null,null,null,null,null,null,null,null,null,null,null,null,null,null,null,null,null,null,null,null,null,null,null,null,null,null,null,null,null,null,null,null,null,null,null,null,null,null,null,null,null,null,null,null,null,null,null,null,null,null,null,null,null,null,null,null,null,null,null,null,null,null,null,null,null,null,null,null,null,null,null,null,null,null,null,null,null,null,null,null,null,null,null,null,null,null,null,null,null,null,null,null,null,null,null,null,null,null,null,null,null,null,null,null,null,null,null,null,null,null,null,null,null,null,null,null,null,null,null,null,null,null,null,null,null,null,null,null,null,null,null,null,null,null,null,null,null,null,null,null,null,null,null,null,null,null,null,null,null,null,null,null,null,null,null,null,null,null,null,null,null,null,null,null,null,null,null,null,null,null,null,null,null,null,null,null,null,null,null,null,null,null,null,null,null,null,null,null,null,null,null,null,null,null,null,null,null,null,null,null,null,null,null,null,null,null,null,null,null,null,null,null,null,null,null,null,null,null,null,null,null,null,null,null,null,null,null,null,null,null,null,null,null,null,null,null,null,null,null,null,null,null,null,null,null,null,null,null,null,null,null,null,null,null,null,null,null,null,null,null,null,null,null,null,null,null,null,null,null,null,null,null,null,null,null,null,null,null,null,null,null,null,null,null,null,null,null,null,null,null,null,null,null,null,null,null,null,null,null,null,null,null,null,null,null,null,null,null,null,null,null,null,null,null,null,null,null,null,null,null,null,null,null,null,null,null,null,null,null,null,null,null,null,null,null,null,null,null,null,null,null,null,null,null,null,null,null,null,null,null,null,null,null,null,null,null,null,null,null,null,null,null,null,null,null,null,null,null,null,null,null,null,null,null,null,null,null,null,null,null,null,null,null,null,null,null,null,null,null,null,null,null,null,null,null,null,null,null,null,null,null,null,null,null,null,null,null,null,null,null,null,null,null,null,null,null,null,null,null,null,null,null,null,null,null,null,null,null,null,null,null,null,null,null,null,null,null,null,null,null,null,null,null,null,null,null,null,null,null,null,null,null,null,null,null,null,null,null,null,null,null,null,null,null,null,null,null,null,null,null,null,null,null,null,null,null,null,null,null,null,null,null,null,null,null,null,null,null,null,null,null,null,null,null,null,null,null,null,null,null,null,null,null,null,null,null,null,null,null,null,null,null,null,null,null,null,null,null,null,null,null,null,null,null,null,null,null,null,null,null,null,null,null,null,null,null,null,null,null,null,null,null,null,null,null,null,null,null,null,null,null,null,null,null,null,null,null,null,null,null,null,null,null,null,null,null,null,null,null,null,null,null,null,null,null,null,null,null,null,null,null,null,null,null,null,null,null,null,null,null,null,null,null,null,null,null,null,null,null,null,null,null,null,null,null,null,null,null,null,null,null,null,null,null,null,null,null,null,null,null,null,null,null,null,null,null,null,null,null,null,null,null,null,null,null,null,null,null,null,null,null,null,null,null,null,null,null,null,null,null,null,null,null,null,null,null,null,null,null,null,null,null,null,null,null,null,null,null,null,null,null,null,null,null,null,null,null,null,null,null,null,null,null,null,null,null,null,null,null,null,null,null,null,null,null,null,null,null,null,null,null,null,null,null,null,null,null,null,null,null,null,null,null,null,null,null,null,null,null,null,null,null,null,null,null,null,null,null,null,null,null,null,null,null,null,null,null,null,null,null,null,null,null,null,null,null,null,null,null,null,null,null,null,null,null,null,null,null,null,null,null,null,null,null,null,null,null,null,null,null,null,null,null,null,null,null,null,null,null,null,null,null,null,null,null,null,null,null,null,null,null,null,null,null,null,null,null,null,null,null,null,null,null,null,null,null,null,null,null,null,null,null,null,null,null,null,null,null,null,null,null,null,null,null,null,null,null,null,null,null,null,null,null,null,null,null,null,null,null,null,null,null,null,null,null,null,null,null,null,null,null,null,null,null,null,null,null,null,null,null,null,null,null,null,null,null,null,null,null,null,null,null,null,null,null,null,null,null,null,null,null,null,null,null,null,null,null,null,null,null,null,null,null,null,null,null,null,null,null,null,null,null,null,null,null,null,null,null,null,null,null,null,null,null,null,null,null,null,null,null,null,null,null,null,null,null,null,null,null,null,null,null,null,null,null,null,null,null,null,null,null,null,null,null,null,null,null,null,null,null,null,null,null,null,null,null,null,null,null,null,null,null,null,null,null,null,null,null,null,null,null,null,null,null,null,null,null,null,null,null,null,null,null,null,null,null,null,null,null,null,null,null,null,null,null,null,null,null,null,null,null,null,null,null,null,null,null,null,null,null,null,null,null,null,null,null,null,null,null,null,null,null,null,null,null,null,null,null,null,null,null,null,null,null,null,null,null,null,null,null,null,null,null,null,null,null,null,null,null,null,null,null,null,null,null,null,null,null,null,null,null,null,null,null,null,null,null,null,null,null,null,null,null,null,null,null,null,null,null,null,null,null,null,null,null,null,null,null,null,null,null,null,null,null,null,null,null,null,null,null,null,null,null,null,null,null,null,null,null,null,null,null,null,null,null,null,null,null,null,null,null,null,null,null,null,null,null,null,null,null,null,null,null,null,null,null,null,null,null,null,null,null,null,null,null,null,null,null,null,null,null,null,null,null,null,null,null,null,null,null,null,null,null,null,null,null,null,null,null,null,null,null,null,null,null,null,null,null,null,null,null,null,null,null,null,null,null,null,null,null,null,null,null,null,null,null,null,null,null,null,null,null,null,null,null,null,null,null,null,null,null,null,null,null,null,null,null,null,null,null,null,null,null,null,null,null,null,null,null,null,null,null,null,null,null,null,null,null,null,null,null,null,null,null,null,null,null,null,null,null,null,null,null,null,null,null,null,null,null,null,null,null,null,null,null,null,null,null,null,null,null,null,null,null,null,null,null,null,null,null,null,null,null,null,null,null,null,null,null,null,null,null,null,null,null,null,null,null,null,null,null,null,null,null,null,null,null,null,null,null,null,null,null,null,null,null,null,null,null,null,null,null,null,null,null,null,null,null,null,null,null,null,null,null,null,null,null,null,null,null,null,null,null,null,null,null,null,null,null,null,null,null,null,null,null,null,null,null,null,null,null,null,null,null,null,null,null,null,null,null,null,null,null,null,null,null,null,null,null,null,null,null,null,null,null,null,null,null,null,null,null,null,null,null,null,null,null,null,null,null,null,null,null,null,null,null,null,null,null,null,null,null,null,null,null,null,null,null,null,null,null,null,null,null,null,null,null,null,null,null,null,null,null,null,null,null,null,null,null,null,null,null,null,null,null,null,null,null,null,null,null,null,null,null,null,null,null,null,null,null,null,null,null,null,null,null,null,null,null,null,null,null,null,null,null,null,null,null,null,null,null,null,null,null,null,null,null,null,null,null,null,null,null,null,null,null,null,false]
[]
["total targets",null,null,null,null,{"$f":"SUM(IF(check_hba1c,1,0),IF(check_chol,1,0),IF(check_sbp,1,0))","v":0},{"$f":"SUM(IF(check_hba1c_s1,1,0),IF(check_chol_s1,1,0),IF(check_sbp_s1,1,0))","v":1},{"$f":"SUM(IF(check_hba1c_s2,1,0),IF(check_chol_s2,1,0),IF(check_sbp_s2,1,0))","v":3}]
[]
[]
[]
[]
[]
[]
[]
[]
[]
[]
[]
[]
[]
[]
[]
[]
[]
[]
[]
[]
[]
[]
[]
[]
[]
[]
[]
[]
[]
[]
[]
[]
[]
[]
[]
[]
[]
[]
[]
[]
[]
[]
[]
[]
[]
[]
[]
[]
[]
[]
[]
[]
[]
[]
[]
[]
[]
[]
[]
[]
[]
[]
[]
[]
[]
[]
[]
[]
[]
[]
[]
[]
[]
[]
[]
[]
[]
[]
[]
[]
[]
[]
[]
[]
[]
[]
[]
[]
[]
[]
[]
[]
[]
[]
[]
[]
[]
[]
[]
[]
[]
[]
[]
[]
[]
[]
[]
[]
[]
[]
[]
[]
[]
[]
[]
[]
[]
[]
[]
[]
[]
[]
[]
[]
[]
[]
[]
[]
[]
[]
[]
[]
[]
[]
[]
[]
[]
[]
[]
[]
[]
[]
[]
[]
[]
[]
[]
[]
[]
[]
[]
[]
[]
[]
[]
[]
[]
[]
[]
[]
[]
[]
[]
[]
[]
[]
[]
[]
[]
[]
[]
[]
[]
[]
[]
[]
[]
[]
[]
[]
[]
[]
[]
[]
[]
[]
[]
[]
[]
[]
[]
[]
[]
[]
[]
[]
[]
[]
[]
[]
[]
[]
[]
[]
[]
[]
[]
[]
[]
[]
[]
[]
[]
[]
[]
[]
[]
[]
[]
[]
[]
[]
[]
[]
[]
[]
[]
[]
[]
[]
[]
[]
[]
[]
[]
[]
[]
[]
[]
[]
[]
[]
[]
[]
[]
[]
[]
[]
[]
[]
[]
[]
[]
[]
[]
[]
[]
[]
[]
[]
[]
[]
[]
[]
[]
[]
[]
[]
[]
[]
[]
[]
[]
[]
[]
[]
[]
[]
[]
[]
[]
[]
[]
[]
[]
[]
[]
[]
[]
[]
[]
[]
[]
[]
[]
[]
[]
[]
[]
[]
[]
[]
[]
[]
[]
[]
[]
[]
[]
[]
[]
[]
[]
[]
[]
[]
[]
[]
[]
[]
[]
[]
[]
[]
[]
[]
[]
[]
[]
[]
[]
[]
[]
[]
[]
[]
[]
[]
[]
[]
[]
[]
[]
[]
[]
[]
[]
[]
[]
[]
[]
[]
[]
[]
[]
[]
[]
[]
[]
[]
[]
[]
[]
[]
[]
[]
[]
[]
[]
[]
[]
[]
[]
[]
[]
[]
[]
[]
[]
[]
[]
[]
[]
[]
[]
[]
[]
[]
[]
[]
[]
[]
[]
[]
[]
[]
[]
[]
[]
[]
[]
[]
[]
[]
[]
[]
[]
[]
[]
[]
[]
[]
[]
[]
[]
[]
[]
[]
[]
[]
[]
[]
[]
[]
[]
[]
[]
[]
[]
[]
[]
[]
[]
[]
[]
[]
[]
[]
[]
[]
[]
[]
[]
[]
[]
[]
[]
[]
[]
[]
[]
[]
[]
[]
[]
[]
[]
[]
[]
[]
[]
[]
[]
[]
[]
[]
[]
[]
[]
[]
[]
[]
[]
[]
[]
[]
[]
[]
[]
[]
[]
[]
[]
[]
[]
[]
[]
[]
[]
[]
[]
[]
[]
[]
[]
[]
[]
[]
[]
[]
[]
[]
[]
[]
[]
[]
[]
[]
[]
[]
[]
[]
[]
[]
[]
[]
[]
[]
[]
[]
[]
[]
[]
[]
[]
[]
[]
[]
[]
[]
[]
[]
[]
[]
[]
[]
[]
[]
[]
[]
[]
[]
[]
[]
[]
[]
[]
[]
[]
[]
[]
[]
[]
[]
[]
[]
[]
[]
[]
[]
[]
[]
[]
[]
[]
[]
[]
[]
[]
[]
[]
[]
[]
[]
[]
[]
[]
[]
[]
[]
[]
[]
[]
[]
[]
[]
[]
[]
[]
[]
[]
[]
[]
[]
[]
[]
[]
[]
[]
[]
[]
[]
[]
[]
[]
[]
[]
[]
[]
[]
[]
[]
[]
[]
[]
[]
[]
[]
[]
[]
[]
[]
[]
[]
[]
[]
[]
[]
[]
[]
[]
[]
[]
[]
[]
[]
[]
[]
[]
[]
[]
[]
[]
[]
[]
[]
[]
[]
[]
[]
[]
[]
[]
[]
[]
[]
[]
[]
[]
[]
[]
[]
[]
[]
[]
[]
[]
[]
[]
[]
[]
[]
[]
[]
[]
[]
[]
[]
[]
[]
[]
[]
[]
[]
[]
[]
[]
[]
[]
[]
[]
[]
[]
[]
[]
[]
[]
[]
[]
[]
[]
[]
[]
[]
[]
[]
[]
[]
[]
[]
[]
[]
[]
[]
[]
[]
[]
[]
[]
[]
[]
[]
[]
[]
[]
[]
[]
[]
[]
[]
[]
[]
[]
[]
[]
[]
[]
[]
[]
[]
[]
[]
[]
[]
[]
[]
[]
[]
[]
[]
[]
[]
[]
[]
[]
[]
[]
[]
[]
[]
[]
[]
[]
[]
[]
[]
[]
[]
[]
[]
[]
[]
[]
[]
[]
[]
[]
[]
[]
[]
[]
[]
[]
[]
[]
[]
[]
[]
[]
[]
[]
[]
[]
[]
[]
[]
[]
[]
[]
[]
[]
[]
[]
[]
[]
[]
[]
[]
[]
[]
[]
[]
[]
[]
[]
[]
[]
[]
[]
[]
[]
[]
[]
[]
[]
[]
[]
[]
[]
[]
[]
[]
[]
[]
[]
[]
[]
[]
[]
[]
[]
[]
[]
[]
[]
[]
[]
[]
[]
[]
[]
[]
[]
[]
[]
[]
[]
[]
[]
[]
[]
[]
[]
[]
[]
[]
[]
[]
[]
[]
[]
[]
[]
[]
[]
[]
[]
[]
[]
[]
[]
[]
[]
[]
[]
[]
[]
[]
[]
[]
[]
[]
[]
[]
[]
[]
[]
[]
[]
[]
[]
[]
[]
[]
[]
[]
[]
[]
[]
[]
[]
[]
[]
[]
[]
[]
[]
[]
[]
[]
[]
[]
[]
[]
[]
[]
[]
[]
[]
[]
[]
[]
[]
[]
[]
[]
[]
[]
[]
[]
[]
[]
[]
[]
[]
[]
[]
[]
[]
[]
[]
[]
[]
[]
[]
[]
[]
[]
[]
[]
[]
[]
[]
[]
[]
[]
[]
[]
[]
[]
[]
[]
[]
[]
[]
[]
[]
[]
[]
[]
[]
[]
[]
[]
[]
[]
[]
[]
[]
[]
[]
[]
[]
[]
[]
[]
[]
[]
[]
[]
[]
[]
[]
[]
[]
[]
[]
[]
[]
[]
[]
[]
[]
[]
[]
[]
[]
[]
[]
[]
[]
[]
[]
[]
[]
[]
[]
[]
[]
[]
[]
[]
[]
[]
[]
[]
[]
[]
[]
[]
[]
[]
[]
[]
[]
[]
[]
[]
[]
[]
[]
[]
[]
[]
[]
[]
[]
[]
[]
[]
[]
[]
[]
[]
[]
[]
[]
[]
[]
[]
[]
[]
[]
[]
[]
[]
[]
[]
[]
[]
[]
[]
[]
[]
[]
[]
[]
[]
[]
[]
[]
[]
[]
[]
[]
[]
[]
[]
[]
[]
[]
[]
[]
[]
[]
[]
[]
[]
[]
[]
[]
[]
[]
[]
[]
[]
[]
[]
[]
[]
[]
[]
[]
[]
[]
[]
[]
[]
[]
[]
[]
[]
[]
[]
[]
[]
[]
[]
[]
[]
[]
[]
[]
[]
[]
[]
[]
[]
[]
[]
[]
[]
[]
[]
[]
[]
[]
[]
[]
[]
[]
[]
[]
[]
[]
[]
[]
[]
[]
[]
[]
[]
[]
[]
[]
[]
[]
[]
[]
[]
[]
[]
[]
[]
[]
[]
[]
[]
[]
[]
[]
[]
[]
[]
[]
[]
[]
[]
[]
[]
[]
[]
[]
[]
[]
[]
[]
[]
[]
[]
[]
[]
[]
[]
[]
[]
[]
[]
[]
[]
[]
[]
[]
[]
[]
[]
[]
[]
[]
[]
[]
[]
[]
[]
[]
[]
[]
[]
[]
[]
[]
[]
[]
[]
[]
[]
[]
[]
[]
[]
[]
[]
[]
[]
[]
[]
[]
[]
[]
[]
[]
[]
[]
[]
[]
[]
[]
[]
[]
[]
[]
[]
[]
[]
[]
[]
[]
[]
[]
[]
[]
[]
[]
[]
[]
[]
[]
[]
[]
[]
[]
[]
[]
[]
[]
[]
[]
[]
[]
[]
[]
[]
[]
[]
[]
[]
[]
[]
[]
[]
[]
[]
[]
[]
[]
[]
[]
[]
[]
[]
[]
[]
[]
[]
[]
[]
[]
[]
[]
[]
[]
[]
[]
[]
[]
[]
[]
[]
[]
[]
[]
[]
[]
[]
[]
[]
[]
[]
[]
[]
[]
[]
[]
[]
[]
[]
[]
[]
[]
[]
[]
[]
[]
[]
[]
[]
[]
[]
[]
[]
[]
[]
[]
[]
[]
[]
[]
[]
[]
[]
[]
[]
[]
[]
[]
[]
[]
[]
[]
[]
[]
[]
[]
[]
[]
[]
[]
[]
[]
[]
[]
[]
[]
[]
[]
[]
[]
[]
[]
[]
[]
[]
[]
[]
[]
[]
[]
[]
[]
[]
[]
[]
[]
[]
[]
[]
[]
[]
[]
[]
[]
[]
[]
[]
[]
[]
[]
[]
[]
[]
[]
[]
[]
[]
[]
[]
[]
[]
[]
[]
[]
[]
[]
[]
[]
[]
[]
[]
[]
[]
[]
[]
[]
[]
[]
[]
[]
[]
[]
[]
[]
[]
[]
[]
[]
[]
[]
[]
[]
[]
[]
[]
[]
[]
[]
[]
[]
[]
[]
[]
[]
[]
[]
[]
[]
[]
[]
[]
[]
[]
[]
[]
[]
[]
[]
[]
[]
[]
[]
[]
[]
[]
[]
[]
[]
[]
[]
[]
[]
[]
[]
[]
[]
[]
[]
[]
[]
[]
[]
[]
[]
[]
[]
[]
[]
[]
[]
[]
[]
[]
[]
[]
[]
[]
[]
[]
[]
[]
[]
[]
[]
[]
[]
[]
[]
[]
[]
[]
[]
[]
[]
[]
[]
[]
[]
[]
[]
[]
[]
[]
[]
[]
[]
[]
[]
[]
[]
[]
[]
[]
[]
[]
[]
[]
[]
[]
[]
[]
[]
[]
[]
[]
[]
[]
[]
[]
[]
[]
[]
[]
[]
[]
[]
[]
[]
[]
[]
[]
[]
[]
[]
[]
[]
[]
[]
[]
[]
[]
[]
[]
[]
[]
[]
[]
[]
[]
[]
[]
[]
[]
[]
[]
[]
[]
[]
[]
[]
[]
[]
[]
[]
[]
[]
[]
[]
[]
[]
[]
[]
[]
[]
[]
[]
[]
[]
[]
[]
[]
[]
[]
[]
[]
[]
[]
[]
[]
[]
[]
[]
[]
[]
[]
[]
[]
[]
[]
[]
[]
[]
[]
[]
[]
[]
[]
[]
[]
[]
[]
[]
[]
[]
[]
[]
[]
[]
[]
[]
[]
[]
[]
[]
[]
[]
[]
[]
[]
[]
[]
[]
[]
[]
[]
[]
[]
[]
[]
[]
[]
[]
[]
[]
[]
[]
[]
[]
[]
[]
[]
[]
[]
[]
[]
[]
[]
[]
[]
[]
[]
[]
[]
[]
[]
[]
[]
[]
[]
[]
[]
[]
[]
[]
[]
[]
[]
[]
[]
[]
[]
[]
[]
[]
[]
[]
[]
[]
[]
[]
[]
[]
[]
[]
[]
[]
[]
[]
[]
[]
[]
[]
[]
[]
[]
[]
[]
[]
[]
[]
[]
[]
[]
[]
[]
[]
[]
[]
[]
[]
[]
[]
[]
[]
[]
[]
[]
[]
[]
[]
[]
[]
[]
[]
[]
[]
[]
[]
[]
[]
[]
[]
[]
[]
[]
[]
[]
[]
[]
[]
[]
[]
[]
[]
[]
[]
[]
[]
[]
[]
[]
[]
[]
[]
[]
[]
[]
[]
[]
[]
[]
[]
[]
[]
[]
[]
[]
[]
[]
[]
[]
[]
[]
[]
[]
[]
[]
[]
[]
[]
[]
[]
[]
[]
[]
[]
[]
[]
[]
[]
[]
[]
[]
[]
[]
[]
[]
[]
[]
[]
[]
[]
[]
[]
[]
[]
[]
[]
[]
[]
[]
[]
[]
[]
[]
[]
[]
[]
[]
[]
[]
[]
[]
[]
[]
[]
[]
[]
[]
[]
[]
[]
[]
[]
[]
[]
[]
[]
[]
[]
[]
[]
[]
[]
[]
[]
[]
[]
[]
[]
[]
[]
[]
[]
[]
[]
[]
[]
[]
[]
[]
[]
[]
[]
[]
[]
[]
[]
[]
[]
[]
[]
[]
[]
[]
[]
[]
[]
[]
[]
[]
[]
[]
[]
[]
[]
[]
[]
[]
[]
[]
[]
[]
[]
[]
[]
[]
[]
[]
[]
[]
[]
[]
[]
[]
[]
[]
[]
[]
[]
[]
[]
[]
[]
[]
[]
[]
[]
[]
[]
[]
[]
[]
[]
[]
[]
[]
[]
[]
[]
[]
[]
[]
[]
[]
[]
[]
[]
[]
[]
[]
[]
[]
[]
[]
[]
[]
[]
[]
[]
[]
[]
[]
[]
[]
[]
[]
[]
[]
[]
[]
[]
[]
[]
[]
[]
[]
[]
[]
[]
[]
[]
[]
[]
[]
[]
[]
[]
[]
[]
[]
[]
[]
[]
[]
[]
[]
[]
[]
[]
[]
[]
[]
[]
[]
[]
[]
[]
[]
[]
[]
[]
[]
[]
[]
[]
[]
[]
[]
[]
[]
[]
[]
[]
[]
[]
[]
[]
[]
[]
[]
[]
[]
[]
[]
[]
[]
[]
[]
[]
[]
[]
[]
[]
[]
[]
[]
[]
[]
[]
[]
[]
[]
[]
[]
[]
[]
[]
[]
[]
[]
[]
[]
[]
[]
[]
[]
[]
[]
[]
[]
[]
[]
[]
[]
[]
[]
[]
[]
[]
[]
[]
[]
[]
[]
[]
[]
[]
[]
[]
[]
[]
[]
[]
[]
[]
[]
[]
[]
[]
[]
[]
[]
[]
[]
[]
[]
[]
[]
[]
[]
[]
[]
[]
[]
[]
[]
[]
[]
[]
[]
[]
[]
[]
[]
[]
[]
[]
[]
[]
[]
[]
[]
[]
[]
[]
[]
[]
[]
[]
[]
[]
[]
[]
[]
[]
[]
[]
[]
[]
[]
[]
[]
[]
[]
[]
[]
[]
[]
[]
[]
[]
[]
[]
[]
[]
[]
[]
[]
[]
[]
[]
[]
[]
[]
[]
[]
[]
[]
[]
[]
[]
[]
[]
[]
[]
[]
[]
[]
[]
[]
[]
[]
[]
[]
[]
[]
[]
[]
[]
[]
[]
[]
[]
[]
[]
[]
[]
[]
[]
[]
[]
[]
[]
[]
[]
[]
[]
[]
[]
[]
[]
[]
[]
[]
[]
[]
[]
[]
[]
[]
[]
[]
[]
[]
[]
[]
[]
[]
[]
[]
[]
[]
[]
[]
[]
[]
[]
[]
[]
[]
[]
[]
[]
[]
[]
[]
[]
[]
[]
[]
[]
[]
[]
[]
[]
[]
[]
[]
[]
[]
[]
[]
[]
[]
[]
[]
[]
[]
[]
[]
[]
[]
[]
[]
[]
[]
[]
[]
[]
[]
[]
[]
[]
[]
[]
[]
[]
[]
[]
[]
[]
[]
[]
[]
[]
[]
[]
[]
[]
[]
[]
[]
[]
[]
[]
[]
[]
[]
[]
[]
[]
[]
[]
[]
[]
[]
[]
[]
[]
[]
[]
[]
[]
[]
[]
[]
[]
[]
[]
[]
[]
[]
[]
[]
[]
[]
[]
[]
[]
[]
[]
[]
[]
[]
[]
[]
[]
[]
[]
[]
[]
[]
[]
[]
[]
[]
[]
[]
[]
[]
[]
[]
[]
[]
[]
[]
[]
[]
[]
[]
[]
[]
[]
[]
[]
[]
[]
[]
[]
[]
[]
[]
[]
[]
[]
[]
[]
[]
[]
[]
[]
[]
[]
[]
[]
[]
[]
[]
[]
[]
[]
[]
[]
[]
[]
[]
[]
[]
[]
[]
[]
[]
[]
[]
[]
[]
[]
[]
[]
[]
[]
[]
[]
[]
[]
[]
[]
[]
[]
[]
[]
[]
[]
[]
[]
[]
[]
[]
[]
[]
[]
[]
[]
[]
[]
[]
[]
[]
[]
[]
[]
[]
[]
[]
[]
[]
[]
[]
[]
[]
[]
[]
[]
[]
[]
[]
[]
[]
[]
[]
[]
[]
[]
[]
[]
[]
[]
[]
[]
[]
[]
[]
[]
[]
[]
[]
[]
[]
[]
[]
[]
[]
[]
[]
[]
[]
[]
[]
[]
[]
[]
[]
[]
[]
[]
[]
[]
[]
[]
[]
[]
[]
[]
[]
[]
[]
[]
[]
[]
[]
[]
[]
[]
[]
[]
[]
[]
[]
[]
[]
[]
[]
[]
[]
[]
[]
[]
[]
[]
[]
[]
[]
[]
[]
[]
[]
[]
[]
[]
[]
[]
[]
[]
[]
[]
[]
[]
[]
[]
[]
[]
[]
[]
[]
[]
[]
[]
[]
[]
[]
[]
[]
[]
[]
[]
[]
[]
[]
[]
[]
[]
[]
[]
[]
[]
[]
[]
[]
[]
[]
[]
[]
[]
[]
[]
[]
[]
[]
[]
[]
[]
[]
[]
[]
[]
[]
[]
[]
[]
[]
[]
[]
[]
[]
[]
[]
[]
[]
[]
[]
[]
[]
[]
[]
[]
[]
[]
[]
[]
[]
[]
[]
[]
[]
[]
[]
[]
[]
[]
[]
[]
[]
[]
[]
[]
[]
[]
[]
[]
[]
[]
[]
[]
[]
[]
[]
[]
[]
[]
[]
[]
[]
[]
[]
[]
[]
[]
[]
[]
[]
[]
[]
[]
[]
[]
[]
[]
[]
[]
[]
[]
[]
[]
[]
[]
[]
[]
[]
[]
[]
[]
[]
[]
[]
[]
[]
[]
[]
[]
[]
[]
[]
[]
[]
[]
[]
[]
[]
[]
[]
[]
[]
[]
[]
[]
[]
[]
[]
[]
[]
[]
[]
[]
[]
[]
[]
[]
[]
[]
[]
[]
[]
[]
[]
[]
[]
[]
[]
[]
[]
[]
[]
[]
[]
[]
[]
[]
[]
[]
[]
[]
[]
[]
[]
[]
[]
[]
[]
[]
[]
[]
[]
[]
[]
[]
[]
[]
[]
[]
[]
[]
[]
[]
[]
[]
[]
[]
[]
[]
[]
[]
[]
[]
[]
[]
[]
[]
[]
[]
[]
[]
[]
[]
[]
[]
[]
[]
[]
[]
[]
[]
[]
[]
[]
[]
[]
[]
[]
[]
[]
[]
[]
[]
[]
[]
[]
[]
[]
[]
[]
[]
[]
[]
[]
[]
[]
[]
[]
[]
[]
[]
[]
[]
[]
[]
[]
[]
[]
[]
[]
[]
[]
[]
[]
[]
[]
[]
[]
[]
[]
[]
[]
[]
[]
[]
[]
[]
[]
[]
[]
[]
[]
[]
[]
[]
[]
[]
[]
[]
[]
[]
[]
[]
[]
[]
[]
[]
[]
[]
[]
[]
[]
[]
[]
[]
[]
[]
[]
[]
[]
[]
[]
[]
[]
[]
[]
[]
[]
[]
[]
[]
[]
[]
[]
[]
[]
[]
[]
[]
[]
[]
[]
[]
[]
[]
[]
[]
[]
[]
[]
[]
[]
[]
[]
[]
[]
[]
[]
[]
[]
[]
[]
[]
[]
[]
[]
[]
[]
[]
[]
[]
[]
[]
[]
[]
[]
[]
[]
[]
[]
[]
[]
[]
[]
[]
[]
[]
[]
[]
[]
[]
[]
[]
[]
[]
[]
[]
[]
[]
[]
[]
[]
[]
[]
[]
[]
[]
[]
[]
[]
[]
[]
[]
[]
[]
[]
[]
[]
[]
[]
[]
[]
[]
[]
[]
[]
[]
[]
[]
[]
[]
[]
[]
[]
[]
[]
[]
[]
[]
[]
[]
[]
[]
[]
[]
[]
[]
[]
[]
[]
[]
[]
[]
[]
[]
[]
[]
[]
[]
[]
[]
[]
[]
[]
[]
[]
[]
[]
[]
[]
[]
[]
[]
[]
[]
[]
[]
[]
[]
[]
[]
[]
[]
[]
[]
[]
[]
[]
[]
[]
[]
[]
[]
[]
[]
[]
[]
[]
[]
[]
[]
[]
[]
[]
[]
[]
[]
[]
[]
[]
[]
[]
[]
[]
[]
[]
[]
[]
[]
[]
[]
[]
[]
[]
[]
[]
[]
[]
[]
[]
[]
[]
[]
[]
[]
[]
[]
[]
[]
[]
[]
[]
[]
[]
[]
[]
[]
[]
[]
[]
[]
[]
[]
[]
[]
[]
[]
[]
[]
[]
[]
[]
[]
[]
[]
[]
[]
[]
[]
[]
[]
[]
[]
[]
[]
[]
[]
[]
[]
[]
[]
[]
[]
[]
[]
[]
[]
[]
[]
[]
[]
[]
[]
[]
[]
[]
[]
[]
[]
[]
[]
[]
[]
[]
[]
[]
[]
[]
[]
[]
[]
[]
[]
[]
[]
[]
[]
[]
[]
[]
[]
[]
[]
[]
[]
[]
[]
[]
[]
[]
[]
[]
[]
[]
[]
[]
[]
[]
[]
[]
[]
[]
[]
[]
[]
[]
[]
[]
[]
[]
[]
[]
[]
[]
[]
[]
[]
[]
[]
[]
[]
[]
[]
[]
[]
[]
[]
[]
[]
[]
[]
[]
[]
[]
[]
[]
[]
[]
[]
[]
[]
[]
[]
[]
[]
[]
[]
[]
[]
[]
[]
[]
[]
[]
[]
[]
[]
[]
[]
[]
[]
[]
[]
[]
[]
[]
[]
[]
[]
[]
[]
[]
[]
[]
[]
[]
[]
[]
[]
[]
[]
[]
[]
[]
[]
[]
[]
[]
[]
[]
[]
[]
[]
[]
[]
[]
[]
[]
[]
[]
[]
[]
[]
[]
[]
[]
[]
[]
[]
[]
[]
[]
[]
[]
[]
[]
[]
[]
[]
[]
[]
[]
[]
[]
[]
[]
[]
[]
[]
[]
[]
[]
[]
[]
[]
[]
[]
[]
[]
[]
[]
[]
[]
[]
[]
[]
[]
[]
[]
[]
[]
[]
[]
[]
[]
[]
[]
[]
[]
[]
[]
[]
[]
[]
[]
[]
[]
[]
[]
[]
[]
[]
[]
[]
[]
[]
[]
[]
[]
[]
[]
[]
[]
[]
[]
[]
[]
[]
[]
[]
[]
[]
[]
[]
[]
[]
[]
[]
[]
[]
[]
[]
[]
[]
[]
[]
[]
[]
[]
[]
[]
[]
[]
[]
[]
[]
[]
[]
[]
[]
[]
[]
[]
[]
[]
[]
[]
[]
[]
[]
[]
[]
[]
[]
[]
[]
[]
[]
[]
[]
[]
[]
[]
[]
[]
[]
[]
[]
[]
[]
[]
[]
[]
[]
[]
[]
[]
[]
[]
[]
[]
[]
[]
[]
[]
[]
[]
[]
[]
[]
[]
[]
[]
[]
[]
[]
[]
[]
[]
[]
[]
[]
[]
[]
[]
[]
[]
[]
[]
[]
[]
[]
[]
[]
[]
[]
[]
[]
[]
[]
[]
[]
[]
[]
[]
[]
[]
[]
[]
[]
[]
[]
[]
[]
[]
[]
[]
[]
[]
[]
[]
[]
[]
[]
[]
[]
[]
[]
[]
[]
[]
[]
[]
[]
[]
[]
[]
[]
[]
[]
[]
[]
[]
[]
[]
[]
[]
[]
[]
[]
[]
[]
[]
[]
[]
[]
[]
[]
[]
[]
[]
[]
[]
[]
[]
[]
[]
[]
[]
[]
[]
[]
[]
[]
[]
[]
[]
[]
[]
[]
[]
[]
[]
[]
[]
[]
[]
[]
[]
[]
[]
[]
[]
[]
[]
[]
[]
[]
[]
[]
[]
[]
[]
[]
[]
[]
[]
[]
[]
[]
[]
[]
[]
[]
[]
[]
[]
[]
[]
[]
[]
[]
[]
[]
[]
[]
[]
[]
[]
[]
[]
[]
[]
[]
[]
[]
[]
[]
[]
[]
[]
[]
[]
[]
[]
[]
[]
[]
[]
[]
[]
[]
[]
[]
[]
[]
[]
[]
[]
[]
[]
[]
[]
[]
[]
[]
[]
[]
[]
[]
[]
[]
[]
[]
[]
[]
[]
[]
[]
[]
[]
[]
[]
[]
[]
[]
[]
[]
[]
[]
[]
[]
[]
[]
[]
[]
[]
[]
[]
[]
[]
[]
[]
[]
[]
[]
[]
[]
[]
[]
[]
[]
[]
[]
[]
[]
[]
[]
[]
[]
[]
[]
[]
[]
[]
[]
[]
[]
[]
[]
[]
[]
[]
[]
[]
[]
[]
[]
[]
[]
[]
[]
[]
[]
[]
[]
[]
[]
[]
[]
[]
[]
[]
[]
[]
[]
[]
[]
[]
[]
[]
[]
[]
[]
[]
[]
[]
[]
[]
[]
[]
[]
[]
[]
[]
[]
[]
[]
[]
[]
[]
[]
[]
[]
[]
[]
[]
[]
[]
[]
[]
[]
[]
[]
[]
[]
[]
[]
[]
[]
[]
[]
[]
[]
[]
[]
[]
[]
[]
[]
[]
[]
[]
[]
[]
[]
[]
[]
[]
[]
[]
[]
[]
[]
[]
[]
[]
[]
[]
[]
[]
[]
[]
[]
[]
[]
[]
[]
[]
[]
[]
[]
[]
[]
[]
[]
[]
[]
[]
[]
[]
[]
[]
[]
[]
[]
[]
[]
[]
[]
[]
[]
[]
[]
[]
[]
[]
[]
[]
[]
[]
[]
[]
[]
[]
[]
[]
[]
[]
[]
[]
[]
[]
[]
[]
[]
[]
[]
[]
[]
[]
[]
[]
[]
[]
[]
[]
[]
[]
[]
[]
[]
[]
[]
[]
[]
[]
[]
[]
[]
[]
[]
[]
[]
[]
[]
[]
[]
[]
[]
[]
[]
[]
[]
[]
[]
[]
[]
[]
[]
[]
[]
[]
[]
[]
[]
[]
[]
[]
[]
[]
[]
[]
[]
[]
[]
[]
[]
[]
[]
[]
[]
[]
[]
[]
[]
[]
[]
[]
[]
[]
[]
[]
[]
[]
[]
[]
[]
[]
[]
[]
[]
[]
[]
[]
[]
[]
[]
[]
[]
[]
[]
[]
[]
[]
[]
[]
[]
[]
[]
[]
[]
[]
[]
[]
[]
[]
[]
[]
[]
[]
[]
[]
[]
[]
[]
[]
[]
[]
[]
[]
[]
[]
[]
[]
[]
[]
[]
[]
[]
[]
[]
[]
[]
[]
[]
[]
[]
[]
[]
[]
[]
[]
[]
[]
[]
[]
[]
[]
[]
[]
[]
[]
[]
[]
[]
[]
[]
[]
[]
[]
[]
[]
[]
[]
[]
[]
[]
[]
[]
[]
[]
[]
[]
[]
[]
[]
[]
[]
[]
[]
[]
[]
[]
[]
[]
[]
[]
[]
[]
[]
[]
[]
[]
[]
[]
[]
[]
[]
[]
[]
[]
[]
[]
[]
[]
[]
[]
[]
[]
[]
[]
[]
[]
[]
[]
[]
[]
[]
[]
[]
[]
[]
[]
[]
[]
[]
[]
[]
[]
[]
[]
[]
[]
[]
[]
[]
[]
[]
[]
[]
[]
[]
[]
[]
[]
[]
[]
[]
[]
[]
[]
[]
[]
[]
[]
[]
[]
[]
[]
[]
[]
[]
[]
[]
[]
[]
[]
[]
[]
[]
[]
[]
[]
[]
[]
[]
[]
[]
[]
[]
[]
[]
[]
[]
[]
[]
[]
[]
[]
[]
[]
[]
[]
[]
[]
[]
[]
[]
[]
[]
[]
[]
[]
[]
[]
[]
[]
[]
[]
[]
[]
[]
[]
[]
[]
[]
[]
[]
[]
[]
[]
[]
[]
[]
[]
[]
[]
[]
[]
[]
[]
[]
[]
[]
[]
[]
[]
[]
[]
[]
[]
[]
[]
[]
[]
[]
[]
[]
[]
[]
[]
[]
[]
[]
[]
[]
[]
[]
[]
[]
[]
[]
[]
[]
[]
[]
[]
[]
[]
[]
[]
[]
[]
[]
[]
[]
[]
[]
[]
[]
[]
[]
[]
[]
[]
[]
[]
[]
[]
[]
[]
[]
[]
[]
[]
[]
[]
[]
[]
[]
[]
[]
[]
[]
[]
[]
[]
[]
[]
[]
[]
[]
[]
[]
[]
[]
[]
[]
[]
[]
[]
[]
[]
[]
[]
[]
[]
[]
[]
[]
[]
[]
[]
[]
[]
[]
[]
[]
[]
[]
[]
[]
[]
[]
[]
[]
[]
[]
[]
[]
[]
[]
[]
[]
[]
[]
[]
[]
[]
[]
[]
[]
[]
[]
[]
[]
[]
[]
[]
[]
[]
[]
[]
[null,null,null,null,true]
[null,null,null,null,false]

{"sheet":"output.ind","index":2,"n_rows":51,"n_cols":12,"rows_kept":51,"cut":false,"hidden":true,"merged":[]}
[]
[]
[]
[]
[]
[]
[null,null,null,null,{"$f":"pat_name","v":"Baseline - Meet no targets"},{"$f":"pat_name_s1","v":"Meet BP target only"},{"$f":"pat_name_s2","v":"Meet all three targets"},null,null,null,"label_s1","label_s2"]
[null,null,"Total cost","Lifetime",{"$f":"pat_cost_70","v":37679.999977594423},{"$f":"pat_s1_cost_70","v":36922.126974626764},{"$f":"pat_s2_cost_70","v":36777.266928935569},null,null,null,{"$f":"TEXT(pat_s1_cost_70,\"#,###\")& \" (\"& TEXT(pat_s1_cost_70-pat_cost_70, \"+#,##0;-#,##0\") &\")\"","v":"36,922 (-758)"},{"$f":"TEXT(pat_s2_cost_70,\"#,###\")& \" (\"& TEXT(pat_s2_cost_70-pat_cost_70, \"+#,##0;-#,##0\") &\")\"","v":"36,777 (-903)"}]
[null,null,null,"10-year",{"$f":"pat_cost_10","v":18516.004412240618},{"$f":"pat_s1_cost_10","v":18000.632952196866},{"$f":"pat_s2_cost_10","v":17455.771728303498},null,null,null,{"$f":"TEXT(pat_s1_cost_10,\"#,###\")& \" (\"& TEXT(pat_s1_cost_10-pat_cost_10, \"+#,##0;-#,##0\") &\")\"","v":"18,001 (-515)"},{"$f":"TEXT(pat_s2_cost_10,\"#,###\")& \" (\"& TEXT(pat_s2_cost_10-pat_cost_10, \"+#,##0;-#,##0\") &\")\"","v":"17,456 (-1,060)"}]
[]
[null,null,null,null,{"$f":"pat_name","v":"Baseline - Meet no targets"},{"$f":"pat_name_s1","v":"Meet BP target only"},{"$f":"pat_name_s2","v":"Meet all three targets"}]
[null,null,"LYs","Lifetime",{"$f":"pat_lifeyr_70","v":14.955356549501277},{"$f":"pat_s1_lifeyr_70","v":15.523189188398044},{"$f":"pat_s2_lifeyr_70","v":16.74982901449016},null,null,null,{"$f":"ROUND(pat_s1_lifeyr_70,1)& \" (\"& TEXT(pat_s1_lifeyr_70-pat_lifeyr_70,\"+0.00;-0.00\") &\")\"","v":"15.5 (+0.57)"},{"$f":"ROUND(pat_s2_lifeyr_70,1)& \" (\"& TEXT(pat_s2_lifeyr_70-pat_lifeyr_70,\"+0.00;-0.00\") &\")\"","v":"16.7 (+1.79)"}]
[null,null,null,"10-year",{"$f":"pat_lifeyr_10","v":8.4235737866816045},{"$f":"pat_s1_lifeyr_10","v":8.592664739918316},{"$f":"pat_s2_lifeyr_10","v":8.8695052193094135},null,null,null,{"$f":"ROUND(pat_s1_lifeyr_10,1)& \" (\"& TEXT(pat_s1_lifeyr_10-pat_lifeyr_10,\"+0.00;-0.00\") &\")\"","v":"8.6 (+0.17)"},{"$f":"ROUND(pat_s2_lifeyr_10,1)& \" (\"& TEXT(pat_s2_lifeyr_10-pat_lifeyr_10,\"+0.00;-0.00\") &\")\"","v":"8.9 (+0.45)"}]
[null,null,"QALYs","Lifetime",{"$f":"pat_qaly_70","v":11.683722339291885},{"$f":"pat_s1_qaly_70","v":12.189991250828488},{"$f":"pat_s2_qaly_70","v":13.243256574993508},null,null,null,{"$f":"ROUND(pat_s1_qaly_70,1)& \" (\"& TEXT(pat_s1_qaly_70-pat_qaly_70,\"+0.00;-0.00\") &\")\"","v":"12.2 (+0.51)"},{"$f":"ROUND(pat_s2_qaly_70,1)& \" (\"& TEXT(pat_s2_qaly_70-pat_qaly_70,\"+0.00;-0.00\") &\")\"","v":"13.2 (+1.56)"}]
[null,null,null,"10-year",{"$f":"pat_qaly_10","v":6.6571196231224761},{"$f":"pat_s1_qaly_10","v":6.8198821303954542},{"$f":"pat_s2_qaly_10","v":7.0729285257159251},null,null,null,{"$f":"ROUND(pat_s1_qaly_10,1)& \" (\"& TEXT(pat_s1_qaly_10-pat_qaly_10,\"+0.00;-0.00\") &\")\"","v":"6.8 (+0.16)"},{"$f":"ROUND(pat_s2_qaly_10,1)& \" (\"& TEXT(pat_s2_qaly_10-pat_qaly_10,\"+0.00;-0.00\") &\")\"","v":"7.1 (+0.42)"}]
[]
[null,null,null,null,{"$f":"pat_name","v":"Baseline - Meet no targets"},{"$f":"pat_name_s1","v":"Meet BP target only"},{"$f":"pat_name_s2","v":"Meet all three targets"}]
[null,null,"All-cause death","Lifetime",{"$f":"pat_alldeath_70","v":99.995391700306499},{"$f":"pat_s1_alldeath_70","v":99.99539127966716},{"$f":"pat_s2_alldeath_70","v":99.995366266014656},null,null,null,{"$f":"ROUND(pat_s1_alldeath_70,1)& \" (\"& TEXT(pat_s1_alldeath_70-pat_alldeath_70,\"+0.0;-0.0\") &\")\"","v":"100 (-0.0)"},{"$f":"ROUND(pat_s2_alldeath_70,1)& \" (\"& TEXT(pat_s2_alldeath_70-pat_alldeath_70,\"+0.0;-0.0\") &\")\"","v":"100 (-0.0)"}]
[null,null,"All-cause death","10-year",{"$f":"pat_alldeath_10","v":31.462770402503754},{"$f":"pat_s1_alldeath_10","v":29.447419687097039},{"$f":"pat_s2_alldeath_10","v":25.444591865657053},null,null,null,{"$f":"ROUND(pat_s1_alldeath_10,1)& \" (\"& TEXT(pat_s1_alldeath_10-pat_alldeath_10,\"+0.0;-0.0\") &\")\"","v":"29.4 (-2.0)"},{"$f":"ROUND(pat_s2_alldeath_10,1)& \" (\"& TEXT(pat_s2_alldeath_10-pat_alldeath_10,\"+0.0;-0.0\") &\")\"","v":"25.4 (-6.0)"}]
[null,null,"CV death","Lifetime",{"$f":"pat_cvddeath_70","v":40.468879361988812},{"$f":"pat_s1_cvddeath_70","v":37.440254409053438},{"$f":"pat_s2_cvddeath_70","v":30.291825375510857},null,null,null,{"$f":"ROUND(pat_s1_cvddeath_70,1)& \" (\"& TEXT(pat_s1_cvddeath_70-pat_cvddeath_70,\"+0.0;-0.0\") &\")\"","v":"37.4 (-3.0)"},{"$f":"ROUND(pat_s2_cvddeath_70,1)& \" (\"& TEXT(pat_s2_cvddeath_70-pat_cvddeath_70,\"+0.0;-0.0\") &\")\"","v":"30.3 (-10.2)"}]
[null,null,null,"10-year",{"$f":"pat_cvddeath_10","v":15.740995847110749},{"$f":"pat_s1_cvddeath_10","v":13.938386753559016},{"$f":"pat_s2_cvddeath_10","v":10.314929910925438},null,null,null,{"$f":"ROUND(pat_s1_cvddeath_10,1)& \" (\"& TEXT(pat_s1_cvddeath_10-pat_cvddeath_10,\"+0.0;-0.0\") &\")\"","v":"13.9 (-1.8)"},{"$f":"ROUND(pat_s2_cvddeath_10,1)& \" (\"& TEXT(pat_s2_cvddeath_10-pat_cvddeath_10,\"+0.0;-0.0\") &\")\"","v":"10.3 (-5.4)"}]
[]
[null,null,null,null,{"$f":"pat_name","v":"Baseline - Meet no targets"},{"$f":"pat_name_s1","v":"Meet BP target only"},{"$f":"pat_name_s2","v":"Meet all three targets"}]
[null,null,"Myocardial infarction","Lifetime",{"$f":"pat_mi_70","v":28.539300476387279},{"$f":"pat_s1_mi_70","v":27.004545150151067},{"$f":"pat_s2_mi_70","v":20.368934503035121},null,null,null,{"$f":"ROUND(pat_s1_mi_70,1)& \" (\"& TEXT(pat_s1_mi_70-pat_mi_70,\"+0.0;-0.0\") &\")\"","v":"27 (-1.5)"},{"$f":"ROUND(pat_s2_mi_70,1)& \" (\"& TEXT(pat_s2_mi_70-pat_mi_70,\"+0.0;-0.0\") &\")\"","v":"20.4 (-8.2)"}]
[null,null,null,"10-year",{"$f":"pat_mi_10","v":15.478228169665895},{"$f":"pat_s1_mi_10","v":14.249121960257865},{"$f":"pat_s2_mi_10","v":10.075909121668735},null,null,null,{"$f":"ROUND(pat_s1_mi_10,1)& \" (\"& TEXT(pat_s1_mi_10-pat_mi_10,\"+0.0;-0.0\") &\")\"","v":"14.2 (-1.2)"},{"$f":"ROUND(pat_s2_mi_10,1)& \" (\"& TEXT(pat_s2_mi_10-pat_mi_10,\"+0.0;-0.0\") &\")\"","v":"10.1 (-5.4)"}]
[null,null,"Stroke","Lifetime",{"$f":"pat_stroke_70","v":17.308133581515307},{"$f":"pat_s1_stroke_70","v":13.022040500932929},{"$f":"pat_s2_stroke_70","v":9.7350442176826597},null,null,null,{"$f":"ROUND(pat_s1_stroke_70,1)& \" (\"& TEXT(pat_s1_stroke_70-pat_stroke_70,\"+0.0;-0.0\") &\")\"","v":"13 (-4.3)"},{"$f":"ROUND(pat_s2_stroke_70,1)& \" (\"& TEXT(pat_s2_stroke_70-pat_stroke_70,\"+0.0;-0.0\") &\")\"","v":"9.7 (-7.6)"}]
[null,null,null,"10-year",{"$f":"pat_stroke_10","v":8.0586270338790662},{"$f":"pat_s1_stroke_10","v":5.8309421828232111},{"$f":"pat_s2_stroke_10","v":4.1228320461239978},null,null,null,{"$f":"ROUND(pat_s1_stroke_10,1)& \" (\"& TEXT(pat_s1_stroke_10-pat_stroke_10,\"+0.0;-0.0\") &\")\"","v":"5.8 (-2.2)"},{"$f":"ROUND(pat_s2_stroke_10,1)& \" (\"& TEXT(pat_s2_stroke_10-pat_stroke_10,\"+0.0;-0.0\") &\")\"","v":"4.1 (-3.9)"}]
[null,null,"Heart failure","Lifetime",{"$f":"pat_hf_70","v":9.0723361869420351},{"$f":"pat_s1_hf_70","v":9.4581706915605217},{"$f":"pat_s2_hf_70","v":8.832254986995391},null,null,null,{"$f":"ROUND(pat_s1_hf_70,1)& \" (\"& TEXT(pat_s1_hf_70-pat_hf_70,\"+0.0;-0.0\") &\")\"","v":"9.5 (+0.4)"},{"$f":"ROUND(pat_s2_hf_70,1)& \" (\"& TEXT(pat_s2_hf_70-pat_hf_70,\"+0.0;-0.0\") &\")\"","v":"8.8 (-0.2)"}]
[null,null,null,"10-year",{"$f":"pat_hf_10","v":4.0300001023426919},{"$f":"pat_s1_hf_10","v":4.0926262130691606},{"$f":"pat_s2_hf_10","v":3.6433894007001104},null,null,null,{"$f":"ROUND(pat_s1_hf_10,1)& \" (\"& TEXT(pat_s1_hf_10-pat_hf_10,\"+0.0;-0.0\") &\")\"","v":"4.1 (+0.1)"},{"$f":"ROUND(pat_s2_hf_10,1)& \" (\"& TEXT(pat_s2_hf_10-pat_hf_10,\"+0.0;-0.0\") &\")\"","v":"3.6 (-0.4)"}]
[null,null,"Ischaemic heart disease","Lifetime",{"$f":"pat_ihd_70","v":20.633007705401198},{"$f":"pat_s1_ihd_70","v":19.462505637153527},{"$f":"pat_s2_ihd_70","v":16.012064350693251},null,null,null,{"$f":"ROUND(pat_s1_ihd_70,1)& \" (\"& TEXT(pat_s1_ihd_70-pat_ihd_70,\"+0.0;-0.0\") &\")\"","v":"19.5 (-1.2)"},{"$f":"ROUND(pat_s2_ihd_70,1)& \" (\"& TEXT(pat_s2_ihd_70-pat_ihd_70,\"+0.0;-0.0\") &\")\"","v":"16 (-4.6)"}]
[null,null,null,"10-year",{"$f":"pat_ihd_10","v":10.485808307077864},{"$f":"pat_s1_ihd_10","v":9.6218633993696088},{"$f":"pat_s2_ihd_10","v":7.5136762061098779},null,null,null,{"$f":"ROUND(pat_s1_ihd_10,1)& \" (\"& TEXT(pat_s1_ihd_10-pat_ihd_10,\"+0.0;-0.0\") &\")\"","v":"9.6 (-0.9)"},{"$f":"ROUND(pat_s2_ihd_10,1)& \" (\"& TEXT(pat_s2_ihd_10-pat_ihd_10,\"+0.0;-0.0\") &\")\"","v":"7.5 (-3.0)"}]
[]
[null,null,null,null,{"$f":"pat_name","v":"Baseline - Meet no targets"},{"$f":"pat_name_s1","v":"Meet BP target only"},{"$f":"pat_name_s2","v":"Meet all three targets"}]
[null,null,"Blindness","Lifetime",{"$f":"pat_blind_70","v":6.9061488396752901},{"$f":"pat_s1_blind_70","v":6.301772754681191},{"$f":"pat_s2_blind_70","v":4.7999240191092731},null,null,null,{"$f":"ROUND(pat_s1_blind_70,1)& \" (\"& TEXT(pat_s1_blind_70-pat_blind_70,\"+0.0;-0.0\") &\")\"","v":"6.3 (-0.6)"},{"$f":"ROUND(pat_s2_blind_70,1)& \" (\"& TEXT(pat_s2_blind_70-pat_blind_70,\"+0.0;-0.0\") &\")\"","v":"4.8 (-2.1)"}]
[null,null,null,"10-year",{"$f":"pat_blind_10","v":3.8022297546261923},{"$f":"pat_s1_blind_10","v":3.4080700500776606},{"$f":"pat_s2_blind_10","v":2.4901324398125131},null,null,null,{"$f":"ROUND(pat_s1_blind_10,1)& \" (\"& TEXT(pat_s1_blind_10-pat_blind_10,\"+0.0;-0.0\") &\")\"","v":"3.4 (-0.4)"},{"$f":"ROUND(pat_s2_blind_10,1)& \" (\"& TEXT(pat_s2_blind_10-pat_blind_10,\"+0.0;-0.0\") &\")\"","v":"2.5 (-1.3)"}]
[null,null,"Amputation","Lifetime",{"$f":"pat_amp_70","v":4.7428015949364077},{"$f":"pat_s1_amp_70","v":4.3154728055576452},{"$f":"pat_s2_amp_70","v":3.0443197162785749},null,null,null,{"$f":"ROUND(pat_s1_amp_70,1)& \" (\"& TEXT(pat_s1_amp_70-pat_amp_70,\"+0.0;-0.0\") &\")\"","v":"4.3 (-0.4)"},{"$f":"ROUND(pat_s2_amp_70,1)& \" (\"& TEXT(pat_s2_amp_70-pat_amp_70,\"+0.0;-0.0\") &\")\"","v":"3 (-1.7)"}]
[null,null,null,"10-year",{"$f":"pat_amp_10","v":1.6776881178555132},{"$f":"pat_s1_amp_10","v":1.4800827273821902},{"$f":"pat_s2_amp_10","v":1.0002708539749077},null,null,null,{"$f":"ROUND(pat_s1_amp_10,1)& \" (\"& TEXT(pat_s1_amp_10-pat_amp_10,\"+0.0;-0.0\") &\")\"","v":"1.5 (-0.2)"},{"$f":"ROUND(pat_s2_amp_10,1)& \" (\"& TEXT(pat_s2_amp_10-pat_amp_10,\"+0.0;-0.0\") &\")\"","v":"1 (-0.7)"}]
[null,null,"Ulcer","Lifetime",{"$f":"pat_ulcer_70","v":4.592389231091496},{"$f":"pat_s1_ulcer_70","v":4.7920970830543546},{"$f":"pat_s2_ulcer_70","v":3.7823385151438336},null,null,null,{"$f":"ROUND(pat_s1_ulcer_70,1)& \" (\"& TEXT(pat_s1_ulcer_70-pat_ulcer_70,\"+0.0;-0.0\") &\")\"","v":"4.8 (+0.2)"},{"$f":"ROUND(pat_s2_ulcer_70,1)& \" (\"& TEXT(pat_s2_ulcer_70-pat_ulcer_70,\"+0.0;-0.0\") &\")\"","v":"3.8 (-0.8)"}]
[null,null,null,"10-year",{"$f":"pat_ulcer_10","v":2.6215440565356145},{"$f":"pat_s1_ulcer_10","v":2.693919072321401},{"$f":"pat_s2_ulcer_10","v":2.0295565942436999},null,null,null,{"$f":"ROUND(pat_s1_ulcer_10,1)& \" (\"& TEXT(pat_s1_ulcer_10-pat_ulcer_10,\"+0.0;-0.0\") &\")\"","v":"2.7 (+0.1)"},{"$f":"ROUND(pat_s2_ulcer_10,1)& \" (\"& TEXT(pat_s2_ulcer_10-pat_ulcer_10,\"+0.0;-0.0\") &\")\"","v":"2 (-0.6)"}]
[null,null,"Renal failure","Lifetime",{"$f":"pat_renal_70","v":0.34878930723406998},{"$f":"pat_s1_renal_70","v":0.30135458355661843},{"$f":"pat_s2_renal_70","v":0.22751813073882657},null,null,null,{"$f":"ROUND(pat_s1_renal_70,1)& \" (\"& TEXT(pat_s1_renal_70-pat_renal_70,\"+0.0;-0.0\") &\")\"","v":"0.3 (-0.0)"},{"$f":"ROUND(pat_s2_renal_70,1)& \" (\"& TEXT(pat_s2_renal_70-pat_renal_70,\"+0.0;-0.0\") &\")\"","v":"0.2 (-0.1)"}]
[null,null,null,"10-year",{"$f":"pat_renal_10","v":0.1814783223804855},{"$f":"pat_s1_renal_10","v":0.15461427427169472},{"$f":"pat_s2_renal_10","v":0.1123786461677289},null,null,null,{"$f":"ROUND(pat_s1_renal_10,1)& \" (\"& TEXT(pat_s1_renal_10-pat_renal_10,\"+0.0;-0.0\") &\")\"","v":"0.2 (-0.0)"},{"$f":"ROUND(pat_s2_renal_10,1)& \" (\"& TEXT(pat_s2_renal_10-pat_renal_10,\"+0.0;-0.0\") &\")\"","v":"0.1 (-0.1)"}]
[]
[null,null,null,null,"Scenario: Baseline",{"$f":"pat_name_s1","v":"Meet BP target only"},{"$f":"pat_name_s2","v":"Meet all three targets"}]
[null,null,"Lifetime","Blindness",{"$f":"blind_70","v":6.1938144036194949},{"$f":"s1_blind_70","v":5.7720443656627278},{"$f":"s2_blind_70","v":5.2531184174156804}]
[null,null,null,"Amputation",{"$f":"amp_70","v":4.4709665932833023},{"$f":"s1_amp_70","v":4.0972105838867252},{"$f":"s2_amp_70","v":3.6340606860890499}]
[null,null,null,"Ulcer",{"$f":"ulcer_70","v":3.3438654870695315},{"$f":"s1_ulcer_70","v":3.2361815115429566},{"$f":"s2_ulcer_70","v":3.0298259601608}]
[null,null,null,"Renal failure",{"$f":"renal_70","v":1.6686314151300632},{"$f":"s1_renal_70","v":1.5689619436847198},{"$f":"s2_renal_70","v":1.45671658212766}]
[null,null,"10-year","Blindness",{"$f":"blind_10","v":3.6671295890617164},{"$f":"s1_blind_10","v":3.3843524437461889},{"$f":"s2_blind_10","v":3.0408136881046}]
[null,null,null,"Amputation",{"$f":"amp_10","v":1.7108337284550175},{"$f":"s1_amp_10","v":1.5505697039457054},{"$f":"s2_amp_10","v":1.3582844092839099}]
[null,null,null,"Ulcer",{"$f":"ulcer_10","v":2.0005567208528787},{"$f":"s1_ulcer_10","v":1.919525893011846},{"$f":"s2_ulcer_10","v":1.7734344887182101}]
[null,null,null,"Renal failure",{"$f":"renal_10","v":0.96316099464422111},{"$f":"s1_renal_10","v":0.89703987437174049},{"$f":"s2_renal_10","v":0.82225343009241991}]

{"sheet":"effect.ind","index":3,"n_rows":859,"n_cols":8,"rows_kept":859,"cut":false,"hidden":true,"merged":[]}
[null,"VAR","beta","outcome",null,"OUTCOME_baseline","OUTCOME_s1","OUTCOME_s2"]
[1,"(Intercept)",18.2037982812579,"cost_70",null,{"$f":"EXP(SUMPRODUCT(C2:C34, pat_baseline))","v":37679.999977594423},{"$f":"EXP(SUMPRODUCT(C2:C34, pat_s1))","v":36922.126974626764},{"$f":"EXP(SUMPRODUCT(C2:C34, pat_s2))","v":36777.266928935569}]
[2,"genderM",-0.10057901076796801,"cost_70"]
[3,"as.factor(ethnicity)2",3.9352584823728803E-2,"cost_70"]
[4,"as.factor(ethnicity)3",1.92565836527533E-2,"cost_70"]
[5,"age.diag",-0.32808662537430899,"cost_70"]
[6,"I(age.diag^2)",5.6785315706842096E-3,"cost_70"]
[7,"I(age.diag^3)",-3.5815057059985597E-5,"cost_70"]
[8,"duration",-4.3494501621768399E-2,"cost_70"]
[9,"smokerY",-0.15018858859669201,"cost_70"]
[10,"albY",-6.9634454906122703E-2,"cost_70"]
[11,"wbc",-1.92316588907821E-2,"cost_70"]
[12,"haem",-6.0300117846711597E-3,"cost_70"]
[13,"hrate",-3.7239898197652399E-4,"cost_70"]
[14,"bmi",-2.16212004741291E-3,"cost_70"]
[15,"atfib1ltY",-0.21479962653409701,"cost_70"]
[16,"pvd1ltY",-7.9556914814823104E-2,"cost_70"]
[17,"ihd1ltY",0.494527744244112,"cost_70"]
[18,"hf1ltY",0.290081943599174,"cost_70"]
[19,"amp1ltY",0.306403709526612,"cost_70"]
[20,"blind1ltY",0.26493179511864801,"cost_70"]
[21,"renal1ltY",1.1314955705147201,"cost_70"]
[22,"stroke1ltY",0.228619763046324,"cost_70"]
[23,"mi1ltY",0.41471901957069701,"cost_70"]
[24,"ulcer1ltY",-0.18648711899079401,"cost_70"]
[25,"target2 HbA1c only",-2.5798025615870902E-2,"cost_70"]
[26,"target3 CHOL only",-7.6596324270901198E-3,"cost_70"]
[27,"target4 SBP only",-2.0318430774624901E-2,"cost_70"]
[28,"target5 HbA1c + CHOL only",-2.5979095059472501E-2,"cost_70"]
[29,"target6 HbA1c + SBP only",-2.3951446099283999E-2,"cost_70"]
[30,"target7 CHOL + SBP only",-1.8241677283180501E-2,"cost_70"]
[31,"target8 All three",-2.4249541318948201E-2,"cost_70"]
[32,"egfr:egfr.gt60FALSE",-1.2310386734949599E-4,"cost_70"]
[33,"egfr:egfr.gt60TRUE",-3.9471866757182698E-4,"cost_70"]
[67,"(Intercept)",5.0300721527990904,"qaly_70",null,{"$f":"EXP(SUMPRODUCT(C35:C67, pat_baseline))","v":11.683722339291885},{"$f":"EXP(SUMPRODUCT(C35:C67, pat_s1))","v":12.189991250828488},{"$f":"EXP(SUMPRODUCT(C35:C67, pat_s2))","v":13.243256574993508}]
[68,"genderM",-0.108511310044088,"qaly_70"]
[69,"as.factor(ethnicity)2",8.2427043796109795E-2,"qaly_70"]
[70,"as.factor(ethnicity)3",-3.47376123054821E-3,"qaly_70"]
[71,"age.diag",-2.5250008147403E-2,"qaly_70"]
[72,"I(age.diag^2)",-1.2411829182478501E-4,"qaly_70"]
[73,"I(age.diag^3)",-1.8205450026990899E-7,"qaly_70"]
[74,"duration",-3.7341054833464699E-2,"qaly_70"]
[75,"smokerY",-0.19206619095411701,"qaly_70"]
[76,"albY",-0.22528170433068201,"qaly_70"]
[77,"wbc",-2.45043685128612E-2,"qaly_70"]
[78,"haem",3.3999047588701E-3,"qaly_70"]
[79,"hrate",-2.3046996687602601E-4,"qaly_70"]
[80,"bmi",-6.3672435238291501E-3,"qaly_70"]
[81,"atfib1ltY",-0.39378661366101497,"qaly_70"]
[82,"pvd1ltY",-0.14470248068848901,"qaly_70"]
[83,"ihd1ltY",-9.8202722649948199E-2,"qaly_70"]
[84,"hf1ltY",-0.34819522696782201,"qaly_70"]
[85,"amp1ltY",-0.58473166454473802,"qaly_70"]
[86,"blind1ltY",-2.55110670225045E-2,"qaly_70"]
[87,"renal1ltY",-0.57834291721029396,"qaly_70"]
[88,"stroke1ltY",-0.34132336870108199,"qaly_70"]
[89,"mi1ltY",-3.39263753167894E-3,"qaly_70"]
[90,"ulcer1ltY",-0.16176895060583399,"qaly_70"]
[91,"target2 HbA1c only",4.1147144961425901E-2,"qaly_70"]
[92,"target3 CHOL only",4.7734846217168697E-2,"qaly_70"]
[93,"target4 SBP only",4.2418605698770498E-2,"qaly_70"]
[94,"target5 HbA1c + CHOL only",9.0849262684149001E-2,"qaly_70"]
[95,"target6 HbA1c + SBP only",7.7034729706670593E-2,"qaly_70"]
[96,"target7 CHOL + SBP only",9.05271451646876E-2,"qaly_70"]
[97,"target8 All three",0.12529186508248399,"qaly_70"]
[98,"egfr:egfr.gt60FALSE",1.73385418008015E-4,"qaly_70"]
[99,"egfr:egfr.gt60TRUE",6.6916713006566898E-4,"qaly_70"]
[100,"(Intercept)",5.6461916893869502,"lifeyr_70",null,{"$f":"EXP(SUMPRODUCT(C68:C100, pat_baseline))","v":14.955356549501277},{"$f":"EXP(SUMPRODUCT(C68:C100, pat_s1))","v":15.523189188398044},{"$f":"EXP(SUMPRODUCT(C68:C100, pat_s2))","v":16.74982901449016}]
[101,"genderM",-9.73480518153714E-2,"lifeyr_70"]
[102,"as.factor(ethnicity)2",8.36154104319035E-2,"lifeyr_70"]
[103,"as.factor(ethnicity)3",-2.8251699736670599E-3,"lifeyr_70"]
[104,"age.diag",-4.58872702924615E-2,"lifeyr_70"]
[105,"I(age.diag^2)",2.5437754704300797E-4,"lifeyr_70"]
[106,"I(age.diag^3)",-2.4801750280151899E-6,"lifeyr_70"]
[107,"duration",-3.85429231419872E-2,"lifeyr_70"]
[108,"smokerY",-0.191514450318616,"lifeyr_70"]
[109,"albY",-0.21460262976302899,"lifeyr_70"]
[110,"wbc",-2.49211237488603E-2,"lifeyr_70"]
[111,"haem",2.88339629435444E-3,"lifeyr_70"]
[112,"hrate",-2.2847047378931999E-4,"lifeyr_70"]
[113,"bmi",-5.8809464127619997E-3,"lifeyr_70"]
[114,"atfib1ltY",-0.37787805160190202,"lifeyr_70"]
[115,"pvd1ltY",-0.13855761161346999,"lifeyr_70"]
[116,"ihd1ltY",-9.0302963129084396E-2,"lifeyr_70"]
[117,"hf1ltY",-0.35724803404414002,"lifeyr_70"]
[118,"amp1ltY",-0.52427928106677102,"lifeyr_70"]
[119,"blind1ltY",-2.2986088936206499E-2,"lifeyr_70"]
[120,"renal1ltY",-0.59321060386036595,"lifeyr_70"]
[121,"stroke1ltY",-0.326395047154239,"lifeyr_70"]
[122,"mi1ltY",-7.5830462774940099E-3,"lifeyr_70"]
[123,"ulcer1ltY",-0.13828503182003801,"lifeyr_70"]
[124,"target2 HbA1c only",3.4360665572166001E-2,"lifeyr_70"]
[125,"target3 CHOL only",4.48575255300857E-2,"lifeyr_70"]
[126,"target4 SBP only",3.7265449299351702E-2,"lifeyr_70"]
[127,"target5 HbA1c + CHOL only",8.1496093708633102E-2,"lifeyr_70"]
[128,"target6 HbA1c + SBP only",6.7802501088557302E-2,"lifeyr_70"]
[129,"target7 CHOL + SBP only",8.3168446639084306E-2,"lifeyr_70"]
[130,"target8 All three",0.1133185168399,"lifeyr_70"]
[131,"egfr:egfr.gt60FALSE",1.6677006764913399E-4,"lifeyr_70"]
[132,"egfr:egfr.gt60TRUE",6.0834427267928098E-4,"lifeyr_70"]
[133,"(Intercept)",16.067326700227898,"cost_10",null,{"$f":"EXP(SUMPRODUCT(C101:C133, pat_baseline))","v":18516.004412240618},{"$f":"EXP(SUMPRODUCT(C101:C133, pat_s1))","v":18000.632952196866},{"$f":"EXP(SUMPRODUCT(C101:C133, pat_s2))","v":17455.771728303498}]
[134,"genderM",-7.5970371827124697E-2,"cost_10"]
[135,"as.factor(ethnicity)2",1.3624555215626701E-2,"cost_10"]
[136,"as.factor(ethnicity)3",1.4937597539126799E-2,"cost_10"]
[137,"age.diag",-0.37039195750461201,"cost_10"]
[138,"I(age.diag^2)",7.2518412712415103E-3,"cost_10"]
[139,"I(age.diag^3)",-4.5222679340379599E-5,"cost_10"]
[140,"duration",-1.2098587209673399E-3,"cost_10"]
[141,"smokerY",-5.81781056859745E-2,"cost_10"]
[142,"albY",1.54529137947143E-2,"cost_10"]
[143,"wbc",-8.9107288906786503E-3,"cost_10"]
[144,"haem",-7.9778433932099907E-3,"cost_10"]
[145,"hrate",-2.4378728859502101E-4,"cost_10"]
[146,"bmi",-6.4888144455627506E-5,"cost_10"]
[147,"atfib1ltY",-0.101097270912374,"cost_10"]
[148,"pvd1ltY",-4.0452805767562397E-2,"cost_10"]
[149,"ihd1ltY",0.526606190654337,"cost_10"]
[150,"hf1ltY",0.43464856193623502,"cost_10"]
[151,"amp1ltY",0.54388059599463201,"cost_10"]
[152,"blind1ltY",0.28338454174574801,"cost_10"]
[153,"renal1ltY",1.4995895226841101,"cost_10"]
[154,"stroke1ltY",0.35249983570401999,"cost_10"]
[155,"mi1ltY",0.452494809318431,"cost_10"]
[156,"ulcer1ltY",-0.154931208046861,"cost_10"]
[157,"target2 HbA1c only",-3.8293453450547799E-2,"cost_10"]
[158,"target3 CHOL only",-2.5646447284413801E-2,"cost_10"]
[159,"target4 SBP only",-2.8228540173534902E-2,"cost_10"]
[160,"target5 HbA1c + CHOL only",-5.4207238253982999E-2,"cost_10"]
[161,"target6 HbA1c + SBP only",-4.3882859697209002E-2,"cost_10"]
[162,"target7 CHOL + SBP only",-4.4784892330394899E-2,"cost_10"]
[163,"target8 All three",-5.8965109433384497E-2,"cost_10"]
[164,"egfr:egfr.gt60FALSE",-1.5878343984934999E-4,"cost_10"]
[165,"egfr:egfr.gt60TRUE",-6.1436360865906503E-4,"cost_10"]
[199,"(Intercept)",3.1749630226294099,"qaly_10",null,{"$f":"EXP(SUMPRODUCT(C134:C166, pat_baseline))","v":6.6571196231224761},{"$f":"EXP(SUMPRODUCT(C134:C166, pat_s1))","v":6.8198821303954542},{"$f":"EXP(SUMPRODUCT(C134:C166, pat_s2))","v":7.0729285257159251}]
[200,"genderM",-4.9256732725151103E-2,"qaly_10"]
[201,"as.factor(ethnicity)2",4.4191221175511899E-2,"qaly_10"]
[202,"as.factor(ethnicity)3",-3.2377494041605E-3,"qaly_10"]
[203,"age.diag",-3.6096247459283602E-2,"qaly_10"]
[204,"I(age.diag^2)",5.9606264867330904E-4,"qaly_10"]
[205,"I(age.diag^3)",-4.7064072745948597E-6,"qaly_10"]
[206,"duration",-1.42102798807831E-2,"qaly_10"]
[207,"smokerY",-8.6149183182573696E-2,"qaly_10"]
[208,"albY",-0.112331276135939,"qaly_10"]
[209,"wbc",-1.2587950174493901E-2,"qaly_10"]
[210,"haem",2.0435056095577599E-3,"qaly_10"]
[211,"hrate",-1.31122303734128E-4,"qaly_10"]
[212,"bmi",-2.57863650696361E-3,"qaly_10"]
[213,"atfib1ltY",-0.24108847860246099,"qaly_10"]
[214,"pvd1ltY",-8.3919364262158694E-2,"qaly_10"]
[215,"ihd1ltY",-6.1468352637703103E-2,"qaly_10"]
[216,"hf1ltY",-0.20484603020300701,"qaly_10"]
[217,"amp1ltY",-0.36691576227341599,"qaly_10"]
[218,"blind1ltY",-1.9358077112183E-2,"qaly_10"]
[219,"renal1ltY",-0.31886164664352401,"qaly_10"]
[220,"stroke1ltY",-0.19636919520242499,"qaly_10"]
[221,"mi1ltY",-4.7998288169160096E-3,"qaly_10"]
[222,"ulcer1ltY",-8.3202447838205504E-2,"qaly_10"]
[223,"target2 HbA1c only",1.98025455190243E-2,"qaly_10"]
[224,"target3 CHOL only",2.2427384470181801E-2,"qaly_10"]
[225,"target4 SBP only",2.4155286791503101E-2,"qaly_10"]
[226,"target5 HbA1c + CHOL only",4.3020611134596799E-2,"qaly_10"]
[227,"target6 HbA1c + SBP only",3.8256505100402897E-2,"qaly_10"]
[228,"target7 CHOL + SBP only",4.5743213620364202E-2,"qaly_10"]
[229,"target8 All three",6.0587710792587401E-2,"qaly_10"]
[230,"egfr:egfr.gt60FALSE",1.0187063972314001E-4,"qaly_10"]
[231,"egfr:egfr.gt60TRUE",3.1498236584746799E-4,"qaly_10"]
[232,"(Intercept)",3.7421163036244902,"lifeyr_10",null,{"$f":"EXP(SUMPRODUCT(C167:C199, pat_baseline))","v":8.4235737866816045},{"$f":"EXP(SUMPRODUCT(C167:C199, pat_s1))","v":8.592664739918316},{"$f":"EXP(SUMPRODUCT(C167:C199, pat_s2))","v":8.8695052193094135}]
[233,"genderM",-4.1337357926213202E-2,"lifeyr_10"]
[234,"as.factor(ethnicity)2",4.4486180307772898E-2,"lifeyr_10"]
[235,"as.factor(ethnicity)3",-2.7087676365243401E-3,"lifeyr_10"]
[236,"age.diag",-5.5436891967926699E-2,"lifeyr_10"]
[237,"I(age.diag^2)",9.5478433586429902E-4,"lifeyr_10"]
[238,"I(age.diag^3)",-6.8609841922026402E-6,"lifeyr_10"]
[239,"duration",-1.4737043916627701E-2,"lifeyr_10"]
[240,"smokerY",-8.4384509091513696E-2,"lifeyr_10"]
[241,"albY",-0.10217619110340501,"lifeyr_10"]
[242,"wbc",-1.26496380073801E-2,"lifeyr_10"]
[243,"haem",1.5204603673871599E-3,"lifeyr_10"]
[244,"hrate",-1.2928272177789799E-4,"lifeyr_10"]
[245,"bmi",-2.2121700583945E-3,"lifeyr_10"]
[246,"atfib1ltY",-0.22632495978460501,"lifeyr_10"]
[247,"pvd1ltY",-7.9023988372069504E-2,"lifeyr_10"]
[248,"ihd1ltY",-5.6384847817179999E-2,"lifeyr_10"]
[249,"hf1ltY",-0.20993140125356999,"lifeyr_10"]
[250,"amp1ltY",-0.31655944534976999,"lifeyr_10"]
[251,"blind1ltY",-1.6672094006136701E-2,"lifeyr_10"]
[252,"renal1ltY",-0.327415822642798,"lifeyr_10"]
[253,"stroke1ltY",-0.18672384971671899,"lifeyr_10"]
[254,"mi1ltY",-8.0253970947160701E-3,"lifeyr_10"]
[255,"ulcer1ltY",-6.4024597601416794E-2,"lifeyr_10"]
[256,"target2 HbA1c only",1.45128311942249E-2,"lifeyr_10"]
[257,"target3 CHOL only",1.9941408706955498E-2,"lifeyr_10"]
[258,"target4 SBP only",1.9874723654309801E-2,"lifeyr_10"]
[259,"target5 HbA1c + CHOL only",3.57749778617623E-2,"lifeyr_10"]
[260,"target6 HbA1c + SBP only",3.1360466988771797E-2,"lifeyr_10"]
[261,"target7 CHOL + SBP only",3.95636275768231E-2,"lifeyr_10"]
[262,"target8 All three",5.1584834974130599E-2,"lifeyr_10"]
[263,"egfr:egfr.gt60FALSE",9.2113811374359197E-5,"lifeyr_10"]
[264,"egfr:egfr.gt60TRUE",2.6149342884124898E-4,"lifeyr_10"]
[265,"(Intercept)",8.7730693087442795,"alldeath_70",null,{"$f":"EXP(SUMPRODUCT(C200:C232, pat_baseline))/(1+EXP(SUMPRODUCT(C200:C232, pat_baseline)))*100","v":99.995391700306499},{"$f":"EXP(SUMPRODUCT(C200:C232, pat_s1))/(1+EXP(SUMPRODUCT(C200:C232, pat_s1)))*100","v":99.99539127966716},{"$f":"EXP(SUMPRODUCT(C200:C232, pat_s2))/(1+EXP(SUMPRODUCT(C200:C232, pat_s2)))*100","v":99.995366266014656}]
[266,"genderM",3.3431934618013501E-3,"alldeath_70"]
[267,"as.factor(ethnicity)2",-2.64666492708633E-3,"alldeath_70"]
[268,"as.factor(ethnicity)3",-2.7663778527404399E-3,"alldeath_70"]
[269,"age.diag",5.4127592974651702E-2,"alldeath_70"]
[270,"I(age.diag^2)",-8.3345819555610899E-4,"alldeath_70"]
[271,"I(age.diag^3)",4.2539980897254901E-6,"alldeath_70"]
[272,"duration",1.9634004240823301E-3,"alldeath_70"]
[273,"smokerY",9.0006441090315307E-3,"alldeath_70"]
[274,"albY",6.72779603318183E-3,"alldeath_70"]
[275,"wbc",1.5024446097874999E-3,"alldeath_70"]
[276,"haem",-6.0817284509179996E-4,"alldeath_70"]
[277,"hrate",-4.6229446405317101E-6,"alldeath_70"]
[278,"bmi",9.44975856576454E-4,"alldeath_70"]
[279,"atfib1ltY",4.3901737484572196E-3,"alldeath_70"]
[280,"pvd1ltY",-9.2430930630441998E-4,"alldeath_70"]
[281,"ihd1ltY",-3.7803493695736101E-3,"alldeath_70"]
[282,"hf1ltY",1.2573705884468401E-2,"alldeath_70"]
[283,"amp1ltY",-1.39721052413756E-3,"alldeath_70"]
[284,"blind1ltY",-8.5534708514376102E-3,"alldeath_70"]
[285,"renal1ltY",3.7308475356146301E-3,"alldeath_70"]
[286,"stroke1ltY",9.6439070490385997E-3,"alldeath_70"]
[287,"mi1ltY",-4.4141738945920501E-3,"alldeath_70"]
[288,"ulcer1ltY",8.2408676105631402E-4,"alldeath_70"]
[289,"target2 HbA1c only",-2.98899859584729E-3,"alldeath_70"]
[290,"target3 CHOL only",-4.2196052565647299E-3,"alldeath_70"]
[291,"target4 SBP only",-9.1278682242966903E-5,"alldeath_70"]
[292,"target5 HbA1c + CHOL only",-6.8141738954325803E-3,"alldeath_70"]
[293,"target6 HbA1c + SBP only",-3.7817046628678399E-3,"alldeath_70"]
[294,"target7 CHOL + SBP only",-3.3460011590025298E-3,"alldeath_70"]
[295,"target8 All three",-5.5043148120566699E-3,"alldeath_70"]
[296,"egfr:egfr.gt60FALSE",-1.5491471720814199E-5,"alldeath_70"]
[297,"egfr:egfr.gt60TRUE",-2.1040676403620901E-5,"alldeath_70"]
[298,"(Intercept)",-1.14390481672379,"cvddeath_70",null,{"$f":"EXP(SUMPRODUCT(C233:C265, pat_baseline))/(1+EXP(SUMPRODUCT(C233:C265, pat_baseline)))*100","v":40.468879361988812},{"$f":"EXP(SUMPRODUCT(C233:C265, pat_s1))/(1+EXP(SUMPRODUCT(C233:C265, pat_s1)))*100","v":37.440254409053438},{"$f":"EXP(SUMPRODUCT(C233:C265, pat_s2))/(1+EXP(SUMPRODUCT(C233:C265, pat_s2)))*100","v":30.291825375510857}]
[299,"genderM",0.27234804107771099,"cvddeath_70"]
[300,"as.factor(ethnicity)2",-0.47918305761786001,"cvddeath_70"]
[301,"as.factor(ethnicity)3",6.7245102149923299E-3,"cvddeath_70"]
[302,"age.diag",-2.21186431398963E-2,"cvddeath_70"]
[303,"I(age.diag^2)",6.8474777717993898E-4,"cvddeath_70"]
[304,"I(age.diag^3)",-4.4370296616841104E-6,"cvddeath_70"]
[305,"duration",-1.47342265797506E-2,"cvddeath_70"]
[306,"smokerY",1.9010739026353401E-2,"cvddeath_70"]
[307,"albY",0.16352907128042199,"cvddeath_70"]
[308,"wbc",2.74175030184786E-2,"cvddeath_70"]
[309,"haem",-1.3223310748920599E-3,"cvddeath_70"]
[310,"hrate",1.32913175286432E-3,"cvddeath_70"]
[311,"bmi",9.8428030121596993E-3,"cvddeath_70"]
[312,"atfib1ltY",0.99031438829101204,"cvddeath_70"]
[313,"pvd1ltY",0.44147266065138502,"cvddeath_70"]
[314,"ihd1ltY",0.189100134660417,"cvddeath_70"]
[315,"hf1ltY",-0.12983224732134499,"cvddeath_70"]
[316,"amp1ltY",0.231273827350229,"cvddeath_70"]
[317,"blind1ltY",-5.6067601738926297E-2,"cvddeath_70"]
[318,"renal1ltY",-0.46708478915759699,"cvddeath_70"]
[319,"stroke1ltY",0.165909166254467,"cvddeath_70"]
[320,"mi1ltY",-2.30533499320697E-2,"cvddeath_70"]
[321,"ulcer1ltY",0.110809131394364,"cvddeath_70"]
[322,"target2 HbA1c only",-0.12596391434594301,"cvddeath_70"]
[323,"target3 CHOL only",-0.18529244670089701,"cvddeath_70"]
[324,"target4 SBP only",-0.12740963905755501,"cvddeath_70"]
[325,"target5 HbA1c + CHOL only",-0.31291690580333298,"cvddeath_70"]
[326,"target6 HbA1c + SBP only",-0.238747961786764,"cvddeath_70"]
[327,"target7 CHOL + SBP only",-0.32828040734379899,"cvddeath_70"]
[328,"target8 All three",-0.44747376352169599,"cvddeath_70"]
[329,"egfr:egfr.gt60FALSE",-5.7286677400558597E-4,"cvddeath_70"]
[330,"egfr:egfr.gt60TRUE",-1.8094039911726301E-3,"cvddeath_70"]
[331,"(Intercept)",-1.3845463777354501,"mi_70",null,{"$f":"EXP(SUMPRODUCT(C266:C298, pat_baseline))/(1+EXP(SUMPRODUCT(C266:C298, pat_baseline)))*100","v":28.539300476387279},{"$f":"EXP(SUMPRODUCT(C266:C298, pat_s1))/(1+EXP(SUMPRODUCT(C266:C298, pat_s1)))*100","v":27.004545150151067},{"$f":"EXP(SUMPRODUCT(C266:C298, pat_s2))/(1+EXP(SUMPRODUCT(C266:C298, pat_s2)))*100","v":20.368934503035121}]
[332,"genderM",0.48486376349580801,"mi_70"]
[333,"as.factor(ethnicity)2",-1.21395061895086,"mi_70"]
[334,"as.factor(ethnicity)3",0.18782413719434601,"mi_70"]
[335,"age.diag",-1.3440187759196701E-3,"mi_70"]
[336,"I(age.diag^2)",2.9602422961806202E-4,"mi_70"]
[337,"I(age.diag^3)",-3.22957713291522E-6,"mi_70"]
[338,"duration",-3.7410551462507699E-2,"mi_70"]
[339,"smokerY",0.101161644958061,"mi_70"]
[340,"albY",6.5840816207756503E-2,"mi_70"]
[341,"wbc",3.4674762298059499E-2,"mi_70"]
[342,"haem",-3.9026361258456101E-3,"mi_70"]
[343,"hrate",-1.53178226048254E-3,"mi_70"]
[344,"bmi",3.67602192230602E-6,"mi_70"]
[345,"atfib1ltY",-0.34449480161238799,"mi_70"]
[346,"pvd1ltY",0.37919388448894498,"mi_70"]
[347,"ihd1ltY",0.84091892986076,"mi_70"]
[348,"hf1ltY",0.52487281176314604,"mi_70"]
[349,"amp1ltY",-0.20385136825734401,"mi_70"]
[350,"blind1ltY",-4.58411309227802E-2,"mi_70"]
[351,"renal1ltY",-0.73741216924974395,"mi_70"]
[352,"stroke1ltY",-0.13427940476594999,"mi_70"]
[353,"mi1ltY",0,"mi_70"]
[354,"ulcer1ltY",-7.2048539635127695E-2,"mi_70"]
[355,"target2 HbA1c only",-0.19168263096878299,"mi_70"]
[356,"target3 CHOL only",-0.152162864302923,"mi_70"]
[357,"target4 SBP only",-7.6526446037551099E-2,"mi_70"]
[358,"target5 HbA1c + CHOL only",-0.35237758210550901,"mi_70"]
[359,"target6 HbA1c + SBP only",-0.27216446179020598,"mi_70"]
[360,"target7 CHOL + SBP only",-0.24217895143873799,"mi_70"]
[361,"target8 All three",-0.44552782496197701,"mi_70"]
[362,"egfr:egfr.gt60FALSE",-2.5199761714499999E-4,"mi_70"]
[363,"egfr:egfr.gt60TRUE",-1.37528783163431E-3,"mi_70"]
[364,"(Intercept)",-3.7999911220271501,"stroke_70",null,{"$f":"EXP(SUMPRODUCT(C299:C331, pat_baseline))/(1+EXP(SUMPRODUCT(C299:C331, pat_baseline)))*100","v":17.308133581515307},{"$f":"EXP(SUMPRODUCT(C299:C331, pat_s1))/(1+EXP(SUMPRODUCT(C299:C331, pat_s1)))*100","v":13.022040500932929},{"$f":"EXP(SUMPRODUCT(C299:C331, pat_s2))/(1+EXP(SUMPRODUCT(C299:C331, pat_s2)))*100","v":9.7350442176826597}]
[365,"genderM",0.316896111368278,"stroke_70"]
[366,"as.factor(ethnicity)2",0.100089199257985,"stroke_70"]
[367,"as.factor(ethnicity)3",-8.6536436468624706E-3,"stroke_70"]
[368,"age.diag",5.0680985225336497E-2,"stroke_70"]
[369,"I(age.diag^2)",-2.3329553886537E-4,"stroke_70"]
[370,"I(age.diag^3)",-4.4044492395879302E-7,"stroke_70"]
[371,"duration",-1.5621424309688599E-2,"stroke_70"]
[372,"smokerY",8.9058521417801198E-2,"stroke_70"]
[373,"albY",0.20666757937031199,"stroke_70"]
[374,"wbc",1.6558020280191901E-2,"stroke_70"]
[375,"haem",8.0279578442374201E-3,"stroke_70"]
[376,"hrate",3.2594327346430999E-4,"stroke_70"]
[377,"bmi",-5.4577207404168304E-3,"stroke_70"]
[378,"atfib1ltY",1.2456452483991001,"stroke_70"]
[379,"pvd1ltY",-9.6322992568707994E-2,"stroke_70"]
[380,"ihd1ltY",0.33397840336669099,"stroke_70"]
[381,"hf1ltY",-0.39601130328346801,"stroke_70"]
[382,"amp1ltY",0.51110833069966899,"stroke_70"]
[383,"blind1ltY",-8.6851019427363705E-3,"stroke_70"]
[384,"renal1ltY",-0.58990211171973395,"stroke_70"]
[385,"stroke1ltY",0,"stroke_70"]
[386,"mi1ltY",1.7760498556479001E-2,"stroke_70"]
[387,"ulcer1ltY",-1.37080824765507E-2,"stroke_70"]
[388,"target2 HbA1c only",-0.16036526197315401,"stroke_70"]
[389,"target3 CHOL only",-0.161933824568397,"stroke_70"]
[390,"target4 SBP only",-0.33506669595219302,"stroke_70"]
[391,"target5 HbA1c + CHOL only",-0.32377438585549301,"stroke_70"]
[392,"target6 HbA1c + SBP only",-0.48588382984936102,"stroke_70"]
[393,"target7 CHOL + SBP only",-0.50682427397505903,"stroke_70"]
[394,"target8 All three",-0.663072411061981,"stroke_70"]
[395,"egfr:egfr.gt60FALSE",2.7873649146498402E-4,"stroke_70"]
[396,"egfr:egfr.gt60TRUE",-1.5217850020349201E-3,"stroke_70"]
[397,"(Intercept)",-6.1796284488784101,"hf_70",null,{"$f":"EXP(SUMPRODUCT(C332:C364, pat_baseline))/(1+EXP(SUMPRODUCT(C332:C364, pat_baseline)))*100","v":9.0723361869420351},{"$f":"EXP(SUMPRODUCT(C332:C364, pat_s1))/(1+EXP(SUMPRODUCT(C332:C364, pat_s1)))*100","v":9.4581706915605217},{"$f":"EXP(SUMPRODUCT(C332:C364, pat_s2))/(1+EXP(SUMPRODUCT(C332:C364, pat_s2)))*100","v":8.832254986995391}]
[398,"genderM",-0.14455298612069101,"hf_70"]
[399,"as.factor(ethnicity)2",9.1047095343518902E-2,"hf_70"]
[400,"as.factor(ethnicity)3",-2.78675571461266E-3,"hf_70"]
[401,"age.diag",5.5243915665101201E-2,"hf_70"]
[402,"I(age.diag^2)",-2.69803380542151E-4,"hf_70"]
[403,"I(age.diag^3)",-4.3484005324144698E-7,"hf_70"]
[404,"duration",-1.6218238402670799E-2,"hf_70"]
[405,"smokerY",-0.26040070625238998,"hf_70"]
[406,"albY",0.56935170970284299,"hf_70"]
[407,"wbc",-3.0474380129078601E-2,"hf_70"]
[408,"haem",3.6706557147498601E-3,"hf_70"]
[409,"hrate",1.6053739493109299E-4,"hf_70"]
[410,"bmi",7.1181746997436707E-2,"hf_70"]
[411,"atfib1ltY",1.31325047691657,"hf_70"]
[412,"pvd1ltY",0.42102848649796498,"hf_70"]
[413,"ihd1ltY",-0.114698419484051,"hf_70"]
[414,"hf1ltY",0,"hf_70"]
[415,"amp1ltY",5.73661132355925E-2,"hf_70"]
[416,"blind1ltY",-1.6946803295393002E-2,"hf_70"]
[417,"renal1ltY",-0.59754747503974204,"hf_70"]
[418,"stroke1ltY",-0.34752359429705099,"hf_70"]
[419,"mi1ltY",1.0732470587295999E-2,"hf_70"]
[420,"ulcer1ltY",0.61695667141531596,"hf_70"]
[421,"target2 HbA1c only",4.25233838310295E-2,"hf_70"]
[422,"target3 CHOL only",-9.8719388411683096E-2,"hf_70"]
[423,"target4 SBP only",4.5901528471481101E-2,"hf_70"]
[424,"target5 HbA1c + CHOL only",-6.3273436582666501E-2,"hf_70"]
[425,"target6 HbA1c + SBP only",7.8073509275405004E-2,"hf_70"]
[426,"target7 CHOL + SBP only",-5.4595742768072802E-2,"hf_70"]
[427,"target8 All three",-2.9456318173728999E-2,"hf_70"]
[428,"egfr:egfr.gt60FALSE",4.4095161944456202E-4,"hf_70"]
[429,"egfr:egfr.gt60TRUE",-1.65897556454446E-3,"hf_70"]
[430,"(Intercept)",-9.9410033652036697E-2,"ihd_70",null,{"$f":"EXP(SUMPRODUCT(C365:C397, pat_baseline))/(1+EXP(SUMPRODUCT(C365:C397, pat_baseline)))*100","v":20.633007705401198},{"$f":"EXP(SUMPRODUCT(C365:C397, pat_s1))/(1+EXP(SUMPRODUCT(C365:C397, pat_s1)))*100","v":19.462505637153527},{"$f":"EXP(SUMPRODUCT(C365:C397, pat_s2))/(1+EXP(SUMPRODUCT(C365:C397, pat_s2)))*100","v":16.012064350693251}]
[431,"genderM",0.49628080545719,"ihd_70"]
[432,"as.factor(ethnicity)2",6.6938616329513798E-2,"ihd_70"]
[433,"as.factor(ethnicity)3",1.6547856396487402E-2,"ihd_70"]
[434,"age.diag",-2.4919142405277799E-2,"ihd_70"]
[435,"I(age.diag^2)",2.0290885037142301E-4,"ihd_70"]
[436,"I(age.diag^3)",-2.8254658367502599E-6,"ihd_70"]
[437,"duration",-2.73837595696391E-2,"ihd_70"]
[438,"smokerY",-0.20876253572468501,"ihd_70"]
[439,"albY",-0.11582374655207001,"ihd_70"]
[440,"wbc",-5.34447586440238E-3,"ihd_70"]
[441,"haem",1.13135747913954E-2,"ihd_70"]
[442,"hrate",-8.3941258370014702E-4,"ihd_70"]
[443,"bmi",5.0499605851366796E-3,"ihd_70"]
[444,"atfib1ltY",-0.19229482848548901,"ihd_70"]
[445,"pvd1ltY",0.44890340920544097,"ihd_70"]
[446,"ihd1ltY",0,"ihd_70"]
[447,"hf1ltY",0.388647962389017,"ihd_70"]
[448,"amp1ltY",-0.109062236828711,"ihd_70"]
[449,"blind1ltY",-6.3829055595409301E-2,"ihd_70"]
[450,"renal1ltY",-0.69000518991697901,"ihd_70"]
[451,"stroke1ltY",-0.42780448939161603,"ihd_70"]
[452,"mi1ltY",-0.17498786783344,"ihd_70"]
[453,"ulcer1ltY",-7.7528597272457797E-2,"ihd_70"]
[454,"target2 HbA1c only",3.7804684162501399E-2,"ihd_70"]
[455,"target3 CHOL only",-0.230277540572355,"ihd_70"]
[456,"target4 SBP only",-7.3042559275937793E-2,"ihd_70"]
[457,"target5 HbA1c + CHOL only",-0.21035258566249801,"ihd_70"]
[458,"target6 HbA1c + SBP only",-4.3520093528032197E-2,"ihd_70"]
[459,"target7 CHOL + SBP only",-0.32489275632138798,"ihd_70"]
[460,"target8 All three",-0.310140246886771,"ihd_70"]
[461,"egfr:egfr.gt60FALSE",-5.7874418234065304E-3,"ihd_70"]
[462,"egfr:egfr.gt60TRUE",-5.4929396177214899E-3,"ihd_70"]
[463,"(Intercept)",-3.8313320127652801,"blind_70",null,{"$f":"EXP(SUMPRODUCT(C398:C430, pat_baseline))/(1+EXP(SUMPRODUCT(C398:C430, pat_baseline)))*100","v":6.9061488396752901},{"$f":"EXP(SUMPRODUCT(C398:C430, pat_s1))/(1+EXP(SUMPRODUCT(C398:C430, pat_s1)))*100","v":6.301772754681191},{"$f":"EXP(SUMPRODUCT(C398:C430, pat_s2))/(1+EXP(SUMPRODUCT(C398:C430, pat_s2)))*100","v":4.7999240191092731}]
[464,"genderM",-8.7201637060581705E-2,"blind_70"]
[465,"as.factor(ethnicity)2",9.4190709582233995E-2,"blind_70"]
[466,"as.factor(ethnicity)3",-2.5283211847333801E-3,"blind_70"]
[467,"age.diag",1.16038172230792E-2,"blind_70"]
[468,"I(age.diag^2)",9.2086085805072397E-5,"blind_70"]
[469,"I(age.diag^3)",-1.50586879525337E-6,"blind_70"]
[470,"duration",-3.9197181030323797E-2,"blind_70"]
[471,"smokerY",-0.20282612740591299,"blind_70"]
[472,"albY",-0.160690420230725,"blind_70"]
[473,"wbc",2.9487834723639601E-2,"blind_70"]
[474,"haem",4.3680431470586598E-3,"blind_70"]
[475,"hrate",8.1013564870128802E-3,"blind_70"]
[476,"bmi",-9.6456207870380104E-4,"blind_70"]
[477,"atfib1ltY",-0.32209928859829801,"blind_70"]
[478,"pvd1ltY",-0.11140100250183201,"blind_70"]
[479,"ihd1ltY",0.46692189043107502,"blind_70"]
[480,"hf1ltY",0.46033866237355198,"blind_70"]
[481,"amp1ltY",-0.491361844134239,"blind_70"]
[482,"blind1ltY",0,"blind_70"]
[483,"renal1ltY",-0.59861624159168902,"blind_70"]
[484,"stroke1ltY",-0.30774524107618101,"blind_70"]
[485,"mi1ltY",-1.1626325706141E-2,"blind_70"]
[486,"ulcer1ltY",-8.5551476940113294E-2,"blind_70"]
[487,"target2 HbA1c only",-0.31378347701995901,"blind_70"]
[488,"target3 CHOL only",2.49914753358466E-2,"blind_70"]
[489,"target4 SBP only",-9.8052300543906498E-2,"blind_70"]
[490,"target5 HbA1c + CHOL only",-0.285540309624289,"blind_70"]
[491,"target6 HbA1c + SBP only",-0.41140439510239302,"blind_70"]
[492,"target7 CHOL + SBP only",-7.5433211396462294E-2,"blind_70"]
[493,"target8 All three",-0.38618466587821898,"blind_70"]
[494,"egfr:egfr.gt60FALSE",3.0380504413223E-5,"blind_70"]
[495,"egfr:egfr.gt60TRUE",4.0439248241712702E-4,"blind_70"]
[496,"(Intercept)",-3.8728837569279801,"amp_70",null,{"$f":"EXP(SUMPRODUCT(C431:C463, pat_baseline))/(1+EXP(SUMPRODUCT(C431:C463, pat_baseline)))*100","v":4.7428015949364077},{"$f":"EXP(SUMPRODUCT(C431:C463, pat_s1))/(1+EXP(SUMPRODUCT(C431:C463, pat_s1)))*100","v":4.3154728055576452},{"$f":"EXP(SUMPRODUCT(C431:C463, pat_s2))/(1+EXP(SUMPRODUCT(C431:C463, pat_s2)))*100","v":3.0443197162785749}]
[497,"genderM",0.433342053437962,"amp_70"]
[498,"as.factor(ethnicity)2",0.108813058277243,"amp_70"]
[499,"as.factor(ethnicity)3",-3.1124783240250998E-3,"amp_70"]
[500,"age.diag",5.4598923619209698E-2,"amp_70"]
[501,"I(age.diag^2)",-1.4070105790449201E-3,"amp_70"]
[502,"I(age.diag^3)",6.0666741176022496E-6,"amp_70"]
[503,"duration",-1.31075649563009E-2,"amp_70"]
[504,"smokerY",-0.241022862277221,"amp_70"]
[505,"albY",0.259257322515282,"amp_70"]
[506,"wbc",1.1284838225727701E-2,"amp_70"]
[507,"haem",4.8366607788694303E-3,"amp_70"]
[508,"hrate",8.1456655545120004E-3,"amp_70"]
[509,"bmi",2.4656547707359298E-3,"amp_70"]
[510,"atfib1ltY",0.61078928129336696,"amp_70"]
[511,"pvd1ltY",1.0271728950035299,"amp_70"]
[512,"ihd1ltY",1.6150910250899601E-2,"amp_70"]
[513,"hf1ltY",-0.45645093565681999,"amp_70"]
[514,"amp1ltY",0,"amp_70"]
[515,"blind1ltY",-3.1662785055247E-2,"amp_70"]
[516,"renal1ltY",-0.75835235246711696,"amp_70"]
[517,"stroke1ltY",0.61137606600900196,"amp_70"]
[518,"mi1ltY",-2.85565674130169E-2,"amp_70"]
[519,"ulcer1ltY",1.8179978338115801,"amp_70"]
[520,"target2 HbA1c only",-0.39674511162849202,"amp_70"]
[521,"target3 CHOL only",6.5757769337037197E-2,"amp_70"]
[522,"target4 SBP only",-9.8897143924454894E-2,"amp_70"]
[523,"target5 HbA1c + CHOL only",-0.339138979212189,"amp_70"]
[524,"target6 HbA1c + SBP only",-0.51377123871771702,"amp_70"]
[525,"target7 CHOL + SBP only",-5.8573582157548598E-2,"amp_70"]
[526,"target8 All three",-0.46102393361615901,"amp_70"]
[527,"egfr:egfr.gt60FALSE",9.0845528555484105E-5,"amp_70"]
[528,"egfr:egfr.gt60TRUE",6.7808361029631197E-4,"amp_70"]
[529,"(Intercept)",-5.53179576359741,"ulcer_70",null,{"$f":"EXP(SUMPRODUCT(C464:C496, pat_baseline))/(1+EXP(SUMPRODUCT(C464:C496, pat_baseline)))*100","v":4.592389231091496},{"$f":"EXP(SUMPRODUCT(C464:C496, pat_s1))/(1+EXP(SUMPRODUCT(C464:C496, pat_s1)))*100","v":4.7920970830543546},{"$f":"EXP(SUMPRODUCT(C464:C496, pat_s2))/(1+EXP(SUMPRODUCT(C464:C496, pat_s2)))*100","v":3.7823385151438336}]
[530,"genderM",0.86524274962951597,"ulcer_70"]
[531,"as.factor(ethnicity)2",7.7685959083744496E-2,"ulcer_70"]
[532,"as.factor(ethnicity)3",-7.7152116362008503E-3,"ulcer_70"]
[533,"age.diag",8.6194052136710792E-3,"ulcer_70"]
[534,"I(age.diag^2)",7.4678417984335504E-5,"ulcer_70"]
[535,"I(age.diag^3)",-1.48130510500969E-6,"ulcer_70"]
[536,"duration",-3.8241408023769401E-2,"ulcer_70"]
[537,"smokerY",-0.179113765371677,"ulcer_70"]
[538,"albY",-0.191742235222184,"ulcer_70"]
[539,"wbc",-1.8905847488503401E-2,"ulcer_70"]
[540,"haem",2.5645284900625499E-3,"ulcer_70"]
[541,"hrate",3.0652787280642598E-5,"ulcer_70"]
[542,"bmi",4.7936006224182398E-2,"ulcer_70"]
[543,"atfib1ltY",-0.39218412576307798,"ulcer_70"]
[544,"pvd1ltY",0.84803103267522995,"ulcer_70"]
[545,"ihd1ltY",-8.3609939641478503E-2,"ulcer_70"]
[546,"hf1ltY",-0.33432271210401998,"ulcer_70"]
[547,"amp1ltY",-0.52241854983460201,"ulcer_70"]
[548,"blind1ltY",-1.5929126635386499E-2,"ulcer_70"]
[549,"renal1ltY",-0.55159761267629603,"ulcer_70"]
[550,"stroke1ltY",-0.30867003466228199,"ulcer_70"]
[551,"mi1ltY",-2.6370241231287702E-3,"ulcer_70"]
[552,"ulcer1ltY",0,"ulcer_70"]
[553,"target2 HbA1c only",-0.28604213143511598,"ulcer_70"]
[554,"target3 CHOL only",4.3201366601004397E-2,"ulcer_70"]
[555,"target4 SBP only",4.4663102255204902E-2,"ulcer_70"]
[556,"target5 HbA1c + CHOL only",-0.23848164231278199,"ulcer_70"]
[557,"target6 HbA1c + SBP only",-0.24750595418743199,"ulcer_70"]
[558,"target7 CHOL + SBP only",8.6739824707706095E-2,"ulcer_70"]
[559,"target8 All three",-0.20251252456544,"ulcer_70"]
[560,"egfr:egfr.gt60FALSE",8.85206441182379E-5,"ulcer_70"]
[561,"egfr:egfr.gt60TRUE",5.6575683001461796E-4,"ulcer_70"]
[562,"(Intercept)",9.2988800633369006,"renal_70",null,{"$f":"EXP(SUMPRODUCT(C497:C529, pat_baseline))/(1+EXP(SUMPRODUCT(C497:C529, pat_baseline)))*100","v":0.34878930723406998},{"$f":"EXP(SUMPRODUCT(C497:C529, pat_s1))/(1+EXP(SUMPRODUCT(C497:C529, pat_s1)))*100","v":0.30135458355661843},{"$f":"EXP(SUMPRODUCT(C497:C529, pat_s2))/(1+EXP(SUMPRODUCT(C497:C529, pat_s2)))*100","v":0.22751813073882657}]
[563,"genderM",0.76747293798585603,"renal_70"]
[564,"as.factor(ethnicity)2",0.71972225101840004,"renal_70"]
[565,"as.factor(ethnicity)3",-1.30615471469926E-2,"renal_70"]
[566,"age.diag",-6.3599869008559101E-2,"renal_70"]
[567,"I(age.diag^2)",3.2952259813053401E-5,"renal_70"]
[568,"I(age.diag^3)",-6.9830476439656703E-7,"renal_70"]
[569,"duration",-3.4117192863742103E-2,"renal_70"]
[570,"smokerY",-0.19521093478488,"renal_70"]
[571,"albY",1.1839946411353699,"renal_70"]
[572,"wbc",4.6380332008437199E-3,"renal_70"]
[573,"haem",-0.26353004622741699,"renal_70"]
[574,"hrate",2.2645276935782401E-4,"renal_70"]
[575,"bmi",-5.6921187712428399E-2,"renal_70"]
[576,"atfib1ltY",-0.39267101960462902,"renal_70"]
[577,"pvd1ltY",-8.8910737441082299E-2,"renal_70"]
[578,"ihd1ltY",-3.7921006744568497E-2,"renal_70"]
[579,"hf1ltY",-0.30107015174031598,"renal_70"]
[580,"amp1ltY",0.54366121586886595,"renal_70"]
[581,"blind1ltY",0.68775486933973595,"renal_70"]
[582,"renal1ltY",0,"renal_70"]
[583,"stroke1ltY",-0.25173778804464803,"renal_70"]
[584,"mi1ltY",-1.8450191727266901E-2,"renal_70"]
[585,"ulcer1ltY",1.53623144647874E-2,"renal_70"]
[586,"target2 HbA1c only",2.2724535875222399E-2,"renal_70"]
[587,"target3 CHOL only",-0.27680210826317603,"renal_70"]
[588,"target4 SBP only",-0.146656340053606,"renal_70"]
[589,"target5 HbA1c + CHOL only",-0.27385214301517902,"renal_70"]
[590,"target6 HbA1c + SBP only",-0.12894022428193799,"renal_70"]
[591,"target7 CHOL + SBP only",-0.43722453745063899,"renal_70"]
[592,"target8 All three",-0.42845432141601097,"renal_70"]
[593,"egfr:egfr.gt60FALSE",-8.1687339414818996E-2,"renal_70"]
[594,"egfr:egfr.gt60TRUE",-7.7615360159336302E-2,"renal_70"]
[595,"(Intercept)",-9.4029807932819995,"alldeath_10",null,{"$f":"EXP(SUMPRODUCT(C530:C562, pat_baseline))/(1+EXP(SUMPRODUCT(C530:C562, pat_baseline)))*100","v":31.462770402503754},{"$f":"EXP(SUMPRODUCT(C530:C562, pat_s1))/(1+EXP(SUMPRODUCT(C530:C562, pat_s1)))*100","v":29.447419687097039},{"$f":"EXP(SUMPRODUCT(C530:C562, pat_s2))/(1+EXP(SUMPRODUCT(C530:C562, pat_s2)))*100","v":25.444591865657053}]
[596,"genderM",0.26707229654278197,"alldeath_10"]
[597,"as.factor(ethnicity)2",-0.23420832206249401,"alldeath_10"]
[598,"as.factor(ethnicity)3",7.2647232662499998E-4,"alldeath_10"]
[599,"age.diag",0.188591965929822,"alldeath_10"]
[600,"I(age.diag^2)",-1.93542759973308E-3,"alldeath_10"]
[601,"I(age.diag^3)",1.33736537943907E-5,"alldeath_10"]
[602,"duration",9.5935722593378306E-2,"alldeath_10"]
[603,"smokerY",0.472483006713241,"alldeath_10"]
[604,"albY",0.51322142451840103,"alldeath_10"]
[605,"wbc",6.1754780576016202E-2,"alldeath_10"]
[606,"haem",-9.1484538154638102E-3,"alldeath_10"]
[607,"hrate",7.3840977369936205E-4,"alldeath_10"]
[608,"bmi",1.37245901819986E-2,"alldeath_10"]
[609,"atfib1ltY",0.93794434001733196,"alldeath_10"]
[610,"pvd1ltY",0.343993051848558,"alldeath_10"]
[611,"ihd1ltY",0.31303889083505998,"alldeath_10"]
[612,"hf1ltY",0.91632811140385595,"alldeath_10"]
[613,"amp1ltY",1.3357004499835201,"alldeath_10"]
[614,"blind1ltY",7.6950628747707597E-2,"alldeath_10"]
[615,"renal1ltY",1.44664128787205,"alldeath_10"]
[616,"stroke1ltY",0.81418631586812196,"alldeath_10"]
[617,"mi1ltY",7.6014940229445896E-2,"alldeath_10"]
[618,"ulcer1ltY",0.367085490948383,"alldeath_10"]
[619,"target2 HbA1c only",-9.0127995447868897E-2,"alldeath_10"]
[620,"target3 CHOL only",-0.123538033950277,"alldeath_10"]
[621,"target4 SBP only",-9.5179821813778903E-2,"alldeath_10"]
[622,"target5 HbA1c + CHOL only",-0.216636361497171,"alldeath_10"]
[623,"target6 HbA1c + SBP only",-0.176655290319706,"alldeath_10"]
[624,"target7 CHOL + SBP only",-0.217107692763855,"alldeath_10"]
[625,"target8 All three",-0.29646722171380602,"alldeath_10"]
[626,"egfr:egfr.gt60FALSE",-6.5660134269468495E-4,"alldeath_10"]
[627,"egfr:egfr.gt60TRUE",-1.6877193672840301E-3,"alldeath_10"]
[628,"(Intercept)",-4.6845466953852899,"cvddeath_10",null,{"$f":"EXP(SUMPRODUCT(C563:C595, pat_baseline))/(1+EXP(SUMPRODUCT(C563:C595, pat_baseline)))*100","v":15.740995847110749},{"$f":"EXP(SUMPRODUCT(C563:C595, pat_s1))/(1+EXP(SUMPRODUCT(C563:C595, pat_s1)))*100","v":13.938386753559016},{"$f":"EXP(SUMPRODUCT(C563:C595, pat_s2))/(1+EXP(SUMPRODUCT(C563:C595, pat_s2)))*100","v":10.314929910925438}]
[629,"genderM",0.37272258274086301,"cvddeath_10"]
[630,"as.factor(ethnicity)2",-0.52843282004120296,"cvddeath_10"]
[631,"as.factor(ethnicity)3",5.1931021635708901E-3,"cvddeath_10"]
[632,"age.diag",-3.7985965287528803E-2,"cvddeath_10"]
[633,"I(age.diag^2)",1.8137864205412799E-3,"cvddeath_10"]
[634,"I(age.diag^3)",-1.0953133176564999E-5,"cvddeath_10"]
[635,"duration",3.6658789083182097E-2,"cvddeath_10"]
[636,"smokerY",0.21487554610460699,"cvddeath_10"]
[637,"albY",0.32811385124808701,"cvddeath_10"]
[638,"wbc",4.8797443155373099E-2,"cvddeath_10"]
[639,"haem",-5.7042901302021996E-3,"cvddeath_10"]
[640,"hrate",1.53837224317045E-3,"cvddeath_10"]
[641,"bmi",1.37617018572105E-2,"cvddeath_10"]
[642,"atfib1ltY",1.1396096449831401,"cvddeath_10"]
[643,"pvd1ltY",0.49051927862894001,"cvddeath_10"]
[644,"ihd1ltY",0.42588395190427902,"cvddeath_10"]
[645,"hf1ltY",0.150797215492431,"cvddeath_10"]
[646,"amp1ltY",0.55026218466436405,"cvddeath_10"]
[647,"blind1ltY",-3.8092202881586899E-2,"cvddeath_10"]
[648,"renal1ltY",-1.9978826999037198E-2,"cvddeath_10"]
[649,"stroke1ltY",0.356242351460552,"cvddeath_10"]
[650,"mi1ltY",-7.7550286667715795E-2,"cvddeath_10"]
[651,"ulcer1ltY",0.19619093375039701,"cvddeath_10"]
[652,"target2 HbA1c only",-0.141656365810472,"cvddeath_10"]
[653,"target3 CHOL only",-0.204204525513275,"cvddeath_10"]
[654,"target4 SBP only",-0.14278987387207701,"cvddeath_10"]
[655,"target5 HbA1c + CHOL only",-0.35287339164626003,"cvddeath_10"]
[656,"target6 HbA1c + SBP only",-0.27152515279663197,"cvddeath_10"]
[657,"target7 CHOL + SBP only",-0.34884816929478402,"cvddeath_10"]
[658,"target8 All three",-0.48508503267866199,"cvddeath_10"]
[659,"egfr:egfr.gt60FALSE",-1.0604102869350501E-3,"cvddeath_10"]
[660,"egfr:egfr.gt60TRUE",-2.3420241904318299E-3,"cvddeath_10"]
[661,"(Intercept)",-3.25489326916983,"mi_10",null,{"$f":"EXP(SUMPRODUCT(C596:C628, pat_baseline))/(1+EXP(SUMPRODUCT(C596:C628, pat_baseline)))*100","v":15.478228169665895},{"$f":"EXP(SUMPRODUCT(C596:C628, pat_s1))/(1+EXP(SUMPRODUCT(C596:C628, pat_s1)))*100","v":14.249121960257865},{"$f":"EXP(SUMPRODUCT(C596:C628, pat_s2))/(1+EXP(SUMPRODUCT(C596:C628, pat_s2)))*100","v":10.075909121668735}]
[662,"genderM",0.60489917051085096,"mi_10"]
[663,"as.factor(ethnicity)2",-1.19178042901693,"mi_10"]
[664,"as.factor(ethnicity)3",0.18143490380836499,"mi_10"]
[665,"age.diag",-3.50743418563043E-2,"mi_10"]
[666,"I(age.diag^2)",1.4117001556662599E-3,"mi_10"]
[667,"I(age.diag^3)",-9.3725559036727302E-6,"mi_10"]
[668,"duration",-4.9051300144293099E-3,"mi_10"]
[669,"smokerY",0.22868347431387301,"mi_10"]
[670,"albY",0.19164975327191,"mi_10"]
[671,"wbc",4.8207304080993101E-2,"mi_10"]
[672,"haem",-4.9246702803297203E-3,"mi_10"]
[673,"hrate",-1.5327134412723999E-3,"mi_10"]
[674,"bmi",3.2883441025579E-3,"mi_10"]
[675,"atfib1ltY",-0.17730569376060001,"mi_10"]
[676,"pvd1ltY",0.421583055986469,"mi_10"]
[677,"ihd1ltY",0.87386134834337204,"mi_10"]
[678,"hf1ltY",0.72325912194062403,"mi_10"]
[679,"amp1ltY",3.4675988526982303E-2,"mi_10"]
[680,"blind1ltY",-4.06435247022119E-2,"mi_10"]
[681,"renal1ltY",-0.42703404857285299,"mi_10"]
[682,"stroke1ltY",5.1766982635681899E-2,"mi_10"]
[683,"mi1ltY",0,"mi_10"]
[684,"ulcer1ltY",1.6648988772017901E-2,"mi_10"]
[685,"target2 HbA1c only",-0.20795888394728201,"mi_10"]
[686,"target3 CHOL only",-0.173677005019794,"mi_10"]
[687,"target4 SBP only",-9.7176283845909997E-2,"mi_10"]
[688,"target5 HbA1c + CHOL only",-0.38957555537275901,"mi_10"]
[689,"target6 HbA1c + SBP only",-0.30476402313345602,"mi_10"]
[690,"target7 CHOL + SBP only",-0.280166995198049,"mi_10"]
[691,"target8 All three",-0.49124378690477299,"mi_10"]
[692,"egfr:egfr.gt60FALSE",-7.4427209079952201E-4,"mi_10"]
[693,"egfr:egfr.gt60TRUE",-1.8303277664223801E-3,"mi_10"]
[694,"(Intercept)",-5.9645073022689301,"stroke_10",null,{"$f":"EXP(SUMPRODUCT(C629:C661, pat_baseline))/(1+EXP(SUMPRODUCT(C629:C661, pat_baseline)))*100","v":8.0586270338790662},{"$f":"EXP(SUMPRODUCT(C629:C661, pat_s1))/(1+EXP(SUMPRODUCT(C629:C661, pat_s1)))*100","v":5.8309421828232111},{"$f":"EXP(SUMPRODUCT(C629:C661, pat_s2))/(1+EXP(SUMPRODUCT(C629:C661, pat_s2)))*100","v":4.1228320461239978}]
[695,"genderM",0.36473369432970698,"stroke_10"]
[696,"as.factor(ethnicity)2",4.70692645056403E-2,"stroke_10"]
[697,"as.factor(ethnicity)3",-8.2655106858091892E-3,"stroke_10"]
[698,"age.diag",2.3220869405581501E-2,"stroke_10"]
[699,"I(age.diag^2)",8.3081926659675997E-4,"stroke_10"]
[700,"I(age.diag^3)",-6.4276533402233101E-6,"stroke_10"]
[701,"duration",2.1356322845209101E-2,"stroke_10"]
[702,"smokerY",0.21667478772284501,"stroke_10"]
[703,"albY",0.33871616975526098,"stroke_10"]
[704,"wbc",3.0505862977577101E-2,"stroke_10"]
[705,"haem",6.1221558525131996E-3,"stroke_10"]
[706,"hrate",6.8285065649459798E-4,"stroke_10"]
[707,"bmi",-1.11990028824568E-3,"stroke_10"]
[708,"atfib1ltY",1.4198868923753001,"stroke_10"]
[709,"pvd1ltY",-3.5070581050604697E-2,"stroke_10"]
[710,"ihd1ltY",0.39953596604320202,"stroke_10"]
[711,"hf1ltY",-0.222639778799534,"stroke_10"]
[712,"amp1ltY",0.764882037745786,"stroke_10"]
[713,"blind1ltY",4.4976104548925099E-3,"stroke_10"]
[714,"renal1ltY",-0.28352173096538902,"stroke_10"]
[715,"stroke1ltY",0,"stroke_10"]
[716,"mi1ltY",3.7708257308853001E-2,"stroke_10"]
[717,"ulcer1ltY",2.7073759932582299E-2,"stroke_10"]
[718,"target2 HbA1c only",-0.17596700939881901,"stroke_10"]
[719,"target3 CHOL only",-0.18768993820629701,"stroke_10"]
[720,"target4 SBP only",-0.34750513290296098,"stroke_10"]
[721,"target5 HbA1c + CHOL only",-0.36591611274712499,"stroke_10"]
[722,"target6 HbA1c + SBP only",-0.51198232291685997,"stroke_10"]
[723,"target7 CHOL + SBP only",-0.54431661490011696,"stroke_10"]
[724,"target8 All three",-0.71211962994139399,"stroke_10"]
[725,"egfr:egfr.gt60FALSE",-4.43088397556766E-4,"stroke_10"]
[726,"egfr:egfr.gt60TRUE",-2.3109680682581999E-3,"stroke_10"]
[727,"(Intercept)",-8.3278272244073008,"hf_10",null,{"$f":"EXP(SUMPRODUCT(C662:C694, pat_baseline))/(1+EXP(SUMPRODUCT(C662:C694, pat_baseline)))*100","v":4.0300001023426919},{"$f":"EXP(SUMPRODUCT(C662:C694, pat_s1))/(1+EXP(SUMPRODUCT(C662:C694, pat_s1)))*100","v":4.0926262130691606},{"$f":"EXP(SUMPRODUCT(C662:C694, pat_s2))/(1+EXP(SUMPRODUCT(C662:C694, pat_s2)))*100","v":3.6433894007001104}]
[728,"genderM",-7.6791178415494502E-2,"hf_10"]
[729,"as.factor(ethnicity)2",3.9198787419022101E-2,"hf_10"]
[730,"as.factor(ethnicity)3",-4.1532068293232303E-3,"hf_10"]
[731,"age.diag",2.78317278269236E-2,"hf_10"]
[732,"I(age.diag^2)",8.0103992951455595E-4,"hf_10"]
[733,"I(age.diag^3)",-6.4344846353252897E-6,"hf_10"]
[734,"duration",2.25814628456701E-2,"hf_10"]
[735,"smokerY",-0.12614141013466601,"hf_10"]
[736,"albY",0.69229554486098199,"hf_10"]
[737,"wbc",-1.5780459548432501E-2,"hf_10"]
[738,"haem",2.2316096608812198E-3,"hf_10"]
[739,"hrate",5.3122162198903397E-4,"hf_10"]
[740,"bmi",7.3440203287139696E-2,"hf_10"]
[741,"atfib1ltY",1.49588568404848,"hf_10"]
[742,"pvd1ltY",0.48222779980854003,"hf_10"]
[743,"ihd1ltY",-4.8014614443382002E-2,"hf_10"]
[744,"hf1ltY",0,"hf_10"]
[745,"amp1ltY",0.29310664448448298,"hf_10"]
[746,"blind1ltY",1.5769819142279499E-3,"hf_10"]
[747,"renal1ltY",-0.286984293300931,"hf_10"]
[748,"stroke1ltY",-0.182615304421264,"hf_10"]
[749,"mi1ltY",3.7574718675661201E-2,"hf_10"]
[750,"ulcer1ltY",0.69120217138905304,"hf_10"]
[751,"target2 HbA1c only",1.90519158390117E-2,"hf_10"]
[752,"target3 CHOL only",-0.130539216287444,"hf_10"]
[753,"target4 SBP only",1.60732407789956E-2,"hf_10"]
[754,"target5 HbA1c + CHOL only",-0.116284791060322,"hf_10"]
[755,"target6 HbA1c + SBP only",2.9941845133189399E-2,"hf_10"]
[756,"target7 CHOL + SBP only",-0.113080727688633,"hf_10"]
[757,"target8 All three",-0.104872360133088,"hf_10"]
[758,"egfr:egfr.gt60FALSE",-5.1382531691017896E-4,"hf_10"]
[759,"egfr:egfr.gt60TRUE",-2.63506530264586E-3,"hf_10"]
[760,"(Intercept)",-2.42187017795723,"ihd_10",null,{"$f":"EXP(SUMPRODUCT(C695:C727, pat_baseline))/(1+EXP(SUMPRODUCT(C695:C727, pat_baseline)))*100","v":10.485808307077864},{"$f":"EXP(SUMPRODUCT(C695:C727, pat_s1))/(1+EXP(SUMPRODUCT(C695:C727, pat_s1)))*100","v":9.6218633993696088},{"$f":"EXP(SUMPRODUCT(C695:C727, pat_s2))/(1+EXP(SUMPRODUCT(C695:C727, pat_s2)))*100","v":7.5136762061098779}]
[761,"genderM",0.55901810712743705,"ihd_10"]
[762,"as.factor(ethnicity)2",2.8093647076502502E-2,"ihd_10"]
[763,"as.factor(ethnicity)3",9.3081876355879407E-3,"ihd_10"]
[764,"age.diag",-4.1861782615283401E-2,"ihd_10"]
[765,"I(age.diag^2)",1.1206079466754E-3,"ihd_10"]
[766,"I(age.diag^3)",-8.1016599631363397E-6,"ihd_10"]
[767,"duration",9.8500371744025903E-3,"ihd_10"]
[768,"smokerY",-6.5628558330216205E-2,"ihd_10"]
[769,"albY",-1.0967901722774599E-2,"ihd_10"]
[770,"wbc",5.0280100902777803E-3,"ihd_10"]
[771,"haem",8.2290308450622494E-3,"ihd_10"]
[772,"hrate",-3.4856501610444298E-4,"ihd_10"]
[773,"bmi",7.2159089651338496E-3,"ihd_10"]
[774,"atfib1ltY",-4.77471977565967E-2,"ihd_10"]
[775,"pvd1ltY",0.50342808922400595,"ihd_10"]
[776,"ihd1ltY",0,"ihd_10"]
[777,"hf1ltY",0.62092847736692303,"ihd_10"]
[778,"amp1ltY",0.21115583991855599,"ihd_10"]
[779,"blind1ltY",-3.0196108592361201E-2,"ihd_10"]
[780,"renal1ltY",-0.29839874668076999,"ihd_10"]
[781,"stroke1ltY",-0.19123636942498801,"ihd_10"]
[782,"mi1ltY",-6.5892541242852001E-2,"ihd_10"]
[783,"ulcer1ltY",1.5924181714760999E-2,"ihd_10"]
[784,"target2 HbA1c only",9.2192247689987204E-3,"ihd_10"]
[785,"target3 CHOL only",-0.255217179522788,"ihd_10"]
[786,"target4 SBP only",-9.5590013934243795E-2,"ihd_10"]
[787,"target5 HbA1c + CHOL only",-0.25590437364440499,"ihd_10"]
[788,"target6 HbA1c + SBP only",-8.8005243248100801E-2,"ihd_10"]
[789,"target7 CHOL + SBP only",-0.36476266677258501,"ihd_10"]
[790,"target8 All three",-0.36596150259550497,"ihd_10"]
[791,"egfr:egfr.gt60FALSE",-5.5030162631397603E-3,"ihd_10"]
[792,"egfr:egfr.gt60TRUE",-5.5901327645223702E-3,"ihd_10"]
[793,"(Intercept)",-5.5129699500740497,"blind_10",null,{"$f":"EXP(SUMPRODUCT(C728:C760, pat_baseline))/(1+EXP(SUMPRODUCT(C728:C760, pat_baseline)))*100","v":3.8022297546261923},{"$f":"EXP(SUMPRODUCT(C728:C760, pat_s1))/(1+EXP(SUMPRODUCT(C728:C760, pat_s1)))*100","v":3.4080700500776606},{"$f":"EXP(SUMPRODUCT(C728:C760, pat_s2))/(1+EXP(SUMPRODUCT(C728:C760, pat_s2)))*100","v":2.4901324398125131}]
[794,"genderM",-3.7560036520159198E-2,"blind_10"]
[795,"as.factor(ethnicity)2",5.43347286887804E-2,"blind_10"]
[796,"as.factor(ethnicity)3",-3.8641606107951798E-3,"blind_10"]
[797,"age.diag",-8.7135405350030407E-3,"blind_10"]
[798,"I(age.diag^2)",9.482059501457E-4,"blind_10"]
[799,"I(age.diag^3)",-6.5966656047763396E-6,"blind_10"]
[800,"duration",-1.5836391221799601E-2,"blind_10"]
[801,"smokerY",-0.101452537105305,"blind_10"]
[802,"albY",-6.3781541965671595E-2,"blind_10"]
[803,"wbc",4.09800747712405E-2,"blind_10"]
[804,"haem",2.92830602539165E-3,"blind_10"]
[805,"hrate",8.2549955252436292E-3,"blind_10"]
[806,"bmi",1.50802049576847E-3,"blind_10"]
[807,"atfib1ltY",-0.198402407420079,"blind_10"]
[808,"pvd1ltY",-6.1775813839131298E-2,"blind_10"]
[809,"ihd1ltY",0.525288054807733,"blind_10"]
[810,"hf1ltY",0.606947625589633,"blind_10"]
[811,"amp1ltY",-0.30331957228633599,"blind_10"]
[812,"blind1ltY",0,"blind_10"]
[813,"renal1ltY",-0.360606227249682,"blind_10"]
[814,"stroke1ltY",-0.179952296876046,"blind_10"]
[815,"mi1ltY",2.6084636740699601E-3,"blind_10"]
[816,"ulcer1ltY",-1.9172254437260599E-2,"blind_10"]
[817,"target2 HbA1c only",-0.331408821021142,"blind_10"]
[818,"target3 CHOL only",6.3259169626465597E-3,"blind_10"]
[819,"target4 SBP only",-0.11353052657998999,"blind_10"]
[820,"target5 HbA1c + CHOL only",-0.32343500313944701,"blind_10"]
[821,"target6 HbA1c + SBP only",-0.44380606971153203,"blind_10"]
[822,"target7 CHOL + SBP only",-0.111338133026002,"blind_10"]
[823,"target8 All three",-0.43679917398488999,"blind_10"]
[824,"egfr:egfr.gt60FALSE",6.8065864997885703E-5,"blind_10"]
[825,"egfr:egfr.gt60TRUE",1.8024729722415799E-4,"blind_10"]
[826,"(Intercept)",-6.6403763115497201,"amp_10",null,{"$f":"EXP(SUMPRODUCT(C761:C793, pat_baseline))/(1+EXP(SUMPRODUCT(C761:C793, pat_baseline)))*100","v":1.6776881178555132},{"$f":"EXP(SUMPRODUCT(C761:C793, pat_s1))/(1+EXP(SUMPRODUCT(C761:C793, pat_s1)))*100","v":1.4800827273821902},{"$f":"EXP(SUMPRODUCT(C761:C793, pat_s2))/(1+EXP(SUMPRODUCT(C761:C793, pat_s2)))*100","v":1.0002708539749077}]
[827,"genderM",0.47481001538182599,"amp_10"]
[828,"as.factor(ethnicity)2",5.2484882139477503E-2,"amp_10"]
[829,"as.factor(ethnicity)3",-3.1361435541668202E-3,"amp_10"]
[830,"age.diag",3.0684435232853399E-2,"amp_10"]
[831,"I(age.diag^2)",-2.7525460521229798E-4,"amp_10"]
[832,"I(age.diag^3)",-5.8374811303538899E-7,"amp_10"]
[833,"duration",3.3252699657691599E-2,"amp_10"]
[834,"smokerY",-8.0142991638496502E-2,"amp_10"]
[835,"albY",0.40806695525429698,"amp_10"]
[836,"wbc",2.8171099246772201E-2,"amp_10"]
[837,"haem",1.8301676845847699E-3,"amp_10"]
[838,"hrate",8.5387322468808598E-3,"amp_10"]
[839,"bmi",6.7683813125350104E-3,"amp_10"]
[840,"atfib1ltY",0.82309024902189099,"amp_10"]
[841,"pvd1ltY",1.1193325283500399,"amp_10"]
[842,"ihd1ltY",7.0002736093957796E-2,"amp_10"]
[843,"hf1ltY",-0.22493085476521299,"amp_10"]
[844,"amp1ltY",0,"amp_10"]
[845,"blind1ltY",-3.6426878514175102E-3,"amp_10"]
[846,"renal1ltY",-0.37923514945951198,"amp_10"]
[847,"stroke1ltY",0.85671321226184505,"amp_10"]
[848,"mi1ltY",2.2081518372372599E-2,"amp_10"]
[849,"ulcer1ltY",2.0196517769962901,"amp_10"]
[850,"target2 HbA1c only",-0.40996365327963802,"amp_10"]
[851,"target3 CHOL only",2.3256970709775199E-2,"amp_10"]
[852,"target4 SBP only",-0.127326496989285,"amp_10"]
[853,"target5 HbA1c + CHOL only",-0.39191789073819899,"amp_10"]
[854,"target6 HbA1c + SBP only",-0.547779454470397,"amp_10"]
[855,"target7 CHOL + SBP only",-0.12860344949012301,"amp_10"]
[856,"target8 All three",-0.52401204346393204,"amp_10"]
[857,"egfr:egfr.gt60FALSE",2.1586034065342901E-4,"amp_10"]
[858,"egfr:egfr.gt60TRUE",2.8606923291238899E-4,"amp_10"]
[859,"(Intercept)",-7.2336279161011996,"ulcer_10",null,{"$f":"EXP(SUMPRODUCT(C794:C826, pat_baseline))/(1+EXP(SUMPRODUCT(C794:C826, pat_baseline)))*100","v":2.6215440565356145},{"$f":"EXP(SUMPRODUCT(C794:C826, pat_s1))/(1+EXP(SUMPRODUCT(C794:C826, pat_s1)))*100","v":2.693919072321401},{"$f":"EXP(SUMPRODUCT(C794:C826, pat_s2))/(1+EXP(SUMPRODUCT(C794:C826, pat_s2)))*100","v":2.0295565942436999}]
[860,"genderM",0.91768428449420203,"ulcer_10"]
[861,"as.factor(ethnicity)2",4.5351740181161601E-2,"ulcer_10"]
[862,"as.factor(ethnicity)3",-6.8433112408990597E-3,"ulcer_10"]
[863,"age.diag",-7.9970114043361202E-3,"ulcer_10"]
[864,"I(age.diag^2)",8.78456091991618E-4,"ulcer_10"]
[865,"I(age.diag^3)",-6.4184047807506002E-6,"ulcer_10"]
[866,"duration",-1.62991408803102E-2,"ulcer_10"]
[867,"smokerY",-8.4286896376131598E-2,"ulcer_10"]
[868,"albY",-9.1171845282286806E-2,"ulcer_10"]
[869,"wbc",-8.7880899279356994E-3,"ulcer_10"]
[870,"haem",1.04191619076485E-3,"ulcer_10"]
[871,"hrate",2.10318125307153E-4,"ulcer_10"]
[872,"bmi",5.1048682465315402E-2,"ulcer_10"]
[873,"atfib1ltY",-0.25502904681663002,"ulcer_10"]
[874,"pvd1ltY",0.90169962914578805,"ulcer_10"]
[875,"ihd1ltY",-5.3492785215523399E-2,"ulcer_10"]
[876,"hf1ltY",-0.20331812457849499,"ulcer_10"]
[877,"amp1ltY",-0.32031883332308803,"ulcer_10"]
[878,"blind1ltY",-1.02988264415191E-2,"ulcer_10"]
[879,"renal1ltY",-0.33106634827725201,"ulcer_10"]
[880,"stroke1ltY",-0.17785644825612301,"ulcer_10"]
[881,"mi1ltY",1.0735490540573401E-2,"ulcer_10"]
[882,"ulcer1ltY",0,"ulcer_10"]
[883,"target2 HbA1c only",-0.30546651246499901,"ulcer_10"]
[884,"target3 CHOL only",1.6547988335044998E-2,"ulcer_10"]
[885,"target4 SBP only",2.7977069538030801E-2,"ulcer_10"]
[886,"target5 HbA1c + CHOL only",-0.28316875747660197,"ulcer_10"]
[887,"target6 HbA1c + SBP only",-0.28171903962602701,"ulcer_10"]
[888,"target7 CHOL + SBP only",4.20391294009273E-2,"ulcer_10"]
[889,"target8 All three",-0.26200697666879202,"ulcer_10"]
[890,"egfr:egfr.gt60FALSE",9.9079100245963106E-5,"ulcer_10"]
[891,"egfr:egfr.gt60TRUE",2.95367025261687E-4,"ulcer_10"]
[892,"(Intercept)",7.5847149849389499,"renal_10",null,{"$f":"EXP(SUMPRODUCT(C827:C859, pat_baseline))/(1+EXP(SUMPRODUCT(C827:C859, pat_baseline)))*100","v":0.1814783223804855},{"$f":"EXP(SUMPRODUCT(C827:C859, pat_s1))/(1+EXP(SUMPRODUCT(C827:C859, pat_s1)))*100","v":0.15461427427169472},{"$f":"EXP(SUMPRODUCT(C827:C859, pat_s2))/(1+EXP(SUMPRODUCT(C827:C859, pat_s2)))*100","v":0.1123786461677289}]
[893,"genderM",0.80095130539913395,"renal_10"]
[894,"as.factor(ethnicity)2",0.68488657160856103,"renal_10"]
[895,"as.factor(ethnicity)3",-1.15451529376463E-2,"renal_10"]
[896,"age.diag",-7.1499237992848005E-2,"renal_10"]
[897,"I(age.diag^2)",6.9916725466992805E-4,"renal_10"]
[898,"I(age.diag^3)",-5.01515291340361E-6,"renal_10"]
[899,"duration",-1.1704390313846499E-2,"renal_10"]
[900,"smokerY",-9.3544518325361301E-2,"renal_10"]
[901,"albY",1.2966620459759901,"renal_10"]
[902,"wbc",1.6409386743137199E-2,"renal_10"]
[903,"haem",-0.26453951315344398,"renal_10"]
[904,"hrate",4.3856398712577001E-5,"renal_10"]
[905,"bmi",-5.3465260943621001E-2,"renal_10"]
[906,"atfib1ltY",-0.24503585184079801,"renal_10"]
[907,"pvd1ltY",-3.9847103601809597E-2,"renal_10"]
[908,"ihd1ltY",-1.32936831813387E-2,"renal_10"]
[909,"hf1ltY",-0.16725781045138099,"renal_10"]
[910,"amp1ltY",0.76515292653017197,"renal_10"]
[911,"blind1ltY",0.71515826269041505,"renal_10"]
[912,"renal1ltY",0,"renal_10"]
[913,"stroke1ltY",-0.129391368276258,"renal_10"]
[914,"mi1ltY",3.2380607186102699E-3,"renal_10"]
[915,"ulcer1ltY",5.81459007318086E-2,"renal_10"]
[916,"target2 HbA1c only",5.8686624513121502E-3,"renal_10"]
[917,"target3 CHOL only",-0.30307734849700702,"renal_10"]
[918,"target4 SBP only",-0.160471841096229,"renal_10"]
[919,"target5 HbA1c + CHOL only",-0.31346755934549703,"renal_10"]
[920,"target6 HbA1c + SBP only",-0.15534801392181699,"renal_10"]
[921,"target7 CHOL + SBP only",-0.47946159226908602,"renal_10"]
[922,"target8 All three",-0.47995428550959501,"renal_10"]
[923,"egfr:egfr.gt60FALSE",-8.5570828735742094E-2,"renal_10"]
[924,"egfr:egfr.gt60TRUE",-8.0457865113504196E-2,"renal_10"]

{"sheet":"GP practice-level outcomes","index":4,"n_rows":17,"n_cols":5,"rows_kept":17,"cut":false,"hidden":false,"merged":[]}
[]
[]
[]
[]
[]
[]
[null,null,{"$f":"\"Scenario: \" &C9","v":"Scenario: Baseline - Lowest performing decile (D1)"},{"$f":"\"Scenario: \" &D9","v":"Scenario: Improve to D10"},{"$f":"\"Scenario: \" &E9","v":"Scenario: Ideal - 100% patients meet all targets"}]
[null,null,"Baseline scenario","Scenario 1","Scenario 2"]
[null,"% of patients that meet treatment target","Baseline - Lowest performing decile (D1)","Improve to D10","Ideal - 100% patients meet all targets"]
[null,"No target",8,1,0]
[null,"HbA1c target only",6,0,0]
[null,"Cholesterol target only",11,0,0]
[null,"BP target only",3,12,0]
[null,"HbA1c and Cholesterol target only",15,15,0]
[null,"HbA1c and BP target only",10,5,0]
[null,"Cholesterol and BP target only",20,13,0]
[null,"All three targets",27,54,100]

{"sheet":"output.gp","index":5,"n_rows":52,"n_cols":9,"rows_kept":52,"cut":false,"hidden":true,"merged":[]}
[]
[]
[]
[]
[]
[]
[]
[null,null,null,{"$f":"name_baseline","v":"Baseline - Lowest performing decile (D1)"},{"$f":"name_s1","v":"Improve to D10"},{"$f":"name_s2","v":"Ideal - 100% patients meet all targets"},null,"label_s1","label_s2"]
[null,"Total cost","Lifetime",{"$f":"cost_70","v":43280.86912933828},{"$f":"s1_cost_70","v":43128.055070412207},{"$f":"s2_cost_70","v":43073.902881174203},null,{"$f":"TEXT(s1_cost_70,\"#,###\")& \" (\"& TEXT(s1_cost_70-cost_70, \"+#,##0;-#,##0\") &\")\"","v":"43,128 (-153)"},{"$f":"TEXT(s2_cost_70,\"#,###\")& \" (\"& TEXT(s2_cost_70-cost_70, \"+#,##0;-#,##0\") &\")\"","v":"43,074 (-207)"}]
[null,null,"10-year",{"$f":"cost_10","v":20929.889485726519},{"$f":"s1_cost_10","v":20761.316901750586},{"$f":"s2_cost_10","v":20602.986870289398},null,{"$f":"TEXT(s1_cost_10,\"#,###\")& \" (\"& TEXT(s1_cost_10-cost_10, \"+#,##0;-#,##0\") &\")\"","v":"20,761 (-169)"},{"$f":"TEXT(s2_cost_10,\"#,###\")& \" (\"& TEXT(s2_cost_10-cost_10, \"+#,##0;-#,##0\") &\")\"","v":"20,603 (-327)"}]
[]
[null,null,null,{"$f":"name_baseline","v":"Baseline - Lowest performing decile (D1)"},{"$f":"name_s1","v":"Improve to D10"},{"$f":"name_s2","v":"Ideal - 100% patients meet all targets"}]
[null,"LYs","Lifetime",{"$f":"lifeyr_70","v":15.898895715861039},{"$f":"s1_lifeyr_70","v":16.180525440558732},{"$f":"s2_lifeyr_70","v":16.521585561105301},null,{"$f":"ROUND(s1_lifeyr_70,1)& \" (\"& TEXT(s1_lifeyr_70-lifeyr_70,\"+0.00;-0.00\") &\")\"","v":"16.2 (+0.28)"},{"$f":"ROUND(s2_lifeyr_70,1)& \" (\"& TEXT(s2_lifeyr_70-lifeyr_70,\"+0.00;-0.00\") &\")\"","v":"16.5 (+0.62)"}]
[null,null,"10-year",{"$f":"lifeyr_10","v":8.1038333683599291},{"$f":"s1_lifeyr_10","v":8.1711061803458058},{"$f":"s2_lifeyr_10","v":8.2466086386205806},null,{"$f":"ROUND(s1_lifeyr_10,1)& \" (\"& TEXT(s1_lifeyr_10-lifeyr_10,\"+0.00;-0.00\") &\")\"","v":"8.2 (+0.07)"},{"$f":"ROUND(s2_lifeyr_10,1)& \" (\"& TEXT(s2_lifeyr_10-lifeyr_10,\"+0.00;-0.00\") &\")\"","v":"8.2 (+0.14)"}]
[null,"QALYs","Lifetime",{"$f":"qaly_70","v":12.530118208097939},{"$f":"s1_qaly_70","v":12.776971157404162},{"$f":"s2_qaly_70","v":13.0723704227408},null,{"$f":"ROUND(s1_qaly_70,1)& \" (\"& TEXT(s1_qaly_70-qaly_70,\"+0.00;-0.00\") &\")\"","v":"12.8 (+0.25)"},{"$f":"ROUND(s2_qaly_70,1)& \" (\"& TEXT(s2_qaly_70-qaly_70,\"+0.00;-0.00\") &\")\"","v":"13.1 (+0.54)"}]
[null,null,"10-year",{"$f":"qaly_10","v":6.4503867980959679},{"$f":"s1_qaly_10","v":6.51323168184829},{"$f":"s2_qaly_10","v":6.5824319327259211},null,{"$f":"ROUND(s1_qaly_10,1)& \" (\"& TEXT(s1_qaly_10-qaly_10,\"+0.00;-0.00\") &\")\"","v":"6.5 (+0.06)"},{"$f":"ROUND(s2_qaly_10,1)& \" (\"& TEXT(s2_qaly_10-qaly_10,\"+0.00;-0.00\") &\")\"","v":"6.6 (+0.13)"}]
[]
[null,null,null,{"$f":"name_baseline","v":"Baseline - Lowest performing decile (D1)"},{"$f":"name_s1","v":"Improve to D10"},{"$f":"name_s2","v":"Ideal - 100% patients meet all targets"}]
[null,"All-cause death","Lifetime",{"$f":"alldeath_70","v":99.995313876864927},{"$f":"s1_alldeath_70","v":99.995311871885789},{"$f":"s2_alldeath_70","v":99.995307778449799},null,{"$f":"ROUND(s1_alldeath_70,1)& \" (\"& TEXT(s1_alldeath_70-alldeath_70,\"+0.0;-0.0\") &\")\"","v":"100 (-0.0)"},{"$f":"ROUND(s2_alldeath_70,1)& \" (\"& TEXT(s2_alldeath_70-alldeath_70,\"+0.0;-0.0\") &\")\"","v":"100 (-0.0)"}]
[null,"All-cause death","10-year",{"$f":"alldeath_10","v":38.223724959866914},{"$f":"s1_alldeath_10","v":37.419117806902648},{"$f":"s2_alldeath_10","v":36.445694968194097},null,{"$f":"ROUND(s1_alldeath_10,1)& \" (\"& TEXT(s1_alldeath_10-alldeath_10,\"+0.0;-0.0\") &\")\"","v":"37.4 (-0.8)"},{"$f":"ROUND(s2_alldeath_10,1)& \" (\"& TEXT(s2_alldeath_10-alldeath_10,\"+0.0;-0.0\") &\")\"","v":"36.4 (-1.8)"}]
[null,"CV death","Lifetime",{"$f":"cvddeath_70","v":34.814340137385983},{"$f":"s1_cvddeath_70","v":33.292439954960351},{"$f":"s2_cvddeath_70","v":31.3618943715881},null,{"$f":"ROUND(s1_cvddeath_70,1)& \" (\"& TEXT(s1_cvddeath_70-cvddeath_70,\"+0.0;-0.0\") &\")\"","v":"33.3 (-1.5)"},{"$f":"ROUND(s2_cvddeath_70,1)& \" (\"& TEXT(s2_cvddeath_70-cvddeath_70,\"+0.0;-0.0\") &\")\"","v":"31.4 (-3.5)"}]
[null,null,"10-year",{"$f":"cvddeath_10","v":16.147209167337355},{"$f":"s1_cvddeath_10","v":15.229200882386959},{"$f":"s2_cvddeath_10","v":14.103216372931},null,{"$f":"ROUND(s1_cvddeath_10,1)& \" (\"& TEXT(s1_cvddeath_10-cvddeath_10,\"+0.0;-0.0\") &\")\"","v":"15.2 (-0.9)"},{"$f":"ROUND(s2_cvddeath_10,1)& \" (\"& TEXT(s2_cvddeath_10-cvddeath_10,\"+0.0;-0.0\") &\")\"","v":"14.1 (-2.0)"}]
[]
[null,null,null,{"$f":"name_baseline","v":"Baseline - Lowest performing decile (D1)"},{"$f":"name_s1","v":"Improve to D10"},{"$f":"name_s2","v":"Ideal - 100% patients meet all targets"}]
[null,"Myocardial infarction","Lifetime",{"$f":"mi_70","v":23.691166469034325},{"$f":"s1_mi_70","v":22.538617830579462},{"$f":"s2_mi_70","v":20.8948364543004},null,{"$f":"ROUND(s1_mi_70,1)& \" (\"& TEXT(s1_mi_70-mi_70,\"+0.0;-0.0\") &\")\"","v":"22.5 (-1.2)"},{"$f":"ROUND(s2_mi_70,1)& \" (\"& TEXT(s2_mi_70-mi_70,\"+0.0;-0.0\") &\")\"","v":"20.9 (-2.8)"}]
[null,null,"10-year",{"$f":"mi_10","v":13.777869551156453},{"$f":"s1_mi_10","v":12.962936041757807},{"$f":"s2_mi_10","v":11.839701975486101},null,{"$f":"ROUND(s1_mi_10,1)& \" (\"& TEXT(s1_mi_10-mi_10,\"+0.0;-0.0\") &\")\"","v":"13 (-0.8)"},{"$f":"ROUND(s2_mi_10,1)& \" (\"& TEXT(s2_mi_10-mi_10,\"+0.0;-0.0\") &\")\"","v":"11.8 (-1.9)"}]
[null,"Stroke","Lifetime",{"$f":"stroke_70","v":12.853265843994212},{"$f":"s1_stroke_70","v":11.503634005657171},{"$f":"s2_stroke_70","v":10.226994990394999},null,{"$f":"ROUND(s1_stroke_70,1)& \" (\"& TEXT(s1_stroke_70-stroke_70,\"+0.0;-0.0\") &\")\"","v":"11.5 (-1.3)"},{"$f":"ROUND(s2_stroke_70,1)& \" (\"& TEXT(s2_stroke_70-stroke_70,\"+0.0;-0.0\") &\")\"","v":"10.2 (-2.6)"}]
[null,null,"10-year",{"$f":"stroke_10","v":6.995954279176801},{"$f":"s1_stroke_10","v":6.1811001807353829},{"$f":"s2_stroke_10","v":5.414366935882069},null,{"$f":"ROUND(s1_stroke_10,1)& \" (\"& TEXT(s1_stroke_10-stroke_10,\"+0.0;-0.0\") &\")\"","v":"6.2 (-0.8)"},{"$f":"ROUND(s2_stroke_10,1)& \" (\"& TEXT(s2_stroke_10-stroke_10,\"+0.0;-0.0\") &\")\"","v":"5.4 (-1.6)"}]
[null,"Heart failure","Lifetime",{"$f":"hf_70","v":11.843791869811469},{"$f":"s1_hf_70","v":11.884133660119549},{"$f":"s2_hf_70","v":11.815214279511199},null,{"$f":"ROUND(s1_hf_70,1)& \" (\"& TEXT(s1_hf_70-hf_70,\"+0.0;-0.0\") &\")\"","v":"11.9 (+0.0)"},{"$f":"ROUND(s2_hf_70,1)& \" (\"& TEXT(s2_hf_70-hf_70,\"+0.0;-0.0\") &\")\"","v":"11.8 (-0.0)"}]
[null,null,"10-year",{"$f":"hf_10","v":6.3011145599347582},{"$f":"s1_hf_10","v":6.2584211781566434},{"$f":"s2_hf_10","v":6.1451394535809696},null,{"$f":"ROUND(s1_hf_10,1)& \" (\"& TEXT(s1_hf_10-hf_10,\"+0.0;-0.0\") &\")\"","v":"6.3 (-0.0)"},{"$f":"ROUND(s2_hf_10,1)& \" (\"& TEXT(s2_hf_10-hf_10,\"+0.0;-0.0\") &\")\"","v":"6.1 (-0.2)"}]
[null,"Ischaemic heart disease","Lifetime",{"$f":"ihd_70","v":15.128079516869757},{"$f":"s1_ihd_70","v":14.58033720839525},{"$f":"s2_ihd_70","v":13.8530580882002},null,{"$f":"ROUND(s1_ihd_70,1)& \" (\"& TEXT(s1_ihd_70-ihd_70,\"+0.0;-0.0\") &\")\"","v":"14.6 (-0.5)"},{"$f":"ROUND(s2_ihd_70,1)& \" (\"& TEXT(s2_ihd_70-ihd_70,\"+0.0;-0.0\") &\")\"","v":"13.9 (-1.3)"}]
[null,null,"10-year",{"$f":"ihd_10","v":7.2819070429782506},{"$f":"s1_ihd_10","v":6.9357925780462883},{"$f":"s2_ihd_10","v":6.4921449444663901},null,{"$f":"ROUND(s1_ihd_10,1)& \" (\"& TEXT(s1_ihd_10-ihd_10,\"+0.0;-0.0\") &\")\"","v":"6.9 (-0.3)"},{"$f":"ROUND(s2_ihd_10,1)& \" (\"& TEXT(s2_ihd_10-ihd_10,\"+0.0;-0.0\") &\")\"","v":"6.5 (-0.8)"}]
[]
[null,null,null,{"$f":"name_baseline","v":"Baseline - Lowest performing decile (D1)"},{"$f":"name_s1","v":"Improve to D10"},{"$f":"name_s2","v":"Ideal - 100% patients meet all targets"}]
[null,"Blindness","Lifetime",{"$f":"blind_70","v":6.1938144036194949},{"$f":"s1_blind_70","v":5.7720443656627278},{"$f":"s2_blind_70","v":5.2531184174156804},null,{"$f":"ROUND(s1_blind_70,1)& \" (\"& TEXT(s1_blind_70-blind_70,\"+0.0;-0.0\") &\")\"","v":"5.8 (-0.4)"},{"$f":"ROUND(s2_blind_70,1)& \" (\"& TEXT(s2_blind_70-blind_70,\"+0.0;-0.0\") &\")\"","v":"5.3 (-0.9)"}]
[null,null,"10-year",{"$f":"blind_10","v":3.6671295890617164},{"$f":"s1_blind_10","v":3.3843524437461889},{"$f":"s2_blind_10","v":3.0408136881046},null,{"$f":"ROUND(s1_blind_10,1)& \" (\"& TEXT(s1_blind_10-blind_10,\"+0.0;-0.0\") &\")\"","v":"3.4 (-0.3)"},{"$f":"ROUND(s2_blind_10,1)& \" (\"& TEXT(s2_blind_10-blind_10,\"+0.0;-0.0\") &\")\"","v":"3 (-0.6)"}]
[null,"Amputation","Lifetime",{"$f":"amp_70","v":4.4709665932833023},{"$f":"s1_amp_70","v":4.0972105838867252},{"$f":"s2_amp_70","v":3.6340606860890499},null,{"$f":"ROUND(s1_amp_70,1)& \" (\"& TEXT(s1_amp_70-amp_70,\"+0.0;-0.0\") &\")\"","v":"4.1 (-0.4)"},{"$f":"ROUND(s2_amp_70,1)& \" (\"& TEXT(s2_amp_70-amp_70,\"+0.0;-0.0\") &\")\"","v":"3.6 (-0.8)"}]
[null,null,"10-year",{"$f":"amp_10","v":1.7108337284550175},{"$f":"s1_amp_10","v":1.5505697039457054},{"$f":"s2_amp_10","v":1.3582844092839099},null,{"$f":"ROUND(s1_amp_10,1)& \" (\"& TEXT(s1_amp_10-amp_10,\"+0.0;-0.0\") &\")\"","v":"1.6 (-0.2)"},{"$f":"ROUND(s2_amp_10,1)& \" (\"& TEXT(s2_amp_10-amp_10,\"+0.0;-0.0\") &\")\"","v":"1.4 (-0.4)"}]
[null,"Ulcer","Lifetime",{"$f":"ulcer_70","v":3.3438654870695315},{"$f":"s1_ulcer_70","v":3.2361815115429566},{"$f":"s2_ulcer_70","v":3.0298259601608},null,{"$f":"ROUND(s1_ulcer_70,1)& \" (\"& TEXT(s1_ulcer_70-ulcer_70,\"+0.0;-0.0\") &\")\"","v":"3.2 (-0.1)"},{"$f":"ROUND(s2_ulcer_70,1)& \" (\"& TEXT(s2_ulcer_70-ulcer_70,\"+0.0;-0.0\") &\")\"","v":"3 (-0.3)"}]
[null,null,"10-year",{"$f":"ulcer_10","v":2.0005567208528787},{"$f":"s1_ulcer_10","v":1.919525893011846},{"$f":"s2_ulcer_10","v":1.7734344887182101},null,{"$f":"ROUND(s1_ulcer_10,1)& \" (\"& TEXT(s1_ulcer_10-ulcer_10,\"+0.0;-0.0\") &\")\"","v":"1.9 (-0.1)"},{"$f":"ROUND(s2_ulcer_10,1)& \" (\"& TEXT(s2_ulcer_10-ulcer_10,\"+0.0;-0.0\") &\")\"","v":"1.8 (-0.2)"}]
[null,"Renal failure","Lifetime",{"$f":"renal_70","v":1.6686314151300632},{"$f":"s1_renal_70","v":1.5689619436847198},{"$f":"s2_renal_70","v":1.45671658212766},null,{"$f":"ROUND(s1_renal_70,1)& \" (\"& TEXT(s1_renal_70-renal_70,\"+0.0;-0.0\") &\")\"","v":"1.6 (-0.1)"},{"$f":"ROUND(s2_renal_70,1)& \" (\"& TEXT(s2_renal_70-renal_70,\"+0.0;-0.0\") &\")\"","v":"1.5 (-0.2)"}]
[null,null,"10-year",{"$f":"renal_10","v":0.96316099464422111},{"$f":"s1_renal_10","v":0.89703987437174049},{"$f":"s2_renal_10","v":0.82225343009241991},null,{"$f":"ROUND(s1_renal_10,1)& \" (\"& TEXT(s1_renal_10-renal_10,\"+0.0;-0.0\") &\")\"","v":"0.9 (-0.1)"},{"$f":"ROUND(s2_renal_10,1)& \" (\"& TEXT(s2_renal_10-renal_10,\"+0.0;-0.0\") &\")\"","v":"0.8 (-0.1)"}]
[]
[null,null,null,{"$f":"name_baseline","v":"Baseline - Lowest performing decile (D1)"},{"$f":"name_s1","v":"Improve to D10"},{"$f":"name_s2","v":"Ideal - 100% patients meet all targets"}]
[null,"Lifetime","Blindness",{"$f":"blind_70","v":6.1938144036194949},{"$f":"s1_blind_70","v":5.7720443656627278},{"$f":"s2_blind_70","v":5.2531184174156804}]
[null,null,"Amputation",{"$f":"amp_70","v":4.4709665932833023},{"$f":"s1_amp_70","v":4.0972105838867252},{"$f":"s2_amp_70","v":3.6340606860890499}]
[null,null,"Ulcer",{"$f":"ulcer_70","v":3.3438654870695315},{"$f":"s1_ulcer_70","v":3.2361815115429566},{"$f":"s2_ulcer_70","v":3.0298259601608}]
[null,null,"Renal failure",{"$f":"renal_70","v":1.6686314151300632},{"$f":"s1_renal_70","v":1.5689619436847198},{"$f":"s2_renal_70","v":1.45671658212766}]
[null,"10-year","Blindness",{"$f":"blind_10","v":3.6671295890617164},{"$f":"s1_blind_10","v":3.3843524437461889},{"$f":"s2_blind_10","v":3.0408136881046}]
[null,null,"Amputation",{"$f":"amp_10","v":1.7108337284550175},{"$f":"s1_amp_10","v":1.5505697039457054},{"$f":"s2_amp_10","v":1.3582844092839099}]
[null,null,"Ulcer",{"$f":"ulcer_10","v":2.0005567208528787},{"$f":"s1_ulcer_10","v":1.919525893011846},{"$f":"s2_ulcer_10","v":1.7734344887182101}]
[null,null,"Renal failure",{"$f":"renal_10","v":0.96316099464422111},{"$f":"s1_renal_10","v":0.89703987437174049},{"$f":"s2_renal_10","v":0.82225343009241991}]

{"sheet":"baseline.gp","index":6,"n_rows":14,"n_cols":3,"rows_kept":14,"cut":false,"hidden":true,"merged":[]}
["Decile","max_allthreetargets"]
[1,30.3,{"$f":"IF(A2=gp_decile,1,0)","v":1}]
[{"$f":"A2+1","v":2},33.799999999999997,0]
[{"$f":"A3+1","v":3},36.299999999999997,0]
[4,38.4,0]
[5,40.200000000000003,0]
[6,42.2,0]
[7,44.3,0]
[8,46.7,0]
[9,50.3,0]
[10,100,0]
[10]
[]
["gp_decile",{"$f":"IF(percent_8<$B$2,$A$2,INDEX($A$2:$A$12,MATCH(percent_8,$B$2:$B$11,1)+1))","v":1}]

{"sheet":"effect.avgpat","index":7,"n_rows":261,"n_cols":21,"rows_kept":261,"cut":false,"hidden":true,"merged":[]}
[null,"deciles.num","VAR","outcome","outcome_target2","outcome_target3","outcome_target4","outcome_target5","outcome_target6","outcome_target7","outcome_target8",null,"OUTCOME_baseline","OUTCOME_baseline","OUTCOME_baseline",null,"Scenario_baseline","Scenario_s1","Scenario_s2",null,"POP_OUTCOME"]
[1,1,"cost_70",44131.192857090398,43007.255233690601,43794.455430056703,43243.564415608504,42999.4686388931,43086.744919695397,43333.463956272899,43073.902881174203,null,{"$f":"MMULT(D2:K11,percent_baseline)/100","v":43280.86912933828},{"$f":"MMULT(D2:K11, percent_s1)/100","v":43128.055070412207},{"$f":"MMULT(D2:K11, percent_s2)/100","v":43073.902881174203}]
[2,2,"cost_70",43754.587488382604,42640.241288093399,43420.723700483897,42874.533862237397,42632.5211422906,42719.052627546203,42963.666221063599,42706.320180004499,null,42911.52022618871,42760.01024701391,42706.320180004499]
[3,3,"cost_70",43185.767905077002,42085.908458696198,42856.244422312302,42317.1551761187,42078.2886765437,42163.695232821301,42405.1287940193,42151.128309991902,null,42353.660708931202,42204.120393925776,42151.128309991902]
[4,4,"cost_70",43369.1692457135,42264.638915688301,43038.246342458202,42496.867691785497,42256.986773841199,42342.756034724502,42585.214916090401,42330.135742680999,null,42533.528256312922,42383.352873423282,42330.135742680999]
[5,5,"cost_70",43667.818782374299,42555.682416148098,43334.617071997498,42789.510370131102,42547.977579987099,42634.337466664503,42878.465972646998,42621.630268543697,null,42826.423387283197,42675.213864028476,42621.630268543697]
[6,6,"cost_70",43638.213490514798,42526.831114815897,43305.237679533901,42760.500541420697,42519.131502271099,42605.432839890498,42849.395835071999,42592.734256816701,null,42797.388532806115,42646.281524451195,42592.734256816701]
[7,7,"cost_70",43098.693728530299,42001.051895966702,42769.834654141501,42231.832357525898,41993.447477353897,42078.6818309378,42319.628596843002,42066.140246420298,null,42268.264285320714,42119.025483994934,42066.140246420298]
[8,8,"cost_70",43041.181759229803,41945.004647239199,42712.761522572502,42175.477149608203,41937.410376151798,42022.530990893501,42263.156231439003,42010.006142178499,null,42211.860461732074,42062.820808376186,42010.006142178507]
[9,9,"cost_70",42439.637807654297,41358.780877048703,42115.807575241,41586.032293607801,41351.292743563703,41435.223711812097,41672.485971785703,41422.873910497699,null,41621.907112227294,41474.950438435546,41422.873910497699]
[10,10,"cost_70",42550.454495170001,41466.775274108601,42225.7786901851,41694.620080491899,41459.2675879085,41543.417713349598,41781.299503061899,41531.035664727096,null,41730.588574005167,41583.248172815162,41531.035664727096,null,{"$f":"SUMPRODUCT(M2:M11, array_decile)","v":43280.86912933828},{"$f":"SUMPRODUCT(N2:N11, array_decile)","v":43128.055070412207},{"$f":"SUMPRODUCT(O2:O11, array_decile)","v":43073.902881174203}]
[21,1,"qaly_70",11.5329598479632,12.017406671521201,12.096835094651899,12.0326960501313,12.629789536297499,12.4565145047294,12.6257219149819,13.0723704227408,null,{"$f":"MMULT(D12:K21,percent_baseline)/100","v":12.530118208097939},{"$f":"MMULT(D12:K21, percent_s1)/100","v":12.776971157404162},{"$f":"MMULT(D12:K21, percent_s2)/100","v":13.0723704227408}]
[22,2,"qaly_70",11.3792711300843,11.8572621944812,11.935632151036501,11.8723478261757,12.4614844189206,12.2905184578595,12.4574710029013,12.8981674534775,null,12.363141315118128,12.606704691428011,12.8981674534775]
[23,3,"qaly_70",11.228547365611499,11.700207214960701,11.777539124813501,11.715093030412801,12.2964262336407,12.127724796638599,12.2924659771923,12.7273251973114,null,12.199385730210933,12.439722995766839,12.7273251973114]
[24,4,"qaly_70",11.2931711924226,11.7675455927663,11.845322572118,11.782517080775101,12.3671960396935,12.1975236727845,12.3632129907219,12.8005749626229,null,12.269597037601056,12.5113175198207,12.8005749626229]
[25,5,"qaly_70",11.3042968678697,11.779138606884599,11.856992209658999,11.7941248443303,12.379379810485901,12.2095402877219,12.3753928375403,12.813185684637499,null,12.281684656940312,12.523643274541802,12.813185684637499]
[26,6,"qaly_70",11.283422871720701,11.7573877897579,11.83509763164,11.772346354304799,12.356520615481401,12.186994710590801,12.3525410046971,12.789525443601301,null,12.259005861325734,12.50051768924086,12.789525443601301]
[27,7,"qaly_70",11.185272540796801,11.6551146129493,11.732148485599099,11.669943058464399,12.2490358033579,12.080984541743099,12.245090809739001,12.6782740822972,null,12.152369294056575,12.391780299721095,12.6782740822972]
[28,8,"qaly_70",11.1852284982716,11.655068720399299,11.7321022897247,11.669897107526699,12.248987572215899,12.080936972310599,12.2450425941306,12.6782241610097,null,12.152321443543388,12.39173150651605,12.6782241610097]
[29,9,"qaly_70",11.040813921662201,11.5045879488291,11.5806269233367,11.5192248838776,12.090838603296,11.924957736109,12.086944559560401,12.5145332382312,null,11.995420549085893,12.231739543969484,12.5145332382312]
[30,10,"qaly_70",11.055728132409,11.5201286372639,11.5962703271419,11.534785344254599,12.107171213945399,11.941066270686701,12.103271910037,12.5314381863117,null,12.01162426661384,12.248262487173916,12.5314381863117,null,{"$f":"SUMPRODUCT(M12:M21, array_decile)","v":12.530118208097939},{"$f":"SUMPRODUCT(N12:N21, array_decile)","v":12.776971157404162},{"$f":"SUMPRODUCT(O12:O21, array_decile)","v":13.0723704227408}]
[31,1,"lifeyr_70",14.751565679605999,15.2672481551906,15.428350375502401,15.311660682355299,16.004106069039601,15.7864460353869,16.030892975060699,16.521585561105301,null,{"$f":"MMULT(D22:K31,percent_baseline)/100","v":15.898895715861039},{"$f":"MMULT(D22:K31, percent_s1)/100","v":16.180525440558732},{"$f":"MMULT(D22:K31, percent_s2)/100","v":16.521585561105301}]
[32,2,"lifeyr_70",14.5522598602809,15.0609750402889,15.2199006367282,15.1047875175804,15.7878773959662,15.5731581288927,15.814302388793299,16.298365313280499,null,15.684088521435916,15.961913196266618,16.298365313280499]
[33,3,"lifeyr_70",14.3615635803055,14.8636124354041,15.020455432967101,14.9068507835558,15.5809892894436,15.369083754798201,15.6070680028695,16.0847876514765,null,15.478560489050658,15.752744483156548,16.0847876514765]
[34,4,"lifeyr_70",14.443012246320199,14.947908368660499,15.1056408691563,14.9913919342467,15.6693536785798,15.456246365101499,15.6955802920869,16.176009229824601,null,15.566343974226982,15.842082946691432,16.176009229824601]
[35,5,"lifeyr_70",14.457170415432101,14.962561476401699,15.120448598618999,15.0060876679765,15.684714003384,15.4713977854659,15.710966326267,16.191866217987801,null,15.581603320870352,15.857612594220518,16.191866217987801]
[36,6,"lifeyr_70",14.4291288803868,14.933539670616,15.0911205505229,14.976981437563399,15.6542914902116,15.4413890264395,15.680492893349401,16.160460018091701,null,15.551380804082653,15.826854722070131,16.160460018091701]
[37,7,"lifeyr_70",14.3011305590103,14.801066807846899,14.957249814862299,14.844123210349,15.5154249619757,15.3044111193537,15.541393936971399,16.017103355874902,null,15.413427178849188,15.68645741507475,16.017103355874902]
[38,8,"lifeyr_70",14.3043994881256,14.8044500115752,14.960668718647799,14.847516255839601,15.518971452526699,15.3079093767044,15.5449463634683,16.020764519255401,null,15.41695035491307,15.69004299994503,16.020764519255401]
[39,9,"lifeyr_70",14.1141688906096,14.6075693683902,14.7617105623162,14.6500628855446,15.3125885690859,15.1043333545254,15.338218046244499,15.8077084165025,null,15.211924224293298,15.481385079183738,15.8077084165025]
[40,10,"lifeyr_70",14.134851918373601,14.628975429572501,14.7833425033657,14.6715312171023,15.335027771632401,15.126467378040999,15.360694806453299,15.8308731720469,null,15.234215912419819,15.504071637627176,15.8308731720469,null,{"$f":"SUMPRODUCT(M22:M31, array_decile)","v":15.898895715861039},{"$f":"SUMPRODUCT(N22:N31, array_decile)","v":16.180525440558732},{"$f":"SUMPRODUCT(O22:O31, array_decile)","v":16.521585561105301}]
[71,1,"cost_10",21854.3758324394,21033.317223743601,21301.0149355668,21246.084684395399,20701.246796402502,20916.081413568099,20897.222932336099,20602.986870289398,null,{"$f":"MMULT(D32:K41,percent_baseline)/100","v":20929.889485726519},{"$f":"MMULT(D32:K41, percent_s1)/100","v":20761.316901750586},{"$f":"MMULT(D32:K41, percent_s2)/100","v":20602.986870289398}]
[72,2,"cost_10",21931.871721965599,21107.9016291935,21376.548600444701,21321.423565916899,20774.6536759716,20990.250099371598,20971.3247457297,20676.045318933899,null,21004.107135126273,20834.936790663171,20676.045318933899]
[73,3,"cost_10",21929.919249928102,21106.022510611001,21374.645565722902,21319.525438668999,20772.804224593001,20988.381454647599,20969.457785824299,20674.2046461065,null,21002.237256787819,20833.081972615561,20674.2046461065]
[74,4,"cost_10",21947.406795682102,21122.853057505999,21391.6903203363,21336.526238914299,20789.369053682301,21005.118191194899,20986.179432096102,20690.690849067701,null,21018.985042348686,20849.694868907682,20690.690849067701]
[75,5,"cost_10",22075.5050671836,21246.138737269299,21516.545096121001,21461.059043928399,20910.708320146699,21127.716699439101,21108.667402346899,20811.4541701567,null,21141.66448587961,20971.386233126919,20811.4541701567]
[76,6,"cost_10",22016.520530204602,21189.370221568501,21459.054069482201,21403.716272973299,20854.836056095999,21071.264600918701,21052.266202502102,20755.847107742899,null,21085.175119639993,20915.351841025615,20755.847107742899]
[77,7,"cost_10",21956.574386178301,21131.676225944298,21400.625784043001,21345.4386601853,20798.052923441199,21013.8921809284,20994.945510973001,20699.333500227,null,21027.764824366124,20858.40393719569,20699.333500227]
[78,8,"cost_10",21825.429697265699,21005.458581237501,21272.8017272652,21217.944231247599,20673.827981396,20888.378049969699,20869.5445468086,20575.698200619699,null,20902.167833327512,20733.818523850008,20575.698200619699]
[79,9,"cost_10",21867.980356321899,21046.410632070299,21314.274987861801,21259.310542169402,20714.1334882302,20929.101841664498,20910.231620877101,20615.812394526602,null,20942.918509458435,20774.24098769969,20615.812394526602]
[80,10,"cost_10",21931.010073105801,21107.0723520756,21375.708768853401,21320.585900051501,20773.837491339498,20989.425444490498,20970.500834378901,20675.233008379601,null,21003.281935836665,20834.118237656927,20675.233008379601,null,{"$f":"SUMPRODUCT(M32:M41, array_decile)","v":20929.889485726519},{"$f":"SUMPRODUCT(N32:N41, array_decile)","v":20761.316901750586},{"$f":"SUMPRODUCT(O32:O41, array_decile)","v":20602.986870289398}]
[91,1,"qaly_10",6.1954587308348703,6.3193673886716599,6.3359764989237899,6.3469339113670697,6.4678074525777403,6.4370674146065499,6.48544071451468,6.5824319327259202,null,{"$f":"MMULT(D42:K51,percent_baseline)/100","v":6.4503867980959679},{"$f":"MMULT(D42:K51, percent_s1)/100","v":6.51323168184829},{"$f":"MMULT(D42:K51, percent_s2)/100","v":6.5824319327259211}]
[92,2,"qaly_10",6.16775594624995,6.2911105507057998,6.3076453938820896,6.3185538106254997,6.4388868698767796,6.4082842849477402,6.4564412852781796,6.5529988105311698,null,6.4215441112634828,6.4841079862394579,6.5529988105311698]
[93,3,"qaly_10",6.1257866346025702,6.2483018563262398,6.2647241859737299,6.2755583749516699,6.3950726119750199,6.36467826638542,6.4125075760334704,6.5084080628263496,null,6.3778478644580439,6.4399860152663289,6.5084080628263496]
[94,4,"qaly_10",6.14448029796021,6.2673693913917603,6.2838418359910504,6.2947090869565496,6.4145880377785698,6.3841009397478103,6.4320762069791897,6.5282693470299904,null,6.3973107266235365,6.4596385003720522,6.5282693470299913]
[95,5,"qaly_10",6.1569898841727699,6.2801291682851099,6.2966351492383099,6.3075245249086196,6.4276475380431002,6.3970983711370701,6.4451713115177496,6.5415602917894002,null,6.410335051901261,6.4727897191576655,6.5415602917894002]
[96,6,"qaly_10",6.1513893143767602,6.2744165875603404,6.2909075542127004,6.3017870246030601,6.4218007704930304,6.3912793919616204,6.4393086038543599,6.5356099060200199,null,6.4045040322716442,6.4669018890200478,6.5356099060200199]
[97,7,"qaly_10",6.1232563757168199,6.2457209924738404,6.2621365388707897,6.2729662527821599,6.3924311243969099,6.3620493332052401,6.40985888693573,6.5057197619900196,null,6.3752134915695402,6.4373259761870818,6.5057197619900196]
[98,8,"qaly_10",6.1246072060801904,6.2470988393317999,6.2635180071055396,6.2743501101225601,6.3938413364685198,6.3634528428552102,6.4112729436856304,6.5071549662752597,null,6.3766199053188553,6.43874609235632,6.5071549662752606]
[99,9,"qaly_10",6.0954942795166502,6.2174036566653799,6.2337447769807897,6.2445253902925897,6.3634486227769802,6.3332045789141898,6.3807973699699696,6.4762236235300996,null,6.3463090525930053,6.4081399267948838,6.4762236235300996]
[100,10,"qaly_10",6.0988405494039704,6.2208168516713203,6.2371669428423102,6.2479534744340697,6.3669419927203199,6.3366813456538198,6.3843002639301698,6.4797789040538998,null,6.34979301335229,6.4116578311168952,6.4797789040538998,null,{"$f":"SUMPRODUCT(M42:M51, array_decile)","v":6.4503867980959679},{"$f":"SUMPRODUCT(N42:N51, array_decile)","v":6.51323168184829},{"$f":"SUMPRODUCT(O42:O51, array_decile)","v":6.5824319327259211}]
[101,1,"lifeyr_10",7.8319945295342102,7.94648774484744,7.9897431710151103,7.9892103923355204,8.1172561508669805,8.0815014132345393,8.1480679217178,8.2466086386205806,null,{"$f":"MMULT(D52:K61,percent_baseline)/100","v":8.1038333683599291},{"$f":"MMULT(D52:K61, percent_s1)/100","v":8.1711061803458058},{"$f":"MMULT(D52:K61, percent_s2)/100","v":8.2466086386205806}]
[102,2,"lifeyr_10",7.7972311035325497,7.9112161243618404,7.9542795551442804,7.9537491412789301,8.0812265504282799,8.0456305153040297,8.1119015588347594,8.2100048886955506,null,8.0678633468579477,8.1348375588623565,8.2100048886955506]
[103,3,"lifeyr_10",7.7450569780768399,7.8582792834372901,7.9010545610522396,7.9005276963800704,8.0271521075549703,7.9917942585223702,8.0576218582596209,8.1550687428551694,null,8.0138783220678356,8.0804043851212821,8.1550687428551694]
[104,4,"lifeyr_10",7.7678269780867399,7.8813821501906398,7.9242831845397896,7.9237547709172897,8.05075145021776,8.0152896512432701,8.0813107801502699,8.1790441527044706,null,8.0374386406025256,8.1041602862657189,8.1790441527044706]
[105,5,"lifeyr_10",7.7833616321984502,7.89714390003018,7.9401307309259703,7.9396012605442499,8.0668519168568,8.0313191988488608,8.0974723615156901,8.1954011882351399,null,8.0535124833359024,8.1203675637022723,8.1954011882351399]
[106,6,"lifeyr_10",7.77641034571384,7.89009099509612,7.9330394346398503,7.9325104371258197,8.0596474464296399,8.0241464625378995,8.0902405441023397,8.1880819110117695,null,8.0463199262989136,8.1131152986832369,8.1880819110117695]
[107,7,"lifeyr_10",7.7396597951979302,7.8528032010112501,7.8955486704534996,7.8950221729296999,8.0215583452309502,7.9862251354977101,8.0520068629327604,8.1493858411644702,null,8.0082938096496576,8.0747735136731436,8.1493858411644702]
[108,8,"lifeyr_10",7.7427386563629996,7.8559270709812896,7.8986895447065804,7.8981628377403998,8.0247493465315198,7.9894020811356103,8.0552099767500493,8.1526276926475401,null,8.0114795342759884,8.0779856841361646,8.1526276926475401]
[109,9,"lifeyr_10",7.7046373023152404,7.8172687264356098,7.8598207696887297,7.8592966546024403,7.9852602420212602,7.9500869174921798,8.0155709780863198,8.1125093097441194,null,7.9720557293757723,8.0382346081662899,8.1125093097441194]
[110,10,"lifeyr_10",7.7096385048529497,7.8223430398209901,7.8649227042817502,7.8643982489840196,7.9904436013696296,7.9552474452765098,8.0207740126152505,8.1177752684849498,null,7.9772305174650899,8.0434523540177381,8.1177752684849498,null,{"$f":"SUMPRODUCT(M52:M61, array_decile)","v":8.1038333683599291},{"$f":"SUMPRODUCT(N52:N61, array_decile)","v":8.1711061803458058},{"$f":"SUMPRODUCT(O52:O61, array_decile)","v":8.2466086386205806}]
[111,1,"alldeath_70",99.9953335337607,99.995319565487804,99.995313802438702,99.9953331078123,99.995301628562899,99.995315853981893,99.995317894340602,99.995307778449799,null,{"$f":"MMULT(D62:K71,percent_baseline)/100","v":99.995313876864927},{"$f":"MMULT(D62:K71, percent_s1)/100","v":99.995311871885789},{"$f":"MMULT(D62:K71, percent_s2)/100","v":99.995307778449799}]
[112,2,"alldeath_70",99.995335057444507,99.995321093732201,99.995315332564701,99.995334631635103,99.995303162663802,99.995317383438206,99.995319423130695,99.995309310542794,null,99.995315406966768,99.995313402642239,99.995309310542794]
[113,3,"alldeath_70",99.995337602777198,99.995323646683502,99.9953178886594,99.995337177200099,99.995305725398296,99.9953199384139,99.995321976993495,99.995311869923,null,99.995317963020767,99.995315959789806,99.995311869923]
[114,4,"alldeath_70",99.995337233522605,99.995323276323802,99.995317517843603,99.995336807911897,99.995305353619401,99.995319567760404,99.995321606501506,99.995311498630599,null,99.99531759221091,99.995315588821299,99.995311498630599]
[115,5,"alldeath_70",99.995336690399597,99.995322731575001,99.995316972424106,99.995336264739294,99.995304806782997,99.995319022579693,99.9953210615583,99.995310952510096,null,99.995317046800096,99.995315043177186,99.995310952510096]
[116,6,"alldeath_70",99.995338086007806,99.995324131360505,99.995318373933102,99.995337660474803,99.9953062119327,99.995320423475206,99.9953224618436,99.995312355820602,null,99.995318448286838,99.995316445263512,99.995312355820602]
[117,7,"alldeath_70",99.995339053861699,99.995325102111394,99.995319345879295,99.995338628417102,99.995307186403593,99.995321394995798,99.995323432941007,99.995313329016,null,99.995319420217498,99.995317417609968,99.995313329016014]
[118,8,"alldeath_70",99.995338255819505,99.995324301680498,99.995318544462805,99.995337830302105,99.995306382905397,99.995320593930202,99.995322632224401,99.995312526569506,null,99.99531861881384,99.995316615863487,99.995312526569506]
[119,9,"alldeath_70",99.995340474999907,99.995326527503295,99.995320773026194,99.995340049684998,99.995308617257805,99.995322821518002,99.995324858841897,99.995314757997406,null,99.995320847341773,99.995318845344812,99.995314757997406]
[120,10,"alldeath_70",99.995340120495797,99.995326171938103,99.995320417023194,99.995339695148502,99.995308260330006,99.995322465670895,99.995324503149703,99.995314401536803,null,99.99532049134443,99.995318489195157,99.995314401536803,null,{"$f":"SUMPRODUCT(M62:M71, array_decile)","v":99.995313876864927},{"$f":"SUMPRODUCT(N62:N71, array_decile)","v":99.995311871885789},{"$f":"SUMPRODUCT(O62:O71, array_decile)","v":99.995307778449799}]
[121,1,"cvddeath_70",41.348220197940897,38.424319641247202,37.073816069913399,38.391191688428897,34.2371567605718,35.873704272037202,33.902562015571299,31.3618943715881,null,{"$f":"MMULT(D72:K81,percent_baseline)/100","v":34.814340137385983},{"$f":"MMULT(D72:K81, percent_s1)/100","v":33.292439954960351},{"$f":"MMULT(D72:K81, percent_s2)/100","v":31.3618943715881}]
[122,2,"cvddeath_70",41.442455059510202,38.518935956225903,37.168452908675199,38.485809735564402,34.331479372097199,35.968269704303502,33.996813204656902,31.455342484358098,null,34.908490662108569,33.386327768051359,31.455342484358098]
[123,3,"cvddeath_70",41.690952985608398,38.760440062585197,37.406105134212901,38.727224035554201,34.559775264986399,36.202171938252199,34.2238932845883,31.6724268037032,null,35.137908305924526,33.610467901779366,31.672426803703203]
[124,4,"cvddeath_70",41.5945142943755,38.665538516541403,37.312106195576803,38.632343165821602,34.468075272436103,36.109078471874902,34.132500985115101,31.583628140717199,null,35.045994364100189,33.519875861353761,31.583628140717202]
[125,5,"cvddeath_70",41.6417858432646,38.710082236857502,37.355362921686599,38.676855491502302,34.508591016730001,36.151180826531601,34.1726909511979,31.621334110163598,null,35.08704852294963,33.559458454393074,31.621334110163598]
[126,6,"cvddeath_70",41.772541853564,38.8382106877458,37.481956691944298,38.804948736444899,34.6312924708267,36.276238937961097,34.294873086564401,31.739154553367801,null,35.210123798899389,33.680302044503073,31.739154553367804]
[127,7,"cvddeath_70",41.860864086426602,38.920257339048497,37.560913598156503,38.886920975943802,34.703410543425797,36.352357473083302,34.366156008739303,31.8039249959761,null,35.283430971816173,33.749888392108758,31.8039249959761]
[128,8,"cvddeath_70",41.987105261967798,39.046933183216503,37.6874409574,39.013595877685503,34.828867767853403,36.4785598778086,34.491416939875101,31.927192036811,null,35.408622184467838,33.874328619072088,31.927192036811004]
[129,9,"cvddeath_70",42.062139310193203,39.121652751482799,37.761879582119498,39.088309605646998,34.902418756986499,36.552673391838397,34.564835424272502,31.999400583047201,null,35.482161747116038,33.947319948920381,31.999400583047201]
[130,10,"cvddeath_70",42.080372448002699,39.1387614283746,37.778398894280599,39.1054043413898,34.917565601638898,36.568633666058503,34.579808993690598,32.012986389210702,null,35.497507820831942,33.961906588349123,32.012986389210702,null,{"$f":"SUMPRODUCT(M72:M81, array_decile)","v":34.814340137385983},{"$f":"SUMPRODUCT(N72:N81, array_decile)","v":33.292439954960351},{"$f":"SUMPRODUCT(O72:O81, array_decile)","v":31.3618943715881}]
[131,1,"mi_70",28.694096835354401,25.144200179799999,25.852760323286802,27.2430077028638,22.392683436828101,23.739878616303098,24.256983124774401,20.8948364543004,null,{"$f":"MMULT(D82:K91,percent_baseline)/100","v":23.691166469034325},{"$f":"MMULT(D82:K91, percent_s1)/100","v":22.538617830579462},{"$f":"MMULT(D82:K91, percent_s2)/100","v":20.8948364543004}]
[132,2,"mi_70",28.806856598183799,25.245616964622201,25.956485488147798,27.351197593900999,22.484921438395599,23.836653860390999,24.3554778486576,20.981930055932299,null,23.787655163877002,22.631237536557773,20.981930055932299]
[133,3,"mi_70",28.791423014417401,25.238394248572501,25.947690750556699,27.339217388967999,22.483425924940899,23.832433451550301,24.350170210569999,20.983265289188701,null,23.783312904389135,22.629241261674984,20.983265289188704]
[134,4,"mi_70",28.818291772239402,25.258813547337301,25.969374102833999,27.3634171511845,22.499083993790801,23.850390809945001,24.369026944772699,20.996451241006401,null,23.801274724556052,22.645232288394308,20.996451241006401]
[135,5,"mi_70",28.9364438814343,25.364162871711098,26.0773532417331,27.4764498273702,22.593891577218798,23.950423701251001,24.471033315705402,21.085313318294599,null,23.900935000017697,22.740446862664921,21.085313318294599]
[136,6,"mi_70",29.2109881304856,25.6174826534318,26.3351321904596,27.742652827756999,22.828804429844901,24.194568544307501,24.7186092130231,21.309452622168699,null,24.144123704925679,22.975800925991908,21.309452622168703]
[137,7,"mi_70",29.292303589861401,25.688497892424301,26.408244182389499,27.8198212578057,22.891509872191399,24.261374039831502,24.786972872101501,21.367538319454901,null,24.210689464016369,23.038873935534422,21.367538319454901]
[138,8,"mi_70",29.401945180805399,25.787685318582799,26.5095953062185,27.925307420970199,22.981949636988698,24.3561642657093,24.8833988617138,21.452994454984498,null,24.30512858720035,23.129615858872672,21.452994454984502]
[139,9,"mi_70",29.325339786367302,25.717865946345601,26.438366333441799,27.851392428296698,22.917863243448899,24.289219447063399,24.815383081262802,21.3922020675457,null,24.238433814931195,23.065349865168628,21.3922020675457]
[140,10,"mi_70",29.5906429116813,25.964801244257099,26.6892357486097,28.109589821117702,23.148211679927002,24.5279524862618,25.057199570805999,21.612619839033101,null,24.476117405885898,23.295937241235734,21.612619839033101,null,{"$f":"SUMPRODUCT(M82:M91, array_decile)","v":23.691166469034325},{"$f":"SUMPRODUCT(N82:N91, array_decile)","v":22.538617830579462},{"$f":"SUMPRODUCT(O82:O91, array_decile)","v":20.8948364543004}]
[141,1,"stroke_70",17.8612753697405,15.6884292311947,15.6682578210457,13.566935109131901,13.696556051632699,11.9314598910703,11.7181180134786,10.226994990394999,null,{"$f":"MMULT(D92:K101,percent_baseline)/100","v":12.853265843994212},{"$f":"MMULT(D92:K101, percent_s1)/100","v":11.503634005657171},{"$f":"MMULT(D92:K101, percent_s2)/100","v":10.226994990394999}]
[142,2,"stroke_70",17.940725741219399,15.761950147792501,15.741720834378199,13.6340450398654,13.7640772766861,11.993137684290099,11.779052130625001,10.282482117285699,null,12.917591668866731,11.56357825822899,10.282482117285699]
[143,3,"stroke_70",18.124817368004098,15.928518043744401,15.9081196313759,13.7821776654273,13.913374032964899,12.1261587843273,11.9100441241628,10.398919389410199,null,13.058394004829939,11.69214574411509,10.398919389410201]
[144,4,"stroke_70",17.950585161805598,15.766948211595899,15.746675903660501,13.6347846555714,13.7650604128083,11.9910238829215,11.776598656726801,10.2778951435404,null,12.917454465024662,11.561011469240244,10.2778951435404]
[145,5,"stroke_70",17.9426690724808,15.761116714364601,15.740862758185701,13.630769949250899,13.760941611013701,11.988237780832099,11.773960675828199,10.276208006379401,null,12.913831847161639,11.558439426631121,10.276208006379399]
[146,6,"stroke_70",17.954275875896801,15.7732393751205,15.7529891376637,13.6431550781359,13.7733187904938,12.0006172928362,11.786323699709399,10.2883383763807,null,12.926035539488417,11.570674855558956,10.2883383763807]
[147,7,"stroke_70",17.960735147213001,15.7747856981886,15.7544922229427,13.640446641121001,13.7708517774316,11.9951071792416,11.7804844842235,10.280468695066,null,12.922515426477103,11.564760152268166,10.280468695065998]
[148,8,"stroke_70",18.084300674909699,15.8892792209317,15.868895637304901,13.744831775801,13.8758921829498,12.0907784148479,11.874956122131699,10.366127889543201,null,13.02233170415651,11.657598924260531,10.366127889543201]
[149,9,"stroke_70",18.227672894678602,16.019755219094101,15.999247004966699,13.861686367941999,13.9936093247874,12.1963983425471,11.9790614825448,10.4593194141202,null,13.133676677598764,11.759850885301024,10.4593194141202]
[150,10,"stroke_70",18.1451453526184,15.943368182939199,15.9229208429817,13.7921171569874,13.9235987609062,12.132691550268699,11.9161608223414,10.4023345350539,null,13.067169984719067,11.698041459847527,10.4023345350539,null,{"$f":"SUMPRODUCT(M92:M101, array_decile)","v":12.853265843994212},{"$f":"SUMPRODUCT(N92:N101, array_decile)","v":11.503634005657171},{"$f":"SUMPRODUCT(O92:O101, array_decile)","v":10.226994990394999}]
[151,1,"hf_70",12.111882490800101,12.5510456817979,11.1415134035873,12.586490689903499,11.482135157497501,12.928201045562901,11.566845504494699,11.815214279511199,null,{"$f":"MMULT(D102:K111,percent_baseline)/100","v":11.843791869811469},{"$f":"MMULT(D102:K111, percent_s1)/100","v":11.884133660119549},{"$f":"MMULT(D102:K111, percent_s2)/100","v":11.815214279511199}]
[152,2,"hf_70",12.0752136901366,12.512385255565899,11.1092671711185,12.5476699106987,11.448334294033399,12.887837852990099,11.5326582749857,11.779895150370701,null,11.808346971690128,11.848503519888045,11.779895150370701]
[153,3,"hf_70",12.4199579586266,12.866407442260799,11.432870929522601,12.9024332084037,11.779460806903399,13.249687462975199,11.8656383849184,12.1182707224695,null,12.147218521108847,12.188294238951903,12.118270722469498]
[154,4,"hf_70",12.2839766376832,12.7278082516229,11.3029998247902,12.7636265348028,11.647391803185601,13.108908880325901,11.733031868869499,11.9841086000286,null,12.012940757175087,12.05374195201578,11.9841086000286]
[155,5,"hf_70",12.287999547858,12.731890770490301,11.306866909087701,12.767713596827599,11.6513176319436,13.1130378173926,11.736971605353499,11.9880875646543,null,12.016919568020693,12.057728756368338,11.9880875646543]
[156,6,"hf_70",12.275397610203401,12.718926442588799,11.2951459002,12.7547210102704,11.6392748815563,13.099780382313099,11.724850934670901,11.975743266211101,null,12.004565213977644,12.045332733944793,11.975743266211101]
[157,7,"hf_70",12.1963491646238,12.638363217578201,11.219650740908101,12.674037953054301,11.562499007847,13.0179602103319,11.6477622670008,11.8977503315101,null,11.926508361434244,11.967115181431957,11.8977503315101]
[158,8,"hf_70",12.3491765526582,12.795477022958799,11.362758560901201,12.831494710560699,11.7090580459168,13.1787003914735,11.7951729349091,12.047642777186301,null,12.076637911463129,12.117664438473849,12.047642777186303]
[159,9,"hf_70",12.318340205234801,12.763231633605599,11.33501176277,12.799135355705699,11.6802309903227,13.145240711158801,11.766076469246199,12.017754795191699,null,12.046654277226276,12.087553859248901,12.017754795191699]
[160,10,"hf_70",12.2489027201925,12.691551816697899,11.2706209002649,12.727275683992399,11.6140541584753,13.0716557181468,11.699457917497201,11.949846716517399,null,11.978615788711297,12.019299775153678,11.949846716517399,null,{"$f":"SUMPRODUCT(M102:M111, array_decile)","v":11.843791869811469},{"$f":"SUMPRODUCT(N102:N111, array_decile)","v":11.884133660119549},{"$f":"SUMPRODUCT(O102:O111, array_decile)","v":11.815214279511199}]
[161,1,"ihd_70",17.8629585165904,18.407594120181301,14.8090471679623,16.8455566675444,15.0556867369522,17.2512565736066,13.6821047405596,13.8530580882002,null,{"$f":"MMULT(D112:K121,percent_baseline)/100","v":15.128079516869757},{"$f":"MMULT(D112:K121, percent_s1)/100","v":14.58033720839525},{"$f":"MMULT(D112:K121, percent_s2)/100","v":13.8530580882002}]
[162,2,"ihd_70",17.727991745687198,18.269424558861299,14.693004192973801,16.716711682761002,14.938054141318799,17.119948719012601,13.5734635305512,13.743279389472599,null,15.010217759263524,14.465912005823503,13.743279389472599]
[163,3,"ihd_70",17.637877116703699,18.176635095270601,14.618156132842399,16.631635529394,14.861958433277501,17.032857155552701,13.5043425841382,13.6732870802766,null,14.933810024596232,14.392251216750905,13.6732870802766]
[164,4,"ihd_70",17.721117245315401,18.262556249616001,14.686231449471199,16.709844000498698,14.9312635739821,17.113075333630601,13.5667968059511,13.7365938849161,null,15.003460313636928,14.459180037920181,13.7365938849161]
[165,5,"ihd_70",17.7039749960704,18.244395882451201,14.674517229223,16.694567081875,14.9191316450373,17.097060650843499,13.5569361293475,13.7264581267165,null,14.991122392226384,14.447799664325558,13.7264581267165]
[166,6,"ihd_70",17.8924100515551,18.437181667565799,14.837071681673599,16.874660471313501,15.0838701413265,17.2805138703654,13.7093003152471,13.880390452432801,null,15.156138796743649,14.608109457086252,13.880390452432801]
[167,7,"ihd_70",17.671041757530102,18.210992098882802,14.64458332645,16.662561591910301,14.8889302453107,17.064677304794301,13.528288508961699,13.6976083776481,null,14.960943111235547,14.418177240735854,13.6976083776481]
[168,8,"ihd_70",17.640249693123899,18.179666618655801,14.6172231044626,16.632829659440802,14.861265048454401,17.0345126813076,13.5023840256812,13.671476489854101,null,14.933295886639137,14.391164675257446,13.671476489854101]
[169,9,"ihd_70",17.540042541289399,18.077145506535199,14.530787185065,16.5370596712992,14.773666380299099,16.936955381599599,13.421374968073501,13.5896321267128,null,14.845551677223373,14.305925406368111,13.5896321267128]
[170,10,"ihd_70",17.625250232032901,18.1636611742748,14.6075281537499,16.619664784687501,14.8511658235215,17.0206235581309,13.4944735788686,13.663302241270699,null,14.922981279730358,14.381783103456696,13.663302241270699,null,{"$f":"SUMPRODUCT(M112:M121, array_decile)","v":15.128079516869757},{"$f":"SUMPRODUCT(N112:N121, array_decile)","v":14.58033720839525},{"$f":"SUMPRODUCT(O112:O121, array_decile)","v":13.8530580882002}]
[171,1,"blind_70",7.5244178807390201,5.6231295368651502,7.6987592819982602,6.8746674544716901,5.7739708016170903,5.1296876337070101,7.0198164998950299,5.2531184174156804,null,{"$f":"MMULT(D122:K131,percent_baseline)/100","v":6.1938144036194949},{"$f":"MMULT(D122:K131, percent_s1)/100","v":5.7720443656627278},{"$f":"MMULT(D122:K131, percent_s2)/100","v":5.2531184174156804}]
[172,2,"blind_70",7.5114471126105498,5.6132430963777997,7.6855123261935896,6.8627358514767103,5.7638348423646804,5.1206232085277996,7.0076514112176902,5.2438475428209301,null,6.1830054522297795,5.7619215166660043,5.2438475428209301]
[173,3,"blind_70",7.5400919202352297,5.6352490253509604,7.7147459921321504,6.8891566819021897,5.7863820607518797,5.1408407776052796,7.0345730836101099,5.26451499654722,null,6.2069941073945598,5.784431668028474,5.2645149965472209]
[174,4,"blind_70",7.5830335636894901,5.6681629988257596,7.7585800852779903,6.9287324286288303,5.8201114760173001,5.1710630661723096,7.0749062081639904,5.2954140671424703,null,6.242904315045239,5.8181095051018179,5.2954140671424703]
[175,5,"blind_70",7.5486444259885896,5.6416856081234297,7.7234905920746204,6.8969903346913304,5.7929878535461903,5.1467223193603697,7.0425677182656203,5.2705355912052099,null,6.2140649289819381,5.791032601048137,5.2705355912052099]
[176,6,"blind_70",7.5572528833401504,5.6480745548001599,7.7323048930738398,6.9048352436280096,5.7995513262616498,5.1525420154731396,7.0505827166744304,5.2764974479589402,null,6.2211210542725448,5.7975969328471706,5.2764974479589402]
[177,7,"blind_70",7.5769713713491003,5.66365883601717,7.7523743861125798,6.9232041737156296,5.8154842130942699,5.1669609213303804,7.0692588022793501,5.2912114595861404,null,6.2379321261941172,5.8134827250628573,5.2912114595861404]
[178,8,"blind_70",7.6116687230894202,5.6898032443634898,7.78784825973867,6.9549959287448004,5.8423127486325104,5.19086079731058,7.1017012208531698,5.31567372814356,null,6.2666400217378904,5.840291122749111,5.31567372814356]
[179,9,"blind_70",7.61216751658145,5.6902963295048101,7.7883443560457204,6.9555001981949296,5.8428087820516899,5.19134100894372,7.1022049067978097,5.31615763103179,null,6.2671330261479534,5.8407818253450277,5.31615763103179]
[180,10,"blind_70",7.6193933642380696,5.6957462019529199,7.7957311292490497,6.9621233750035403,5.8484009059555797,5.1963239844913298,7.1089631093737298,5.3212576185150704,null,6.2731150799400073,5.846369391977432,5.3212576185150704,null,{"$f":"SUMPRODUCT(M122:M131, array_decile)","v":6.1938144036194949},{"$f":"SUMPRODUCT(N122:N131, array_decile)","v":5.7720443656627278},{"$f":"SUMPRODUCT(O122:O131, array_decile)","v":5.2531184174156804}]
[181,1,"amp_70",5.5622909786101902,3.8591816101486698,5.9037187956184596,5.0826650718564004,4.0719749866642099,3.4586100376115301,5.2734488085350799,3.6340606860890499,null,{"$f":"MMULT(D132:K141,percent_baseline)/100","v":4.4709665932833023},{"$f":"MMULT(D132:K141, percent_s1)/100","v":4.0972105838867252},{"$f":"MMULT(D132:K141, percent_s2)/100","v":3.6340606860890499}]
[182,2,"amp_70",5.6262811335970904,3.9091278209845002,5.9700898860735299,5.1430789082636501,4.1238904990182501,3.5046652699989602,5.3353185298661403,3.68185038823438,null,4.5258658273119785,4.1490397372094581,3.68185038823438]
[183,3,"amp_70",5.6485273676666496,3.9334932539656799,5.9915270590804903,5.1662748539130803,4.1482062170814196,3.5289100465944401,5.35816467902798,3.7061844397949701,null,4.549372678539414,4.1730156968010919,3.7061844397949697]
[184,4,"amp_70",5.5744108671383197,3.8691559980021499,5.9161869557235498,5.0942535658911501,4.08226018465776,3.4679593872413301,5.2852548149456497,3.6436905199774801,null,4.4816927711633658,4.107467540369826,3.6436905199774801]
[185,5,"amp_70",5.6186363740585898,3.9046151404876901,5.9617160953664996,5.13639993530039,4.1190304787878,3.5007749898241798,5.32826349323107,3.6776924397005901,null,4.520210315069237,4.1440758488443699,3.6776924397005901]
[186,6,"amp_70",5.6529876015399401,3.9333281973960101,5.9970366133967596,5.16931738654654,4.1485466830606796,3.5278691808236,5.3617624874810801,3.7055141769284501,null,4.5509024948453547,4.1735302028151695,3.7055141769284501]
[187,7,"amp_70",5.5761511224150704,3.87416062308204,5.9170092568737704,5.0971453658857202,4.0869904797464702,3.4733624593814101,5.2877085668266197,3.6489385910441698,null,4.4854670572581758,4.1119646029127903,3.6489385910441698]
[188,8,"amp_70",5.5950563965164601,3.8914655037925798,5.9360413738628397,5.1157766669495297,4.1046016432001604,3.4899877183486199,5.3064631081318199,3.6658789379944299,null,4.5032992462820154,4.129448226970692,3.6658789379944299]
[189,9,"amp_70",5.4220395455932797,3.76310071665907,5.7545549017889801,4.9549085686776104,3.9704106500843501,3.3728149225170498,5.1407261238032103,3.5437665843555899,null,4.3590027952051322,3.9949401189821874,3.5437665843555894]
[190,10,"amp_70",5.4572976070179804,3.78717171978295,5.7920566988740196,4.9870125576183097,3.9958753981317301,3.3942691823846198,5.1740848499987697,3.5663657213904698,null,4.3870946680865091,4.0205777718740618,3.5663657213904698,null,{"$f":"SUMPRODUCT(M132:M141, array_decile)","v":4.4709665932833023},{"$f":"SUMPRODUCT(N132:N141, array_decile)","v":4.0972105838867252},{"$f":"SUMPRODUCT(O132:O141, array_decile)","v":3.6340606860890499}]
[191,1,"ulcer_70",3.6762888544555601,2.7962008569738299,3.8302494887493901,3.8355642523724902,2.9270136503429001,2.9017491855061999,3.99157990307789,3.0298259601608,null,{"$f":"MMULT(D142:K151,percent_baseline)/100","v":3.3438654870695315},{"$f":"MMULT(D142:K151, percent_s1)/100","v":3.2361815115429566},{"$f":"MMULT(D142:K151, percent_s2)/100","v":3.0298259601608}]
[192,2,"ulcer_70",3.6283548341330998,2.7595400201581799,3.78035734402081,3.7856045881898899,2.8886687279737102,2.8637292902960301,3.9396404522705799,2.9901594878953901,null,3.3001926238396555,3.1938822548936616,2.9901594878953905]
[193,3,"ulcer_70",3.6699897935651902,2.79157689996044,3.82364836357833,3.82895265419255,2.9221465083021001,2.8969291742848702,3.9846595306997998,3.0247662237097801,null,3.3381973773176368,3.2307221511925719,3.0247662237097801]
[194,4,"ulcer_70",3.6986067595026499,2.8140435886944899,3.85329937227135,3.8586391402796698,2.9455536006126999,2.9201553675928702,4.0153810179098297,3.04890590920263,null,3.3644826371579883,3.256272296197833,3.0489059092026296]
[195,5,"ulcer_70",3.7446429040529599,2.8495347505283699,3.90115238345662,3.9065547256684598,2.9826296437881101,2.9569258010788002,4.0651292107863801,3.0872232296647599,null,3.4065300621490779,3.2970410741641012,3.0872232296647599]
[196,6,"ulcer_70",3.7160818312150199,2.8271725766879299,3.8715409665738498,3.8769072229224699,2.9593241823229599,2.9338019025256998,4.0344274490932097,3.0631819279878498,null,3.3803170520856503,3.2715722170331314,3.0631819279878498]
[197,7,"ulcer_70",3.7131913195413002,2.8251107257458998,3.8684990222189199,3.8738600197067599,2.95714345872815,2.9316442617564098,4.0312249650840801,3.0609066672204399,null,3.3777383802945407,3.2690976932172351,3.0609066672204399]
[198,8,"ulcer_70",3.73994851139914,2.8457275930395598,3.8963138293551798,3.9017112487046699,2.9786832716020202,2.9530061033163602,4.06014277337695,3.08316933791808,null,3.4021727721697257,3.2927876338794397,3.0831693379180805]
[199,9,"ulcer_70",3.7346709299646199,2.8417423972914801,3.8908097585803199,3.8961993591622099,2.9745064202491802,2.9488662838555602,4.0544013700259898,3.0788417125452199,null,3.3973834002687,3.288156612507064,3.0788417125452203]
[200,10,"ulcer_70",3.7524781305360699,2.85573318637184,3.90925739241889,3.9146689585229302,2.9890814404055202,2.9633289360800998,4.0735115555717503,3.0938717085426202,null,3.4137434056366569,3.3040609440302875,3.0938717085426202,null,{"$f":"SUMPRODUCT(M142:M151, array_decile)","v":3.3438654870695315},{"$f":"SUMPRODUCT(N142:N151, array_decile)","v":3.2361815115429566},{"$f":"SUMPRODUCT(O142:O151, array_decile)","v":3.0298259601608}]
[201,1,"renal_70",2.14570023699194,2.1894995001358302,1.6729140888559599,1.8817699265443699,1.6774006461083699,1.9119889374394601,1.4450465537870101,1.45671658212766,null,{"$f":"MMULT(D152:K161,percent_baseline)/100","v":1.6686314151300632},{"$f":"MMULT(D152:K161, percent_s1)/100","v":1.5689619436847198},{"$f":"MMULT(D152:K161, percent_s2)/100","v":1.45671658212766}]
[202,2,"renal_70",2.13799093767885,2.18142781061173,1.6686653132552101,1.87609724981684,1.67312310367672,1.90609620277964,1.4421493150256499,1.4537554508408601,null,1.6642829661652241,1.565292209452698,1.4537554508408601]
[203,3,"renal_70",2.1456384907174102,2.1891822401091598,1.6751214755150099,1.88309034846628,1.6795910370959499,1.91316537236273,1.4479901713049701,1.45962875181389,null,1.6707110764759918,1.5714623991548036,1.45962875181389]
[204,4,"renal_70",2.0421917690651199,2.0838968619774398,1.5920261631586301,1.7908872485537899,1.59629801681282,1.81966026044401,1.3750618884944299,1.3861736005704099,null,1.5879486270671395,1.4930478928735267,1.3861736005704099]
[205,5,"renal_70",1.9982188380733099,2.0393340126196802,1.5550235550242899,1.7506631087832301,1.5592236678320599,1.7789893106376999,1.3418591640581601,1.3527685796109701,null,1.5511918626643872,1.4578315014588994,1.3527685796109699]
[206,6,"renal_70",2.0626502153067601,2.1051266462117,1.60475344817209,1.8068864301853,1.60909295271113,1.8361525856223899,1.3845204088012799,1.3957911753861201,null,1.6007959887851486,1.5043393338157636,1.3957911753861199]
[207,7,"renal_70",1.99094119710544,2.03167234061437,1.5514783043117799,1.74556588463574,1.55564678914128,1.77365446625164,1.3398152114091999,1.3506529130466101,null,1.547557020019446,1.4549356103394826,1.3506529130466101]
[208,8,"renal_70",2.0228023450822699,2.06422773132683,1.57583973235609,1.7732402950561099,1.58007934224848,1.8018083851580999,1.36056976932346,1.3715918448309099,null,1.5718539227191641,1.4776528456734741,1.3715918448309099]
[209,9,"renal_70",1.9087730438939801,1.9483511614422899,1.4827107553477601,1.67065488438854,1.4867433168378901,1.69788476095225,1.2781938624004801,1.2886536189426001,null,1.4791959660334724,1.3895102084799271,1.2886536189426001]
[210,10,"renal_70",1.9943695873271801,2.0352365187674701,1.55347801593655,1.74818761487882,1.55765968300647,1.7763674807571099,1.3411583014173301,1.3520289366611,null,1.5495571420202521,1.456639741128803,1.3520289366611002,null,{"$f":"SUMPRODUCT(M152:M161, array_decile)","v":1.6686314151300632},{"$f":"SUMPRODUCT(N152:N161, array_decile)","v":1.5689619436847198},{"$f":"SUMPRODUCT(O152:O161, array_decile)","v":1.45671658212766}]
[211,1,"alldeath_10",41.713028645929498,40.087971845505898,39.4904117049525,39.997440194931201,37.840657564952302,38.546263510686799,37.832366184227801,36.445694968194097,null,{"$f":"MMULT(D162:K171,percent_baseline)/100","v":38.223724959866914},{"$f":"MMULT(D162:K171, percent_s1)/100","v":37.419117806902648},{"$f":"MMULT(D162:K171, percent_s2)/100","v":36.445694968194097}]
[212,2,"alldeath_10",42.026327981515699,40.394788813163899,39.794942780132601,40.303907520579202,38.139138420174497,38.847286329546101,38.1308175637256,36.739339621269998,null,38.52373910521186,37.716216940558269,36.739339621269998]
[213,3,"alldeath_10",42.900992419552999,41.268701454545401,40.6679989626234,41.177710640661203,39.008176695099998,39.718342619233198,38.999829440723197,37.603049621926402,null,39.39286273819846,38.583103459435804,37.603049621926402]
[214,4,"alldeath_10",42.581651658274097,40.955862688528399,40.357785364408002,40.865261520937203,38.7058600148967,39.412532080459201,38.697554845808099,37.308148462958997,null,39.089041394127605,38.28323580530558,37.308148462958997]
[215,5,"alldeath_10",42.385855031848102,40.742997779111697,40.138646736787202,40.651445705662397,38.469471071678399,39.183503807590398,38.4610796102465,37.057327327677399,null,38.85670812354401,38.042524992407088,37.057327327677399]
[216,6,"alldeath_10",42.398507537209298,40.757478014190298,40.153932709423401,40.666043422158197,38.487347565852602,39.200207238133302,38.478970459297997,37.077801421363702,null,38.874166518848504,38.061301710060768,37.077801421363702]
[217,7,"alldeath_10",43.011634545194198,41.370626720320601,40.7667063464338,41.279148658249603,39.097995621082603,39.811961755461802,39.089603745517898,37.685381506083601,null,39.484749799144701,38.670666115579841,37.685381506083601]
[218,8,"alldeath_10",43.047136329921202,41.404561566482101,40.799933007712099,41.312980858137401,39.128883735508602,39.8439199991045,39.120478654215503,37.713837823370604,null,39.515983160364975,38.700692276225354,37.713837823370604]
[219,9,"alldeath_10",43.590810422554,41.943820300141198,41.3374306975347,41.851977502132399,39.6611420662108,40.3784866710863,39.652709264005999,38.241238430777202,null,40.049266959756878,39.23136200490783,38.241238430777202]
[220,10,"alldeath_10",43.470702183484597,41.819010329436203,41.210952510035703,41.726912544951702,39.530255073322401,40.249448014328799,39.521800902114897,38.106878401741398,null,39.919509358221809,39.099495643159138,38.106878401741398,null,{"$f":"SUMPRODUCT(M162:M171, array_decile)","v":38.223724959866914},{"$f":"SUMPRODUCT(N162:N171, array_decile)","v":37.419117806902648},{"$f":"SUMPRODUCT(O162:O171, array_decile)","v":36.445694968194097}]
[221,1,"cvddeath_10",20.305212799015699,18.3209088566087,17.490560282182699,18.305611768517501,15.6287460023545,16.628076602188699,15.677098233302701,14.103216372931,null,{"$f":"MMULT(D172:K181,percent_baseline)/100","v":16.147209167337355},{"$f":"MMULT(D172:K181, percent_s1)/100","v":15.229200882386959},{"$f":"MMULT(D172:K181, percent_s2)/100","v":14.103216372931}]
[222,2,"cvddeath_10",20.483768563618099,18.488480208356801,17.653282094563799,18.473095195723602,15.7799861994152,16.785588432995599,15.828647947274,14.2443545712839,null,16.301326280777875,15.377562162323997,14.2443545712839]
[223,3,"cvddeath_10",20.9072037485263,18.880428574159399,18.031457125678699,18.864792996752399,16.126007890892001,17.149086430090101,16.175526828386499,14.5627264946156,null,16.655657433925217,15.715893497016525,14.5627264946156]
[224,4,"cvddeath_10",20.793326155623198,18.778065795523101,17.933858515163202,18.762518333909501,16.0389222514214,17.056390148457901,16.0881716039354,14.4840373468612,null,16.565551783865082,15.630935782578126,14.4840373468612]
[225,5,"cvddeath_10",20.683243513889799,18.668160931083499,17.8245081118733,18.652621026921601,15.931938026342801,16.9479366924412,15.981105305261799,14.380243456964701,null,16.458494827718273,15.525209653387941,14.380243456964701]
[226,6,"cvddeath_10",20.804096532286099,18.784319715782399,17.9384832703246,18.7687408053662,16.040493918698498,17.059495002080201,16.089811690630501,14.4837600489472,null,16.568283428781161,15.632244646089044,14.483760048947198]
[227,7,"cvddeath_10",21.050167623609301,19.009662202269201,18.154776469826199,18.993918554092801,16.235722376760901,17.266160973399099,16.2856003999695,14.6609660055706,null,16.768991465680571,15.822488002915479,14.660966005570598]
[228,8,"cvddeath_10",21.124556088155199,19.076428846526699,18.218184664325801,19.060624177793098,16.291290991982098,17.325986899727301,16.341377403635999,14.709853859792,null,16.826597617894734,15.876213602760764,14.709853859791998]
[229,9,"cvddeath_10",21.3943060020644,19.330460812530401,18.465264872817301,19.31453014849,16.521902391423399,17.565595062796501,16.572432836268501,14.925971724417501,null,17.061330967221163,16.102692789593135,14.925971724417501]
[230,10,"cvddeath_10",21.354377063283799,19.292240194144899,18.427878360369299,19.276324240542799,16.486660811388301,17.529153740664999,16.537130552309701,14.8927891533181,null,17.025634601200878,16.068092602831502,14.892789153318098,null,{"$f":"SUMPRODUCT(M172:M181, array_decile)","v":16.147209167337355},{"$f":"SUMPRODUCT(N172:N181, array_decile)","v":15.229200882386959},{"$f":"SUMPRODUCT(O172:O181, array_decile)","v":14.103216372931}]
[231,1,"mi_10",17.488433296738901,14.8858626951262,15.2930191512188,16.232556968776599,12.868916467498901,13.781794238613999,14.0559894132246,11.839701975486101,null,{"$f":"MMULT(D182:K191,percent_baseline)/100","v":13.777869551156453},{"$f":"MMULT(D182:K191, percent_s1)/100","v":12.962936041757807},{"$f":"MMULT(D182:K191, percent_s2)/100","v":11.839701975486101}]
[232,2,"mi_10",17.6501891032995,15.027159867332699,15.437579292436199,16.384556941804799,12.9936861524709,13.9141209896364,14.190560959505699,11.955791913318199,null,13.909956181057378,13.088308254329595,11.955791913318199]
[233,3,"mi_10",17.778432956176498,15.145556761396399,15.5576575248504,16.508310481663901,13.1029044958279,14.027674582124799,14.305357178132301,12.0597379784978,null,14.023003506768896,13.19755593238787,12.0597379784978]
[234,4,"mi_10",17.7812568280278,15.151077548140201,15.562793699118901,16.512503824713502,13.1100884882167,14.034158448788199,14.311613250783999,12.067595105805699,null,14.029350067610785,13.204545302654811,12.067595105805699]
[235,5,"mi_10",17.766036201694501,15.1271362121099,15.5400835635385,16.492831829770498,13.0809091014891,14.0071626016764,14.285335498433399,12.036367459446501,null,14.002844154872745,13.17602671979404,12.036367459446501]
[236,6,"mi_10",17.9533788365692,15.296059513030301,15.7120323446255,16.671553589596499,13.233982610426599,14.1675931676024,14.447915604795,12.180757909041599,null,14.162748508028514,13.329435568567197,12.180757909041599]
[237,7,"mi_10",18.123146079310299,15.444384741081199,15.8638391974638,16.831215646371799,13.3643870829875,14.3062455886907,14.5890015564742,12.301601528406399,null,14.300988897203629,13.460382707921481,12.301601528406399]
[238,8,"mi_10",18.210488514805,15.5194766190787,15.9408633236702,16.912677720631699,13.4298391152,14.3760736435796,14.6601399825906,12.3620972919993,null,14.370760472547685,13.526256496499231,12.3620972919993]
[239,9,"mi_10",18.288065871826898,15.5875470075361,16.010469565001799,16.9857588960801,13.490030039211099,14.439887116742099,14.725023303582001,12.418091175784699,null,14.434405004965063,13.58669285235605,12.418091175784701]
[240,10,"mi_10",18.454670456376899,15.7386982231369,16.1641860519935,17.145180712988299,13.6275867348383,14.583785353580099,14.8707643409601,12.548099026069499,null,14.577767567821839,13.724468506429456,12.548099026069499,null,{"$f":"SUMPRODUCT(M182:M191, array_decile)","v":13.777869551156453},{"$f":"SUMPRODUCT(N182:N191, array_decile)","v":12.962936041757807},{"$f":"SUMPRODUCT(O182:O191, array_decile)","v":11.839701975486101}]
[241,1,"stroke_10",10.16616116154,8.7381030440276302,8.6494655957838802,7.51732448566566,7.3957087323569501,6.4914060344257098,6.3051913376073703,5.4143669358820699,null,{"$f":"MMULT(D192:K201,percent_baseline)/100","v":6.995954279176801},{"$f":"MMULT(D192:K201, percent_s1)/100","v":6.1811001807353829},{"$f":"MMULT(D192:K201, percent_s2)/100","v":5.414366935882069}]
[242,2,"stroke_10",10.240560452800199,8.8054286217951105,8.7163305955284098,7.5780524292480198,7.4557473301572301,6.5461137633873596,6.3587534758348703,5.4621976292176502,null,7.0532260228353483,6.2336643553667814,5.4621976292176502]
[243,3,"stroke_10",10.4777097519165,9.0134192830437598,8.9224717537856506,7.7601572738715401,7.6352242029193098,6.7057652656615101,6.5142595150795701,5.5975675377566896,null,7.22335384348278,6.3861080714536786,5.5975675377566896]
[244,4,"stroke_10",10.3163546659797,8.8692794599697002,8.7794409643494404,7.6317399127079399,7.5084281350856497,6.5913613324704698,6.4024843583733198,5.4987608906272403,null,7.1027185099901473,6.2764584705983619,5.4987608906272412]
[245,5,"stroke_10",10.2791386861948,8.8355986908424704,8.7459928888005507,7.6014105595632797,7.4784505911963999,6.5641085062285303,6.3758173008252399,5.4750202812591402,null,7.0741659263084209,6.2503008689876447,5.4750202812591393]
[246,6,"stroke_10",10.3407994504296,8.8935389156579703,8.8036722075701306,7.6554070247928498,7.5320100776346299,6.6141371703509799,6.4250530877957504,5.5201156379091696,null,7.1255995130252643,6.2986845535265799,5.5201156379091696]
[247,7,"stroke_10",10.352094185200199,8.8975793456014305,8.8072966738862704,7.6541319301749597,7.5302580498345097,6.60917952489641,6.4195153407292596,5.5122262456713402,null,7.1231097020267713,6.2931536241503219,5.5122262456713402]
[248,8,"stroke_10",10.448301582240701,8.9834681186383492,8.8925150933532002,7.7304639745949304,7.6055987684817703,6.6769156164382899,6.4856331731069297,5.5703460798565896,null,7.1946142463030158,6.357943484494438,5.5703460798565887]
[249,9,"stroke_10",10.6090498911725,9.1248127412980207,9.0326256585265199,7.8544957858915501,7.7278677789197703,6.7858529397159701,6.5917752199633002,5.6628714625954704,null,7.3105322514893443,6.4619841754392588,5.6628714625954704]
[250,10,"stroke_10",10.560508253144899,9.0828745602607004,8.9911057501380007,7.8183969193315201,7.6923593765636298,6.7547782906920997,6.5616221100202798,5.6371586972576599,null,7.2770756797797391,6.432482104692153,5.6371586972576599,null,{"$f":"SUMPRODUCT(M192:M201, array_decile)","v":6.995954279176801},{"$f":"SUMPRODUCT(N192:N201, array_decile)","v":6.1811001807353829},{"$f":"SUMPRODUCT(O192:O201, array_decile)","v":5.414366935882069}]
[251,1,"hf_10",6.7444227909494296,6.8587129296365399,6.0059316640025999,6.8407316676490897,6.0828887550120703,6.9248088944128403,6.1003083632544799,6.1451394535809696,null,{"$f":"MMULT(D202:K211,percent_baseline)/100","v":6.3011145599347582},{"$f":"MMULT(D202:K211, percent_s1)/100","v":6.2584211781566434},{"$f":"MMULT(D202:K211, percent_s2)/100","v":6.1451394535809696}]
[252,2,"hf_10",6.7713973901296196,6.88567989325926,6.0327714522165197,6.8677003038853996,6.1097584885276603,6.9517682201659099,6.1271843330954097,6.17203056420799,null,6.3280141679172832,6.2853206626297071,6.17203056420799]
[253,3,"hf_10",7.0840169186213799,7.2027115340301604,6.3163522918033497,7.1840392125442198,6.3964091129979499,7.2713416691964703,6.4145283816566403,6.4611567795622902,null,6.6232175146887018,6.578866675680036,6.4611567795622902]
[254,4,"hf_10",6.9404485578030402,7.0575641877559896,6.1833585050000401,7.0391393174154402,6.26228179517424,7.1252878167738602,6.2801455459476001,6.3261181300864502,null,6.4859854062284539,6.4422305750025837,6.3261181300864511]
[255,5,"hf_10",6.92943513686755,7.0463563166956904,6.1735651979770596,7.0279621376589203,6.2523643044048498,7.1139668152481903,6.2701998496509903,6.31609968117818,null,6.4757054368922438,6.4320226026017293,6.31609968117818]
[256,6,"hf_10",6.9599538051017502,7.0769905766898402,6.2032188371813302,7.0585785009352504,6.2821186697783604,7.1446659547691702,6.2999766436201199,6.3459335785185198,null,6.5057089569952291,6.4619811524390753,6.3459335785185207]
[257,7,"hf_10",6.9377525307881598,7.0550606283584099,6.1795496818287203,7.0366051306886597,6.2585779780583604,7.1228979408105504,6.2764658618589602,6.3225011693221997,null,6.4826174379649704,6.438792928215455,6.3225011693221997]
[258,8,"hf_10",7.0048044804895904,7.1229718400778204,6.2409247052691503,7.1043814854784797,6.3205550312276699,7.1913038096123101,6.3385788397583598,6.3849633769148104,null,6.5462653463518494,6.5021177409296635,6.3849633769148104]
[259,9,"hf_10",7.0844788552251003,7.2037264850935196,6.31345701640186,7.1849666013265203,6.3938451293363698,7.27268024524097,6.4120400175662304,6.4588640877498298,null,6.6216572684978727,6.5771033720424557,6.4588640877498298]
[260,10,"hf_10",7.0230671561286,7.1413674659514097,6.2582789674014299,7.1227563191324901,6.3380082703282898,7.2097754702345203,6.3560543340889701,6.4024958985828704,null,6.5639843434433693,6.5197862925844712,6.4024958985828695,null,{"$f":"SUMPRODUCT(M202:M211, array_decile)","v":6.3011145599347582},{"$f":"SUMPRODUCT(N202:N211, array_decile)","v":6.2584211781566434},{"$f":"SUMPRODUCT(O202:O211, array_decile)","v":6.1451394535809696}]
[261,1,"ihd_10",9.0647871348412803,9.1400443789315595,7.1899457160231197,8.3164365611302102,7.1854116960340297,8.3737274297085609,6.4993532573835902,6.4921449444663901,null,{"$f":"MMULT(D212:K221,percent_baseline)/100","v":7.2819070429782506},{"$f":"MMULT(D212:K221, percent_s1)/100","v":6.9357925780462883},{"$f":"MMULT(D212:K221, percent_s2)/100","v":6.4921449444663901}]
[262,2,"ihd_10",9.0781655665198393,9.1534772069591597,7.2016956452368399,8.3292287534626102,7.1971570317372597,8.3865674468605498,6.5103657779735702,6.5031493634673403,null,7.2936790444966073,6.9472392405932553,6.5031493634673403]
[263,3,"ihd_10",9.0718136540149299,9.1471269711348704,7.1955421367375703,8.3228995837229292,7.1910045891428203,8.3802339583666292,6.5044092368993098,6.4971952519463896,null,7.287567982755581,6.9411871097246145,6.4971952519463905]
[264,4,"ihd_10",9.0791058857773006,9.1544868158646509,7.2011592080773497,8.3295204237454108,7.1966176460065796,8.3869061108117897,6.5094180573674798,6.5021977611879,null,7.293271070391329,6.9465826006480373,6.5021977611879]
[265,5,"ihd_10",9.0635447670671905,9.1388028899873301,7.1887124283703701,8.3151901902882894,7.1841785148351303,8.3724810410905093,6.4981418992667699,6.4909338792051399,null,7.2806812361670676,6.9345718414605173,6.4909338792051408]
[266,6,"ihd_10",9.1540225662327508,9.2299693589150493,7.2616852252463104,8.3987607917761604,7.25710817528193,8.4565842137828007,6.5645004707861903,6.55722294764354,null,7.3544431030554653,7.0050724105866129,6.5572229476435409]
[267,7,"ihd_10",9.0992213932254895,9.1747549478384602,7.2174122530791998,8.3481083773370699,7.2128612027777397,8.4056116536595198,6.5242171284174297,6.51698156064512,null,7.3097004003274515,6.9622932517549705,6.51698156064512]
[268,8,"ihd_10",9.0983868383235098,9.1739103551547494,7.2167940714243199,8.3473676805741004,7.2122434729604397,8.4048641428501902,6.5236643963551799,6.5164294779145697,null,7.3090657201861173,6.9616960077387429,6.5164294779145697]
[269,9,"ihd_10",9.1082437613053493,9.1838683905858396,7.2242236982126604,8.3562342896304393,7.2196674508141703,8.4138055803507399,6.5302464448257602,6.5230028171977903,null,7.3166339650976377,6.9688245081225251,6.5230028171977903]
[270,10,"ihd_10",9.13838620347566,9.2141855128830894,7.2496638393457404,8.3845817822675901,7.2450953747799902,8.4422942592413204,6.5537765845228702,6.5465124921482198,null,7.3422299247728207,6.9935203968339446,6.5465124921482198,null,{"$f":"SUMPRODUCT(M212:M221, array_decile)","v":7.2819070429782506},{"$f":"SUMPRODUCT(N212:N221, array_decile)","v":6.9357925780462883},{"$f":"SUMPRODUCT(O212:O221, array_decile)","v":6.4921449444663901}]
[271,1,"blind_10",4.61163685351507,3.36470417047224,4.6392342475964101,4.1419191752387601,3.3905113650466401,3.02037620235361,4.15054513639405,3.0408136881046,null,{"$f":"MMULT(D222:K231,percent_baseline)/100","v":3.6671295890617164},{"$f":"MMULT(D222:K231, percent_s1)/100","v":3.3843524437461889},{"$f":"MMULT(D222:K231, percent_s2)/100","v":3.0408136881046}]
[272,2,"blind_10",4.6221457333358602,3.3721765258386598,4.6498116811749002,4.1512699297325701,3.3980452969331001,3.0270324467763698,4.1599170081552304,3.0475180848225198,null,3.6753429567891329,3.3918812426443914,3.0475180848225198]
[273,3,"blind_10",4.6772149901913496,3.41318641303871,4.7051855060466297,4.2011118731088501,3.4393521545103698,3.0640554043449,4.2098556902801496,3.0847789710995701,null,3.7197419697199847,3.4330730521989632,3.0847789710995697]
[274,4,"blind_10",4.70490165677883,3.4340764594238902,4.7330172303127904,4.2262943920189198,3.4603877696199099,3.0829829025248698,4.2350847997906804,3.1038240171449099,null,3.7422633474854496,3.4540376474103285,3.1038240171449099]
[275,5,"blind_10",4.6632216746450403,3.4027283296270601,4.6911159155304603,4.1884297291592301,3.4288191142089399,3.0546047997305301,4.1971492460941304,3.0752681829486699,null,3.7084326820517153,3.4225711121479439,3.0752681829486699]
[276,6,"blind_10",4.6808450283837599,3.4158460466272902,4.7088369544140196,4.2043770908935301,3.4420319393263701,3.0664458670602599,4.2131276150536401,3.0871854266759202,null,3.7226367085988943,3.4357475058049998,3.0871854266759202]
[277,7,"blind_10",4.7217844779888196,3.4463077808371998,4.7500032453289496,4.2414219776389501,3.47271503631731,3.09393596788951,4.2502445941066602,3.1148528487965002,null,3.7556242816376253,3.4663448715226104,3.1148528487965002]
[278,8,"blind_10",4.7457861780738799,3.4639615582937302,4.77414426826184,4.2630445935556702,3.49050124660867,3.1098185045895601,4.2719110321349802,3.1308407394731601,null,3.7748140385940134,3.4840917587212514,3.1308407394731601]
[279,9,"blind_10",4.7716377114383501,3.4830808617181299,4.8001427983081504,4.2863810408764698,3.5097617115913402,3.1270468099887401,4.2952938922935102,3.1481816801401701,null,3.7955597774924694,3.5033050125315466,3.1481816801401705]
[280,10,"blind_10",4.7682009865763204,3.4805476688394901,4.79668635451835,4.2832818295223003,3.5072095795031402,3.1247672151536201,4.2921884510184496,3.1458869869046402,null,3.7928082280479383,3.500759098652495,3.1458869869046402,null,{"$f":"SUMPRODUCT(M222:M231, array_decile)","v":3.6671295890617164},{"$f":"SUMPRODUCT(N222:N231, array_decile)","v":3.3843524437461889},{"$f":"SUMPRODUCT(O222:O231, array_decile)","v":3.0408136881046}]
[281,1,"amp_10",2.2448755875007,1.51636697791613,2.2949829535577799,1.98858979623985,1.54296049442383,1.3274146146838199,1.9861675893141499,1.3582844092839099,null,{"$f":"MMULT(D232:K241,percent_baseline)/100","v":1.7108337284550175},{"$f":"MMULT(D232:K241, percent_s1)/100","v":1.5505697039457054},{"$f":"MMULT(D232:K241, percent_s2)/100","v":1.3582844092839099}]
[282,2,"amp_10",2.3096009017118302,1.56314895012338,2.3608596575837302,2.0472670407271498,1.5904401058383399,1.3691375097166401,2.0447863661299599,1.4008463198468499,null,1.7623351291324303,1.5980701855801529,1.4008463198468499]
[283,3,"amp_10",2.3422699764253401,1.5866347966796801,2.3941236944608701,2.0768233020546498,1.6142803674833901,1.3900582120782601,2.07431263141744,1.4221918644385301,null,1.7882401973793689,1.6219307106183063,1.4221918644385301]
[284,4,"amp_10",2.2983750171824999,1.55322508199916,2.34960634358543,2.0362996168044099,1.5804362575876501,1.35986075644954,2.0338223620503402,1.39145418663009,null,1.7521178096763732,1.5881803484957715,1.39145418663009]
[285,5,"amp_10",2.28330766841498,1.5419091389866399,2.3343024044132901,2.0224805566036701,1.56897107154288,1.34963863639606,2.0200154279573699,1.3810491721460001,null,1.7398227294379007,1.5767268946211233,1.3810491721460003]
[286,6,"amp_10",2.32358766579372,1.5730703988058099,2.3751313363481099,2.0598098590549201,1.6005086655396801,1.3780114382939599,2.05731563291548,1.40989183241392,null,1.7733413449569884,1.6081825532727065,1.40989183241392]
[287,7,"amp_10",2.3162512037349599,1.5672037669066601,2.3677100279030499,2.05293578909472,1.5945788339698299,1.3726203465625,2.05044618025306,1.4044197148762601,null,1.7670999178743003,1.6022772986183935,1.4044197148762601]
[288,8,"amp_10",2.3247578593471498,1.5738172176769401,2.3763258014418001,2.0608459598715099,1.6012731331252901,1.3786288448956801,2.0583503873735798,1.4105308288935099,null,1.7741981344974567,1.6089437039526908,1.4105308288935101]
[289,9,"amp_10",2.27797647574537,1.5400876354419999,2.3286786580074099,2.0185480963737299,1.5670479850222601,1.3484754111141399,2.0160953811292601,1.3797861431731899,null,1.7370205452055427,1.5746634214916737,1.3797861431731899]
[290,10,"amp_10",2.26325671630905,1.5285256985427,2.31379520192626,2.0047699022007701,1.55534395706003,1.33798433381327,2.0023269365204999,1.36911272382312,null,1.7246584981718716,1.5630291382890005,1.36911272382312,null,{"$f":"SUMPRODUCT(M232:M241, array_decile)","v":1.7108337284550175},{"$f":"SUMPRODUCT(N232:N241, array_decile)","v":1.5505697039457054},{"$f":"SUMPRODUCT(O232:O241, array_decile)","v":1.3582844092839099}]
[291,1,"ulcer_10",2.2864399622801201,1.69994198083138,2.3232675538244099,2.3490366040680399,1.73727030240057,1.73972469990312,2.3811207433677302,1.7734344887182101,null,{"$f":"MMULT(D242:K251,percent_baseline)/100","v":2.0005567208528787},{"$f":"MMULT(D242:K251, percent_s1)/100","v":1.919525893011846},{"$f":"MMULT(D242:K251, percent_s2)/100","v":1.7734344887182101}]
[292,2,"ulcer_10",2.2670334090382398,1.68542839862484,2.3035554241588798,2.3291107685121601,1.7224437596274,1.7248775870709701,2.3609289587917202,1.7583049520151099,null,1.9835352478070218,1.9031795083405831,1.7583049520151099]
[293,3,"ulcer_10",2.3113310520922701,1.7185789825895701,2.3485482706299199,2.3745897335084898,1.75630809133165,1.7587888282572599,2.4070127935593999,1.7928602122539601,null,2.0223991374432244,1.9405059114344123,1.7928602122539601]
[294,4,"ulcer_10",2.3276795918476401,1.73122558706638,2.3651187765854198,2.3913148323784701,1.76919985360918,1.77169666378969,2.4239295428519299,1.80598822875281,null,2.0369427877215354,1.9545438711320224,1.80598822875281]
[295,5,"ulcer_10",2.3522722734051098,1.74966620448525,2.39009456809484,2.4165584763958501,1.7880349569559499,1.79055769089392,2.44950643118769,1.8252051260204201,null,2.0585365938196678,1.9752894720950684,1.8252051260204201]
[296,6,"ulcer_10",2.3261224640980398,1.7296766045863501,2.3635691239180399,2.3897709532341702,1.76764300710023,1.77013933616828,2.4223934740495201,1.80442474062227,null,2.0353898850908134,1.9529876684649929,1.80442474062227]
[297,7,"ulcer_10",2.3478588731324601,1.7462591197331501,2.3856202616005202,2.4120417027601202,1.78456166403773,1.78708005553295,2.4449369544611499,1.8216679841183701,null,2.0546137386565908,1.9715043609487153,1.8216679841183698]
[298,8,"ulcer_10",2.3664755747295199,1.7601165047044001,2.4045351382717199,2.4311651660568501,1.79872249831239,1.8012608398224399,2.4643200599517598,1.83612274199131,null,2.0709104675093282,1.9871438808811337,1.83612274199131]
[299,9,"ulcer_10",2.3801571322561701,1.7704902770719699,2.4184203100553701,2.4451925333250499,1.80931056394109,1.8118629771230499,2.4785241517710501,1.84691791636669,null,2.0829795473873389,1.998758223337133,1.84691791636669]
[300,10,"ulcer_10",2.3860687569217598,1.7749487542144899,2.4244215376046201,2.4512563393236801,1.81386295892625,1.8164215407161799,2.4846657350336101,1.8515611191431101,null,2.0881827322087458,2.0037615190544544,1.8515611191431101,null,{"$f":"SUMPRODUCT(M242:M251, array_decile)","v":2.0005567208528787},{"$f":"SUMPRODUCT(N242:N251, array_decile)","v":1.919525893011846},{"$f":"SUMPRODUCT(O242:O251, array_decile)","v":1.7734344887182101}]
[301,1,"renal_10",1.28775937583424,1.2947517957118799,0.971285793238434,1.1097509176077001,0.961864650270985,1.1150573826761001,0.82263655058549601,0.82225343009242002,null,{"$f":"MMULT(D252:K261,percent_baseline)/100","v":0.96316099464422111},{"$f":"MMULT(D252:K261, percent_s1)/100","v":0.89703987437174049},{"$f":"MMULT(D252:K261, percent_s2)/100","v":0.82225343009241991}]
[302,2,"renal_10",1.2919693990460299,1.2989584087150701,0.97538897835081995,1.11396519612537,0.96595648507857801,1.11927388335169,0.82650214518479903,0.826118247874286,null,0.96718001700891054,0.90100181718101424,0.826118247874286]
[303,3,"renal_10",1.3029750216917,1.3100249129677,0.98361194941021801,1.1234119129690301,0.97409588464610097,1.1287673150641,0.83340299915654803,0.83301568658799097,null,0.97532511775098529,0.90856278887118724,0.83301568658799097]
[304,4,"renal_10",1.2287120296091401,1.23541878683721,0.925414980692016,1.0580518326527,0.91639437607879703,1.06313700617929,0.78315126632732701,0.78278479487625596,null,0.91771429734646959,0.8543828007909301,0.78278479487625607]
[305,5,"renal_10",1.2059542948005399,1.21253688460249,0.90833787793649001,1.03847629340563,0.89948780951207197,1.0434660693112301,0.76876983897812701,0.768410323922329,null,0.90079454564796335,0.83865482703426752,0.768410323922329]
[306,6,"renal_10",1.2431213890649699,1.2499292685193899,0.93543789547857503,1.0699456655377599,0.926292982310151,1.07510410614406,0.79126094912887401,0.79088968476866595,null,0.92768876837938019,0.86346819957073973,0.79088968476866595]
[307,7,"renal_10",1.20051901980497,1.2070638595598799,0.90451828205167994,1.03397193740227,0.89571357561347098,1.0389347921744301,0.76564798899008601,0.76529022294180904,null,0.89698999585751271,0.83517655759435228,0.76529022294180904]
[308,8,"renal_10",1.2221129958136101,1.2287833357148601,0.92048177713143597,1.0523856859637499,0.91151124552788698,1.05744289145672,0.77901044127458596,0.77864601711859904,null,0.91282809472314486,0.84984645028554473,0.77864601711859904]
[309,9,"renal_10",1.14829309260045,1.15461026583246,0.863118767227668,0.98770652916581803,0.85465279054442,0.99248700085310504,0.72971214316292099,0.72936879537709098,null,0.85603294567937382,0.79655171116502965,0.72936879537709098]
[310,10,"renal_10",1.2092171646786001,1.2158277268161199,0.91036316647328697,1.0410337145267201,0.90147770169377495,1.0460442498107101,0.77025305089891105,0.76989219055357205,null,0.90280557839550224,0.84041476465038156,0.76989219055357205,null,{"$f":"SUMPRODUCT(M252:M261, array_decile)","v":0.96316099464422111},{"$f":"SUMPRODUCT(N252:N261, array_decile)","v":0.89703987437174049},{"$f":"SUMPRODUCT(O252:O261, array_decile)","v":0.82225343009241991}]